{"text_format":"1","workbook":"xlsx","n_sheets":7,"sheets":["Master (2)","uniques (3)","uniques (2)","Sheet1","Master","uniques","concat"],"not_rendered":{"charts":0,"images":1,"macros":1,"external_links":0,"defined_names":6,"comments":0,"pivot_tables":0},"unopened":[],"bounds":{"document_bytes":16777216,"sheet_cells":100000,"rows_first":2000,"rows_last":500,"rows_between":2000,"halvings":0,"cell_chars":16384,"cell_head_chars":4096},"cells_cut":0,"cells_raw":0,"read":"whole","date_system":"1900"}

{"sheet":"Master (2)","index":0,"n_rows":644,"n_cols":12,"rows_kept":644,"cut":false,"hidden":false,"merged":[]}
["PtCount","AccessLevel"]
["Unique Patients in selected cohorts: 639","Your Level of Access:\r\nYou have Station level permission: 556"]
[]
["PatientName2","PatientSSN2","PostStudyDate","LastLabChemCompleteDate2","LastColonoscopyDate2","DaysSinceColonoscopy2","LastVAorNonVA","PCPName5---------------------","Team2","NextPCAppointment","NextPCApptClinicName","DIVISION_FCDM-------------------------------------------------"]
["Jones,JANE1",111111111,null,"2021-04-22","2008-03-19",5064,"VAProcedure; JLV AdmParent: (V12) (556) North Chicago, IL HCS","KIZHNER,JULIA","GREEN 3","2022-03-08T11:00:00","(556) JAL PACT PC PA GREEN3","(V12) (556) North Chicago, IL (Captain James A. Lovell)"]
["Jones,JANE2",111111112,null,"2019-06-19","2013-07-31",3104,"VAProcedure; JLV AdmParent: (V12) (556) North Chicago, IL HCS","SYEDA,SARA J","GOLD 3",null,null,"(V12) (556) North Chicago, IL (Captain James A. Lovell)"]
["Jones,JANE3",111111113,null,"2020-05-26","2020-06-15",593,"VAProcedure; JLV AdmParent: (V12) (556) North Chicago, IL HCS","SYEDA,SARA J","GOLD 3",null,null,"(V12) (556) North Chicago, IL (Captain James A. Lovell)"]
["Jones,JANE4",111111114,null,null,null,null,"Gap Health Factor - Check Pt Details","FRANCISCO,RAMIL","GREEN 1","2022-02-18T08:00:00","(556) JAL PACT PC RD TELE","(V12) (556) North Chicago, IL (Captain James A. Lovell)"]
["Jones,JANE5",111111115,null,"2017-02-16","2011-03-17",3971,"VAProcedure; JLV AdmParent: (V12) (556) North Chicago, IL HCS","SYEDA,SARA J","GOLD 3",null,null,"(V12) (556) North Chicago, IL (Captain James A. Lovell)"]
["Jones,JANE6",111111116,null,"2017-06-07","2017-02-15",1809,"VAProcedure; JLV AdmParent: (V12) (556) North Chicago, IL HCS","IQBAL,FARZANA","EVANSTON 2 *WH* CBOC",null,null,"(V12) (556GA) Evanston, IL"]
["Jones,JANE7",111111117,null,"2017-06-12","2017-07-18",1656,"VAProcedure; JLV AdmParent: (V12) (578) Hines, IL HCS","SIAS,PATRICIA E","MC HENRY 5 CBOC",null,null,"(V12) (556GC) McHenry, IL"]
["Jones,JANE8",111111118,"2006-11-14",null,"2006-10-31",5569,"VAProcedure; JLV AdmParent: (V12) (556) North Chicago, IL HCS","SMIRNOV,MICHAEL","GOLD 1",null,null,"(V12) (556) North Chicago, IL (Captain James A. Lovell)"]
["Jones,JANE9",111111119,"2006-12-12",null,"2006-11-28",5541,"VAProcedure; JLV AdmParent: (V15) (657) St. Louis, MO HCS","SMIRNOV,MICHAEL","GOLD 1",null,null,"(V12) (556) North Chicago, IL (Captain James A. Lovell)"]
["Jones,JANE10",111111120,"2007-05-11",null,"2007-04-27",5391,"VAProcedure; JLV AdmParent: (V12) (556) North Chicago, IL HCS","CHAVEZ,LUIS A","BLUE 5","2022-04-04T13:00:00","(556) JAL PACT PC MD BLUE5","(V12) (556) North Chicago, IL (Captain James A. Lovell)"]
["Jones,JANE11",111111121,"2007-05-21",null,"2007-05-07",5381,"VAProcedure; JLV AdmParent: (V12) (556) North Chicago, IL HCS","OOMMEN,SAJI","BLUE 1",null,null,"(V12) (556) North Chicago, IL (Captain James A. Lovell)"]
["Jones,JANE12",111111122,"2007-09-03",null,"2007-08-20",5276,"VAProcedure; JLV AdmParent: (V12) (556) North Chicago, IL HCS","BANJO,ADEOLA","MC HENRY 4 *WH* CBOC",null,null,"(V12) (556GC) McHenry, IL"]
["Jones,JANE13",111111123,"2007-10-18",null,null,null,"Gap Health Factor - Check Pt Details","FRANCISCO,RAMIL","GREEN 1","2022-04-06T11:00:00","(556) JAL PACT PC LPN PROC","(V12) (556) North Chicago, IL (Captain James A. Lovell)"]
["Jones,JANE14",111111124,"2007-11-19",null,"2007-11-05",5199,"VAProcedure; JLV AdmParent: (V12) (556) North Chicago, IL HCS","MOHAMMED,BAKHTIAR A","MC HENRY 2 CBOC",null,null,"(V12) (556GC) McHenry, IL"]
["Jones,JANE15",111111125,"2008-01-14",null,"2007-12-31",5143,"VAProcedure; JLV AdmParent: (V12) (556) North Chicago, IL HCS","SMIRNOV,MICHAEL","GOLD 1",null,null,"(V12) (556) North Chicago, IL (Captain James A. Lovell)"]
["Jones,JANE16",111111126,"2008-05-09",null,"2008-04-25",5027,"VAProcedure; JLV AdmParent: (V12) (556) North Chicago, IL HCS","OOMMEN,SAJI","BLUE 1",null,null,"(V12) (556) North Chicago, IL (Captain James A. Lovell)"]
["Jones,JANE17",111111127,"2008-06-27",null,null,null,"Gap Health Factor - Check Pt Details","CHAVEZ,LUIS A","BLUE 5","2022-06-27T08:30:00","(556) JAL PACT PC MD BLUE5","(V12) (556) North Chicago, IL (Captain James A. Lovell)"]
["Jones,JANE18",111111128,"2008-08-13",null,"2008-07-30",4931,"VAProcedure; JLV AdmParent: (V12) (556) North Chicago, IL HCS","ROY,DEBJANI MD","GREEN 4","2022-07-19T11:00:00","(556) JAL PACT PC MD GREEN4","(V12) (556) North Chicago, IL (Captain James A. Lovell)"]
["Jones,JANE19",111111129,"2008-12-08",null,"2008-11-24",4814,"VAProcedure; JLV AdmParent: (V12) (556) North Chicago, IL HCS","OOMMEN,SAJI","BLUE 1","2022-02-07T11:00:00","(556) JAL PACT PC MHI PSY, IND","(V12) (556) North Chicago, IL (Captain James A. Lovell)"]
["Jones,JANE20",111111130,"2009-07-24",null,"2009-07-10",4586,"NonVAProcedure; JLV AdmParent: (V06) (558) Durham, NC HCS","ROY,DEBJANI MD","GREEN 4","2022-03-15T10:00:00","(556) JAL PACT PC MD GREEN4","(V12) (556) North Chicago, IL (Captain James A. Lovell)"]
["Jones,JANE21",111111131,"2009-08-31",null,"2009-08-17",4548,"VAProcedure; JLV AdmParent: (V12) (556) North Chicago, IL HCS","CHAVEZ,LUIS A","BLUE 5","2022-07-18T13:00:00","(556) JAL PACT PC MD BLUE5","(V12) (556) North Chicago, IL (Captain James A. Lovell)"]
["Jones,JANE22",111111132,"2010-01-18",null,"2010-01-04",4408,"VAProcedure; JLV AdmParent: (V12) (537) Chicago, IL HCS","SMIRNOV,MICHAEL","GOLD 1",null,null,"(V12) (556) North Chicago, IL (Captain James A. Lovell)"]
["Jones,JANE23",111111133,"2010-03-26",null,"2010-03-12",4341,"VAProcedure; JLV AdmParent: (V12) (556) North Chicago, IL HCS","OOMMEN,SAJI","BLUE 1",null,null,"(V12) (556) North Chicago, IL (Captain James A. Lovell)"]
["Jones,JANE24",111111134,"2010-04-20",null,"2010-04-06",4316,"VAProcedure; JLV AdmParent: (V12) (556) North Chicago, IL HCS","ETINGEN,MARGARITA","GOLD 2",null,null,"(V12) (556) North Chicago, IL (Captain James A. Lovell)"]
["Jones,JANE25",111111135,"2010-10-18",null,"2010-10-04",4135,"VAProcedure; JLV AdmParent: (V12) (556) North Chicago, IL HCS","ROY,DEBJANI MD","GREEN 4",null,null,"(V12) (556) North Chicago, IL (Captain James A. Lovell)"]
["Jones,JANE26",111111136,"2010-10-29",null,"2010-10-15",4124,"VAProcedure; JLV AdmParent: (V22) (501) New Mexico HCS","ROY,DEBJANI MD","GREEN 4",null,null,"(V12) (556) North Chicago, IL (Captain James A. Lovell)"]
["Jones,JANE27",111111137,"2011-02-07",null,"2011-01-24",4023,"VAProcedure; JLV AdmParent: (V12) (556) North Chicago, IL HCS","ETINGEN,MARGARITA","GOLD 2","2022-02-22T11:00:00","(556) JAL PACT PC MD GOLD2","(V12) (556) North Chicago, IL (Captain James A. Lovell)"]
["Jones,JANE28",111111138,"2011-03-01",null,null,null,"Gap Health Factor - Check Pt Details","SMIRNOV,MICHAEL","GOLD 1","2022-09-01T11:00:00","(556) JAL PACT PC MD GOLD1","(V12) (556) North Chicago, IL (Captain James A. Lovell)"]
["Jones,JANE29",111111139,"2011-03-04",null,"2011-02-18",3998,"VAProcedure; JLV AdmParent: (V12) (556) North Chicago, IL HCS","SMIRNOV,MICHAEL","GOLD 1","2022-05-05T15:00:00","(556) JAL PACT PC MD GOLD1","(V12) (556) North Chicago, IL (Captain James A. Lovell)"]
["Jones,JANE30",111111140,"2011-05-25",null,"2011-05-11",3916,"VAProcedure; JLV AdmParent: (V12) (695) Milwaukee, WI HCS","CHAVEZ,LUIS A","BLUE 5",null,null,"(V12) (556) North Chicago, IL (Captain James A. Lovell)"]
["Jones,JANE31",111111141,"2011-05-31",null,null,null,"Gap Health Factor - Check Pt Details","ETINGEN,MARGARITA","GOLD 2",null,null,"(V12) (556) North Chicago, IL (Captain James A. Lovell)"]
["Jones,JANE32",111111142,"2011-07-19",null,"2011-07-05",3861,"VAProcedure; JLV AdmParent: (V12) (556) North Chicago, IL HCS","SYEDA,SARA J","GOLD 3",null,null,"(V12) (556) North Chicago, IL (Captain James A. Lovell)"]
["Jones,JANE33",111111143,"2011-08-15",null,"2011-08-01",3834,"VAProcedure; JLV AdmParent: (V12) (556) North Chicago, IL HCS","KIZHNER,JULIA","GREEN 3","2022-02-22T09:30:00","(556) JAL PACT PC PA GREEN3","(V12) (556) North Chicago, IL (Captain James A. Lovell)"]
["Jones,JANE34",111111144,"2012-01-04",null,"2011-12-21",3692,"VAProcedure; JLV AdmParent: (V12) (556) North Chicago, IL HCS","JUIRIS,TAHIRA","WOMENS HEALTH 2 *WH* CLINIC",null,null,"(V12) (556) North Chicago, IL (Captain James A. Lovell)"]
["Jones,JANE35",111111145,"2012-02-10",null,"2012-01-27",3655,"VAProcedure; JLV AdmParent: (V12) (578) Hines, IL HCS","CHAVEZ,LUIS A","BLUE 5",null,null,"(V12) (556) North Chicago, IL (Captain James A. Lovell)"]
["Jones,JANE36",111111146,"2012-03-02",null,"2012-02-17",3634,"VAProcedure; JLV AdmParent: (V12) (556) North Chicago, IL HCS","CHAVEZ,LUIS A","BLUE 5","2022-04-08T08:30:00","(556) JAL PACT PC MD BLUE5","(V12) (556) North Chicago, IL (Captain James A. Lovell)"]
["Jones,JANE37",111111147,"2012-03-30",null,"2012-03-16",3606,"VAProcedure; JLV AdmParent: (V12) (695) Milwaukee, WI HCS","OOMMEN,SAJI","BLUE 1",null,null,"(V12) (556) North Chicago, IL (Captain James A. Lovell)"]
["Jones,JANE38",111111148,"2012-03-30",null,"2012-03-16",3606,"VAProcedure; JLV AdmParent: (V12) (556) North Chicago, IL HCS","ETINGEN,MARGARITA","GOLD 2","2022-11-28T08:00:00","(556) JAL PACT PC MD GOLD2","(V12) (556) North Chicago, IL (Captain James A. Lovell)"]
["Jones,JANE39",111111149,"2012-04-10",null,"2012-03-27",3595,"VAProcedure; JLV AdmParent: (V12) (556) North Chicago, IL HCS","SIAS,PATRICIA E","MC HENRY 5 CBOC",null,null,"(V12) (556GC) McHenry, IL"]
["Jones,JANE40",111111150,"2012-05-08",null,"2012-04-24",3567,"VAProcedure; JLV AdmParent: (V12) (556) North Chicago, IL HCS","SMIRNOV,MICHAEL","GOLD 1",null,null,"(V12) (556) North Chicago, IL (Captain James A. Lovell)"]
["Jones,JANE41",111111151,"2012-06-15",null,"2012-06-01",3529,"VAProcedure; JLV AdmParent: (V12) (556) North Chicago, IL HCS","OOMMEN,SAJI","BLUE 1",null,null,"(V12) (556) North Chicago, IL (Captain James A. Lovell)"]
["Jones,JANE42",111111152,"2012-09-14",null,"2012-08-31",3438,"VAProcedure; JLV AdmParent: (V12) (556) North Chicago, IL HCS","KIZHNER,JULIA","GREEN 3","2022-08-25T09:00:00","(556) JAL PACT PC PA GREEN3","(V12) (556) North Chicago, IL (Captain James A. Lovell)"]
["Jones,JANE43",111111153,"2012-11-23",null,"2012-11-09",3368,"VAProcedure; JLV AdmParent: (V12) (556) North Chicago, IL HCS","SIAS,PATRICIA E","MC HENRY 5 CBOC",null,null,"(V12) (556GC) McHenry, IL"]
["Jones,JANE44",111111154,"2012-11-27",null,"2012-11-13",3364,"VAProcedure; JLV AdmParent: (V12) (607) Madison, WI HCS","BANJO,ADEOLA","MC HENRY 4 *WH* CBOC",null,null,"(V12) (556GC) McHenry, IL"]
["Jones,JANE45",111111155,"2012-12-04",null,"2012-11-20",3357,"VAProcedure; JLV AdmParent: (V12) (556) North Chicago, IL HCS","ROY,DEBJANI MD","GREEN 4","2022-02-01T10:00:00","(556) JAL PACT PC MD GREEN4","(V12) (556) North Chicago, IL (Captain James A. Lovell)"]
["Jones,JANE46",111111156,"2013-01-24",null,"2013-01-10",3306,"VAProcedure; JLV AdmParent: (V12) (556) North Chicago, IL HCS","ROY,DEBJANI MD","GREEN 4",null,null,"(V12) (556) North Chicago, IL (Captain James A. Lovell)"]
["Jones,JANE47",111111157,"2013-02-28",null,"2013-02-14",3271,"VAProcedure; JLV AdmParent: (V12) (556) North Chicago, IL HCS","IFTIKHAR,SYEDA A MD","GREEN 5",null,null,"(V12) (556) North Chicago, IL (Captain James A. Lovell)"]
["Jones,JANE48",111111158,"2013-04-24",null,"2013-04-10",3216,"VAProcedure; JLV AdmParent: (V12) (556) North Chicago, IL HCS","ETINGEN,MARGARITA","GOLD 2","2022-01-31T08:30:00","(556) JAL PACT PHARM GOLD TELE2 ","(V12) (556) North Chicago, IL (Captain James A. Lovell)"]
["Jones,JANE49",111111159,"2013-08-05",null,"2013-07-22",3113,"NonVAProcedure; JLV AdmParent: (V12) (556) North Chicago, IL HCS","OOMMEN,SAJI","BLUE 1",null,null,"(V12) (556) North Chicago, IL (Captain James A. Lovell)"]
["Jones,JANE50",111111160,"2013-08-15",null,"2013-08-01",3103,"VAProcedure; JLV AdmParent: (V12) (556) North Chicago, IL HCS","RAVIPATI,MAMATA MD","GOLD 4",null,null,"(V12) (556) North Chicago, IL (Captain James A. Lovell)"]
["Jones,JANE51",111111161,"2013-11-01",null,"2013-10-18",3025,"NonVAProcedure; JLV AdmParent: (V12) (556) North Chicago, IL HCS","FRANCISCO,RAMIL","GREEN 1",null,null,"(V12) (556) North Chicago, IL (Captain James A. Lovell)"]
["Jones,JANE52",111111162,"2013-11-04",null,"2013-10-21",3022,"VAProcedure; JLV AdmParent: (V12) (556) North Chicago, IL HCS","CHAVEZ,LUIS A","BLUE 5","2022-04-05T10:00:00","(556) JAL PACT PC MD BLUE5","(V12) (556) North Chicago, IL (Captain James A. Lovell)"]
["Jones,JANE53",111111163,"2013-11-04",null,"2013-10-21",3022,"VAProcedure; JLV AdmParent: (V12) (556) North Chicago, IL HCS","RAVIPATI,MAMATA MD","GOLD 4","2022-02-04T10:30:00","(556) JAL PACT PHARM GOLD TELE2 ","(V12) (556) North Chicago, IL (Captain James A. Lovell)"]
["Jones,JANE54",111111164,"2013-11-05",null,"2013-10-22",3021,"VAProcedure; JLV AdmParent: (V10) (610) Northern Indiana HCS","HOLLOWAY,ALISON R MD","WOMENS HEALTH 1 *WH* CLINIC",null,null,"(V12) (556) North Chicago, IL (Captain James A. Lovell)"]
["Jones,JANE55",111111165,"2014-01-30",null,"2014-01-16",2935,"VAProcedure; JLV AdmParent: (V12) (556) North Chicago, IL HCS","ROY,DEBJANI MD","GREEN 4",null,null,"(V12) (556) North Chicago, IL (Captain James A. Lovell)"]
["Jones,JANE56",111111166,"2014-03-12",null,"2014-02-26",2894,"VAProcedure; JLV AdmParent: (V22) (644) Phoenix, AZ HCS","HOLLOWAY,ALISON R MD","WOMENS HEALTH 1 *WH* CLINIC",null,null,"(V12) (556) North Chicago, IL (Captain James A. Lovell)"]
["Jones,JANE57",111111167,"2014-04-16",null,"2014-04-02",2859,"VAProcedure; JLV AdmParent: (V12) (556) North Chicago, IL HCS","HOLLOWAY,ALISON R MD","WOMENS HEALTH 1 *WH* CLINIC",null,null,"(V12) (556) North Chicago, IL (Captain James A. Lovell)"]
["Jones,JANE58",111111168,"2014-06-04",null,"2014-05-21",2810,"NonVAProcedure; JLV AdmParent: (V12) (556) North Chicago, IL HCS","ZAKARIYA,HOSAM Y","BLUE 2",null,null,"(V12) (556) North Chicago, IL (Captain James A. Lovell)"]
["Jones,JANE59",111111169,"2014-07-04",null,"2014-06-20",2780,"NonVAProcedure; JLV AdmParent: (V12) (556) North Chicago, IL HCS","KIZHNER,JULIA","GREEN 3","2022-04-08T10:00:00","(556) JAL PACT PC PA GREEN3","(V12) (556) North Chicago, IL (Captain James A. Lovell)"]
["Jones,JANE60",111111170,"2014-08-13",null,"2014-07-30",2740,"NonVAProcedure; JLV AdmParent: (V12) (556) North Chicago, IL HCS","SYEDA,SARA J","GOLD 3",null,null,"(V12) (556) North Chicago, IL (Captain James A. Lovell)"]
["Jones,JANE61",111111171,"2014-08-30",null,"2014-08-16",2723,"NonVAProcedure; JLV AdmParent: (V12) (556) North Chicago, IL HCS","IFTIKHAR,SYEDA A MD","GREEN 5",null,null,"(V12) (556) North Chicago, IL (Captain James A. Lovell)"]
["Jones,JANE62",111111172,"2014-10-20",null,"2014-10-06",2672,"VAProcedure; JLV AdmParent: (V12) (556) North Chicago, IL HCS","LAYUG,ANNA","GREEN 6",null,null,"(V12) (556) North Chicago, IL (Captain James A. Lovell)"]
["Jones,JANE63",111111173,"2014-11-12",null,"2014-10-29",2649,"VAProcedure; JLV AdmParent: (V12) (556) North Chicago, IL HCS","MIRZA,SHAZIA","KENOSHA 1 *WH* CBOC","2022-01-31T09:45:00","(556GD) KENOSHA - PACT PC 1 R2","(V12) (556GD) Kenosha, WI"]
["Jones,JANE64",111111174,"2014-11-24",null,"2014-11-10",2637,"VAProcedure; JLV AdmParent: (V12) (556) North Chicago, IL HCS","CHAVEZ,LUIS A","BLUE 5","2022-04-25T14:30:00","(556) JAL PACT PC MD BLUE5 TELE","(V12) (556) North Chicago, IL (Captain James A. Lovell)"]
["Jones,JANE65",111111175,"2014-12-03",null,"2014-11-19",2628,"VAProcedure; JLV AdmParent: (V12) (556) North Chicago, IL HCS","MOHAMMED,BAKHTIAR A","MC HENRY 2 CBOC",null,null,"(V12) (556GC) McHenry, IL"]
["Jones,JANE66",111111176,"2014-12-30",null,"2014-12-16",2601,"VAProcedure; JLV AdmParent: (V12) (556) North Chicago, IL HCS","ROY,DEBJANI MD","GREEN 4",null,null,"(V12) (556) North Chicago, IL (Captain James A. Lovell)"]
["Jones,JANE67",111111177,"2015-01-30",null,"2015-01-16",2570,"VAProcedure; JLV AdmParent: (V12) (556) North Chicago, IL HCS","SIAS,PATRICIA E","MC HENRY 5 CBOC",null,null,"(V12) (556GC) McHenry, IL"]
["Jones,JANE68",111111178,"2015-03-06",null,"2015-02-20",2535,"VAProcedure; JLV AdmParent: (V12) (556) North Chicago, IL HCS","ROY,DEBJANI MD","GREEN 4","2022-03-31T09:30:00","(556) JAL PACT PC MD GREEN4","(V12) (556) North Chicago, IL (Captain James A. Lovell)"]
["Jones,JANE69",111111179,"2015-03-25",null,"2015-03-11",2516,"VAProcedure; JLV AdmParent: (V12) (556) North Chicago, IL HCS","COTTER,WILLIAM MD","GOLD 5","2022-05-16T10:00:00","(556) JAL PACT PC MD GOLD5","(V12) (556) North Chicago, IL (Captain James A. Lovell)"]
["Jones,JANE70",111111180,"2015-04-03",null,"2015-03-20",2507,"VAProcedure; JLV AdmParent: (V12) (556) North Chicago, IL HCS","ROY,DEBJANI MD","GREEN 4",null,null,"(V12) (556) North Chicago, IL (Captain James A. Lovell)"]
["Jones,JANE71",111111181,"2015-04-06",null,"2015-03-23",2504,"VAProcedure; JLV AdmParent: (V12) (556) North Chicago, IL HCS","HOLLOWAY,ALISON R MD","WOMENS HEALTH 1 *WH* CLINIC","2022-04-21T08:00:00","(556) JAL PACT WH PC 1 MD","(V12) (556) North Chicago, IL (Captain James A. Lovell)"]
["Jones,JANE72",111111182,"2015-06-24",null,"2015-06-10",2425,"VAProcedure; JLV AdmParent: (V12) (556) North Chicago, IL HCS","ETINGEN,MARGARITA","GOLD 2","2022-10-07T11:00:00","(556) JAL PACT PC MD GOLD2","(V12) (556) North Chicago, IL (Captain James A. Lovell)"]
["Jones,JANE73",111111183,"2015-08-14",null,"2015-07-31",2374,"VAProcedure; JLV AdmParent: (V12) (556) North Chicago, IL HCS","SYEDA,SARA J","GOLD 3",null,null,"(V12) (556) North Chicago, IL (Captain James A. Lovell)"]
["Jones,JANE74",111111184,"2015-08-26",null,"2015-08-12",2362,"VAProcedure; JLV AdmParent: (V12) (556) North Chicago, IL HCS","ROY,DEBJANI MD","GREEN 4","2022-01-28T10:00:00","(556) JAL PACT PC MD GREEN4","(V12) (556) North Chicago, IL (Captain James A. Lovell)"]
["Jones,JANE75",111111185,"2015-08-27",null,"2015-08-13",2361,"VAProcedure; JLV AdmParent: (V12) (556) North Chicago, IL HCS","CHAVEZ,LUIS A","BLUE 5",null,null,"(V12) (556) North Chicago, IL (Captain James A. Lovell)"]
["Jones,JANE76",111111186,"2015-10-09",null,"2015-09-25",2318,"VAProcedure; JLV AdmParent: (V12) (556) North Chicago, IL HCS","ETINGEN,MARGARITA","GOLD 2",null,null,"(V12) (556) North Chicago, IL (Captain James A. Lovell)"]
["Jones,JANE77",111111187,"2015-10-28",null,"2015-10-14",2299,"VAProcedure; JLV AdmParent: (V12) (556) North Chicago, IL HCS","OOMMEN,SAJI","BLUE 1",null,null,"(V12) (556) North Chicago, IL (Captain James A. Lovell)"]
["Jones,JANE78",111111188,"2015-11-02",null,"2015-10-19",2294,"VAProcedure; JLV AdmParent: (V22) (600) Long Beach, CA HCS","HOLLOWAY,ALISON R MD","WOMENS HEALTH 1 *WH* CLINIC",null,null,"(V12) (556) North Chicago, IL (Captain James A. Lovell)"]
["Jones,JANE79",111111189,"2015-11-23","2018-06-25","2015-11-09",2273,"VAProcedure; JLV AdmParent: (V12) (556) North Chicago, IL HCS","CHAVEZ,LUIS A","BLUE 5","2022-02-23T10:00:00","(556) JAL PACT PC RD TELE","(V12) (556) North Chicago, IL (Captain James A. Lovell)"]
["Jones,JANE80",111111190,"2015-12-09",null,"2015-11-25",2257,"VAProcedure; JLV AdmParent: (V12) (556) North Chicago, IL HCS","SYEDA,SARA J","GOLD 3",null,null,"(V12) (556) North Chicago, IL (Captain James A. Lovell)"]
["Jones,JANE81",111111191,"2015-12-24",null,"2015-12-10",2242,"VAProcedure; JLV AdmParent: (V12) (556) North Chicago, IL HCS","SMIRNOV,MICHAEL","GOLD 1",null,null,"(V12) (556) North Chicago, IL (Captain James A. Lovell)"]
["Jones,JANE82",111111192,"2016-03-16",null,"2016-03-02",2159,"VAProcedure; JLV AdmParent: (V22) (664) San Diego, CA HCS","JUIRIS,TAHIRA","WOMENS HEALTH 2 *WH* CLINIC",null,null,"(V12) (556) North Chicago, IL (Captain James A. Lovell)"]
["Jones,JANE83",111111193,"2016-04-01",null,"2016-03-18",2143,"VAProcedure; JLV AdmParent: (V12) (556) North Chicago, IL HCS","OOMMEN,SAJI","BLUE 1",null,null,"(V12) (556) North Chicago, IL (Captain James A. Lovell)"]
["Jones,JANE84",111111194,"2016-04-05",null,"2016-03-22",2139,"VAProcedure; JLV AdmParent: (V12) (556) North Chicago, IL HCS","SMIRNOV,MICHAEL","GOLD 1",null,null,"(V12) (556) North Chicago, IL (Captain James A. Lovell)"]
["Jones,JANE85",111111195,"2016-05-04",null,"2016-04-20",2110,"VAProcedure; JLV AdmParent: (V12) (556) North Chicago, IL HCS","SIAS,PATRICIA E","MC HENRY 5 CBOC",null,null,"(V12) (556GC) McHenry, IL"]
["Jones,JANE86",111111196,"2016-05-17",null,"2016-05-03",2097,"VAProcedure; JLV AdmParent: (V12) (556) North Chicago, IL HCS","CHAVEZ,LUIS A","BLUE 5","2022-03-31T14:00:00","(556) JAL PACT PC MD BLUE5","(V12) (556) North Chicago, IL (Captain James A. Lovell)"]
["Jones,JANE87",111111197,"2016-05-19",null,"2016-05-05",2095,"VAProcedure; JLV AdmParent: (V12) (556) North Chicago, IL HCS","MOHAMMED,BAKHTIAR A","MC HENRY 2 CBOC",null,null,"(V12) (556GC) McHenry, IL"]
["Jones,JANE88",111111198,"2016-07-01",null,"2016-06-17",2052,"VAProcedure; JLV AdmParent: (V12) (556) North Chicago, IL HCS","IQBAL,FARZANA","EVANSTON 2 *WH* CBOC",null,null,"(V12) (556GA) Evanston, IL"]
["Jones,JANE89",111111199,"2016-08-10",null,"2016-07-27",2012,"VAProcedure; JLV AdmParent: (V12) (556) North Chicago, IL HCS","LAYUG,ANNA","GREEN 6",null,null,"(V12) (556) North Chicago, IL (Captain James A. Lovell)"]
["Jones,JANE90",111111200,"2016-10-06",null,"2016-09-22",1955,"VAProcedure; JLV AdmParent: (V12) (556) North Chicago, IL HCS","SMIRNOV,MICHAEL","GOLD 1",null,null,"(V12) (556) North Chicago, IL (Captain James A. Lovell)"]
["Jones,JANE91",111111201,"2016-11-22",null,"2016-11-08",1908,"VAProcedure; JLV AdmParent: (V12) (578) Hines, IL HCS","SMIRNOV,MICHAEL","GOLD 1","2022-03-10T08:30:00","(556) JAL PACT PC MD GOLD1","(V12) (556) North Chicago, IL (Captain James A. Lovell)"]
["Jones,JANE92",111111202,"2016-11-22",null,"2016-11-08",1908,"VAProcedure; JLV AdmParent: (V12) (578) Hines, IL HCS","NANO,JOSEPH","MC HENRY 1 *WH* CBOC",null,null,"(V12) (556GC) McHenry, IL"]
["Jones,JANE93",111111203,"2017-02-02",null,"2017-01-19",1836,"VAProcedure; JLV AdmParent: (V12) (556) North Chicago, IL HCS","OOMMEN,SAJI","BLUE 1",null,null,"(V12) (556) North Chicago, IL (Captain James A. Lovell)"]
["Jones,JANE94",111111204,"2017-02-13",null,"2017-01-30",1825,"VAProcedure; JLV AdmParent: (V12) (556) North Chicago, IL HCS","OOMMEN,SAJI","BLUE 1",null,null,"(V12) (556) North Chicago, IL (Captain James A. Lovell)"]
["Jones,JANE95",111111205,"2017-02-24",null,"2017-02-10",1814,"VAProcedure; JLV AdmParent: (V12) (556) North Chicago, IL HCS","IFTIKHAR,SYEDA A MD","GREEN 5",null,null,"(V12) (556) North Chicago, IL (Captain James A. Lovell)"]
["Jones,JANE96",111111206,"2017-02-24",null,"2017-02-10",1814,"VAProcedure; JLV AdmParent: (V12) (556) North Chicago, IL HCS","SMIRNOV,MICHAEL","GOLD 1",null,null,"(V12) (556) North Chicago, IL (Captain James A. Lovell)"]
["Jones,JANE97",111111207,"2017-02-24",null,"2017-02-10",1814,"VAProcedure; JLV AdmParent: (V12) (556) North Chicago, IL HCS","ROY,DEBJANI MD","GREEN 4",null,null,"(V12) (556) North Chicago, IL (Captain James A. Lovell)"]
["Jones,JANE98",111111208,"2017-03-01",null,"2017-02-15",1809,"VAProcedure; JLV AdmParent: (V12) (556) North Chicago, IL HCS","OOMMEN,SAJI","BLUE 1",null,null,"(V12) (556) North Chicago, IL (Captain James A. Lovell)"]
["Jones,JANE99",111111209,"2017-03-07",null,"2017-02-21",1803,"VAProcedure; JLV AdmParent: (V12) (556) North Chicago, IL HCS","OOMMEN,SAJI","BLUE 1",null,null,"(V12) (556) North Chicago, IL (Captain James A. Lovell)"]
["Jones,JANE100",111111210,"2017-03-07",null,"2017-02-21",1803,"VAProcedure; JLV AdmParent: (V12) (556) North Chicago, IL HCS","SMIRNOV,MICHAEL","GOLD 1","2022-02-07T11:00:00","(556) JAL PACT PC MD GOLD1","(V12) (556) North Chicago, IL (Captain James A. Lovell)"]
["Jones,JANE101",111111211,"2017-03-08",null,"2017-02-22",1802,"VAProcedure; JLV AdmParent: (V12) (556) North Chicago, IL HCS","ETINGEN,MARGARITA","GOLD 2","2022-03-16T09:00:00","(556) JAL PACT PC LPN PROC","(V12) (556) North Chicago, IL (Captain James A. Lovell)"]
["Jones,JANE102",111111212,"2017-03-15",null,"2017-03-01",1795,"VAProcedure; JLV AdmParent: (V07) (544) Columbia, SC HCS","ETINGEN,MARGARITA","GOLD 2",null,null,"(V12) (556) North Chicago, IL (Captain James A. Lovell)"]
["Jones,JANE103",111111213,"2017-04-04",null,"2017-03-21",1775,"VAProcedure; JLV AdmParent: (V12) (556) North Chicago, IL HCS","MIRZA,SHAZIA","KENOSHA 1 *WH* CBOC","2022-12-01T08:00:00","(556GD) KENOSHA - PACT PC 1 R1","(V12) (556GD) Kenosha, WI"]
["Jones,JANE104",111111214,"2017-04-12",null,"2017-03-29",1767,"VAProcedure; JLV AdmParent: (V12) (556) North Chicago, IL HCS","MOHAMMED,BAKHTIAR A","MC HENRY 2 CBOC",null,null,"(V12) (556GC) McHenry, IL"]
["Jones,JANE105",111111215,"2017-04-25",null,"2017-04-11",1754,"VAProcedure; JLV AdmParent: (V12) (556) North Chicago, IL HCS","OOMMEN,SAJI","BLUE 1",null,null,"(V12) (556) North Chicago, IL (Captain James A. Lovell)"]
["Jones,JANE106",111111216,"2017-05-10",null,"2017-04-26",1739,"VAProcedure; JLV AdmParent: (V08) (673) Tampa, FL HCS","SYEDA,SARA J","GOLD 3",null,null,"(V12) (556) North Chicago, IL (Captain James A. Lovell)"]
["Jones,JANE107",111111217,"2017-07-12",null,"2017-06-28",1676,"VAProcedure; JLV AdmParent: (V12) (556) North Chicago, IL HCS","IQBAL,FARZANA","EVANSTON 2 *WH* CBOC",null,null,"(V12) (556GA) Evanston, IL"]
["Jones,JANE108",111111218,"2017-07-14",null,"2017-06-30",1674,"VAProcedure; JLV AdmParent: (V12) (556) North Chicago, IL HCS","IFTIKHAR,SYEDA A MD","GREEN 5",null,null,"(V12) (556) North Chicago, IL (Captain James A. Lovell)"]
["Jones,JANE109",111111219,"2017-08-02",null,"2017-07-19",1655,"VAProcedure; JLV AdmParent: (V12) (556) North Chicago, IL HCS","ETINGEN,MARGARITA","GOLD 2","2022-02-02T13:00:00","(556) JAL PACT PC LPN PROC","(V12) (556) North Chicago, IL (Captain James A. Lovell)"]
["Jones,JANE110",111111220,"2017-10-19",null,"2017-10-05",1577,"VAProcedure; JLV AdmParent: (V12) (556) North Chicago, IL HCS","IQBAL,FARZANA","EVANSTON 2 *WH* CBOC",null,null,"(V12) (556GA) Evanston, IL"]
["Jones,JANE111",111111221,"2017-10-25",null,"2017-10-11",1571,"VAProcedure; JLV AdmParent: (V12) (556) North Chicago, IL HCS","HOLLANT,GLADYS","KENOSHA 2 *WH* CBOC","2022-03-18T13:00:00","(556GD) KENOSHA - PACT PC LPN","(V12) (556GD) Kenosha, WI"]
["Jones,JANE112",111111222,"2017-10-30",null,"2017-10-16",1566,"VAProcedure; JLV AdmParent: (V12) (556) North Chicago, IL HCS","IQBAL,FARZANA","EVANSTON 2 *WH* CBOC",null,null,"(V12) (556GA) Evanston, IL"]
["Jones,JANE113",111111223,"2017-10-31",null,"2017-10-17",1565,"VAProcedure; JLV AdmParent: (V12) (556) North Chicago, IL HCS","ETINGEN,MARGARITA","GOLD 2","2022-01-31T09:00:00","(556) JAL PACT PHARM GOLD TELE2 ","(V12) (556) North Chicago, IL (Captain James A. Lovell)"]
["Jones,JANE114",111111224,"2017-10-31",null,"2017-10-17",1565,"VAProcedure; JLV AdmParent: (V12) (556) North Chicago, IL HCS","OOMMEN,SAJI","BLUE 1",null,null,"(V12) (556) North Chicago, IL (Captain James A. Lovell)"]
["Jones,JANE115",111111225,"2017-11-10",null,"2017-10-27",1555,"VAProcedure; JLV AdmParent: (V12) (556) North Chicago, IL HCS","ROY,DEBJANI MD","GREEN 4",null,null,"(V12) (556) North Chicago, IL (Captain James A. Lovell)"]
["Jones,JANE116",111111226,"2017-11-14",null,"2017-10-31",1551,"NonVAProcedure; JLV AdmParent: (V12) (556) North Chicago, IL HCS","ETINGEN,MARGARITA","GOLD 2","2022-02-07T09:30:00","(556) JAL PACT PC MHI SW","(V12) (556) North Chicago, IL (Captain James A. Lovell)"]
["Jones,JANE117",111111227,"2017-11-23","2017-08-03","2017-11-09",1542,"VAProcedure; JLV AdmParent: (V12) (556) North Chicago, IL HCS","JUIRIS,TAHIRA","WOMENS HEALTH 2 *WH* CLINIC",null,null,"(V12) (556) North Chicago, IL (Captain James A. Lovell)"]
["Jones,JANE118",111111228,"2017-11-30",null,"2017-11-16",1535,"VAProcedure; JLV AdmParent: (V12) (556) North Chicago, IL HCS","ETINGEN,MARGARITA","GOLD 2",null,null,"(V12) (556) North Chicago, IL (Captain James A. Lovell)"]
["Jones,JANE119",111111229,"2017-12-06",null,"2017-11-22",1529,"VAProcedure; JLV AdmParent: (V12) (556) North Chicago, IL HCS","ROY,DEBJANI MD","GREEN 4","2022-07-26T11:00:00","(556) JAL PACT PC MD GREEN4","(V12) (556) North Chicago, IL (Captain James A. Lovell)"]
["Jones,JANE120",111111230,"2017-12-11",null,"2017-11-27",1524,"VAProcedure; JLV AdmParent: (V12) (556) North Chicago, IL HCS","SMIRNOV,MICHAEL","GOLD 1","2022-07-07T08:30:00","(556) JAL PACT PC MD GOLD1 TELE","(V12) (556) North Chicago, IL (Captain James A. Lovell)"]
["Jones,JANE121",111111231,"2017-12-14",null,"2017-11-30",1521,"VAProcedure; JLV AdmParent: (V12) (556) North Chicago, IL HCS","SYEDA,SARA J","GOLD 3",null,null,"(V12) (556) North Chicago, IL (Captain James A. Lovell)"]
["Jones,JANE122",111111232,"2017-12-14","2017-10-04","2017-11-30",1521,"VAProcedure; JLV AdmParent: (V12) (556) North Chicago, IL HCS","ROY,DEBJANI MD","GREEN 4",null,null,"(V12) (556) North Chicago, IL (Captain James A. Lovell)"]
["Jones,JANE123",111111233,"2017-12-18",null,"2017-12-04",1517,"VAProcedure; JLV AdmParent: (V12) (556) North Chicago, IL HCS","SYEDA,SARA J","GOLD 3",null,null,"(V12) (556) North Chicago, IL (Captain James A. Lovell)"]
["Jones,JANE124",111111234,"2017-12-22",null,"2017-12-08",1513,"VAProcedure; JLV AdmParent: (V12) (556) North Chicago, IL HCS","SMIRNOV,MICHAEL","GOLD 1",null,null,"(V12) (556) North Chicago, IL (Captain James A. Lovell)"]
["Jones,JANE125",111111235,"2018-01-01",null,"2017-12-18",1503,"VAProcedure; JLV AdmParent: (V12) (556) North Chicago, IL HCS","CHAVEZ,LUIS A","BLUE 5",null,null,"(V12) (556) North Chicago, IL (Captain James A. Lovell)"]
["Jones,JANE126",111111236,"2018-01-05",null,"2017-12-22",1499,"VAProcedure; JLV AdmParent: (V12) (556) North Chicago, IL HCS","ETINGEN,MARGARITA","GOLD 2","2022-02-07T08:30:00","(556) JAL PACT PC RD TELE","(V12) (556) North Chicago, IL (Captain James A. Lovell)"]
["Jones,JANE127",111111237,"2018-01-05",null,"2017-12-22",1499,"VAProcedure; JLV AdmParent: (V12) (556) North Chicago, IL HCS","SMIRNOV,MICHAEL","GOLD 1",null,null,"(V12) (556) North Chicago, IL (Captain James A. Lovell)"]
["Jones,JANE128",111111238,"2018-01-05",null,"2017-12-22",1499,"VAProcedure; JLV AdmParent: (V12) (556) North Chicago, IL HCS","ETINGEN,MARGARITA","GOLD 2",null,null,"(V12) (556) North Chicago, IL (Captain James A. Lovell)"]
["Jones,JANE129",111111239,"2018-01-12",null,"2017-12-29",1492,"VAProcedure; JLV AdmParent: (V12) (556) North Chicago, IL HCS","OOMMEN,SAJI","BLUE 1",null,null,"(V12) (556) North Chicago, IL (Captain James A. Lovell)"]
["Jones,JANE130",111111240,"2018-01-12",null,"2017-12-29",1492,"VAProcedure; JLV AdmParent: (V12) (556) North Chicago, IL HCS","NANO,JOSEPH","MC HENRY 1 *WH* CBOC",null,null,"(V12) (556GC) McHenry, IL"]
["Jones,JANE131",111111241,"2018-01-19",null,"2018-01-05",1485,"VAProcedure; JLV AdmParent: (V12) (556) North Chicago, IL HCS","ROY,DEBJANI MD","GREEN 4","2022-04-07T08:30:00","(556) JAL PACT PC MD GREEN4","(V12) (556) North Chicago, IL (Captain James A. Lovell)"]
["Jones,JANE132",111111242,"2018-01-19",null,"2018-01-05",1485,"VAProcedure; JLV AdmParent: (V12) (556) North Chicago, IL HCS","SMIRNOV,MICHAEL","GOLD 1","2022-01-28T11:00:00","(556) JAL PACT PC MD GOLD1","(V12) (556) North Chicago, IL (Captain James A. Lovell)"]
["Jones,JANE133",111111243,"2018-01-19",null,"2018-01-05",1485,"NonVAProcedure; JLV AdmParent: (V12) (556) North Chicago, IL HCS","NANO,JOSEPH","MC HENRY 1 *WH* CBOC",null,null,"(V12) (556GC) McHenry, IL"]
["Jones,JANE134",111111244,"2018-01-19",null,"2018-01-05",1485,"VAProcedure; JLV AdmParent: (V12) (556) North Chicago, IL HCS","BANJO,ADEOLA","MC HENRY 4 *WH* CBOC",null,null,"(V12) (556GC) McHenry, IL"]
["Jones,JANE135",111111245,"2018-01-23",null,"2018-01-09",1481,"VAProcedure; JLV AdmParent: (V12) (556) North Chicago, IL HCS","ROY,DEBJANI MD","GREEN 4",null,null,"(V12) (556) North Chicago, IL (Captain James A. Lovell)"]
["Jones,JANE136",111111246,"2018-01-24",null,"2018-01-10",1480,"VAProcedure; JLV AdmParent: (V12) (556) North Chicago, IL HCS","SMIRNOV,MICHAEL","GOLD 1","2022-06-03T08:00:00","(556) JAL PACT PC MD GOLD1","(V12) (556) North Chicago, IL (Captain James A. Lovell)"]
["Jones,JANE137",111111247,"2018-01-25",null,"2018-01-11",1479,"VAProcedure; JLV AdmParent: (V12) (556) North Chicago, IL HCS","ROY,DEBJANI MD","GREEN 4",null,null,"(V12) (556) North Chicago, IL (Captain James A. Lovell)"]
["Jones,JANE138",111111248,"2018-01-26",null,"2018-01-12",1478,"VAProcedure; JLV AdmParent: (V12) (556) North Chicago, IL HCS","ROY,DEBJANI MD","GREEN 4",null,null,"(V12) (556) North Chicago, IL (Captain James A. Lovell)"]
["Jones,JANE139",111111249,"2018-01-31",null,"2018-01-17",1473,"VAProcedure; JLV AdmParent: (V12) (556) North Chicago, IL HCS","ROY,DEBJANI MD","GREEN 4",null,null,"(V12) (556) North Chicago, IL (Captain James A. Lovell)"]
["Jones,JANE140",111111250,"2018-02-02",null,"2018-01-19",1471,"VAProcedure; JLV AdmParent: (V12) (556) North Chicago, IL HCS","ETINGEN,MARGARITA","GOLD 2",null,null,"(V12) (556) North Chicago, IL (Captain James A. Lovell)"]
["Jones,JANE141",111111251,"2018-02-02",null,"2018-01-19",1471,"VAProcedure; JLV AdmParent: (V12) (556) North Chicago, IL HCS","ETINGEN,MARGARITA","GOLD 2",null,null,"(V12) (556) North Chicago, IL (Captain James A. Lovell)"]
["Jones,JANE142",111111252,"2018-02-15",null,"2018-02-01",1458,"VAProcedure; JLV AdmParent: (V12) (556) North Chicago, IL HCS","ETINGEN,MARGARITA","GOLD 2",null,null,"(V12) (556) North Chicago, IL (Captain James A. Lovell)"]
["Jones,JANE143",111111253,"2018-02-19",null,"2018-02-05",1454,"VAProcedure; JLV AdmParent: (V12) (556) North Chicago, IL HCS","KIZHNER,JULIA","GREEN 3","2023-01-03T08:00:00","(556) JAL PACT PC PA GREEN3","(V12) (556) North Chicago, IL (Captain James A. Lovell)"]
["Jones,JANE144",111111254,"2018-02-20",null,"2018-02-06",1453,"VAProcedure; JLV AdmParent: (V12) (556) North Chicago, IL HCS","SIAS,PATRICIA E","MC HENRY 5 CBOC",null,null,"(V12) (556GC) McHenry, IL"]
["Jones,JANE145",111111255,"2018-02-22",null,"2018-02-08",1451,"VAProcedure; JLV AdmParent: (V12) (556) North Chicago, IL HCS","ETINGEN,MARGARITA","GOLD 2",null,null,"(V12) (556) North Chicago, IL (Captain James A. Lovell)"]
["Jones,JANE146",111111256,"2018-02-22",null,"2018-02-08",1451,"VAProcedure; JLV AdmParent: (V12) (556) North Chicago, IL HCS","SIAS,PATRICIA E","MC HENRY 5 CBOC","2022-04-29T11:00:00","(556GC) MCHENRY - PACT PHARM TELE2","(V12) (556GC) McHenry, IL"]
["Jones,JANE147",111111257,"2018-02-22",null,"2018-02-08",1451,"VAProcedure; JLV AdmParent: (V12) (556) North Chicago, IL HCS","SIAS,PATRICIA E","MC HENRY 5 CBOC",null,null,"(V12) (556GC) McHenry, IL"]
["Jones,JANE148",111111258,"2018-02-26","2017-12-13","2018-02-12",1447,"VAProcedure; JLV AdmParent: (V12) (556) North Chicago, IL HCS","ZAKARIYA,HOSAM Y","BLUE 2",null,null,"(V12) (556) North Chicago, IL (Captain James A. Lovell)"]
["Jones,JANE149",111111259,"2018-02-27",null,"2018-02-13",1446,"VAProcedure; JLV AdmParent: (V12) (556) North Chicago, IL HCS","SYEDA,SARA J","GOLD 3",null,null,"(V12) (556) North Chicago, IL (Captain James A. Lovell)"]
["Jones,JANE150",111111260,"2018-02-28",null,"2018-02-14",1445,"VAProcedure; JLV AdmParent: (V12) (556) North Chicago, IL HCS","ROY,DEBJANI MD","GREEN 4","2022-06-02T08:00:00","(556) JAL PACT PC MD GREEN4","(V12) (556) North Chicago, IL (Captain James A. Lovell)"]
["Jones,JANE151",111111261,"2018-03-08",null,"2018-02-22",1437,"VAProcedure; JLV AdmParent: (V12) (556) North Chicago, IL HCS","ROY,DEBJANI MD","GREEN 4",null,null,"(V12) (556) North Chicago, IL (Captain James A. Lovell)"]
["Jones,JANE152",111111262,"2018-03-09",null,"2018-02-23",1436,"VAProcedure; JLV AdmParent: (V12) (556) North Chicago, IL HCS","ETINGEN,MARGARITA","GOLD 2",null,null,"(V12) (556) North Chicago, IL (Captain James A. Lovell)"]
["Jones,JANE153",111111263,"2018-03-13",null,"2018-02-27",1432,"VAProcedure; JLV AdmParent: (V12) (556) North Chicago, IL HCS","ETINGEN,MARGARITA","GOLD 2","2022-04-07T09:00:00","(556) JAL PACT PC LPN PROC","(V12) (556) North Chicago, IL (Captain James A. Lovell)"]
["Jones,JANE154",111111264,"2018-03-13",null,"2018-02-27",1432,"VAProcedure; JLV AdmParent: (V12) (556) North Chicago, IL HCS","CHAVEZ,LUIS A","BLUE 5",null,null,"(V12) (556) North Chicago, IL (Captain James A. Lovell)"]
["Jones,JANE155",111111265,"2018-03-28",null,"2018-03-14",1417,"VAProcedure; JLV AdmParent: (V12) (556) North Chicago, IL HCS","IQBAL,FARZANA","EVANSTON 2 *WH* CBOC",null,null,"(V12) (556GA) Evanston, IL"]
["Jones,JANE156",111111266,"2018-03-28","2017-05-05","2018-03-14",1417,"VAProcedure; JLV AdmParent: (V12) (556) North Chicago, IL HCS","IQBAL,FARZANA","EVANSTON 2 *WH* CBOC",null,null,"(V12) (556GA) Evanston, IL"]
["Jones,JANE157",111111267,"2018-04-07","2018-02-01","2018-03-24",1407,"NonVAProcedure; JLV AdmParent: (V12) (556) North Chicago, IL HCS","KIZHNER,JULIA","GREEN 3","2022-02-15T10:30:00","(556) JAL PACT PC PA GREEN3","(V12) (556) North Chicago, IL (Captain James A. Lovell)"]
["Jones,JANE158",111111268,"2018-04-17",null,"2018-04-03",1397,"VAProcedure; JLV AdmParent: (V12) (556) North Chicago, IL HCS","HOLLOWAY,ALISON R MD","WOMENS HEALTH 1 *WH* CLINIC","2022-05-09T11:00:00","(556) JAL PACT WH PC 1 MD","(V12) (556) North Chicago, IL (Captain James A. Lovell)"]
["Jones,JANE159",111111269,"2018-04-17",null,"2018-04-03",1397,"VAProcedure; JLV AdmParent: (V12) (556) North Chicago, IL HCS","ROY,DEBJANI MD","GREEN 4",null,null,"(V12) (556) North Chicago, IL (Captain James A. Lovell)"]
["Jones,JANE160",111111270,"2018-04-20",null,"2018-04-06",1394,"VAProcedure; JLV AdmParent: (V12) (556) North Chicago, IL HCS","OOMMEN,SAJI","BLUE 1",null,null,"(V12) (556) North Chicago, IL (Captain James A. Lovell)"]
["Jones,JANE161",111111271,"2018-04-24",null,"2018-04-10",1390,"VAProcedure; JLV AdmParent: (V12) (556) North Chicago, IL HCS","ETINGEN,MARGARITA","GOLD 2",null,null,"(V12) (556) North Chicago, IL (Captain James A. Lovell)"]
["Jones,JANE162",111111272,"2018-04-27","2021-12-20","2018-04-13",1387,"VAProcedure; JLV AdmParent: (V12) (695) Milwaukee, WI HCS","SMIRNOV,MICHAEL","GOLD 1","2022-02-16T14:30:00","(556) JAL PACT PHARM GOLD TELE2 ","(V12) (556) North Chicago, IL (Captain James A. Lovell)"]
["Jones,JANE163",111111273,"2018-04-30",null,"2018-04-16",1384,"VAProcedure; JLV AdmParent: (V12) (556) North Chicago, IL HCS","ROY,DEBJANI MD","GREEN 4","2022-05-09T11:00:00","(556) JAL PACT PC MD GREEN4","(V12) (556) North Chicago, IL (Captain James A. Lovell)"]
["Jones,JANE164",111111274,"2018-05-04",null,"2018-04-20",1380,"VAProcedure; JLV AdmParent: (V12) (556) North Chicago, IL HCS","ETINGEN,MARGARITA","GOLD 2","2022-02-22T08:30:00","(556) JAL PACT PC RN","(V12) (556) North Chicago, IL (Captain James A. Lovell)"]
["Jones,JANE165",111111275,"2018-05-09",null,"2018-04-25",1375,"VAProcedure; JLV AdmParent: (V12) (556) North Chicago, IL HCS","MOHAMMED,BAKHTIAR A","MC HENRY 2 CBOC",null,null,"(V12) (556GC) McHenry, IL"]
["Jones,JANE166",111111276,"2018-05-14",null,"2018-04-30",1370,"VAProcedure; JLV AdmParent: (V12) (695) Milwaukee, WI HCS","OOMMEN,SAJI","BLUE 1",null,null,"(V12) (556) North Chicago, IL (Captain James A. Lovell)"]
["Jones,JANE167",111111277,"2018-05-15","2018-04-29","2018-05-01",1369,"VAProcedure; JLV AdmParent: (V12) (556) North Chicago, IL HCS","ROY,DEBJANI MD","GREEN 4","2022-02-02T14:30:00","(556) JAL PACT PHARM GREEN TELE2","(V12) (556) North Chicago, IL (Captain James A. Lovell)"]
["Jones,JANE168",111111278,"2018-05-16",null,"2018-05-02",1368,"VAProcedure; JLV AdmParent: (V12) (556) North Chicago, IL HCS","IQBAL,FARZANA","EVANSTON 2 *WH* CBOC",null,null,"(V12) (556GA) Evanston, IL"]
["Jones,JANE169",111111279,"2018-05-18",null,"2018-05-04",1366,"VAProcedure; JLV AdmParent: (V12) (556) North Chicago, IL HCS","JUIRIS,TAHIRA","WOMENS HEALTH 2 *WH* CLINIC",null,null,"(V12) (556) North Chicago, IL (Captain James A. Lovell)"]
["Jones,JANE170",111111280,"2018-05-18",null,"2018-02-02",1457,"VAProcedure; JLV AdmParent: (V12) (556) North Chicago, IL HCS","ROY,DEBJANI MD","GREEN 4","2022-04-05T10:30:00","(556) JAL PACT PC MD GREEN4","(V12) (556) North Chicago, IL (Captain James A. Lovell)"]
["Jones,JANE171",111111281,"2018-05-18",null,"2018-05-04",1366,"VAProcedure; JLV AdmParent: (V12) (556) North Chicago, IL HCS","ETINGEN,MARGARITA","GOLD 2",null,null,"(V12) (556) North Chicago, IL (Captain James A. Lovell)"]
["Jones,JANE172",111111282,"2018-05-18",null,"2018-05-04",1366,"VAProcedure; JLV AdmParent: (V12) (556) North Chicago, IL HCS","ETINGEN,MARGARITA","GOLD 2","2022-07-28T11:00:00","(556) JAL PACT PC MD GOLD2","(V12) (556) North Chicago, IL (Captain James A. Lovell)"]
["Jones,JANE173",111111283,"2018-05-18","2021-08-11","2018-05-04",1366,"NonVAProcedure; JLV AdmParent: (V12) (556) North Chicago, IL HCS","MOHAMMED,BAKHTIAR A","MC HENRY 2 CBOC",null,null,"(V12) (556GC) McHenry, IL"]
["Jones,JANE174",111111284,"2018-05-24",null,null,null,"Gap Health Factor - Check Pt Details","NANO,JOSEPH","MC HENRY 1 *WH* CBOC",null,null,"(V12) (556GC) McHenry, IL"]
["Jones,JANE175",111111285,"2018-05-25",null,"2018-05-11",1359,"VAProcedure; JLV AdmParent: (V12) (556) North Chicago, IL HCS","ETINGEN,MARGARITA","GOLD 2",null,null,"(V12) (556) North Chicago, IL (Captain James A. Lovell)"]
["Jones,JANE176",111111286,"2018-05-28",null,"2018-05-14",1356,"VAProcedure; JLV AdmParent: (V12) (556) North Chicago, IL HCS","SMIRNOV,MICHAEL","GOLD 1",null,null,"(V12) (556) North Chicago, IL (Captain James A. Lovell)"]
["Jones,JANE177",111111287,"2018-05-28",null,"2018-05-14",1356,"VAProcedure; JLV AdmParent: (V12) (556) North Chicago, IL HCS","ETINGEN,MARGARITA","GOLD 2",null,null,"(V12) (556) North Chicago, IL (Captain James A. Lovell)"]
["Jones,JANE178",111111288,"2018-05-28",null,"2018-05-14",1356,"VAProcedure; JLV AdmParent: (V12) (556) North Chicago, IL HCS","ROY,DEBJANI MD","GREEN 4",null,null,"(V12) (556) North Chicago, IL (Captain James A. Lovell)"]
["Jones,JANE179",111111289,"2018-05-28",null,"2018-05-14",1356,"VAProcedure; JLV AdmParent: (V12) (556) North Chicago, IL HCS","ETINGEN,MARGARITA","GOLD 2",null,null,"(V12) (556) North Chicago, IL (Captain James A. Lovell)"]
["Jones,JANE180",111111290,"2018-05-29",null,null,null,"Gap Health Factor - Check Pt Details","NANO,JOSEPH","MC HENRY 1 *WH* CBOC",null,null,"(V12) (556GC) McHenry, IL"]
["Jones,JANE181",111111291,"2018-05-30",null,"2018-05-30",1340,"VAProcedure; JLV AdmParent: (V12) (556) North Chicago, IL HCS","IQBAL,FARZANA","EVANSTON 2 *WH* CBOC",null,null,"(V12) (556GA) Evanston, IL"]
["Jones,JANE182",111111292,"2018-05-30",null,null,null,"Gap Health Factor - Check Pt Details","NANO,JOSEPH","MC HENRY 1 *WH* CBOC",null,null,"(V12) (556GC) McHenry, IL"]
["Jones,JANE183",111111293,"2018-05-31",null,"2018-05-17",1353,"VAProcedure; JLV AdmParent: (V12) (556) North Chicago, IL HCS","CHAVEZ,LUIS A","BLUE 5",null,null,"(V12) (556) North Chicago, IL (Captain James A. Lovell)"]
["Jones,JANE184",111111294,"2018-06-04",null,"2018-05-21",1349,"VAProcedure; JLV AdmParent: (V12) (556) North Chicago, IL HCS","SMIRNOV,MICHAEL","GOLD 1",null,null,"(V12) (556) North Chicago, IL (Captain James A. Lovell)"]
["Jones,JANE185",111111295,"2018-06-06",null,null,null,"Gap Health Factor - Check Pt Details","NANO,JOSEPH","MC HENRY 1 *WH* CBOC",null,null,"(V12) (556GC) McHenry, IL"]
["Jones,JANE186",111111296,"2018-06-07",null,"2018-05-24",1346,"VAProcedure; JLV AdmParent: (V12) (556) North Chicago, IL HCS","ROY,DEBJANI MD","GREEN 4",null,null,"(V12) (556) North Chicago, IL (Captain James A. Lovell)"]
["Jones,JANE187",111111297,"2018-06-11",null,null,null,"Gap Health Factor - Check Pt Details","HOLLANT,GLADYS","KENOSHA 2 *WH* CBOC","2022-06-13T11:00:00","(556GD) KENOSHA - PACT PC 2 R1","(V12) (556GD) Kenosha, WI"]
["Jones,JANE188",111111298,"2018-06-13",null,null,null,"Gap Health Factor - Check Pt Details","NANO,JOSEPH","MC HENRY 1 *WH* CBOC",null,null,"(V12) (556GC) McHenry, IL"]
["Jones,JANE189",111111299,"2018-06-14",null,null,null,"Gap Health Factor - Check Pt Details","LAYUG,ANNA","GREEN 6",null,null,"(V12) (556) North Chicago, IL (Captain James A. Lovell)"]
["Jones,JANE190",111111300,"2018-06-14",null,"2018-05-31",1339,"VAProcedure; JLV AdmParent: (V12) (556) North Chicago, IL HCS","IQBAL,FARZANA","EVANSTON 2 *WH* CBOC",null,null,"(V12) (556GA) Evanston, IL"]
["Jones,JANE191",111111301,"2018-06-14",null,null,null,"Gap Health Factor - Check Pt Details","SIAS,PATRICIA E","MC HENRY 5 CBOC",null,null,"(V12) (556GC) McHenry, IL"]
["Jones,JANE192",111111302,"2018-06-14",null,"2018-05-31",1339,"VAProcedure; JLV AdmParent: (V12) (556) North Chicago, IL HCS","HOLLANT,GLADYS","KENOSHA 2 *WH* CBOC","2022-02-15T14:00:00","(556GD) KENOSHA - MH SW FAFFORD IND","(V12) (556GD) Kenosha, WI"]
["Jones,JANE193",111111303,"2018-06-15",null,"2018-06-01",1338,"NonVAProcedure; JLV AdmParent: (V12) (556) North Chicago, IL HCS","SMIRNOV,MICHAEL","GOLD 1","2022-02-22T09:00:00","(556) JAL PACT PC MD GOLD1","(V12) (556) North Chicago, IL (Captain James A. Lovell)"]
["Jones,JANE194",111111304,"2018-06-18",null,null,null,"Gap Health Factor - Check Pt Details","NANO,JOSEPH","MC HENRY 1 *WH* CBOC",null,null,"(V12) (556GC) McHenry, IL"]
["Jones,JANE195",111111305,"2018-06-19",null,"2018-06-05",1334,"VAProcedure; JLV AdmParent: (V12) (556) North Chicago, IL HCS","ROY,DEBJANI MD","GREEN 4",null,null,"(V12) (556) North Chicago, IL (Captain James A. Lovell)"]
["Jones,JANE196",111111306,"2018-06-24",null,null,null,"Gap Health Factor - Check Pt Details","HOLLANT,GLADYS","KENOSHA 2 *WH* CBOC","2022-06-13T10:00:00","(556GD) KENOSHA - PACT PC 2 R1","(V12) (556GD) Kenosha, WI"]
["Jones,JANE197",111111307,"2018-07-06",null,"2018-06-22",1317,"VAProcedure; JLV AdmParent: (V12) (556) North Chicago, IL HCS","SMIRNOV,MICHAEL","GOLD 1",null,null,"(V12) (556) North Chicago, IL (Captain James A. Lovell)"]
["Jones,JANE198",111111308,"2018-07-10",null,null,null,"Gap Health Factor - Check Pt Details","SIAS,PATRICIA E","MC HENRY 5 CBOC",null,null,"(V12) (556GC) McHenry, IL"]
["Jones,JANE199",111111309,"2018-07-12",null,"2018-06-28",1311,"VAProcedure; JLV AdmParent: (V12) (556) North Chicago, IL HCS","HOLLANT,GLADYS","KENOSHA 2 *WH* CBOC",null,null,"(V12) (556GD) Kenosha, WI"]
["Jones,JANE200",111111310,"2018-07-19",null,null,null,"Gap Health Factor - Check Pt Details","NANO,JOSEPH","MC HENRY 1 *WH* CBOC","2022-02-23T11:30:00","(556GC) MCHENRY - PACT PC 1 RN","(V12) (556GC) McHenry, IL"]
["Jones,JANE201",111111311,"2018-07-19",null,null,null,"Gap Health Factor - Check Pt Details","NANO,JOSEPH","MC HENRY 1 *WH* CBOC","2022-02-01T07:30:00","(556GC) MCHENRY - PACT PC 1 MD","(V12) (556GC) McHenry, IL"]
["Jones,JANE202",111111312,"2018-07-27",null,"2018-07-13",1296,"VAProcedure; JLV AdmParent: (V12) (556) North Chicago, IL HCS","SMIRNOV,MICHAEL","GOLD 1",null,null,"(V12) (556) North Chicago, IL (Captain James A. Lovell)"]
["Jones,JANE203",111111313,"2018-08-02",null,null,null,"Gap Health Factor - Check Pt Details","SIAS,PATRICIA E","MC HENRY 5 CBOC",null,null,"(V12) (556GC) McHenry, IL"]
["Jones,JANE204",111111314,"2018-08-09",null,"2018-07-26",1283,"VAProcedure; JLV AdmParent: (V12) (556) North Chicago, IL HCS","SMIRNOV,MICHAEL","GOLD 1",null,null,"(V12) (556) North Chicago, IL (Captain James A. Lovell)"]
["Jones,JANE205",111111315,"2018-08-13",null,null,null,"Gap Health Factor - Check Pt Details","HOLLANT,GLADYS","KENOSHA 2 *WH* CBOC",null,null,"(V12) (556GD) Kenosha, WI"]
["Jones,JANE206",111111316,"2018-08-15",null,"2018-08-01",1277,"NonVAProcedure; JLV AdmParent: (V12) (556) North Chicago, IL HCS","SYEDA,SARA J","GOLD 3",null,null,"(V12) (556) North Chicago, IL (Captain James A. Lovell)"]
["Jones,JANE207",111111317,"2018-08-17",null,null,null,"Gap Health Factor - Check Pt Details","NANO,JOSEPH","MC HENRY 1 *WH* CBOC",null,null,"(V12) (556GC) McHenry, IL"]
["Jones,JANE208",111111318,"2018-08-19",null,"2018-08-05",1273,"NonVAProcedure; JLV AdmParent: (V12) (556) North Chicago, IL HCS","ETINGEN,MARGARITA","GOLD 2",null,null,"(V12) (556) North Chicago, IL (Captain James A. Lovell)"]
["Jones,JANE209",111111319,"2018-08-22",null,"2018-08-08",1270,"VAProcedure; JLV AdmParent: (V12) (556) North Chicago, IL HCS","IFTIKHAR,SYEDA A MD","GREEN 5",null,null,"(V12) (556) North Chicago, IL (Captain James A. Lovell)"]
["Jones,JANE210",111111320,"2018-08-23",null,"2018-08-09",1269,"NonVAProcedure; JLV AdmParent: (V12) (556) North Chicago, IL HCS","KIZHNER,JULIA","GREEN 3","2022-09-26T07:30:00","(556) JAL PACT PC PA GREEN3","(V12) (556) North Chicago, IL (Captain James A. Lovell)"]
["Jones,JANE211",111111321,"2018-08-23",null,null,null,"Gap Health Factor - Check Pt Details","SIAS,PATRICIA E","MC HENRY 5 CBOC",null,null,"(V12) (556GC) McHenry, IL"]
["Jones,JANE212",111111322,"2018-08-27",null,null,null,"Gap Health Factor - Check Pt Details","BANJO,ADEOLA","MC HENRY 4 *WH* CBOC",null,null,"(V12) (556GC) McHenry, IL"]
["Jones,JANE213",111111323,"2018-08-27",null,null,null,"Gap Health Factor - Check Pt Details","SIAS,PATRICIA E","MC HENRY 5 CBOC",null,null,"(V12) (556GC) McHenry, IL"]
["Jones,JANE214",111111324,"2018-08-28",null,null,null,"Gap Health Factor - Check Pt Details","NANO,JOSEPH","MC HENRY 1 *WH* CBOC",null,null,"(V12) (556GC) McHenry, IL"]
["Jones,JANE215",111111325,"2018-08-30",null,"2018-08-16",1262,"VAProcedure; JLV AdmParent: (V12) (556) North Chicago, IL HCS","SYEDA,SARA J","GOLD 3",null,null,"(V12) (556) North Chicago, IL (Captain James A. Lovell)"]
["Jones,JANE216",111111326,"2018-09-03",null,"2018-08-20",1258,"VAProcedure; JLV AdmParent: (V12) (556) North Chicago, IL HCS","SIAS,PATRICIA E","MC HENRY 5 CBOC",null,null,"(V12) (556GC) McHenry, IL"]
["Jones,JANE217",111111327,"2018-09-03",null,null,null,"Gap Health Factor - Check Pt Details","NANO,JOSEPH","MC HENRY 1 *WH* CBOC","2022-04-20T11:30:00","(556GC) MCHENRY - PACT PC 1 RN","(V12) (556GC) McHenry, IL"]
["Jones,JANE218",111111328,"2018-09-06",null,null,null,"Gap Health Factor - Check Pt Details","SIAS,PATRICIA E","MC HENRY 5 CBOC","2022-02-04T10:30:00","(556GC) MCHENRY - PACT PHARM TELE2","(V12) (556GC) McHenry, IL"]
["Jones,JANE219",111111329,"2018-09-06",null,null,null,"Gap Health Factor - Check Pt Details","SIAS,PATRICIA E","MC HENRY 5 CBOC",null,null,"(V12) (556GC) McHenry, IL"]
["Jones,JANE220",111111330,"2018-09-07",null,"2018-08-24",1254,"VAProcedure; JLV AdmParent: (V12) (556) North Chicago, IL HCS","GANNU,RAJYALAKSHMI M","BLUE 6",null,null,"(V12) (556) North Chicago, IL (Captain James A. Lovell)"]
["Jones,JANE221",111111331,"2018-09-21",null,"2018-09-07",1240,"VAProcedure; JLV AdmParent: (V12) (556) North Chicago, IL HCS","OOMMEN,SAJI","BLUE 1","2022-01-28T10:00:00","(556) JAL PACT PC MD BLUE1 VVC","(V12) (556) North Chicago, IL (Captain James A. Lovell)"]
["Jones,JANE222",111111332,"2018-09-28",null,"2018-09-14",1233,"VAProcedure; JLV AdmParent: (V12) (556) North Chicago, IL HCS","SMIRNOV,MICHAEL","GOLD 1",null,null,"(V12) (556) North Chicago, IL (Captain James A. Lovell)"]
["Jones,JANE223",111111333,"2018-09-30",null,null,null,"Gap Health Factor - Check Pt Details","HOLLANT,GLADYS","KENOSHA 2 *WH* CBOC","2022-09-26T08:15:00","(556GD) KENOSHA - PACT PC 2 R2","(V12) (556GD) Kenosha, WI"]
["Jones,JANE224",111111334,"2018-10-01",null,"2018-09-17",1230,"VAProcedure; JLV AdmParent: (V12) (556) North Chicago, IL HCS","GANNU,RAJYALAKSHMI M","BLUE 6","2022-02-10T07:00:00","(556) JAL PACT PC MD GREEN5","(V12) (556) North Chicago, IL (Captain James A. Lovell)"]
["Jones,JANE225",111111335,"2018-10-02","2017-05-08","2018-09-18",1229,"VAProcedure; JLV AdmParent: (V12) (556) North Chicago, IL HCS","RAVIPATI,MAMATA MD","GOLD 4","2022-06-03T08:00:00","(556) JAL PACT PC MD GOLD4","(V12) (556) North Chicago, IL (Captain James A. Lovell)"]
["Jones,JANE226",111111336,"2018-10-04",null,"2018-09-20",1227,"NonVAProcedure; JLV AdmParent: (V12) (556) North Chicago, IL HCS","ROY,DEBJANI MD","GREEN 4",null,null,"(V12) (556) North Chicago, IL (Captain James A. Lovell)"]
["Jones,JANE227",111111337,"2018-10-05",null,"2018-09-21",1226,"VAProcedure; JLV AdmParent: (V12) (556) North Chicago, IL HCS","OOMMEN,SAJI","BLUE 1",null,null,"(V12) (556) North Chicago, IL (Captain James A. Lovell)"]
["Jones,JANE228",111111338,"2018-10-10",null,"2018-09-26",1221,"VAProcedure; JLV AdmParent: (V12) (556) North Chicago, IL HCS","SMIRNOV,MICHAEL","GOLD 1","2022-05-02T14:30:00","(556) JAL PACT PC MD GOLD1","(V12) (556) North Chicago, IL (Captain James A. Lovell)"]
["Jones,JANE229",111111339,"2018-10-11",null,"2018-09-27",1220,"VAProcedure; JLV AdmParent: (V12) (695) Milwaukee, WI HCS","MOHAMMED,BAKHTIAR A","MC HENRY 2 CBOC",null,null,"(V12) (556GC) McHenry, IL"]
["Jones,JANE230",111111340,"2018-10-11",null,null,null,"Gap Health Factor - Check Pt Details","NANO,JOSEPH","MC HENRY 1 *WH* CBOC",null,null,"(V12) (556GC) McHenry, IL"]
["Jones,JANE231",111111341,"2018-10-15",null,null,null,"Gap Health Factor - Check Pt Details","SIAS,PATRICIA E","MC HENRY 5 CBOC",null,null,"(V12) (556GC) McHenry, IL"]
["Jones,JANE232",111111342,"2018-10-17","2018-06-21","2018-10-03",1214,"VAProcedure; JLV AdmParent: (V12) (556) North Chicago, IL HCS","HOLLOWAY,ALISON R MD","WOMENS HEALTH 1 *WH* CLINIC",null,null,"(V12) (556) North Chicago, IL (Captain James A. Lovell)"]
["Jones,JANE233",111111343,"2018-10-18",null,"2018-10-04",1213,"VAProcedure; JLV AdmParent: (V12) (556) North Chicago, IL HCS","SMIRNOV,MICHAEL","GOLD 1","2022-06-14T10:00:00","(556) JAL PACT PC MD GOLD1","(V12) (556) North Chicago, IL (Captain James A. Lovell)"]
["Jones,JANE234",111111344,"2018-10-23",null,null,null,"Gap Health Factor - Check Pt Details","IFTIKHAR,SYEDA A MD","GREEN 5",null,null,"(V12) (556) North Chicago, IL (Captain James A. Lovell)"]
["Jones,JANE235",111111345,"2018-10-28",null,null,null,"Gap Health Factor - Check Pt Details","HOLLANT,GLADYS","KENOSHA 2 *WH* CBOC",null,null,"(V12) (556GD) Kenosha, WI"]
["Jones,JANE236",111111346,"2018-10-29",null,null,null,"Gap Health Factor - Check Pt Details","ROY,DEBJANI MD","GREEN 4",null,null,"(V12) (556) North Chicago, IL (Captain James A. Lovell)"]
["Jones,JANE237",111111347,"2018-10-29",null,"2018-10-15",1202,"VAProcedure; JLV AdmParent: (V12) (556) North Chicago, IL HCS","CHAVEZ,LUIS A","BLUE 5",null,null,"(V12) (556) North Chicago, IL (Captain James A. Lovell)"]
["Jones,JANE238",111111348,"2018-10-30",null,"2018-10-16",1201,"NonVAProcedure; JLV AdmParent: (V12) (556) North Chicago, IL HCS","SYEDA,SARA J","GOLD 3",null,null,"(V12) (556) North Chicago, IL (Captain James A. Lovell)"]
["Jones,JANE239",111111349,"2018-10-30",null,"2018-10-16",1201,"VAProcedure; JLV AdmParent: (V12) (556) North Chicago, IL HCS","ETINGEN,MARGARITA","GOLD 2",null,null,"(V12) (556) North Chicago, IL (Captain James A. Lovell)"]
["Jones,JANE240",111111350,"2018-11-01",null,"2018-10-18",1199,"NonVAProcedure; JLV AdmParent: (V12) (556) North Chicago, IL HCS","ETINGEN,MARGARITA","GOLD 2","2022-02-15T13:00:00","(556) JAL PACT PC MD GOLD2","(V12) (556) North Chicago, IL (Captain James A. Lovell)"]
["Jones,JANE241",111111351,"2018-11-01",null,"2018-10-18",1199,"VAProcedure; JLV AdmParent: (V12) (556) North Chicago, IL HCS","ROY,DEBJANI MD","GREEN 4",null,null,"(V12) (556) North Chicago, IL (Captain James A. Lovell)"]
["Jones,JANE242",111111352,"2018-11-01",null,null,null,"Gap Health Factor - Check Pt Details","NANO,JOSEPH","MC HENRY 1 *WH* CBOC",null,null,"(V12) (556GC) McHenry, IL"]
["Jones,JANE243",111111353,"2018-11-02","2018-05-24","2018-10-19",1198,"NonVAProcedure; JLV AdmParent: (V12) (556) North Chicago, IL HCS","SMIRNOV,MICHAEL","GOLD 1","2022-02-04T09:30:00","(556) JAL PACT PHARM GOLD TELE2 ","(V12) (556) North Chicago, IL (Captain James A. Lovell)"]
["Jones,JANE244",111111354,"2018-11-06",null,"2018-10-23",1194,"VAProcedure; JLV AdmParent: (V12) (556) North Chicago, IL HCS","ROY,DEBJANI MD","GREEN 4",null,null,"(V12) (556) North Chicago, IL (Captain James A. Lovell)"]
["Jones,JANE245",111111355,"2018-12-25",null,null,null,"Gap Health Factor - Check Pt Details","HOLLANT,GLADYS","KENOSHA 2 *WH* CBOC",null,null,"(V12) (556GD) Kenosha, WI"]
["Jones,JANE246",111111356,"2019-01-18",null,"2019-01-04",1121,"VAProcedure; JLV AdmParent: (V12) (556) North Chicago, IL HCS","NANO,JOSEPH","MC HENRY 1 *WH* CBOC",null,null,"(V12) (556GC) McHenry, IL"]
["Jones,JANE247",111111357,"2019-02-08",null,null,null,"Gap Health Factor - Check Pt Details","NANO,JOSEPH","MC HENRY 1 *WH* CBOC",null,null,"(V12) (556GC) McHenry, IL"]
["Jones,JANE248",111111358,"2019-02-18",null,"2019-02-04",1090,"VAProcedure; JLV AdmParent: (V12) (556) North Chicago, IL HCS","CHAVEZ,LUIS A","BLUE 5","2022-02-03T10:30:00","(556) JAL PACT PC MD BLUE5","(V12) (556) North Chicago, IL (Captain James A. Lovell)"]
["Jones,JANE249",111111359,"2019-02-19",null,null,null,"Gap Health Factor - Check Pt Details","NANO,JOSEPH","MC HENRY 1 *WH* CBOC",null,null,"(V12) (556GC) McHenry, IL"]
["Jones,JANE250",111111360,"2019-02-21","2019-02-06","2019-02-07",1087,"VAProcedure; JLV AdmParent: (V12) (556) North Chicago, IL HCS","ROY,DEBJANI MD","GREEN 4",null,null,"(V12) (556) North Chicago, IL (Captain James A. Lovell)"]
["Jones,JANE251",111111361,"2019-02-21",null,"2019-02-07",1087,"VAProcedure; JLV AdmParent: (V12) (556) North Chicago, IL HCS","OOMMEN,SAJI","BLUE 1",null,null,"(V12) (556) North Chicago, IL (Captain James A. Lovell)"]
["Jones,JANE252",111111362,"2019-02-27",null,null,null,"Gap Health Factor - Check Pt Details","SIAS,PATRICIA E","MC HENRY 5 CBOC",null,null,"(V12) (556GC) McHenry, IL"]
["Jones,JANE253",111111363,"2019-03-06","2018-09-04","2019-02-20",1074,"NonVAProcedure; JLV AdmParent: (V12) (556) North Chicago, IL HCS","OOMMEN,SAJI","BLUE 1",null,null,"(V12) (556) North Chicago, IL (Captain James A. Lovell)"]
["Jones,JANE254",111111364,"2019-03-11",null,null,null,"Gap Health Factor - Check Pt Details","NANO,JOSEPH","MC HENRY 1 *WH* CBOC",null,null,"(V12) (556GC) McHenry, IL"]
["Jones,JANE255",111111365,"2019-03-12",null,null,null,"Gap Health Factor - Check Pt Details","NANO,JOSEPH","MC HENRY 1 *WH* CBOC","2022-02-01T10:00:00","(556GC) MCHENRY - PACT PC 1 MD","(V12) (556GC) McHenry, IL"]
["Jones,JANE256",111111366,"2019-03-13",null,null,null,"Gap Health Factor - Check Pt Details","NANO,JOSEPH","MC HENRY 1 *WH* CBOC",null,null,"(V12) (556GC) McHenry, IL"]
["Jones,JANE257",111111367,"2019-03-15","2018-10-03","2019-03-01",1065,"VAProcedure; JLV AdmParent: (V12) (556) North Chicago, IL HCS","OOMMEN,SAJI","BLUE 1",null,null,"(V12) (556) North Chicago, IL (Captain James A. Lovell)"]
["Jones,JANE258",111111368,"2019-03-19",null,null,null,"Gap Health Factor - Check Pt Details","NANO,JOSEPH","MC HENRY 1 *WH* CBOC",null,null,"(V12) (556GC) McHenry, IL"]
["Jones,JANE259",111111369,"2019-03-21",null,null,null,"Gap Health Factor - Check Pt Details","NANO,JOSEPH","MC HENRY 1 *WH* CBOC",null,null,"(V12) (556GC) McHenry, IL"]
["Jones,JANE260",111111370,"2019-03-21",null,null,null,"Gap Health Factor - Check Pt Details","NANO,JOSEPH","MC HENRY 1 *WH* CBOC",null,null,"(V12) (556GC) McHenry, IL"]
["Jones,JANE261",111111371,"2019-03-26",null,null,null,"Gap Health Factor - Check Pt Details","KIZHNER,JULIA","GREEN 3",null,null,"(V12) (556) North Chicago, IL (Captain James A. Lovell)"]
["Jones,JANE262",111111372,"2019-03-26",null,"2015-07-16",2389,"VAProcedure; JLV AdmParent: (V12) (537) Chicago, IL HCS","ETINGEN,MARGARITA","GOLD 2",null,null,"(V12) (556) North Chicago, IL (Captain James A. Lovell)"]
["Jones,JANE263",111111373,"2019-03-27",null,"2019-03-13",1053,"VAProcedure; JLV AdmParent: (V12) (556) North Chicago, IL HCS","ETINGEN,MARGARITA","GOLD 2",null,null,"(V12) (556) North Chicago, IL (Captain James A. Lovell)"]
["Jones,JANE264",111111374,"2019-03-27",null,null,null,"Gap Health Factor - Check Pt Details","NANO,JOSEPH","MC HENRY 1 *WH* CBOC",null,null,"(V12) (556GC) McHenry, IL"]
["Jones,JANE265",111111375,"2019-03-28",null,"2019-03-14",1052,"VAProcedure; JLV AdmParent: (V12) (556) North Chicago, IL HCS","HOLLANT,GLADYS","KENOSHA 2 *WH* CBOC","2022-03-14T09:15:00","(556GD) KENOSHA - PACT PC 2 R2","(V12) (556GD) Kenosha, WI"]
["Jones,JANE266",111111376,"2019-04-02",null,"2019-03-19",1047,"VAProcedure; JLV AdmParent: (V12) (556) North Chicago, IL HCS","IFTIKHAR,SYEDA A MD","GREEN 5",null,null,"(V12) (556) North Chicago, IL (Captain James A. Lovell)"]
["Jones,JANE267",111111377,"2019-04-03",null,"2019-03-20",1046,"VAProcedure; JLV AdmParent: (V12) (556) North Chicago, IL HCS","ROY,DEBJANI MD","GREEN 4","2022-02-22T13:00:00","(556) JAL PACT PHARM GREEN","(V12) (556) North Chicago, IL (Captain James A. Lovell)"]
["Jones,JANE268",111111378,"2019-04-12",null,"2019-03-29",1037,"VAProcedure; JLV AdmParent: (V12) (556) North Chicago, IL HCS","HOLLOWAY,ALISON R MD","WOMENS HEALTH 1 *WH* CLINIC",null,null,"(V12) (556) North Chicago, IL (Captain James A. Lovell)"]
["Jones,JANE269",111111379,"2019-04-19",null,"2019-04-05",1030,"VAProcedure; JLV AdmParent: (V12) (556) North Chicago, IL HCS","OOMMEN,SAJI","BLUE 1","2022-03-01T08:00:00","(556) JAL PACT PC MD BLUE1","(V12) (556) North Chicago, IL (Captain James A. Lovell)"]
["Jones,JANE270",111111380,"2019-05-06",null,"2010-02-23",4358,"VAProcedure; JLV AdmParent: (V12) (556) North Chicago, IL HCS","ZAKARIYA,HOSAM Y","BLUE 2",null,null,"(V12) (556) North Chicago, IL (Captain James A. Lovell)"]
["Jones,JANE271",111111381,"2019-05-07",null,"2019-04-23",1012,"NonVAProcedure; JLV AdmParent: (V12) (556) North Chicago, IL HCS","OOMMEN,SAJI","BLUE 1",null,null,"(V12) (556) North Chicago, IL (Captain James A. Lovell)"]
["Jones,JANE272",111111382,"2019-05-15",null,"2019-05-01",1004,"VAProcedure; JLV AdmParent: (V12) (695) Milwaukee, WI HCS","HOLLOWAY,ALISON R MD","WOMENS HEALTH 1 *WH* CLINIC",null,null,"(V12) (556) North Chicago, IL (Captain James A. Lovell)"]
["Jones,JANE273",111111383,"2019-05-15",null,"2019-05-01",1004,"VAProcedure; JLV AdmParent: (V12) (556) North Chicago, IL HCS","ROY,DEBJANI MD","GREEN 4","2022-03-28T10:00:00","(556) JAL PACT PC MD GREEN4","(V12) (556) North Chicago, IL (Captain James A. Lovell)"]
["Jones,JANE274",111111384,"2019-05-15",null,"2019-05-01",1004,"VAProcedure; JLV AdmParent: (V12) (556) North Chicago, IL HCS","HOLLANT,GLADYS","KENOSHA 2 *WH* CBOC","2022-03-03T08:00:00","(556GD) KENOSHA - PACT PC 2 R1","(V12) (556GD) Kenosha, WI"]
["Jones,JANE275",111111385,"2019-05-16",null,null,null,"Gap Health Factor - Check Pt Details","IFTIKHAR,SYEDA A MD","GREEN 5",null,null,"(V12) (556) North Chicago, IL (Captain James A. Lovell)"]
["Jones,JANE276",111111386,"2019-06-07",null,"2019-05-24",981,"VAProcedure; JLV AdmParent: (V12) (556) North Chicago, IL HCS","SYEDA,SARA J","GOLD 3",null,null,"(V12) (556) North Chicago, IL (Captain James A. Lovell)"]
["Jones,JANE277",111111387,"2019-06-12",null,"2019-05-29",976,"NonVAProcedure; JLV AdmParent: (V12) (556) North Chicago, IL HCS","OOMMEN,SAJI","BLUE 1",null,null,"(V12) (556) North Chicago, IL (Captain James A. Lovell)"]
["Jones,JANE278",111111388,"2019-06-20",null,"2019-06-20",954,"VAProcedure; JLV AdmParent: (V12) (537) Chicago, IL HCS","IFTIKHAR,SYEDA A MD","GREEN 5","2022-02-15T09:30:00","(556) JAL PACT PHARM GREEN","(V12) (556) North Chicago, IL (Captain James A. Lovell)"]
["Jones,JANE279",111111389,"2019-06-20",null,"2019-06-06",968,"VAProcedure; JLV AdmParent: (V12) (556) North Chicago, IL HCS","SMIRNOV,MICHAEL","GOLD 1",null,null,"(V12) (556) North Chicago, IL (Captain James A. Lovell)"]
["Jones,JANE280",111111390,"2019-08-02",null,"2019-07-19",925,"VAProcedure; JLV AdmParent: (V12) (556) North Chicago, IL HCS","HOLLOWAY,ALISON R MD","WOMENS HEALTH 1 *WH* CLINIC",null,null,"(V12) (556) North Chicago, IL (Captain James A. Lovell)"]
["Jones,JANE281",111111391,"2019-08-05","2018-06-18","2019-07-22",922,"VAProcedure; JLV AdmParent: (V12) (556) North Chicago, IL HCS","HOLLOWAY,ALISON R MD","WOMENS HEALTH 1 *WH* CLINIC",null,null,"(V12) (556) North Chicago, IL (Captain James A. Lovell)"]
["Jones,JANE282",111111392,"2019-08-05",null,"2019-07-22",922,"VAProcedure; JLV AdmParent: (V12) (556) North Chicago, IL HCS","IFTIKHAR,SYEDA A MD","GREEN 5",null,null,"(V12) (556) North Chicago, IL (Captain James A. Lovell)"]
["Jones,JANE283",111111393,"2019-08-19",null,"2019-08-05",908,"VAProcedure; JLV AdmParent: (V12) (556) North Chicago, IL HCS","ROY,DEBJANI MD","GREEN 4",null,null,"(V12) (556) North Chicago, IL (Captain James A. Lovell)"]
["Jones,JANE284",111111394,"2019-08-19",null,"2019-08-05",908,"NonVAProcedure; JLV AdmParent: (V12) (556) North Chicago, IL HCS","BANJO,ADEOLA","MC HENRY 4 *WH* CBOC",null,null,"(V12) (556GC) McHenry, IL"]
["Jones,JANE285",111111395,"2019-08-24",null,"2019-08-10",903,"NonVAProcedure; JLV AdmParent: (V12) (578) Hines, IL HCS","SIAS,PATRICIA E","MC HENRY 5 CBOC",null,null,"(V12) (556GC) McHenry, IL"]
["Jones,JANE286",111111396,"2019-09-03",null,"2013-03-27",3230,"VAProcedure; JLV AdmParent: (V12) (537) Chicago, IL HCS","SIAS,PATRICIA E","MC HENRY 5 CBOC",null,null,"(V12) (556GC) McHenry, IL"]
["Jones,JANE287",111111397,"2019-09-04","2019-08-17","2019-08-21",892,"VAProcedure; JLV AdmParent: (V12) (556) North Chicago, IL HCS","SYEDA,SARA J","GOLD 3",null,null,"(V12) (556) North Chicago, IL (Captain James A. Lovell)"]
["Jones,JANE288",111111398,"2019-09-04",null,"2019-08-21",892,"VAProcedure; JLV AdmParent: (V12) (556) North Chicago, IL HCS","CHAVEZ,LUIS A","BLUE 5","2022-12-01T10:00:00","(556) JAL PACT PC MD BLUE5","(V12) (556) North Chicago, IL (Captain James A. Lovell)"]
["Jones,JANE289",111111399,"2019-09-05",null,"2019-08-22",891,"VAProcedure; JLV AdmParent: (V12) (556) North Chicago, IL HCS","OOMMEN,SAJI","BLUE 1",null,null,"(V12) (556) North Chicago, IL (Captain James A. Lovell)"]
["Jones,JANE290",111111400,"2019-09-09",null,"2019-08-26",887,"VAProcedure; JLV AdmParent: (V12) (556) North Chicago, IL HCS","OOMMEN,SAJI","BLUE 1","2022-03-29T09:00:00","(556) JAL PACT PC MD BLUE1","(V12) (556) North Chicago, IL (Captain James A. Lovell)"]
["Jones,JANE291",111111401,"2019-09-09",null,"2019-08-26",887,"VAProcedure; JLV AdmParent: (V12) (556) North Chicago, IL HCS","OOMMEN,SAJI","BLUE 1",null,null,"(V12) (556) North Chicago, IL (Captain James A. Lovell)"]
["Jones,JANE292",111111402,"2019-09-09",null,"2019-08-26",887,"VAProcedure; JLV AdmParent: (V12) (556) North Chicago, IL HCS","ROY,DEBJANI MD","GREEN 4",null,null,"(V12) (556) North Chicago, IL (Captain James A. Lovell)"]
["Jones,JANE293",111111403,"2019-09-11","2019-08-13","2019-08-28",885,"VAProcedure; JLV AdmParent: (V12) (556) North Chicago, IL HCS","ROY,DEBJANI MD","GREEN 4",null,null,"(V12) (556) North Chicago, IL (Captain James A. Lovell)"]
["Jones,JANE294",111111404,"2019-09-17",null,"2019-09-03",879,"VAProcedure; JLV AdmParent: (V12) (556) North Chicago, IL HCS","ETINGEN,MARGARITA","GOLD 2",null,null,"(V12) (556) North Chicago, IL (Captain James A. Lovell)"]
["Jones,JANE295",111111405,"2019-09-17",null,"2019-09-03",879,"VAProcedure; JLV AdmParent: (V12) (556) North Chicago, IL HCS","SMIRNOV,MICHAEL","GOLD 1",null,null,"(V12) (556) North Chicago, IL (Captain James A. Lovell)"]
["Jones,JANE296",111111406,"2019-09-19",null,"2019-09-05",877,"VAProcedure; JLV AdmParent: (V12) (556) North Chicago, IL HCS","OOMMEN,SAJI","BLUE 1",null,null,"(V12) (556) North Chicago, IL (Captain James A. Lovell)"]
["Jones,JANE297",111111407,"2019-09-23",null,"2019-09-09",873,"VAProcedure; JLV AdmParent: (V12) (556) North Chicago, IL HCS","ETINGEN,MARGARITA","GOLD 2","2022-05-17T10:00:00","(556) JAL PACT PC MD GOLD2","(V12) (556) North Chicago, IL (Captain James A. Lovell)"]
["Jones,JANE298",111111408,"2019-09-24",null,"2019-09-10",872,"VAProcedure; JLV AdmParent: (V12) (556) North Chicago, IL HCS","ROY,DEBJANI MD","GREEN 4",null,null,"(V12) (556) North Chicago, IL (Captain James A. Lovell)"]
["Jones,JANE299",111111409,"2019-10-11",null,"2019-09-27",855,"VAProcedure; JLV AdmParent: (V12) (556) North Chicago, IL HCS","SYEDA,SARA J","GOLD 3",null,null,"(V12) (556) North Chicago, IL (Captain James A. Lovell)"]
["Jones,JANE300",111111410,"2019-11-01","2019-09-08","2019-10-18",834,"VAProcedure; JLV AdmParent: (V12) (556) North Chicago, IL HCS","ETINGEN,MARGARITA","GOLD 2",null,null,"(V12) (556) North Chicago, IL (Captain James A. Lovell)"]
["Jones,JANE301",111111411,"2019-11-27",null,"2019-11-13",808,"VAProcedure; JLV AdmParent: (V12) (556) North Chicago, IL HCS","NANO,JOSEPH","MC HENRY 1 *WH* CBOC",null,null,"(V12) (556GC) McHenry, IL"]
["Jones,JANE302",111111412,"2019-12-17",null,"2019-12-03",788,"VAProcedure; JLV AdmParent: (V12) (556) North Chicago, IL HCS","OOMMEN,SAJI","BLUE 1","2022-02-22T08:00:00","(556) JAL PACT PC MD BLUE1","(V12) (556) North Chicago, IL (Captain James A. Lovell)"]
["Jones,JANE303",111111413,"2020-02-06",null,"2018-02-13",1446,"VAProcedure; JLV AdmParent: (V12) (556) North Chicago, IL HCS","ZAKARIYA,HOSAM Y","BLUE 2","2022-02-10T08:00:00","(556) JAL PACT PC MD BLUE2","(V12) (556) North Chicago, IL (Captain James A. Lovell)"]
["Jones,JANE304",111111414,"2020-02-11",null,"2013-06-25",3140,"VAProcedure; JLV AdmParent: (V12) (556) North Chicago, IL HCS","JUIRIS,TAHIRA","WOMENS HEALTH 2 *WH* CLINIC",null,null,"(V12) (556) North Chicago, IL (Captain James A. Lovell)"]
["Jones,JANE305",111111415,"2020-03-06",null,"2020-02-21",708,"VAProcedure; JLV AdmParent: (V12) (556) North Chicago, IL HCS","OOMMEN,SAJI","BLUE 1","2022-02-07T10:00:00","(556) JAL PACT PC MD BLUE1","(V12) (556) North Chicago, IL (Captain James A. Lovell)"]
["Jones,JANE306",111111416,"2020-03-13",null,"2020-02-28",701,"VAProcedure; JLV AdmParent: (V12) (695) Milwaukee, WI HCS","ROY,DEBJANI MD","GREEN 4",null,null,"(V12) (556) North Chicago, IL (Captain James A. Lovell)"]
["Jones,JANE307",111111417,"2020-03-20",null,"2020-03-06",694,"VAProcedure; JLV AdmParent: (V12) (556) North Chicago, IL HCS","HOLLOWAY,ALISON R MD","WOMENS HEALTH 1 *WH* CLINIC",null,null,"(V12) (556) North Chicago, IL (Captain James A. Lovell)"]
["Jones,JANE308",111111418,"2020-03-23",null,"2008-01-24",5119,"VAProcedure; JLV AdmParent: (V12) (556) North Chicago, IL HCS","BANJO,ADEOLA","MC HENRY 4 *WH* CBOC",null,null,"(V12) (556GC) McHenry, IL"]
["Jones,JANE309",111111419,"2020-03-23",null,null,null,"Gap Health Factor - Check Pt Details","BANJO,ADEOLA","MC HENRY 4 *WH* CBOC",null,null,"(V12) (556GC) McHenry, IL"]
["Jones,JANE310",111111420,"2020-03-31",null,"2020-03-17",683,"VAProcedure; JLV AdmParent: (V12) (578) Hines, IL HCS","OOMMEN,SAJI","BLUE 1",null,null,"(V12) (556) North Chicago, IL (Captain James A. Lovell)"]
["Jones,JANE311",111111421,"2020-04-13",null,"2020-03-30",670,"VAProcedure; JLV AdmParent: (V12) (556) North Chicago, IL HCS","SYEDA,SARA J","GOLD 3",null,null,"(V12) (556) North Chicago, IL (Captain James A. Lovell)"]
["Jones,JANE312",111111422,"2020-05-11",null,"2008-11-19",4819,"VAProcedure; JLV AdmParent: (V12) (556) North Chicago, IL HCS","OOMMEN,SAJI","BLUE 1",null,null,"(V12) (556) North Chicago, IL (Captain James A. Lovell)"]
["Jones,JANE313",111111423,"2020-05-22",null,"2020-05-08",631,"VAProcedure; JLV AdmParent: (V12) (556) North Chicago, IL HCS","SIAS,PATRICIA E","MC HENRY 5 CBOC",null,null,"(V12) (556GC) McHenry, IL"]
["Jones,JANE314",111111424,"2020-06-01",null,"2020-05-18",621,"VAProcedure; JLV AdmParent: (V12) (556) North Chicago, IL HCS","JUIRIS,TAHIRA","WOMENS HEALTH 2 *WH* CLINIC",null,null,"(V12) (556) North Chicago, IL (Captain James A. Lovell)"]
["Jones,JANE315",111111425,"2020-06-18",null,"2020-06-04",604,"VAProcedure; JLV AdmParent: (V12) (556) North Chicago, IL HCS","HOLLANT,GLADYS","KENOSHA 2 *WH* CBOC",null,null,"(V12) (556GD) Kenosha, WI"]
["Jones,JANE316",111111426,"2020-06-30",null,"2020-06-16",592,"VAProcedure; JLV AdmParent: (V12) (556) North Chicago, IL HCS","HOLLANT,GLADYS","KENOSHA 2 *WH* CBOC",null,null,"(V12) (556GD) Kenosha, WI"]
["Jones,JANE317",111111427,"2020-07-16",null,"2020-07-02",576,"VAProcedure; JLV AdmParent: (V12) (556) North Chicago, IL HCS","LAYUG,ANNA","GREEN 6",null,null,"(V12) (556) North Chicago, IL (Captain James A. Lovell)"]
["Jones,JANE318",111111428,"2020-07-16",null,"2020-07-02",576,"VAProcedure; JLV AdmParent: (V12) (556) North Chicago, IL HCS","SYEDA,SARA J","GOLD 3",null,null,"(V12) (556) North Chicago, IL (Captain James A. Lovell)"]
["Jones,JANE319",111111429,"2020-08-05",null,"2020-07-22",556,"VAProcedure; JLV AdmParent: (V12) (556) North Chicago, IL HCS","FRANCISCO,RAMIL","GREEN 1",null,null,"(V12) (556) North Chicago, IL (Captain James A. Lovell)"]
["Jones,JANE320",111111430,"2020-08-05",null,"2020-07-22",556,"VAProcedure; JLV AdmParent: (V12) (556) North Chicago, IL HCS","KIZHNER,JULIA","GREEN 3",null,null,"(V12) (556) North Chicago, IL (Captain James A. Lovell)"]
["Jones,JANE321",111111431,"2020-08-13",null,"2020-07-30",548,"VAProcedure; JLV AdmParent: (V12) (556) North Chicago, IL HCS","SMIRNOV,MICHAEL","GOLD 1",null,null,"(V12) (556) North Chicago, IL (Captain James A. Lovell)"]
["Jones,JANE322",111111432,"2020-08-27",null,"2020-08-13",534,"VAProcedure; JLV AdmParent: (V12) (556) North Chicago, IL HCS","OOMMEN,SAJI","BLUE 1",null,null,"(V12) (556) North Chicago, IL (Captain James A. Lovell)"]
["Jones,JANE323",111111433,"2020-09-03",null,"2020-08-20",527,"VAProcedure; JLV AdmParent: (V12) (556) North Chicago, IL HCS","KIZHNER,JULIA","GREEN 3",null,null,"(V12) (556) North Chicago, IL (Captain James A. Lovell)"]
["Jones,JANE324",111111434,"2020-09-03",null,"2020-08-20",527,"VAProcedure; JLV AdmParent: (V12) (556) North Chicago, IL HCS","HOLLANT,GLADYS","KENOSHA 2 *WH* CBOC",null,null,"(V12) (556GD) Kenosha, WI"]
["Jones,JANE325",111111435,"2020-09-08",null,"2020-08-25",522,"VAProcedure; JLV AdmParent: (V12) (556) North Chicago, IL HCS","JUIRIS,TAHIRA","WOMENS HEALTH 2 *WH* CLINIC",null,null,"(V12) (556) North Chicago, IL (Captain James A. Lovell)"]
["Jones,JANE326",111111436,"2020-09-09",null,"2020-08-26",521,"VAProcedure; JLV AdmParent: (V12) (556) North Chicago, IL HCS","OOMMEN,SAJI","BLUE 1",null,null,"(V12) (556) North Chicago, IL (Captain James A. Lovell)"]
["Jones,JANE327",111111437,"2020-09-11",null,"2020-08-28",519,"VAProcedure; JLV AdmParent: (V12) (556) North Chicago, IL HCS","HOLLANT,GLADYS","KENOSHA 2 *WH* CBOC","2022-08-23T13:00:00","(556GD) KENOSHA - PACT PC 2 R1","(V12) (556GD) Kenosha, WI"]
["Jones,JANE328",111111438,"2020-09-14",null,"2020-02-12",717,"VAProcedure; JLV AdmParent: (V12) (556) North Chicago, IL HCS","OOMMEN,SAJI","BLUE 1",null,null,"(V12) (556) North Chicago, IL (Captain James A. Lovell)"]
["Jones,JANE329",111111439,"2020-09-14",null,"2020-08-31",516,"VAProcedure; JLV AdmParent: (V12) (556) North Chicago, IL HCS","BANJO,ADEOLA","MC HENRY 4 *WH* CBOC",null,null,"(V12) (556GC) McHenry, IL"]
["Jones,JANE330",111111440,"2020-09-18","2019-08-08","2020-09-18",498,"VAProcedure; JLV AdmParent: (V12) (556) North Chicago, IL HCS","KIZHNER,JULIA","GREEN 3","2022-06-27T08:30:00","(556) JAL PACT PC PA GREEN3","(V12) (556) North Chicago, IL (Captain James A. Lovell)"]
["Jones,JANE331",111111441,"2020-10-01","2019-04-11","2020-09-17",499,"VAProcedure; JLV AdmParent: (V12) (556) North Chicago, IL HCS","OOMMEN,SAJI","BLUE 1",null,null,"(V12) (556) North Chicago, IL (Captain James A. Lovell)"]
["Jones,JANE332",111111442,"2020-10-05",null,"2020-09-21",495,"VAProcedure; JLV AdmParent: (V12) (556) North Chicago, IL HCS","JUIRIS,TAHIRA","WOMENS HEALTH 2 *WH* CLINIC",null,null,"(V12) (556) North Chicago, IL (Captain James A. Lovell)"]
["Jones,JANE333",111111443,"2020-10-06",null,"2020-09-22",494,"VAProcedure; JLV AdmParent: (V12) (556) North Chicago, IL HCS","JUIRIS,TAHIRA","WOMENS HEALTH 2 *WH* CLINIC",null,null,"(V12) (556) North Chicago, IL (Captain James A. Lovell)"]
["Jones,JANE334",111111444,"2020-10-07","2020-03-06","2020-09-23",493,"VAProcedure; JLV AdmParent: (V12) (556) North Chicago, IL HCS","HOLLOWAY,ALISON R MD","WOMENS HEALTH 1 *WH* CLINIC",null,null,"(V12) (556) North Chicago, IL (Captain James A. Lovell)"]
["Jones,JANE335",111111445,"2020-10-22",null,"2020-10-08",478,"VAProcedure; JLV AdmParent: (V12) (556) North Chicago, IL HCS","IFTIKHAR,SYEDA A MD","GREEN 5",null,null,"(V12) (556) North Chicago, IL (Captain James A. Lovell)"]
["Jones,JANE336",111111446,"2020-10-23",null,"2015-02-12",2543,"VAProcedure; JLV AdmParent: (V12) (578) Hines, IL HCS","ETINGEN,MARGARITA","GOLD 2",null,null,"(V12) (556) North Chicago, IL (Captain James A. Lovell)"]
["Jones,JANE337",111111447,"2020-11-05",null,"2013-10-23",3020,"VAProcedure; JLV AdmParent: (V12) (556) North Chicago, IL HCS","FRANCISCO,RAMIL","GREEN 1",null,null,"(V12) (556) North Chicago, IL (Captain James A. Lovell)"]
["Jones,JANE338",111111448,"2020-11-10",null,"2020-10-27",459,"VAProcedure; JLV AdmParent: (V12) (556) North Chicago, IL HCS","ROY,DEBJANI MD","GREEN 4","2022-05-20T09:30:00","(556) JAL PACT PC MD GREEN4","(V12) (556) North Chicago, IL (Captain James A. Lovell)"]
["Jones,JANE339",111111449,"2020-11-13",null,"2020-10-30",456,"VAProcedure; JLV AdmParent: (V12) (556) North Chicago, IL HCS","FRANCISCO,RAMIL","GREEN 1",null,null,"(V12) (556) North Chicago, IL (Captain James A. Lovell)"]
["Jones,JANE340",111111450,"2020-11-18",null,"2020-11-04",451,"VAProcedure; JLV AdmParent: (V12) (556) North Chicago, IL HCS","SMIRNOV,MICHAEL","GOLD 1",null,null,"(V12) (556) North Chicago, IL (Captain James A. Lovell)"]
["Jones,JANE341",111111451,"2020-11-19",null,"2020-11-05",450,"VAProcedure; JLV AdmParent: (V12) (556) North Chicago, IL HCS","OOMMEN,SAJI","BLUE 1",null,null,"(V12) (556) North Chicago, IL (Captain James A. Lovell)"]
["Jones,JANE342",111111452,"2020-11-27",null,null,null,"Gap Health Factor - Check Pt Details","ZAKARIYA,HOSAM Y","BLUE 2",null,null,"(V12) (556) North Chicago, IL (Captain James A. Lovell)"]
["Jones,JANE343",111111453,"2020-12-15",null,"2012-10-18",3390,"VAProcedure; JLV AdmParent: (V12) (556) North Chicago, IL HCS","CHAVEZ,LUIS A","BLUE 5","2022-06-27T08:00:00","(556) JAL PACT PC MD BLUE5","(V12) (556) North Chicago, IL (Captain James A. Lovell)"]
["Jones,JANE344",111111454,"2020-12-15",null,"2020-12-01",424,"VAProcedure; JLV AdmParent: (V12) (556) North Chicago, IL HCS","HOLLANT,GLADYS","KENOSHA 2 *WH* CBOC","2022-02-28T08:15:00","(556GD) KENOSHA - PACT PC 2 R2","(V12) (556GD) Kenosha, WI"]
["Jones,JANE345",111111455,"2020-12-21",null,null,null,"Gap Health Factor - Check Pt Details","IQBAL,FARZANA","EVANSTON 2 *WH* CBOC",null,null,"(V12) (556GA) Evanston, IL"]
["Jones,JANE346",111111456,"2020-12-25",null,"2020-12-11",414,"VAProcedure; JLV AdmParent: (V12) (556) North Chicago, IL HCS","TROTTA,ROSEMARY","HBPC 2 *HBPC*",null,null,"(V12) (556) North Chicago, IL (Captain James A. Lovell)"]
["Jones,JANE347",111111457,"2021-01-04","2020-01-24","2020-12-21",404,"VAProcedure; JLV AdmParent: (V12) (556) North Chicago, IL HCS","ROY,DEBJANI MD","GREEN 4",null,null,"(V12) (556) North Chicago, IL (Captain James A. Lovell)"]
["Jones,JANE348",111111458,"2021-01-06",null,"2020-12-23",402,"VAProcedure; JLV AdmParent: (V12) (556) North Chicago, IL HCS","IFTIKHAR,SYEDA A MD","GREEN 5",null,null,"(V12) (556) North Chicago, IL (Captain James A. Lovell)"]
["Jones,JANE349",111111459,"2021-01-06",null,null,null,"Gap Health Factor - Check Pt Details","IFTIKHAR,SYEDA A MD","GREEN 5",null,null,"(V12) (556) North Chicago, IL (Captain James A. Lovell)"]
["Jones,JANE350",111111460,"2021-01-11","2019-12-18","2020-12-28",397,"VAProcedure; JLV AdmParent: (V12) (556) North Chicago, IL HCS","IQBAL,FARZANA","EVANSTON 2 *WH* CBOC",null,null,"(V12) (556GA) Evanston, IL"]
["Jones,JANE351",111111461,"2021-01-19",null,"2021-01-05",389,"VAProcedure; JLV AdmParent: (V12) (556) North Chicago, IL HCS","JUIRIS,TAHIRA","WOMENS HEALTH 2 *WH* CLINIC",null,null,"(V12) (556) North Chicago, IL (Captain James A. Lovell)"]
["Jones,JANE352",111111462,"2021-01-19","2020-07-27","2021-01-05",389,"VAProcedure; JLV AdmParent: (V12) (556) North Chicago, IL HCS","IQBAL,FARZANA","EVANSTON 2 *WH* CBOC",null,null,"(V12) (556GA) Evanston, IL"]
["Jones,JANE353",111111463,"2021-01-22",null,"2021-01-08",386,"VAProcedure; JLV AdmParent: (V12) (556) North Chicago, IL HCS","OOMMEN,SAJI","BLUE 1",null,null,"(V12) (556) North Chicago, IL (Captain James A. Lovell)"]
["Jones,JANE354",111111464,"2021-01-25",null,"2021-01-11",383,"VAProcedure; JLV AdmParent: (V12) (556) North Chicago, IL HCS","SYEDA,SARA J","GOLD 3",null,null,"(V12) (556) North Chicago, IL (Captain James A. Lovell)"]
["Jones,JANE355",111111465,"2021-01-28",null,"2021-01-14",380,"VAProcedure; JLV AdmParent: (V12) (556) North Chicago, IL HCS","SIAS,PATRICIA E","MC HENRY 5 CBOC",null,null,"(V12) (556GC) McHenry, IL"]
["Jones,JANE356",111111466,"2021-01-29",null,"2021-01-15",379,"VAProcedure; JLV AdmParent: (V12) (556) North Chicago, IL HCS","SMIRNOV,MICHAEL","GOLD 1",null,null,"(V12) (556) North Chicago, IL (Captain James A. Lovell)"]
["Jones,JANE357",111111467,"2021-01-29",null,"2021-01-15",379,"VAProcedure; JLV AdmParent: (V12) (695) Milwaukee, WI HCS","FRANCISCO,RAMIL","GREEN 1","2022-04-19T11:00:00","(556) JAL PACT PC MD GREEN1","(V12) (556) North Chicago, IL (Captain James A. Lovell)"]
["Jones,JANE358",111111468,"2021-02-05",null,"2021-01-22",372,"VAProcedure; JLV AdmParent: (V12) (556) North Chicago, IL HCS","SIAS,PATRICIA E","MC HENRY 5 CBOC","2022-02-18T08:30:00","(556GC) MCHENRY - PACT PC 5 MD PHONE","(V12) (556GC) McHenry, IL"]
["Jones,JANE359",111111469,"2021-02-08",null,"2021-01-25",369,"VAProcedure; JLV AdmParent: (V12) (556) North Chicago, IL HCS","HOLLOWAY,ALISON R MD","WOMENS HEALTH 1 *WH* CLINIC",null,null,"(V12) (556) North Chicago, IL (Captain James A. Lovell)"]
["Jones,JANE360",111111470,"2021-02-08","2020-10-13","2021-01-25",369,"VAProcedure; JLV AdmParent: (V12) (556) North Chicago, IL HCS","IFTIKHAR,SYEDA A MD","GREEN 5",null,null,"(V12) (556) North Chicago, IL (Captain James A. Lovell)"]
["Jones,JANE361",111111471,"2021-02-08",null,"2021-01-25",369,"VAProcedure; JLV AdmParent: (V12) (556) North Chicago, IL HCS","SMIRNOV,MICHAEL","GOLD 1","2022-06-16T10:30:00","(556) JAL PACT PC MD GOLD1","(V12) (556) North Chicago, IL (Captain James A. Lovell)"]
["Jones,JANE362",111111472,"2021-02-08",null,"2021-01-25",369,"VAProcedure; JLV AdmParent: (V12) (556) North Chicago, IL HCS","LAYUG,ANNA","GREEN 6","2022-03-03T09:30:00","(556) JAL PACT PC MD GREEN6","(V12) (556) North Chicago, IL (Captain James A. Lovell)"]
["Jones,JANE363",111111473,"2021-02-11",null,"2021-01-28",366,"VAProcedure; JLV AdmParent: (V12) (556) North Chicago, IL HCS","SYEDA,SARA J","GOLD 3","2022-04-26T08:00:00","(556) JAL PACT PHARM GOLD TELE2 ","(V12) (556) North Chicago, IL (Captain James A. Lovell)"]
["Jones,JANE364",111111474,"2021-02-11",null,"2021-01-28",366,"VAProcedure; JLV AdmParent: (V12) (556) North Chicago, IL HCS","JUIRIS,TAHIRA","WOMENS HEALTH 2 *WH* CLINIC",null,null,"(V12) (556) North Chicago, IL (Captain James A. Lovell)"]
["Jones,JANE365",111111475,"2021-02-15",null,"2021-02-01",362,"VAProcedure; JLV AdmParent: (V12) (556) North Chicago, IL HCS","BANJO,ADEOLA","MC HENRY 4 *WH* CBOC",null,null,"(V12) (556GC) McHenry, IL"]
["Jones,JANE366",111111476,"2021-02-16",null,"2021-02-16",347,"VAProcedure; JLV AdmParent: (V12) (607) Madison, WI HCS","IFTIKHAR,SYEDA A MD","GREEN 5","2022-03-03T10:00:00","(556) IMMUNIZATION 133EF VET","(V12) (556) North Chicago, IL (Captain James A. Lovell)"]
["Jones,JANE367",111111477,"2021-02-17","2021-01-26","2021-02-03",360,"VAProcedure; JLV AdmParent: (V12) (556) North Chicago, IL HCS","HOLLANT,GLADYS","KENOSHA 2 *WH* CBOC",null,null,"(V12) (556GD) Kenosha, WI"]
["Jones,JANE368",111111478,"2021-02-19",null,"2021-02-05",358,"VAProcedure; JLV AdmParent: (V12) (556) North Chicago, IL HCS","ROY,DEBJANI MD","GREEN 4",null,null,"(V12) (556) North Chicago, IL (Captain James A. Lovell)"]
["Jones,JANE369",111111479,"2021-02-22",null,"2021-02-08",355,"VAProcedure; JLV AdmParent: (V12) (556) North Chicago, IL HCS","OOMMEN,SAJI","BLUE 1",null,null,"(V12) (556) North Chicago, IL (Captain James A. Lovell)"]
["Jones,JANE370",111111480,"2021-02-23",null,"2021-02-09",354,"VAProcedure; JLV AdmParent: (V12) (556) North Chicago, IL HCS","ETINGEN,MARGARITA","GOLD 2",null,null,"(V12) (556) North Chicago, IL (Captain James A. Lovell)"]
["Jones,JANE371",111111481,"2021-02-25",null,"2021-02-11",352,"VAProcedure; JLV AdmParent: (V12) (556) North Chicago, IL HCS","FRANCISCO,RAMIL","GREEN 1",null,null,"(V12) (556) North Chicago, IL (Captain James A. Lovell)"]
["Jones,JANE372",111111482,"2021-02-25","2020-06-05","2021-02-11",352,"VAProcedure; JLV AdmParent: (V12) (556) North Chicago, IL HCS","IQBAL,FARZANA","EVANSTON 2 *WH* CBOC",null,null,"(V12) (556GA) Evanston, IL"]
["Jones,JANE373",111111483,"2021-02-26",null,null,null,"Gap Health Factor - Check Pt Details","CHAVEZ,LUIS A","BLUE 5",null,null,"(V12) (556) North Chicago, IL (Captain James A. Lovell)"]
["Jones,JANE374",111111484,"2021-02-26",null,"2021-02-12",351,"VAProcedure; JLV AdmParent: (V12) (556) North Chicago, IL HCS","SYEDA,SARA J","GOLD 3","2022-02-08T08:00:00","(556) JAL PACT PHARM GOLD TELE2 ","(V12) (556) North Chicago, IL (Captain James A. Lovell)"]
["Jones,JANE375",111111485,"2021-03-02",null,"2021-02-16",347,"VAProcedure; JLV AdmParent: (V12) (556) North Chicago, IL HCS","SMIRNOV,MICHAEL","GOLD 1",null,null,"(V12) (556) North Chicago, IL (Captain James A. Lovell)"]
["Jones,JANE376",111111486,"2021-03-03",null,"2021-02-17",346,"VAProcedure; JLV AdmParent: (V12) (556) North Chicago, IL HCS","ETINGEN,MARGARITA","GOLD 2",null,null,"(V12) (556) North Chicago, IL (Captain James A. Lovell)"]
["Jones,JANE377",111111487,"2021-03-09",null,"2021-02-23",340,"VAProcedure; JLV AdmParent: (V12) (556) North Chicago, IL HCS","HOLLOWAY,ALISON R MD","WOMENS HEALTH 1 *WH* CLINIC","2022-07-07T10:00:00","(556) JAL PACT WH PC 1 MD","(V12) (556) North Chicago, IL (Captain James A. Lovell)"]
["Jones,JANE378",111111488,"2021-03-11",null,"2015-07-07",2398,"VAProcedure; JLV AdmParent: (V12) (556) North Chicago, IL HCS","FRANCISCO,RAMIL","GREEN 1","2022-02-25T10:00:00","(556) JAL PACT PC MD GREEN1","(V12) (556) North Chicago, IL (Captain James A. Lovell)"]
["Jones,JANE379",111111489,"2021-03-12",null,"2021-02-26",337,"VAProcedure; JLV AdmParent: (V12) (556) North Chicago, IL HCS","JUIRIS,TAHIRA","WOMENS HEALTH 2 *WH* CLINIC",null,null,"(V12) (556) North Chicago, IL (Captain James A. Lovell)"]
["Jones,JANE380",111111490,"2021-03-12",null,"2021-02-26",337,"VAProcedure; JLV AdmParent: (V12) (556) North Chicago, IL HCS","HOLLANT,GLADYS","KENOSHA 2 *WH* CBOC",null,null,"(V12) (556GD) Kenosha, WI"]
["Jones,JANE381",111111491,"2021-03-15",null,"2021-03-01",334,"VAProcedure; JLV AdmParent: (V12) (556) North Chicago, IL HCS","OOMMEN,SAJI","BLUE 1",null,null,"(V12) (556) North Chicago, IL (Captain James A. Lovell)"]
["Jones,JANE382",111111492,"2021-03-15","2017-08-09","2021-03-01",334,"VAProcedure; JLV AdmParent: (V12) (556) North Chicago, IL HCS","IFTIKHAR,SYEDA A MD","GREEN 5",null,null,"(V12) (556) North Chicago, IL (Captain James A. Lovell)"]
["Jones,JANE383",111111493,"2021-03-15",null,"2021-03-01",334,"VAProcedure; JLV AdmParent: (V12) (556) North Chicago, IL HCS","SMIRNOV,MICHAEL","GOLD 1","2022-05-10T09:00:00","(556) JAL PACT PC MD GOLD1","(V12) (556) North Chicago, IL (Captain James A. Lovell)"]
["Jones,JANE384",111111494,"2021-03-17",null,null,null,"Gap Health Factor - Check Pt Details","KIZHNER,JULIA","GREEN 3","2022-09-02T09:30:00","(556) JAL PACT PC PA GREEN3","(V12) (556) North Chicago, IL (Captain James A. Lovell)"]
["Jones,JANE385",111111495,"2021-03-22",null,"2021-03-22",313,"VAProcedure; JLV AdmParent: (V12) (556) North Chicago, IL HCS","COTTER,WILLIAM MD","GOLD 5",null,null,"(V12) (556) North Chicago, IL (Captain James A. Lovell)"]
["Jones,JANE386",111111496,"2021-03-23",null,"2021-03-09",326,"VAProcedure; JLV AdmParent: (V12) (556) North Chicago, IL HCS","ROY,DEBJANI MD","GREEN 4","2022-03-08T11:00:00","(556) JAL PACT PC MD GREEN4","(V12) (556) North Chicago, IL (Captain James A. Lovell)"]
["Jones,JANE387",111111497,"2021-03-23",null,"2021-03-09",326,"VAProcedure; JLV AdmParent: (V12) (556) North Chicago, IL HCS","SMIRNOV,MICHAEL","GOLD 1",null,null,"(V12) (556) North Chicago, IL (Captain James A. Lovell)"]
["Jones,JANE388",111111498,"2021-03-23",null,"2021-03-09",326,"VAProcedure; JLV AdmParent: (V12) (556) North Chicago, IL HCS","BANJO,ADEOLA","MC HENRY 4 *WH* CBOC",null,null,"(V12) (556GC) McHenry, IL"]
["Jones,JANE389",111111499,"2021-03-25",null,"2021-03-11",324,"VAProcedure; JLV AdmParent: (V12) (556) North Chicago, IL HCS","HOLLOWAY,ALISON R MD","WOMENS HEALTH 1 *WH* CLINIC","2022-02-07T09:30:00","(556) JAL PACT PC RD TELE","(V12) (556) North Chicago, IL (Captain James A. Lovell)"]
["Jones,JANE390",111111500,"2021-03-26",null,"2021-03-12",323,"VAProcedure; JLV AdmParent: (V12) (556) North Chicago, IL HCS","IFTIKHAR,SYEDA A MD","GREEN 5","2022-10-24T14:00:00","(556) JAL PACT PHARM GREEN TELE2","(V12) (556) North Chicago, IL (Captain James A. Lovell)"]
["Jones,JANE391",111111501,"2021-03-26",null,"2021-03-12",323,"VAProcedure; JLV AdmParent: (V12) (556) North Chicago, IL HCS","NANO,JOSEPH","MC HENRY 1 *WH* CBOC",null,null,"(V12) (556GC) McHenry, IL"]
["Jones,JANE392",111111502,"2021-03-29",null,"2021-03-15",320,"VAProcedure; JLV AdmParent: (V12) (556) North Chicago, IL HCS","OOMMEN,SAJI","BLUE 1",null,null,"(V12) (556) North Chicago, IL (Captain James A. Lovell)"]
["Jones,JANE393",111111503,"2021-03-29",null,"2021-03-15",320,"VAProcedure; JLV AdmParent: (V12) (556) North Chicago, IL HCS","COTTER,WILLIAM MD","GOLD 5",null,null,"(V12) (556) North Chicago, IL (Captain James A. Lovell)"]
["Jones,JANE394",111111504,"2021-03-29",null,"2021-03-15",320,"VAProcedure; JLV AdmParent: (V12) (556) North Chicago, IL HCS","OOMMEN,SAJI","BLUE 1",null,null,"(V12) (556) North Chicago, IL (Captain James A. Lovell)"]
["Jones,JANE395",111111505,"2021-03-30",null,"2021-03-16",319,"VAProcedure; JLV AdmParent: (V12) (556) North Chicago, IL HCS","NANO,JOSEPH","MC HENRY 1 *WH* CBOC",null,null,"(V12) (556GC) McHenry, IL"]
["Jones,JANE396",111111506,"2021-04-01",null,"2021-03-18",317,"VAProcedure; JLV AdmParent: (V12) (556) North Chicago, IL HCS","HOLLANT,GLADYS","KENOSHA 2 *WH* CBOC","2022-02-14T09:00:00","(556GD) KENOSHA - MH SW FAFFORD IND","(V12) (556GD) Kenosha, WI"]
["Jones,JANE397",111111507,"2021-04-02",null,"2021-03-19",316,"VAProcedure; JLV AdmParent: (V12) (556) North Chicago, IL HCS","HOLLANT,GLADYS","KENOSHA 2 *WH* CBOC",null,null,"(V12) (556GD) Kenosha, WI"]
["Jones,JANE398",111111508,"2021-04-05",null,"2021-03-22",313,"VAProcedure; JLV AdmParent: (V12) (556) North Chicago, IL HCS","ETINGEN,MARGARITA","GOLD 2",null,null,"(V12) (556) North Chicago, IL (Captain James A. Lovell)"]
["Jones,JANE399",111111509,"2021-04-05",null,"2021-03-22",313,"VAProcedure; JLV AdmParent: (V12) (556) North Chicago, IL HCS","OOMMEN,SAJI","BLUE 1",null,null,"(V12) (556) North Chicago, IL (Captain James A. Lovell)"]
["Jones,JANE400",111111510,"2021-04-05",null,"2021-03-22",313,"VAProcedure; JLV AdmParent: (V12) (556) North Chicago, IL HCS","BANJO,ADEOLA","MC HENRY 4 *WH* CBOC",null,null,"(V12) (556GC) McHenry, IL"]
["Jones,JANE401",111111511,"2021-04-06",null,"2021-03-23",312,"VAProcedure; JLV AdmParent: (V12) (556) North Chicago, IL HCS","ETINGEN,MARGARITA","GOLD 2",null,null,"(V12) (556) North Chicago, IL (Captain James A. Lovell)"]
["Jones,JANE402",111111512,"2021-04-06",null,"2021-03-23",312,"VAProcedure; JLV AdmParent: (V12) (556) North Chicago, IL HCS","MOHAMMED,BAKHTIAR A","MC HENRY 2 CBOC",null,null,"(V12) (556GC) McHenry, IL"]
["Jones,JANE403",111111513,"2021-04-07",null,"2021-03-24",311,"VAProcedure; JLV AdmParent: (V12) (556) North Chicago, IL HCS","ROY,DEBJANI MD","GREEN 4",null,null,"(V12) (556) North Chicago, IL (Captain James A. Lovell)"]
["Jones,JANE404",111111514,"2021-04-09",null,"2021-04-09",295,"VAProcedure; JLV AdmParent: (V12) (556) North Chicago, IL HCS","ZAKARIYA,HOSAM Y","BLUE 2","2022-01-31T10:00:00","(556) JAL PACT PC MHI PHD INDV","(V12) (556) North Chicago, IL (Captain James A. Lovell)"]
["Jones,JANE405",111111515,"2021-04-09",null,"2021-03-26",309,"VAProcedure; JLV AdmParent: (V12) (556) North Chicago, IL HCS","HOLLOWAY,ALISON R MD","WOMENS HEALTH 1 *WH* CLINIC",null,null,"(V12) (556) North Chicago, IL (Captain James A. Lovell)"]
["Jones,JANE406",111111516,"2021-04-14",null,"2021-03-31",304,"VAProcedure; JLV AdmParent: (V12) (556) North Chicago, IL HCS","SYEDA,SARA J","GOLD 3",null,null,"(V12) (556) North Chicago, IL (Captain James A. Lovell)"]
["Jones,JANE407",111111517,"2021-04-15","2021-04-12","2021-04-15",289,"VAProcedure; JLV AdmParent: (V12) (556) North Chicago, IL HCS","IFTIKHAR,SYEDA A MD","GREEN 5",null,null,"(V12) (556) North Chicago, IL (Captain James A. Lovell)"]
["Jones,JANE408",111111518,"2021-04-23","2021-04-06","2021-04-09",295,"VAProcedure; JLV AdmParent: (V12) (556) North Chicago, IL HCS","RAVIPATI,MAMATA MD","GOLD 4","2022-04-29T09:00:00","(556) JAL PACT PC MD GOLD4","(V12) (556) North Chicago, IL (Captain James A. Lovell)"]
["Jones,JANE409",111111519,"2021-04-23",null,"2021-04-09",295,"VAProcedure; JLV AdmParent: (V12) (556) North Chicago, IL HCS","KIZHNER,JULIA","GREEN 3","2022-03-11T13:00:00","(556) JAL PACT PC PA GREEN3","(V12) (556) North Chicago, IL (Captain James A. Lovell)"]
["Jones,JANE410",111111520,"2021-04-23",null,"2021-04-09",295,"VAProcedure; JLV AdmParent: (V12) (556) North Chicago, IL HCS","SIAS,PATRICIA E","MC HENRY 5 CBOC",null,null,"(V12) (556GC) McHenry, IL"]
["Jones,JANE411",111111521,"2021-04-26",null,"2021-04-12",292,"VAProcedure; JLV AdmParent: (V12) (556) North Chicago, IL HCS","HOLLOWAY,ALISON R MD","WOMENS HEALTH 1 *WH* CLINIC",null,null,"(V12) (556) North Chicago, IL (Captain James A. Lovell)"]
["Jones,JANE412",111111522,"2021-04-26",null,null,null,"Gap Health Factor - Check Pt Details","SIAS,PATRICIA E","MC HENRY 5 CBOC",null,null,"(V12) (556GC) McHenry, IL"]
["Jones,JANE413",111111523,"2021-04-27","2018-05-06","2021-04-13",291,"VAProcedure; JLV AdmParent: (V12) (556) North Chicago, IL HCS","KIZHNER,JULIA","GREEN 3",null,null,"(V12) (556) North Chicago, IL (Captain James A. Lovell)"]
["Jones,JANE414",111111524,"2021-04-29",null,"2021-04-15",289,"VAProcedure; JLV AdmParent: (V12) (556) North Chicago, IL HCS","NANO,JOSEPH","MC HENRY 1 *WH* CBOC","2022-01-31T08:30:00","(556GC) MCHENRY - PACT PC 1 MD","(V12) (556GC) McHenry, IL"]
["Jones,JANE415",111111525,"2021-05-03",null,"2021-04-19",285,"VAProcedure; JLV AdmParent: (V12) (556) North Chicago, IL HCS","SMIRNOV,MICHAEL","GOLD 1",null,null,"(V12) (556) North Chicago, IL (Captain James A. Lovell)"]
["Jones,JANE416",111111526,"2021-05-04",null,"2021-04-20",284,"VAProcedure; JLV AdmParent: (V12) (556) North Chicago, IL HCS","SMIRNOV,MICHAEL","GOLD 1",null,null,"(V12) (556) North Chicago, IL (Captain James A. Lovell)"]
["Jones,JANE417",111111527,"2021-05-05",null,"2021-04-21",283,"VAProcedure; JLV AdmParent: (V12) (556) North Chicago, IL HCS","HOLLANT,GLADYS","KENOSHA 2 *WH* CBOC","2022-04-07T10:15:00","(556GD) KENOSHA - PACT PC 2 R2","(V12) (556GD) Kenosha, WI"]
["Jones,JANE418",111111528,"2021-05-06",null,"2021-04-22",282,"VAProcedure; JLV AdmParent: (V12) (556) North Chicago, IL HCS","MOHAMMED,BAKHTIAR A","MC HENRY 2 CBOC","2022-02-25T09:30:00","(556GC) MCHENRY - PACT PC 2 R1","(V12) (556GC) McHenry, IL"]
["Jones,JANE419",111111529,"2021-05-07",null,null,null,"Gap Health Factor - Check Pt Details","BANJO,ADEOLA","MC HENRY 4 *WH* CBOC",null,null,"(V12) (556GC) McHenry, IL"]
["Jones,JANE420",111111530,"2021-05-07",null,"2021-04-23",281,"VAProcedure; JLV AdmParent: (V12) (556) North Chicago, IL HCS","MOHAMMED,BAKHTIAR A","MC HENRY 2 CBOC",null,null,"(V12) (556GC) McHenry, IL"]
["Jones,JANE421",111111531,"2021-05-11",null,"2021-04-27",277,"VAProcedure; JLV AdmParent: (V12) (556) North Chicago, IL HCS","HOLLOWAY,ALISON R MD","WOMENS HEALTH 1 *WH* CLINIC",null,null,"(V12) (556) North Chicago, IL (Captain James A. Lovell)"]
["Jones,JANE422",111111532,"2021-05-11",null,"2021-04-27",277,"VAProcedure; JLV AdmParent: (V12) (556) North Chicago, IL HCS","ETINGEN,MARGARITA","GOLD 2","2022-08-17T13:00:00","(556) JAL PACT PC MD GOLD2","(V12) (556) North Chicago, IL (Captain James A. Lovell)"]
["Jones,JANE423",111111533,"2021-05-13",null,"2021-04-29",275,"VAProcedure; JLV AdmParent: (V12) (556) North Chicago, IL HCS","GANNU,RAJYALAKSHMI M","BLUE 6","2022-02-15T08:30:00","(556) JAL PACT PHARM BLUE","(V12) (556) North Chicago, IL (Captain James A. Lovell)"]
["Jones,JANE424",111111534,"2021-05-17",null,"2021-05-03",271,"VAProcedure; JLV AdmParent: (V12) (556) North Chicago, IL HCS","OOMMEN,SAJI","BLUE 1",null,null,"(V12) (556) North Chicago, IL (Captain James A. Lovell)"]
["Jones,JANE425",111111535,"2021-05-18",null,"2021-05-04",270,"VAProcedure; JLV AdmParent: (V12) (556) North Chicago, IL HCS","OOMMEN,SAJI","BLUE 1","2022-03-25T08:00:00","(556) JAL PACT PC MD BLUE1","(V12) (556) North Chicago, IL (Captain James A. Lovell)"]
["Jones,JANE426",111111536,"2021-05-18",null,null,null,"Gap Health Factor - Check Pt Details","COTTER,WILLIAM MD","GOLD 5",null,null,"(V12) (556) North Chicago, IL (Captain James A. Lovell)"]
["Jones,JANE427",111111537,"2021-05-18",null,"2008-12-09",4799,"VAProcedure; JLV AdmParent: (V12) (556) North Chicago, IL HCS","COTTER,WILLIAM MD","GOLD 5",null,null,"(V12) (556) North Chicago, IL (Captain James A. Lovell)"]
["Jones,JANE428",111111538,"2021-05-20",null,"2021-05-06",268,"VAProcedure; JLV AdmParent: (V12) (556) North Chicago, IL HCS","IFTIKHAR,SYEDA A MD","GREEN 5",null,null,"(V12) (556) North Chicago, IL (Captain James A. Lovell)"]
["Jones,JANE429",111111539,"2021-05-23",null,null,null,"Gap Health Factor - Check Pt Details","KIZHNER,JULIA","GREEN 3","2022-02-18T11:00:00","(556) JAL PACT PC PA GREEN3","(V12) (556) North Chicago, IL (Captain James A. Lovell)"]
["Jones,JANE430",111111540,"2021-05-24",null,"2021-05-10",264,"VAProcedure; JLV AdmParent: (V12) (556) North Chicago, IL HCS","LAYUG,ANNA","GREEN 6",null,null,"(V12) (556) North Chicago, IL (Captain James A. Lovell)"]
["Jones,JANE431",111111541,"2021-05-24",null,"2021-05-24",250,"VAProcedure; JLV AdmParent: (V12) (556) North Chicago, IL HCS","IFTIKHAR,SYEDA A MD","GREEN 5","2022-04-05T08:00:00","(556) JAL PACT PC MD GREEN5","(V12) (556) North Chicago, IL (Captain James A. Lovell)"]
["Jones,JANE432",111111542,"2021-05-24",null,"2021-05-10",264,"VAProcedure; JLV AdmParent: (V12) (556) North Chicago, IL HCS","OOMMEN,SAJI","BLUE 1",null,null,"(V12) (556) North Chicago, IL (Captain James A. Lovell)"]
["Jones,JANE433",111111543,"2021-05-25",null,"2021-05-11",263,"VAProcedure; JLV AdmParent: (V12) (556) North Chicago, IL HCS","HOLLOWAY,ALISON R MD","WOMENS HEALTH 1 *WH* CLINIC",null,null,"(V12) (556) North Chicago, IL (Captain James A. Lovell)"]
["Jones,JANE434",111111544,"2021-05-25",null,null,null,"Gap Health Factor - Check Pt Details","SIAS,PATRICIA E","MC HENRY 5 CBOC",null,null,"(V12) (556GC) McHenry, IL"]
["Jones,JANE435",111111545,"2021-05-26",null,"2021-05-12",262,"VAProcedure; JLV AdmParent: (V12) (556) North Chicago, IL HCS","ROY,DEBJANI MD","GREEN 4",null,null,"(V12) (556) North Chicago, IL (Captain James A. Lovell)"]
["Jones,JANE436",111111546,"2021-05-27",null,"2021-05-13",261,"VAProcedure; JLV AdmParent: (V12) (556) North Chicago, IL HCS","SMIRNOV,MICHAEL","GOLD 1",null,null,"(V12) (556) North Chicago, IL (Captain James A. Lovell)"]
["Jones,JANE437",111111547,"2021-05-31","2021-09-10","2021-05-17",257,"VAProcedure; JLV AdmParent: (V12) (556) North Chicago, IL HCS","SYEDA,SARA J","GOLD 3",null,null,"(V12) (556) North Chicago, IL (Captain James A. Lovell)"]
["Jones,JANE438",111111548,"2021-05-31",null,"2021-05-17",257,"VAProcedure; JLV AdmParent: (V12) (556) North Chicago, IL HCS","OOMMEN,SAJI","BLUE 1",null,null,"(V12) (556) North Chicago, IL (Captain James A. Lovell)"]
["Jones,JANE439",111111549,"2021-06-01",null,"2021-05-18",256,"VAProcedure; JLV AdmParent: (V12) (556) North Chicago, IL HCS","OOMMEN,SAJI","BLUE 1",null,null,"(V12) (556) North Chicago, IL (Captain James A. Lovell)"]
["Jones,JANE440",111111550,"2021-06-03","2017-11-17","2021-05-20",254,"VAProcedure; JLV AdmParent: (V12) (556) North Chicago, IL HCS","MOHAMMED,BAKHTIAR A","MC HENRY 2 CBOC",null,null,"(V12) (556GC) McHenry, IL"]
["Jones,JANE441",111111551,"2021-06-04",null,"2021-05-21",253,"VAProcedure; JLV AdmParent: (V12) (556) North Chicago, IL HCS","SIAS,PATRICIA E","MC HENRY 5 CBOC",null,null,"(V12) (556GC) McHenry, IL"]
["Jones,JANE442",111111552,"2021-06-07",null,"2021-05-24",250,"VAProcedure; JLV AdmParent: (V12) (556) North Chicago, IL HCS","HOLLOWAY,ALISON R MD","WOMENS HEALTH 1 *WH* CLINIC",null,null,"(V12) (556) North Chicago, IL (Captain James A. Lovell)"]
["Jones,JANE443",111111553,"2021-06-10","2020-10-13","2021-05-27",247,"VAProcedure; JLV AdmParent: (V12) (556) North Chicago, IL HCS","ETINGEN,MARGARITA","GOLD 2","2022-11-08T09:30:00","(556) JAL PACT PC MD GOLD2","(V12) (556) North Chicago, IL (Captain James A. Lovell)"]
["Jones,JANE444",111111554,"2021-06-10",null,"2021-05-27",247,"VAProcedure; JLV AdmParent: (V12) (556) North Chicago, IL HCS","BANJO,ADEOLA","MC HENRY 4 *WH* CBOC","2022-05-12T13:00:00","(556GC) MCHENRY - PACT PC 4 MD","(V12) (556GC) McHenry, IL"]
["Jones,JANE445",111111555,"2021-06-11","2020-01-30","2021-05-28",246,"VAProcedure; JLV AdmParent: (V12) (556) North Chicago, IL HCS","HOLLOWAY,ALISON R MD","WOMENS HEALTH 1 *WH* CLINIC",null,null,"(V12) (556) North Chicago, IL (Captain James A. Lovell)"]
["Jones,JANE446",111111556,"2021-06-12",null,null,null,"Gap Health Factor - Check Pt Details","SIAS,PATRICIA E","MC HENRY 5 CBOC",null,null,"(V12) (556GC) McHenry, IL"]
["Jones,JANE447",111111557,"2021-06-16",null,"2021-06-02",241,"VAProcedure; JLV AdmParent: (V12) (556) North Chicago, IL HCS","ETINGEN,MARGARITA","GOLD 2","2022-11-08T10:00:00","(556) JAL PACT PC MD GOLD2","(V12) (556) North Chicago, IL (Captain James A. Lovell)"]
["Jones,JANE448",111111558,"2021-06-17",null,null,null,"Gap Health Factor - Check Pt Details","ZAKARIYA,HOSAM Y","BLUE 2","2022-04-28T08:00:00","(556) JAL PACT PC MD BLUE2","(V12) (556) North Chicago, IL (Captain James A. Lovell)"]
["Jones,JANE449",111111559,"2021-06-17",null,"2021-06-03",240,"VAProcedure; JLV AdmParent: (V12) (556) North Chicago, IL HCS","ETINGEN,MARGARITA","GOLD 2",null,null,"(V12) (556) North Chicago, IL (Captain James A. Lovell)"]
["Jones,JANE450",111111560,"2021-06-17",null,"2021-06-03",240,"VAProcedure; JLV AdmParent: (V12) (556) North Chicago, IL HCS","JUIRIS,TAHIRA","WOMENS HEALTH 2 *WH* CLINIC",null,null,"(V12) (556) North Chicago, IL (Captain James A. Lovell)"]
["Jones,JANE451",111111561,"2021-06-22",null,null,null,"Gap Health Factor - Check Pt Details","CHAVEZ,LUIS A","BLUE 5","2022-01-31T11:00:00","(556) JAL PACT PC MD BLUE5","(V12) (556) North Chicago, IL (Captain James A. Lovell)"]
["Jones,JANE452",111111562,"2021-06-22",null,"2021-06-08",235,"VAProcedure; JLV AdmParent: (V12) (556) North Chicago, IL HCS","KIZHNER,JULIA","GREEN 3","2022-12-20T07:30:00","(556) JAL PACT PC PA GREEN3","(V12) (556) North Chicago, IL (Captain James A. Lovell)"]
["Jones,JANE453",111111563,"2021-06-23",null,"2021-06-09",234,"VAProcedure; JLV AdmParent: (V12) (556) North Chicago, IL HCS","SIAS,PATRICIA E","MC HENRY 5 CBOC","2022-02-17T10:00:00","(556GC) MCHENRY - PACT PC 5 MD","(V12) (556GC) McHenry, IL"]
["Jones,JANE454",111111564,"2021-06-24",null,"2021-06-10",233,"VAProcedure; JLV AdmParent: (V12) (556) North Chicago, IL HCS","ETINGEN,MARGARITA","GOLD 2","2022-08-25T09:00:00","(556) JAL PACT PC MD GOLD2","(V12) (556) North Chicago, IL (Captain James A. Lovell)"]
["Jones,JANE455",111111565,"2021-06-25","2021-02-24","2021-06-11",232,"VAProcedure; JLV AdmParent: (V12) (556) North Chicago, IL HCS","ETINGEN,MARGARITA","GOLD 2",null,null,"(V12) (556) North Chicago, IL (Captain James A. Lovell)"]
["Jones,JANE456",111111566,"2021-06-28",null,"2021-06-14",229,"VAProcedure; JLV AdmParent: (V12) (556) North Chicago, IL HCS","OOMMEN,SAJI","BLUE 1","2022-02-28T11:00:00","(556) JAL PACT PC MD BLUE1","(V12) (556) North Chicago, IL (Captain James A. Lovell)"]
["Jones,JANE457",111111567,"2021-06-28",null,"2021-06-14",229,"VAProcedure; JLV AdmParent: (V12) (556) North Chicago, IL HCS","SYEDA,SARA J","GOLD 3",null,null,"(V12) (556) North Chicago, IL (Captain James A. Lovell)"]
["Jones,JANE458",111111568,"2021-06-30",null,null,null,"Gap Health Factor - Check Pt Details","NANO,JOSEPH","MC HENRY 1 *WH* CBOC",null,null,"(V12) (556GC) McHenry, IL"]
["Jones,JANE459",111111569,"2021-06-30",null,null,null,"Gap Health Factor - Check Pt Details","NANO,JOSEPH","MC HENRY 1 *WH* CBOC",null,null,"(V12) (556GC) McHenry, IL"]
["Jones,JANE460",111111570,"2021-06-30",null,null,null,"Gap Health Factor - Check Pt Details","NANO,JOSEPH","MC HENRY 1 *WH* CBOC",null,null,"(V12) (556GC) McHenry, IL"]
["Jones,JANE461",111111571,"2021-07-01",null,"2021-06-17",226,"VAProcedure; JLV AdmParent: (V12) (556) North Chicago, IL HCS","SYEDA,SARA J","GOLD 3",null,null,"(V12) (556) North Chicago, IL (Captain James A. Lovell)"]
["Jones,JANE462",111111572,"2021-07-01",null,"2015-01-20",2566,"VAProcedure; JLV AdmParent: (V12) (556) North Chicago, IL HCS","CHAVEZ,LUIS A","BLUE 5","2022-06-14T10:30:00","(556) JAL PACT PC MD BLUE5","(V12) (556) North Chicago, IL (Captain James A. Lovell)"]
["Jones,JANE463",111111573,"2021-07-05",null,"2021-06-21",222,"VAProcedure; JLV AdmParent: (V12) (556) North Chicago, IL HCS","MOHAMMED,BAKHTIAR A","MC HENRY 2 CBOC",null,null,"(V12) (556GC) McHenry, IL"]
["Jones,JANE464",111111574,"2021-07-08",null,"2021-06-24",219,"VAProcedure; JLV AdmParent: (V12) (556) North Chicago, IL HCS","IFTIKHAR,SYEDA A MD","GREEN 5",null,null,"(V12) (556) North Chicago, IL (Captain James A. Lovell)"]
["Jones,JANE465",111111575,"2021-07-13",null,"2021-06-29",214,"VAProcedure; JLV AdmParent: (V12) (556) North Chicago, IL HCS","SYEDA,SARA J","GOLD 3","2022-01-31T08:00:00","(556) JAL PACT PC MD GOLD3 TELE","(V12) (556) North Chicago, IL (Captain James A. Lovell)"]
["Jones,JANE466",111111576,"2021-07-13",null,null,null,"Gap Health Factor - Check Pt Details","NANO,JOSEPH","MC HENRY 1 *WH* CBOC",null,null,"(V12) (556GC) McHenry, IL"]
["Jones,JANE467",111111577,"2021-07-14","2018-12-27","2021-06-30",213,"VAProcedure; JLV AdmParent: (V12) (556) North Chicago, IL HCS","OOMMEN,SAJI","BLUE 1",null,null,"(V12) (556) North Chicago, IL (Captain James A. Lovell)"]
["Jones,JANE468",111111578,"2021-07-14",null,"2021-06-30",213,"VAProcedure; JLV AdmParent: (V12) (556) North Chicago, IL HCS","HOLLOWAY,ALISON R MD","WOMENS HEALTH 1 *WH* CLINIC",null,null,"(V12) (556) North Chicago, IL (Captain James A. Lovell)"]
["Jones,JANE469",111111579,"2021-07-15",null,"2021-07-01",212,"VAProcedure; JLV AdmParent: (V12) (556) North Chicago, IL HCS","ROY,DEBJANI MD","GREEN 4",null,null,"(V12) (556) North Chicago, IL (Captain James A. Lovell)"]
["Jones,JANE470",111111580,"2021-07-16","2021-06-29","2021-07-02",211,"VAProcedure; JLV AdmParent: (V12) (556) North Chicago, IL HCS","ETINGEN,MARGARITA","GOLD 2",null,null,"(V12) (556) North Chicago, IL (Captain James A. Lovell)"]
["Jones,JANE471",111111581,"2021-07-20",null,"2021-07-06",207,"VAProcedure; JLV AdmParent: (V12) (556) North Chicago, IL HCS","COTTER,WILLIAM MD","GOLD 5",null,null,"(V12) (556) North Chicago, IL (Captain James A. Lovell)"]
["Jones,JANE472",111111582,"2021-07-20",null,null,null,"Gap Health Factor - Check Pt Details","NANO,JOSEPH","MC HENRY 1 *WH* CBOC",null,null,"(V12) (556GC) McHenry, IL"]
["Jones,JANE473",111111583,"2021-07-22",null,"2021-07-08",205,"VAProcedure; JLV AdmParent: (V12) (556) North Chicago, IL HCS","OOMMEN,SAJI","BLUE 1",null,null,"(V12) (556) North Chicago, IL (Captain James A. Lovell)"]
["Jones,JANE474",111111584,"2021-07-23",null,"2021-07-09",204,"VAProcedure; JLV AdmParent: (V12) (556) North Chicago, IL HCS","ETINGEN,MARGARITA","GOLD 2",null,null,"(V12) (556) North Chicago, IL (Captain James A. Lovell)"]
["Jones,JANE475",111111585,"2021-07-23",null,"2021-07-09",204,"VAProcedure; JLV AdmParent: (V12) (556) North Chicago, IL HCS","ROY,DEBJANI MD","GREEN 4",null,null,"(V12) (556) North Chicago, IL (Captain James A. Lovell)"]
["Jones,JANE476",111111586,"2021-07-27",null,"2020-09-30",486,"VAProcedure; JLV AdmParent: (V12) (578) Hines, IL HCS","CHAVEZ,LUIS A","BLUE 5","2022-06-23T08:30:00","(556) JAL PACT PC MD BLUE5","(V12) (556) North Chicago, IL (Captain James A. Lovell)"]
["Jones,JANE477",111111587,"2021-07-28",null,"2021-07-14",199,"VAProcedure; JLV AdmParent: (V12) (556) North Chicago, IL HCS","OOMMEN,SAJI","BLUE 1",null,null,"(V12) (556) North Chicago, IL (Captain James A. Lovell)"]
["Jones,JANE478",111111588,"2021-07-29",null,"2021-07-15",198,"VAProcedure; JLV AdmParent: (V12) (556) North Chicago, IL HCS","SMIRNOV,MICHAEL","GOLD 1",null,null,"(V12) (556) North Chicago, IL (Captain James A. Lovell)"]
["Jones,JANE479",111111589,"2021-08-03",null,null,null,"Gap Health Factor - Check Pt Details","ETINGEN,MARGARITA","GOLD 2","2022-02-09T13:30:00","(556) JAL PACT PHARM GOLD TELE2 ","(V12) (556) North Chicago, IL (Captain James A. Lovell)"]
["Jones,JANE480",111111590,"2021-08-04",null,null,null,"Gap Health Factor - Check Pt Details","FRANCISCO,RAMIL","GREEN 1",null,null,"(V12) (556) North Chicago, IL (Captain James A. Lovell)"]
["Jones,JANE481",111111591,"2021-08-05",null,"2021-07-22",191,"VAProcedure; JLV AdmParent: (V12) (556) North Chicago, IL HCS","ROY,DEBJANI MD","GREEN 4","2022-04-06T13:00:00","(556) JAL PACT PC MD GREEN4","(V12) (556) North Chicago, IL (Captain James A. Lovell)"]
["Jones,JANE482",111111592,"2021-08-05",null,null,null,"Gap Health Factor - Check Pt Details","JUIRIS,TAHIRA","WOMENS HEALTH 2 *WH* CLINIC","2022-04-08T11:00:00","(556) JAL PACT WH PC 2 MD","(V12) (556) North Chicago, IL (Captain James A. Lovell)"]
["Jones,JANE483",111111593,"2021-08-09",null,"2021-07-26",187,"VAProcedure; JLV AdmParent: (V12) (556) North Chicago, IL HCS","SYEDA,SARA J","GOLD 3",null,null,"(V12) (556) North Chicago, IL (Captain James A. Lovell)"]
["Jones,JANE484",111111594,"2021-08-10",null,"2021-07-27",186,"VAProcedure; JLV AdmParent: (V12) (556) North Chicago, IL HCS","HOLLOWAY,ALISON R MD","WOMENS HEALTH 1 *WH* CLINIC",null,null,"(V12) (556) North Chicago, IL (Captain James A. Lovell)"]
["Jones,JANE485",111111595,"2021-08-11","2021-08-10","2021-08-11",171,"VAProcedure; JLV AdmParent: (V12) (556) North Chicago, IL HCS","ROY,DEBJANI MD","GREEN 4",null,null,"(V12) (556) North Chicago, IL (Captain James A. Lovell)"]
["Jones,JANE486",111111596,"2021-08-12",null,"2021-07-29",184,"VAProcedure; JLV AdmParent: (V12) (556) North Chicago, IL HCS","IFTIKHAR,SYEDA A MD","GREEN 5","2022-05-27T07:30:00","(556) JAL PACT PC MD GREEN5","(V12) (556) North Chicago, IL (Captain James A. Lovell)"]
["Jones,JANE487",111111597,"2021-08-12",null,"2021-07-29",184,"VAProcedure; JLV AdmParent: (V12) (556) North Chicago, IL HCS","ROY,DEBJANI MD","GREEN 4",null,null,"(V12) (556) North Chicago, IL (Captain James A. Lovell)"]
["Jones,JANE488",111111598,"2021-08-13",null,"2021-07-30",183,"VAProcedure; JLV AdmParent: (V12) (556) North Chicago, IL HCS","OOMMEN,SAJI","BLUE 1",null,null,"(V12) (556) North Chicago, IL (Captain James A. Lovell)"]
["Jones,JANE489",111111599,"2021-08-14",null,null,null,"Gap Health Factor - Check Pt Details","BANJO,ADEOLA","MC HENRY 4 *WH* CBOC",null,null,"(V12) (556GC) McHenry, IL"]
["Jones,JANE490",111111600,"2021-08-16",null,"2021-08-02",180,"VAProcedure; JLV AdmParent: (V12) (556) North Chicago, IL HCS","HOLLOWAY,ALISON R MD","WOMENS HEALTH 1 *WH* CLINIC","2022-07-06T15:00:00","(556) JAL PACT WH PC 1 MD","(V12) (556) North Chicago, IL (Captain James A. Lovell)"]
["Jones,JANE491",111111601,"2021-08-16",null,"2021-08-02",180,"VAProcedure; JLV AdmParent: (V12) (556) North Chicago, IL HCS","IQBAL,FARZANA","EVANSTON 2 *WH* CBOC",null,null,"(V12) (556GA) Evanston, IL"]
["Jones,JANE492",111111602,"2021-08-17",null,"2021-08-03",179,"VAProcedure; JLV AdmParent: (V12) (556) North Chicago, IL HCS","HOLLOWAY,ALISON R MD","WOMENS HEALTH 1 *WH* CLINIC",null,null,"(V12) (556) North Chicago, IL (Captain James A. Lovell)"]
["Jones,JANE493",111111603,"2021-08-17",null,"2021-08-03",179,"VAProcedure; JLV AdmParent: (V12) (556) North Chicago, IL HCS","GANNU,RAJYALAKSHMI M","BLUE 6",null,null,"(V12) (556) North Chicago, IL (Captain James A. Lovell)"]
["Jones,JANE494",111111604,"2021-08-17",null,"2021-08-03",179,"VAProcedure; JLV AdmParent: (V12) (556) North Chicago, IL HCS","MOHAMMED,BAKHTIAR A","MC HENRY 2 CBOC",null,null,"(V12) (556GC) McHenry, IL"]
["Jones,JANE495",111111605,"2021-08-19",null,"2021-08-05",177,"VAProcedure; JLV AdmParent: (V12) (556) North Chicago, IL HCS","ETINGEN,MARGARITA","GOLD 2",null,null,"(V12) (556) North Chicago, IL (Captain James A. Lovell)"]
["Jones,JANE496",111111606,"2021-08-20",null,"2021-08-06",176,"VAProcedure; JLV AdmParent: (V12) (556) North Chicago, IL HCS","KIZHNER,JULIA","GREEN 3",null,null,"(V12) (556) North Chicago, IL (Captain James A. Lovell)"]
["Jones,JANE497",111111607,"2021-08-23",null,"2021-08-09",173,"VAProcedure; JLV AdmParent: (V12) (556) North Chicago, IL HCS","JUIRIS,TAHIRA","WOMENS HEALTH 2 *WH* CLINIC",null,null,"(V12) (556) North Chicago, IL (Captain James A. Lovell)"]
["Jones,JANE498",111111608,"2021-08-25",null,"2021-08-11",171,"VAProcedure; JLV AdmParent: (V12) (556) North Chicago, IL HCS","ETINGEN,MARGARITA","GOLD 2",null,null,"(V12) (556) North Chicago, IL (Captain James A. Lovell)"]
["Jones,JANE499",111111609,"2021-08-26",null,"2021-08-12",170,"VAProcedure; JLV AdmParent: (V12) (556) North Chicago, IL HCS","SIAS,PATRICIA E","MC HENRY 5 CBOC",null,null,"(V12) (556GC) McHenry, IL"]
["Jones,JANE500",111111610,"2021-08-26",null,null,null,"Gap Health Factor - Check Pt Details","NANO,JOSEPH","MC HENRY 1 *WH* CBOC",null,null,"(V12) (556GC) McHenry, IL"]
["Jones,JANE501",111111611,"2021-08-30","2021-02-03","2021-08-16",166,"VAProcedure; JLV AdmParent: (V12) (556) North Chicago, IL HCS","GANNU,RAJYALAKSHMI M","BLUE 6","2022-02-10T10:30:00","(556) JAL PACT PHARM GOLD TELE2 ","(V12) (556) North Chicago, IL (Captain James A. Lovell)"]
["Jones,JANE502",111111612,"2021-08-31","2021-07-30","2021-08-17",165,"VAProcedure; JLV AdmParent: (V12) (695) Milwaukee, WI HCS","COTTER,WILLIAM MD","GOLD 5",null,null,"(V12) (556) North Chicago, IL (Captain James A. Lovell)"]
["Jones,JANE503",111111613,"2021-09-03",null,"2021-08-20",162,"VAProcedure; JLV AdmParent: (V12) (556) North Chicago, IL HCS","HOLLOWAY,ALISON R MD","WOMENS HEALTH 1 *WH* CLINIC",null,null,"(V12) (556) North Chicago, IL (Captain James A. Lovell)"]
["Jones,JANE504",111111614,"2021-09-03",null,"2021-08-20",162,"VAProcedure; JLV AdmParent: (V12) (556) North Chicago, IL HCS","HOLLOWAY,ALISON R MD","WOMENS HEALTH 1 *WH* CLINIC",null,null,"(V12) (556) North Chicago, IL (Captain James A. Lovell)"]
["Jones,JANE505",111111615,"2021-09-03",null,"2021-08-20",162,"VAProcedure; JLV AdmParent: (V12) (556) North Chicago, IL HCS","SYEDA,SARA J","GOLD 3",null,null,"(V12) (556) North Chicago, IL (Captain James A. Lovell)"]
["Jones,JANE506",111111616,"2021-09-08",null,"2021-08-25",157,"VAProcedure; JLV AdmParent: (V12) (556) North Chicago, IL HCS","BANJO,ADEOLA","MC HENRY 4 *WH* CBOC",null,null,"(V12) (556GC) McHenry, IL"]
["Jones,JANE507",111111617,"2021-09-09",null,"2021-08-26",156,"VAProcedure; JLV AdmParent: (V12) (556) North Chicago, IL HCS","MOHAMMED,BAKHTIAR A","MC HENRY 2 CBOC",null,null,"(V12) (556GC) McHenry, IL"]
["Jones,JANE508",111111618,"2021-09-10",null,null,null,"Gap Health Factor - Check Pt Details","BANJO,ADEOLA","MC HENRY 4 *WH* CBOC","2022-02-02T14:30:00","(534GB) MYB PACT 05 MD","(V12) (556GC) McHenry, IL"]
["Jones,JANE509",111111619,"2021-09-13",null,"2021-08-30",152,"VAProcedure; JLV AdmParent: (V12) (556) North Chicago, IL HCS","IQBAL,FARZANA","EVANSTON 2 *WH* CBOC",null,null,"(V12) (556GA) Evanston, IL"]
["Jones,JANE510",111111620,"2021-09-16",null,"2021-09-02",149,"VAProcedure; JLV AdmParent: (V12) (556) North Chicago, IL HCS","OOMMEN,SAJI","BLUE 1","2022-02-28T14:00:00","(556) JAL PACT PC MD BLUE1","(V12) (556) North Chicago, IL (Captain James A. Lovell)"]
["Jones,JANE511",111111621,"2021-09-16",null,"2021-09-02",149,"VAProcedure; JLV AdmParent: (V12) (556) North Chicago, IL HCS","ETINGEN,MARGARITA","GOLD 2","2022-06-30T08:00:00","(556) JAL PACT PC MD GOLD2","(V12) (556) North Chicago, IL (Captain James A. Lovell)"]
["Jones,JANE512",111111622,"2021-09-22",null,"2021-09-08",143,"VAProcedure; JLV AdmParent: (V12) (556) North Chicago, IL HCS","HOLLOWAY,ALISON R MD","WOMENS HEALTH 1 *WH* CLINIC",null,null,"(V12) (556) North Chicago, IL (Captain James A. Lovell)"]
["Jones,JANE513",111111623,"2021-09-24",null,"2021-09-10",141,"VAProcedure; JLV AdmParent: (V12) (556) North Chicago, IL HCS","HOLLOWAY,ALISON R MD","WOMENS HEALTH 1 *WH* CLINIC",null,null,"(V12) (556) North Chicago, IL (Captain James A. Lovell)"]
["Jones,JANE514",111111624,"2021-09-27","2021-09-10","2021-09-13",138,"VAProcedure; JLV AdmParent: (V12) (556) North Chicago, IL HCS","LAYUG,ANNA","GREEN 6","2022-03-03T10:00:00","(556) JAL PACT PHARM GREEN","(V12) (556) North Chicago, IL (Captain James A. Lovell)"]
["Jones,JANE515",111111625,"2021-09-27",null,"2021-09-13",138,"VAProcedure; JLV AdmParent: (V12) (556) North Chicago, IL HCS","ROY,DEBJANI MD","GREEN 4",null,null,"(V12) (556) North Chicago, IL (Captain James A. Lovell)"]
["Jones,JANE516",111111626,"2021-09-29",null,"2008-06-09",4982,"VAProcedure; JLV AdmParent: (V12) (556) North Chicago, IL HCS","LAYUG,ANNA","SPINAL CORD INJURY *SCI*","2022-02-18T14:45:00","(556) JAL PACT PC RD TELE","(V12) (556) North Chicago, IL (Captain James A. Lovell)"]
["Jones,JANE517",111111627,"2021-10-01",null,null,null,"Gap Health Factor - Check Pt Details","BANJO,ADEOLA","MC HENRY 4 *WH* CBOC","2022-03-24T13:00:00","(556GC) MCHENRY - PACT PC 4 MD","(V12) (556GC) McHenry, IL"]
["Jones,JANE518",111111628,"2021-10-05",null,"2021-09-21",130,"VAProcedure; JLV AdmParent: (V12) (556) North Chicago, IL HCS","MOHAMMED,BAKHTIAR A","MC HENRY 2 CBOC",null,null,"(V12) (556GC) McHenry, IL"]
["Jones,JANE519",111111629,"2021-10-06",null,"2021-09-22",129,"VAProcedure; JLV AdmParent: (V12) (556) North Chicago, IL HCS","SYEDA,SARA J","GOLD 3","2022-03-21T15:00:00","(590) HAM PACT TEAM06","(V12) (556) North Chicago, IL (Captain James A. Lovell)"]
["Jones,JANE520",111111630,"2021-10-07",null,"2021-09-23",128,"VAProcedure; JLV AdmParent: (V12) (556) North Chicago, IL HCS","JUIRIS,TAHIRA","WOMENS HEALTH 2 *WH* CLINIC",null,null,"(V12) (556) North Chicago, IL (Captain James A. Lovell)"]
["Jones,JANE521",111111631,"2021-10-11",null,"2021-09-27",124,"VAProcedure; JLV AdmParent: (V12) (556) North Chicago, IL HCS","MOHAMMED,BAKHTIAR A","MC HENRY 2 CBOC","2022-02-02T10:00:00","(556) IMMUNIZATION 133EF VET","(V12) (556GC) McHenry, IL"]
["Jones,JANE522",111111632,"2021-10-11",null,null,null,"Gap Health Factor - Check Pt Details","BANJO,ADEOLA","MC HENRY 4 *WH* CBOC",null,null,"(V12) (556GC) McHenry, IL"]
["Jones,JANE523",111111633,"2021-10-13","2021-07-02","2021-09-29",122,"VAProcedure; JLV AdmParent: (V12) (556) North Chicago, IL HCS","ROY,DEBJANI MD","GREEN 4",null,null,"(V12) (556) North Chicago, IL (Captain James A. Lovell)"]
["Jones,JANE524",111111634,"2021-10-14",null,"2021-09-30",121,"VAProcedure; JLV AdmParent: (V12) (556) North Chicago, IL HCS","COTTER,WILLIAM MD","GOLD 5","2022-07-28T10:00:00","(578) HIN SCI ANNUAL EVALUATION 2","(V12) (556) North Chicago, IL (Captain James A. Lovell)"]
["Jones,JANE525",111111635,"2021-10-14","2021-07-04","2021-09-30",121,"VAProcedure; JLV AdmParent: (V12) (556) North Chicago, IL HCS","SYEDA,SARA J","GOLD 3",null,null,"(V12) (556) North Chicago, IL (Captain James A. Lovell)"]
["Jones,JANE526",111111636,"2021-10-14",null,"2021-09-30",121,"VAProcedure; JLV AdmParent: (V12) (556) North Chicago, IL HCS","KIZHNER,JULIA","GREEN 3",null,null,"(V12) (556) North Chicago, IL (Captain James A. Lovell)"]
["Jones,JANE527",111111637,"2021-10-15",null,"2021-10-01",120,"VAProcedure; JLV AdmParent: (V12) (556) North Chicago, IL HCS","KIZHNER,JULIA","GREEN 3","2022-03-29T09:00:00","(556) JAL PACT PC MD BLUE6","(V12) (556) North Chicago, IL (Captain James A. Lovell)"]
["Jones,JANE528",111111638,"2021-10-15",null,null,null,"Gap Health Factor - Check Pt Details","ZAKARIYA,HOSAM Y","BLUE 2",null,null,"(V12) (556) North Chicago, IL (Captain James A. Lovell)"]
["Jones,JANE529",111111639,"2021-10-15",null,"2021-10-01",120,"VAProcedure; JLV AdmParent: (V12) (556) North Chicago, IL HCS","JUIRIS,TAHIRA","WOMENS HEALTH 2 *WH* CLINIC",null,null,"(V12) (556) North Chicago, IL (Captain James A. Lovell)"]
["Jones,JANE530",111111640,"2021-10-18",null,null,null,"Gap Health Factor - Check Pt Details","NANO,JOSEPH","MC HENRY 1 *WH* CBOC",null,null,"(V12) (556GC) McHenry, IL"]
["Jones,JANE531",111111641,"2021-10-19","2020-09-10","2021-10-05",116,"VAProcedure; JLV AdmParent: (V12) (556) North Chicago, IL HCS","SYEDA,SARA J","GOLD 3",null,null,"(V12) (556) North Chicago, IL (Captain James A. Lovell)"]
["Jones,JANE532",111111642,"2021-10-19",null,"2021-10-05",116,"VAProcedure; JLV AdmParent: (V12) (556) North Chicago, IL HCS","SYEDA,SARA J","GOLD 3",null,null,"(V12) (556) North Chicago, IL (Captain James A. Lovell)"]
["Jones,JANE533",111111643,"2021-10-19",null,"2021-04-15",289,"VAProcedure; JLV AdmParent: (V12) (556) North Chicago, IL HCS","ROY,DEBJANI MD","GREEN 4",null,null,"(V12) (556) North Chicago, IL (Captain James A. Lovell)"]
["Jones,JANE534",111111644,"2021-10-20",null,"2021-10-06",115,"VAProcedure; JLV AdmParent: (V12) (556) North Chicago, IL HCS","JUIRIS,TAHIRA","WOMENS HEALTH 2 *WH* CLINIC",null,null,"(V12) (556) North Chicago, IL (Captain James A. Lovell)"]
["Jones,JANE535",111111645,"2021-10-20",null,"2021-10-06",115,"VAProcedure; JLV AdmParent: (V12) (556) North Chicago, IL HCS","ROY,DEBJANI MD","GREEN 4","2022-05-02T08:00:00","(556) JAL PACT PC MD GREEN4","(V12) (556) North Chicago, IL (Captain James A. Lovell)"]
["Jones,JANE536",111111646,"2021-10-20",null,null,null,"Gap Health Factor - Check Pt Details","BANJO,ADEOLA","MC HENRY 4 *WH* CBOC",null,null,"(V12) (556GC) McHenry, IL"]
["Jones,JANE537",111111647,"2021-10-21",null,"2021-10-07",114,"VAProcedure; JLV AdmParent: (V12) (556) North Chicago, IL HCS","KIZHNER,JULIA","GREEN 3","2022-07-12T09:00:00","(556) JAL PACT PC PA GREEN3","(V12) (556) North Chicago, IL (Captain James A. Lovell)"]
["Jones,JANE538",111111648,"2021-10-21",null,"2021-10-07",114,"VAProcedure; JLV AdmParent: (V12) (556) North Chicago, IL HCS","GANNU,RAJYALAKSHMI M","BLUE 6","2022-05-18T13:00:00","(556) JAL PACT PC MD GOLD2","(V12) (556) North Chicago, IL (Captain James A. Lovell)"]
["Jones,JANE539",111111649,"2021-10-26",null,"2021-10-12",109,"VAProcedure; JLV AdmParent: (V12) (556) North Chicago, IL HCS","SYEDA,SARA J","GOLD 3",null,null,"(V12) (556) North Chicago, IL (Captain James A. Lovell)"]
["Jones,JANE540",111111650,"2021-10-28",null,"2021-10-14",107,"VAProcedure; JLV AdmParent: (V12) (556) North Chicago, IL HCS","ROY,DEBJANI MD","GREEN 4",null,null,"(V12) (556) North Chicago, IL (Captain James A. Lovell)"]
["Jones,JANE541",111111651,"2021-10-28",null,"2021-10-14",107,"VAProcedure; JLV AdmParent: (V12) (556) North Chicago, IL HCS","SMIRNOV,MICHAEL","GOLD 1",null,null,"(V12) (556) North Chicago, IL (Captain James A. Lovell)"]
["Jones,JANE542",111111652,"2021-11-01",null,"2021-10-18",103,"VAProcedure; JLV AdmParent: (V12) (556) North Chicago, IL HCS","OOMMEN,SAJI","BLUE 1","2022-07-11T11:00:00","(556) JAL PACT PC MD BLUE1","(V12) (556) North Chicago, IL (Captain James A. Lovell)"]
["Jones,JANE543",111111653,"2021-11-01",null,"2021-10-18",103,"VAProcedure; JLV AdmParent: (V12) (556) North Chicago, IL HCS","GANNU,RAJYALAKSHMI M","BLUE 6",null,null,"(V12) (556) North Chicago, IL (Captain James A. Lovell)"]
["Jones,JANE544",111111654,"2021-11-01",null,null,null,"Gap Health Factor - Check Pt Details","NANO,JOSEPH","MC HENRY 1 *WH* CBOC",null,null,"(V12) (556GC) McHenry, IL"]
["Jones,JANE545",111111655,"2021-11-02","2021-10-14","2021-10-19",102,"VAProcedure; JLV AdmParent: (V12) (556) North Chicago, IL HCS","COTTER,WILLIAM MD","GOLD 5",null,null,"(V12) (556) North Chicago, IL (Captain James A. Lovell)"]
["Jones,JANE546",111111656,"2021-11-02",null,null,null,"Gap Health Factor - Check Pt Details","CHAVEZ,LUIS A","BLUE 5","2022-02-01T08:00:00","(556) JAL PACT PC MD BLUE5","(V12) (556) North Chicago, IL (Captain James A. Lovell)"]
["Jones,JANE547",111111657,"2021-11-04",null,"2021-10-21",100,"VAProcedure; JLV AdmParent: (V12) (556) North Chicago, IL HCS","ZAKARIYA,HOSAM Y","BLUE 2",null,null,"(V12) (556) North Chicago, IL (Captain James A. Lovell)"]
["Jones,JANE548",111111658,"2021-11-04",null,"2021-10-21",100,"VAProcedure; JLV AdmParent: (V12) (556) North Chicago, IL HCS","SIAS,PATRICIA E","MC HENRY 5 CBOC",null,null,"(V12) (556GC) McHenry, IL"]
["Jones,JANE549",111111659,"2021-11-10",null,"2021-10-27",94,"VAProcedure; JLV AdmParent: (V12) (556) North Chicago, IL HCS","OOMMEN,SAJI","BLUE 1",null,null,"(V12) (556) North Chicago, IL (Captain James A. Lovell)"]
["Jones,JANE550",111111660,"2021-11-10",null,null,null,"Gap Health Factor - Check Pt Details","FRANCISCO,RAMIL","GREEN 1",null,null,"(V12) (556) North Chicago, IL (Captain James A. Lovell)"]
["Jones,JANE551",111111661,"2021-11-10","2021-10-26","2021-10-27",94,"VAProcedure; JLV AdmParent: (V12) (556) North Chicago, IL HCS","KIZHNER,JULIA","GREEN 3","2022-04-22T10:00:00","(556) JAL PACT PC PA GREEN3","(V12) (556) North Chicago, IL (Captain James A. Lovell)"]
["Jones,JANE552",111111662,"2021-11-10",null,null,null,"Gap Health Factor - Check Pt Details","NANO,JOSEPH","MC HENRY 1 *WH* CBOC",null,null,"(V12) (556GC) McHenry, IL"]
["Jones,JANE553",111111663,"2021-11-10",null,"2018-07-09",1300,"VAProcedure; JLV AdmParent: (V12) (556) North Chicago, IL HCS","NANO,JOSEPH","MC HENRY 1 *WH* CBOC",null,null,"(V12) (556GC) McHenry, IL"]
["Jones,JANE554",111111664,"2021-11-11",null,"2021-10-28",93,"VAProcedure; JLV AdmParent: (V12) (556) North Chicago, IL HCS","SMIRNOV,MICHAEL","GOLD 1","2022-07-11T08:00:00","(556) JAL PACT PC MD GOLD1","(V12) (556) North Chicago, IL (Captain James A. Lovell)"]
["Jones,JANE555",111111665,"2021-11-12",null,"2014-02-06",2914,"VAProcedure; JLV AdmParent: (V12) (556) North Chicago, IL HCS","RAVIPATI,MAMATA MD","GOLD 4","2022-03-29T10:00:00","(556) JAL PACT PC MD GOLD4","(V12) (556) North Chicago, IL (Captain James A. Lovell)"]
["Jones,JANE556",111111666,"2021-11-15",null,"2021-11-01",89,"VAProcedure; JLV AdmParent: (V12) (556) North Chicago, IL HCS","SYEDA,SARA J","GOLD 3",null,null,"(V12) (556) North Chicago, IL (Captain James A. Lovell)"]
["Jones,JANE557",111111667,"2021-11-15",null,"2021-11-01",89,"VAProcedure; JLV AdmParent: (V12) (556) North Chicago, IL HCS","FRANCISCO,RAMIL","GREEN 1","2022-01-28T09:00:00","(556) JAL PACT PC MD GREEN1","(V12) (556) North Chicago, IL (Captain James A. Lovell)"]
["Jones,JANE558",111111668,"2021-11-17",null,null,null,"Gap Health Factor - Check Pt Details","NANO,JOSEPH","MC HENRY 1 *WH* CBOC",null,null,"(V12) (556GC) McHenry, IL"]
["Jones,JANE559",111111669,"2021-11-18",null,"2021-11-04",86,"VAProcedure; JLV AdmParent: (V12) (556) North Chicago, IL HCS","ROY,DEBJANI MD","GREEN 4",null,null,"(V12) (556) North Chicago, IL (Captain James A. Lovell)"]
["Jones,JANE560",111111670,"2021-11-18",null,"2021-11-04",86,"VAProcedure; JLV AdmParent: (V12) (556) North Chicago, IL HCS","SYEDA,SARA J","GOLD 3",null,null,"(V12) (556) North Chicago, IL (Captain James A. Lovell)"]
["Jones,JANE561",111111671,"2021-11-18",null,"2021-11-04",86,"VAProcedure; JLV AdmParent: (V12) (556) North Chicago, IL HCS","OOMMEN,SAJI","BLUE 1","2022-02-14T10:00:00","(556) JAL PACT PC MD BLUE1","(V12) (556) North Chicago, IL (Captain James A. Lovell)"]
["Jones,JANE562",111111672,"2021-11-19","2021-11-02","2021-11-05",85,"VAProcedure; JLV AdmParent: (V12) (556) North Chicago, IL HCS","SYEDA,SARA J","GOLD 3",null,null,"(V12) (556) North Chicago, IL (Captain James A. Lovell)"]
["Jones,JANE563",111111673,"2021-11-19",null,null,null,"Gap Health Factor - Check Pt Details","FRANCISCO,RAMIL","GREEN 1","2022-03-07T14:00:00","(556) JAL PACT PHARM GREEN TELE2","(V12) (556) North Chicago, IL (Captain James A. Lovell)"]
["Jones,JANE564",111111674,"2021-11-22",null,"2021-11-08",82,"VAProcedure; JLV AdmParent: (V12) (556) North Chicago, IL HCS","HOLLOWAY,ALISON R MD","WOMENS HEALTH 1 *WH* CLINIC",null,null,"(V12) (556) North Chicago, IL (Captain James A. Lovell)"]
["Jones,JANE565",111111675,"2021-11-22","2021-11-07","2021-11-08",82,"VAProcedure; JLV AdmParent: (V12) (556) North Chicago, IL HCS","SMIRNOV,MICHAEL","GOLD 1",null,null,"(V12) (556) North Chicago, IL (Captain James A. Lovell)"]
["Jones,JANE566",111111676,"2021-11-22",null,"2021-11-08",82,"VAProcedure; JLV AdmParent: (V12) (556) North Chicago, IL HCS","NANO,JOSEPH","MC HENRY 1 *WH* CBOC",null,null,"(V12) (556GC) McHenry, IL"]
["Jones,JANE567",111111677,"2021-11-23",null,null,null,"Gap Health Factor - Check Pt Details","SIAS,PATRICIA E","MC HENRY 5 CBOC",null,null,"(V12) (556GC) McHenry, IL"]
["Jones,JANE568",111111678,"2021-11-24",null,"2021-11-10",80,"VAProcedure; JLV AdmParent: (V12) (556) North Chicago, IL HCS","MOHAMMED,BAKHTIAR A","MC HENRY 2 CBOC","2022-02-01T13:15:00","(556GC) MCHENRY - PACT PC 2 MD PHONE","(V12) (556GC) McHenry, IL"]
["Jones,JANE569",111111679,"2021-11-29","2021-07-02","2021-11-15",75,"VAProcedure; JLV AdmParent: (V12) (556) North Chicago, IL HCS","ROY,DEBJANI MD","GREEN 4",null,null,"(V12) (556) North Chicago, IL (Captain James A. Lovell)"]
["Jones,JANE570",111111680,"2021-12-01",null,"2016-09-15",1962,"VAProcedure; JLV AdmParent: (V12) (556) North Chicago, IL HCS","ZAKARIYA,HOSAM Y","BLUE 2",null,null,"(V12) (556) North Chicago, IL (Captain James A. Lovell)"]
["Jones,JANE571",111111681,"2021-12-01",null,"2021-11-17",73,"VAProcedure; JLV AdmParent: (V12) (556) North Chicago, IL HCS","SMIRNOV,MICHAEL","GOLD 1","2022-05-09T08:00:00","(556) JAL PACT PC MD GOLD1","(V12) (556) North Chicago, IL (Captain James A. Lovell)"]
["Jones,JANE572",111111682,"2021-12-01",null,"2021-11-17",73,"VAProcedure; JLV AdmParent: (V12) (556) North Chicago, IL HCS","KIZHNER,JULIA","GREEN 3",null,null,"(V12) (556) North Chicago, IL (Captain James A. Lovell)"]
["Jones,JANE573",111111683,"2021-12-01","2021-10-04","2021-11-17",73,"VAProcedure; JLV AdmParent: (V12) (556) North Chicago, IL HCS","SMIRNOV,MICHAEL","GOLD 1",null,null,"(V12) (556) North Chicago, IL (Captain James A. Lovell)"]
["Jones,JANE574",111111684,"2021-12-01",null,null,null,"Gap Health Factor - Check Pt Details","NANO,JOSEPH","MC HENRY 1 *WH* CBOC",null,null,"(V12) (556GC) McHenry, IL"]
["Jones,JANE575",111111685,"2021-12-02",null,"2021-11-18",72,"VAProcedure; JLV AdmParent: (V12) (556) North Chicago, IL HCS","HOLLOWAY,ALISON R MD","WOMENS HEALTH 1 *WH* CLINIC",null,null,"(V12) (556) North Chicago, IL (Captain James A. Lovell)"]
["Jones,JANE576",111111686,"2021-12-02",null,"2021-11-18",72,"VAProcedure; JLV AdmParent: (V12) (556) North Chicago, IL HCS","KIZHNER,JULIA","GREEN 3","2022-05-19T09:00:00","(556) JAL PACT PC PA GREEN3","(V12) (556) North Chicago, IL (Captain James A. Lovell)"]
["Jones,JANE577",111111687,"2021-12-02",null,"2021-11-18",72,"VAProcedure; JLV AdmParent: (V12) (556) North Chicago, IL HCS","ETINGEN,MARGARITA","GOLD 2","2022-05-31T10:00:00","(556) JAL PACT PC MD GOLD2","(V12) (556) North Chicago, IL (Captain James A. Lovell)"]
["Jones,JANE578",111111688,"2021-12-02",null,"2021-11-18",72,"VAProcedure; JLV AdmParent: (V12) (556) North Chicago, IL HCS","MOHAMMED,BAKHTIAR A","MC HENRY 2 CBOC",null,null,"(V12) (556GC) McHenry, IL"]
["Jones,JANE579",111111689,"2021-12-03",null,"2021-11-19",71,"VAProcedure; JLV AdmParent: (V12) (556) North Chicago, IL HCS","SIAS,PATRICIA E","MC HENRY 5 CBOC",null,null,"(V12) (556GC) McHenry, IL"]
["Jones,JANE580",111111690,"2021-12-06",null,"2021-11-22",68,"VAProcedure; JLV AdmParent: (V12) (556) North Chicago, IL HCS","ETINGEN,MARGARITA","GOLD 2",null,null,"(V12) (556) North Chicago, IL (Captain James A. Lovell)"]
["Jones,JANE581",111111691,"2021-12-06","2021-06-09","2021-11-22",68,"VAProcedure; JLV AdmParent: (V12) (556) North Chicago, IL HCS","NANO,JOSEPH","MC HENRY 1 *WH* CBOC",null,null,"(V12) (556GC) McHenry, IL"]
["Jones,JANE582",111111692,"2021-12-07",null,"2021-11-23",67,"VAProcedure; JLV AdmParent: (V12) (556) North Chicago, IL HCS","SYEDA,SARA J","GOLD 3",null,null,"(V12) (556) North Chicago, IL (Captain James A. Lovell)"]
["Jones,JANE583",111111693,"2021-12-07",null,"2021-11-23",67,"VAProcedure; JLV AdmParent: (V12) (556) North Chicago, IL HCS","SMIRNOV,MICHAEL","GOLD 1",null,null,"(V12) (556) North Chicago, IL (Captain James A. Lovell)"]
["Jones,JANE584",111111694,"2021-12-07",null,null,null,"Gap Health Factor - Check Pt Details","ETINGEN,MARGARITA","GOLD 2","2022-03-07T09:00:00","(556) JAL PACT PC MD GOLD5","(V12) (556) North Chicago, IL (Captain James A. Lovell)"]
["Jones,JANE585",111111695,"2021-12-08",null,"2021-11-24",66,"VAProcedure; JLV AdmParent: (V12) (556) North Chicago, IL HCS","CHAVEZ,LUIS A","BLUE 5",null,null,"(V12) (556) North Chicago, IL (Captain James A. Lovell)"]
["Jones,JANE586",111111696,"2021-12-08",null,"2021-11-24",66,"VAProcedure; JLV AdmParent: (V12) (556) North Chicago, IL HCS","SMIRNOV,MICHAEL","GOLD 1",null,null,"(V12) (556) North Chicago, IL (Captain James A. Lovell)"]
["Jones,JANE587",111111697,"2021-12-08",null,"2021-11-24",66,"VAProcedure; JLV AdmParent: (V12) (556) North Chicago, IL HCS","SIAS,PATRICIA E","MC HENRY 5 CBOC",null,null,"(V12) (556GC) McHenry, IL"]
["Jones,JANE588",111111698,"2021-12-13",null,null,null,"Gap Health Factor - Check Pt Details","FRANCISCO,RAMIL","GREEN 1","2022-03-01T09:30:00","(556) JAL PACT PC MD GREEN1","(V12) (556) North Chicago, IL (Captain James A. Lovell)"]
["Jones,JANE589",111111699,"2021-12-13",null,"2021-11-29",61,"VAProcedure; JLV AdmParent: (V12) (556) North Chicago, IL HCS","NANO,JOSEPH","MC HENRY 1 *WH* CBOC",null,null,"(V12) (556GC) McHenry, IL"]
["Jones,JANE590",111111700,"2021-12-13","2020-05-06","2021-11-29",61,"VAProcedure; JLV AdmParent: (V12) (556) North Chicago, IL HCS","BANJO,ADEOLA","MC HENRY 4 *WH* CBOC",null,null,"(V12) (556GC) McHenry, IL"]
["Jones,JANE591",111111701,"2021-12-14",null,"2021-11-30",60,"VAProcedure; JLV AdmParent: (V12) (556) North Chicago, IL HCS","SYEDA,SARA J","GOLD 3",null,null,"(V12) (556) North Chicago, IL (Captain James A. Lovell)"]
["Jones,JANE592",111111702,"2021-12-14","2021-08-26","2021-11-30",60,"VAProcedure; JLV AdmParent: (V12) (556) North Chicago, IL HCS","SIAS,PATRICIA E","MC HENRY 5 CBOC",null,null,"(V12) (556GC) McHenry, IL"]
["Jones,JANE593",111111703,"2021-12-20",null,"2011-11-10",3733,"VAProcedure; JLV AdmParent: (V12) (556) North Chicago, IL HCS","COTTER,WILLIAM MD","GOLD 5","2022-02-02T10:00:00","(556) JAL PACT PC MHI SW","(V12) (556) North Chicago, IL (Captain James A. Lovell)"]
["Jones,JANE594",111111704,"2021-12-20","2021-10-01","2021-12-06",54,"VAProcedure; JLV AdmParent: (V12) (556) North Chicago, IL HCS","ETINGEN,MARGARITA","GOLD 2",null,null,"(V12) (556) North Chicago, IL (Captain James A. Lovell)"]
["Jones,JANE595",111111705,"2021-12-21",null,"2021-12-07",53,"VAProcedure; JLV AdmParent: (V12) (556) North Chicago, IL HCS","CHAVEZ,LUIS A","BLUE 5","2022-04-15T08:00:00","(556) JAL PACT PC MD BLUE5","(V12) (556) North Chicago, IL (Captain James A. Lovell)"]
["Jones,JANE596",111111706,"2021-12-21",null,"2021-12-07",53,"VAProcedure; JLV AdmParent: (V12) (556) North Chicago, IL HCS","CHAVEZ,LUIS A","BLUE 5","2022-02-01T08:30:00","(556) JAL PACT PC MD BLUE5","(V12) (556) North Chicago, IL (Captain James A. Lovell)"]
["Jones,JANE597",111111707,"2021-12-23",null,"2021-12-09",51,"VAProcedure; JLV AdmParent: (V12) (556) North Chicago, IL HCS","ETINGEN,MARGARITA","GOLD 2",null,null,"(V12) (556) North Chicago, IL (Captain James A. Lovell)"]
["Jones,JANE598",111111708,"2021-12-23",null,"2021-12-09",51,"VAProcedure; JLV AdmParent: (V12) (556) North Chicago, IL HCS","MIRZA,SHAZIA","KENOSHA 1 *WH* CBOC",null,null,"(V12) (556GD) Kenosha, WI"]
["Jones,JANE599",111111709,"2021-12-24",null,"2021-12-10",50,"VAProcedure; JLV AdmParent: (V12) (556) North Chicago, IL HCS","BANJO,ADEOLA","MC HENRY 4 *WH* CBOC",null,null,"(V12) (556GC) McHenry, IL"]
["Jones,JANE600",111111710,"2021-12-28",null,null,null,"Gap Health Factor - Check Pt Details","SIAS,PATRICIA E","MC HENRY 5 CBOC",null,null,"(V12) (556GC) McHenry, IL"]
["Jones,JANE601",111111711,"2021-12-28",null,"2021-12-14",46,"VAProcedure; JLV AdmParent: (V12) (556) North Chicago, IL HCS","NANO,JOSEPH","MC HENRY 1 *WH* CBOC",null,null,"(V12) (556GC) McHenry, IL"]
["Jones,JANE602",111111712,"2021-12-30",null,"2021-12-16",44,"VAProcedure; JLV AdmParent: (V12) (556) North Chicago, IL HCS","HOLLANT,GLADYS","KENOSHA 2 *WH* CBOC","2022-05-09T14:15:00","(556GD) KENOSHA - PACT PC 2 R2","(V12) (556GD) Kenosha, WI"]
["Jones,JANE603",111111713,"2022-01-01",null,null,null,"Gap Health Factor - Check Pt Details","NANO,JOSEPH","MC HENRY 1 *WH* CBOC",null,null,"(V12) (556GC) McHenry, IL"]
["Jones,JANE604",111111714,"2022-01-03",null,null,null,"Gap Health Factor - Check Pt Details","MIRZA,SHAZIA","KENOSHA 1 *WH* CBOC","2022-09-20T13:00:00","(556GD) KENOSHA - PACT PC 1 R1","(V12) (556GD) Kenosha, WI"]
["Jones,JANE605",111111715,"2022-01-03",null,"2015-10-21",2292,"VAProcedure; JLV AdmParent: (V12) (556) North Chicago, IL HCS","MIRZA,SHAZIA","KENOSHA 1 *WH* CBOC","2022-06-02T10:15:00","(556GD) KENOSHA - PACT PC 1 R2","(V12) (556GD) Kenosha, WI"]
["Jones,JANE606",111111716,"2022-01-03",null,"2019-04-23",1012,"VAProcedure; JLV AdmParent: (V12) (556) North Chicago, IL HCS","MIRZA,SHAZIA","KENOSHA 1 *WH* CBOC","2022-03-08T08:00:00","(556GD) KENOSHA - PACT PC 1 R1","(V12) (556GD) Kenosha, WI"]
["Jones,JANE607",111111717,"2022-01-03","2017-11-04","2016-06-16",2053,"VAProcedure; JLV AdmParent: (V12) (556) North Chicago, IL HCS","HOLLANT,GLADYS","KENOSHA 2 *WH* CBOC","2022-02-09T09:15:00","(556GD) KENOSHA - PACT PC 2 R2","(V12) (556GD) Kenosha, WI"]
["Jones,JANE608",111111718,"2022-01-04",null,"2021-12-21",39,"VAProcedure; JLV AdmParent: (V12) (556) North Chicago, IL HCS","COTTER,WILLIAM MD","GOLD 5","2022-05-09T11:30:00","(556) JAL PACT PC MD GOLD5","(V12) (556) North Chicago, IL (Captain James A. Lovell)"]
["Jones,JANE609",111111719,"2022-01-04",null,"2021-12-21",39,"VAProcedure; JLV AdmParent: (V12) (556) North Chicago, IL HCS","SYEDA,SARA J","GOLD 3","2022-04-20T13:00:00","(556) JAL PACT PC MD GOLD3","(V12) (556) North Chicago, IL (Captain James A. Lovell)"]
["Jones,JANE610",111111720,"2022-01-05",null,null,null,"Gap Health Factor - Check Pt Details","HOLLOWAY,ALISON R MD","WOMENS HEALTH 1 *WH* CLINIC","2022-02-08T10:30:00","(556) JAL PACT PC RD TELE","(V12) (556) North Chicago, IL (Captain James A. Lovell)"]
["Jones,JANE611",111111721,"2022-01-10",null,"2021-12-27",33,"VAProcedure; JLV AdmParent: (V12) (556) North Chicago, IL HCS","OOMMEN,SAJI","BLUE 1","2022-02-23T11:00:00","(556) JAL PACT PHARM BLUE TELE2","(V12) (556) North Chicago, IL (Captain James A. Lovell)"]
["Jones,JANE612",111111722,"2022-01-11",null,"2021-12-28",32,"VAProcedure; JLV AdmParent: (V12) (556) North Chicago, IL HCS","FRANCISCO,RAMIL","GREEN 1",null,null,"(V12) (556) North Chicago, IL (Captain James A. Lovell)"]
["Jones,JANE613",111111723,"2022-01-13","2021-12-29","2021-12-30",30,"VAProcedure; JLV AdmParent: (V12) (556) North Chicago, IL HCS","BEERMANN,MARTIN","HBPC 1 *HBPC*",null,null,"(V12) (556) North Chicago, IL (Captain James A. Lovell)"]
["Jones,JANE614",111111724,"2022-01-19",null,null,null,"Gap Health Factor - Check Pt Details","BANJO,ADEOLA","MC HENRY 4 *WH* CBOC",null,null,"(V12) (556GC) McHenry, IL"]
["Jones,JANE615",111111725,"2022-01-20","2021-05-18","2022-01-06",23,"VAProcedure; JLV AdmParent: (V12) (556) North Chicago, IL HCS","ZAKARIYA,HOSAM Y","BLUE 2",null,null,"(V12) (556) North Chicago, IL (Captain James A. Lovell)"]
["Jones,JANE616",111111726,"2022-01-21",null,"2022-01-07",22,"VAProcedure; JLV AdmParent: (V12) (556) North Chicago, IL HCS","MOHAMMED,BAKHTIAR A","MC HENRY 2 CBOC",null,null,"(V12) (556GC) McHenry, IL"]
["Jones,JANE617",111111727,"2022-01-24",null,null,null,"Gap Health Factor - Check Pt Details","FRANCISCO,RAMIL","GREEN 1",null,null,"(V12) (556) North Chicago, IL (Captain James A. Lovell)"]
["Jones,JANE618",111111728,"2022-01-25","2021-07-26","2022-01-11",18,"VAProcedure; JLV AdmParent: (V12) (556) North Chicago, IL HCS","IFTIKHAR,SYEDA A MD","GREEN 5","2022-07-18T10:00:00","(556) JAL PACT PC MD GREEN5","(V12) (556) North Chicago, IL (Captain James A. Lovell)"]
["Jones,JANE619",111111729,"2022-01-27",null,null,null,"Gap Health Factor - Check Pt Details","SIAS,PATRICIA E","MC HENRY 5 CBOC",null,null,"(V12) (556GC) McHenry, IL"]
["Jones,JANE620",111111730,"2022-01-28",null,"2022-01-14",15,"VAProcedure; JLV AdmParent: (V12) (556) North Chicago, IL HCS","FRANCISCO,RAMIL","GREEN 1","2022-07-15T10:00:00","(556) JAL PACT PC MD GREEN1","(V12) (556) North Chicago, IL (Captain James A. Lovell)"]
["Jones,JANE621",111111731,"2022-02-01","2021-09-17","2022-01-18",11,"VAProcedure; JLV AdmParent: (V12) (556) North Chicago, IL HCS","SMIRNOV,MICHAEL","GOLD 1","2022-02-22T08:00:00","(556) JAL PACT PC MD GOLD1","(V12) (556) North Chicago, IL (Captain James A. Lovell)"]
["Jones,JANE622",111111732,"2022-02-01",null,null,null,"Gap Health Factor - Check Pt Details","NANO,JOSEPH","MC HENRY 1 *WH* CBOC","2022-02-07T10:00:00","(556GC) MCHENRY - PACT PC 1 MD","(V12) (556GC) McHenry, IL"]
["Jones,JANE623",111111733,"2022-02-02",null,null,null,"Gap Health Factor - Check Pt Details","SIAS,PATRICIA E","MC HENRY 5 CBOC",null,null,"(V12) (556GC) McHenry, IL"]
["Jones,JANE624",111111734,"2022-02-03",null,"2022-01-20",9,"VAProcedure; JLV AdmParent: (V12) (556) North Chicago, IL HCS","ROY,DEBJANI MD","GREEN 4",null,null,"(V12) (556) North Chicago, IL (Captain James A. Lovell)"]
["Jones,JANE625",111111735,"2022-02-03","2020-01-31","2022-01-20",9,"VAProcedure; JLV AdmParent: (V12) (556) North Chicago, IL HCS","ROY,DEBJANI MD","GREEN 4",null,null,"(V12) (556) North Chicago, IL (Captain James A. Lovell)"]
["Jones,JANE626",111111736,"2022-02-04",null,"2022-01-21",8,"VAProcedure; JLV AdmParent: (V12) (556) North Chicago, IL HCS","SYEDA,SARA J","GOLD 3",null,null,"(V12) (556) North Chicago, IL (Captain James A. Lovell)"]
["Jones,JANE627",111111737,"2022-02-07",null,"2022-01-24",5,"VAProcedure; JLV AdmParent: (V12) (556) North Chicago, IL HCS","GANNU,RAJYALAKSHMI M","BLUE 6",null,null,"(V12) (556) North Chicago, IL (Captain James A. Lovell)"]
["Jones,JANE628",111111738,"2022-02-07","2021-12-31","2022-01-24",5,"VAProcedure; JLV AdmParent: (V12) (556) North Chicago, IL HCS","GANNU,RAJYALAKSHMI M","BLUE 6",null,null,"(V12) (556) North Chicago, IL (Captain James A. Lovell)"]
["Jones,JANE629",111111739,"2022-02-09",null,"2022-01-26",3,"VAProcedure; JLV AdmParent: (V12) (556) North Chicago, IL HCS","ZAKARIYA,HOSAM Y","BLUE 2","2022-02-17T09:00:00","(556) JAL PACT PC MD BLUE2","(V12) (556) North Chicago, IL (Captain James A. Lovell)"]
["Jones,JANE630",111111740,"2022-02-09",null,"2022-01-26",3,"VAProcedure; JLV AdmParent: (V12) (556) North Chicago, IL HCS","MIRZA,SHAZIA","KENOSHA 1 *WH* CBOC",null,null,"(V12) (556GD) Kenosha, WI"]
["Jones,JANE631",111111741,"2022-02-10",null,"2022-01-27",2,"VAProcedure; JLV AdmParent: (V12) (556) North Chicago, IL HCS","CHAVEZ,LUIS A","BLUE 5","2022-04-14T08:00:00","(556) JAL PACT PC MD BLUE5","(V12) (556) North Chicago, IL (Captain James A. Lovell)"]
["Jones,JANE632",111111742,"2022-02-11",null,"2022-01-28",1,"VAProcedure; JLV AdmParent: (V12) (556) North Chicago, IL HCS","HOLLOWAY,ALISON R MD","WOMENS HEALTH 1 *WH* CLINIC",null,null,"(V12) (556) North Chicago, IL (Captain James A. Lovell)"]
["Jones,JANE633",111111743,"2022-02-11",null,"2022-01-28",1,"VAProcedure; JLV AdmParent: (V12) (556) North Chicago, IL HCS","MIRZA,SHAZIA","KENOSHA 1 *WH* CBOC","2022-02-28T09:00:00","(556GD) KENOSHA - MH SW FAFFORD IND","(V12) (556GD) Kenosha, WI"]
["Jones,JANE634",111111744,"2022-02-16",null,null,null,"Gap Health Factor - Check Pt Details","NANO,JOSEPH","MC HENRY 1 *WH* CBOC",null,null,"(V12) (556GC) McHenry, IL"]
["Jones,JANE635",111111745,"2022-02-23",null,null,null,"Gap Health Factor - Check Pt Details","ZAKARIYA,HOSAM Y","BLUE 2","2022-05-23T09:00:00","(556) JAL PACT PC MD BLUE2","(V12) (556) North Chicago, IL (Captain James A. Lovell)"]
["Jones,JANE636",111111746,"2022-03-22",null,null,null,"Gap Health Factor - Check Pt Details","NANO,JOSEPH","MC HENRY 1 *WH* CBOC",null,null,"(V12) (556GC) McHenry, IL"]
["Jones,JANE637",111111747,"2022-04-07",null,null,null,"Gap Health Factor - Check Pt Details","NANO,JOSEPH","MC HENRY 1 *WH* CBOC",null,null,"(V12) (556GC) McHenry, IL"]
["Jones,JANE638",111111748,"2022-04-08","2018-06-27","2013-04-23",3203,"VAProcedure; JLV AdmParent: (V12) (556) North Chicago, IL HCS","NANO,JOSEPH","MC HENRY 1 *WH* CBOC",null,null,"(V12) (556GC) McHenry, IL"]
["Jones,JANE639",111111749,"2022-04-11",null,null,null,"Gap Health Factor - Check Pt Details","NANO,JOSEPH","MC HENRY 1 *WH* CBOC",null,null,"(V12) (556GC) McHenry, IL"]
["Jones,JANE640",111111750,"2022-06-06","2020-07-24","2021-02-04",359,"VAProcedure; JLV AdmParent: (V12) (556) North Chicago, IL HCS","SIAS,PATRICIA E","MC HENRY 5 CBOC","2022-01-28T07:30:00","(556GC) MCHENRY - PACT PC 5 MD","(V12) (556GC) McHenry, IL"]

{"sheet":"uniques (3)","index":1,"n_rows":640,"n_cols":7,"rows_kept":640,"cut":false,"hidden":false,"merged":[]}
["GREEN 3","BLUE 1",{"$f":"CHAR(34)&B1&CHAR(34)","v":"\"BLUE 1\""},"\"BLUE 1\"",null,null,{"$f":"CONCATENATE(\"\"\"BLUE 1\"\",\",\"\"\"BLUE 2\"\",\",\"\"\"BLUE 5\"\",\",\"\"\"BLUE 6\"\",\",\"\"\"EVANSTON 2 WH CBOC\"\",\",\"\"\"GOLD 1\"\",\",\"\"\"GOLD 2\"\",\",\"\"\"GOLD 3\"\",\",\"\"\"GOLD 4\"\",\",\"\"\"GOLD 5\"\",\",\"\"\"GREEN 1\"\",\",\"\"\"GREEN 3\"\",\",\"\"\"GREEN 4\"\",\",\"\"\"GREEN 5\"\",\",\"\"\"GREEN 6\"\",\",\"\"\"HBPC 1 HBPC\"\",\",\"\"\"HBPC 2 HBPC\"\",\",\"\"\"KENOSHA 1 WH CBOC\"\",\",\"\"\"KENOSHA 2 WH CBOC\"\",\",\"\"\"MC HENRY 1 WH CBOC\"\",\",\"\"\"MC HENRY 2 CBOC\"\",\",\"\"\"MC HENRY 4 WH CBOC\"\",\",\"\"\"MC HENRY 5 CBOC\"\",\",\"\"\"SPINAL CORD INJURY SCI\"\",\",\"\"\"WOMENS HEALTH 1 WH CLINIC\"\",\",\"\"\"WOMENS HEALTH 2 WH CLINIC\"\",\")","v":"\"BLUE 1\",\"BLUE 2\",\"BLUE 5\",\"BLUE 6\",\"EVANSTON 2 WH CBOC\",\"GOLD 1\",\"GOLD 2\",\"GOLD 3\",\"GOLD 4\",\"GOLD 5\",\"GREEN 1\",\"GREEN 3\",\"GREEN 4\",\"GREEN 5\",\"GREEN 6\",\"HBPC 1 HBPC\",\"HBPC 2 HBPC\",\"KENOSHA 1 WH CBOC\",\"KENOSHA 2 WH CBOC\",\"MC HENRY 1 WH CBOC\",\"MC HENRY 2 CBOC\",\"MC HENRY 4 WH CBOC\",\"MC HENRY 5 CBOC\",\"SPINAL CORD INJURY SCI\",\"WOMENS HEALTH 1 WH CLINIC\",\"WOMENS HEALTH 2 WH CLINIC\","}]
["GOLD 3","BLUE 2",{"$f":"CHAR(34)&B2&CHAR(34)","v":"\"BLUE 2\""},"\"BLUE 2\""]
["GOLD 3","BLUE 5","\"BLUE 5\"","\"BLUE 5\"",null,null,"\"BLUE 1\",\"BLUE 2\",\"BLUE 5\",\"BLUE 6\",\"EVANSTON 2 WH CBOC\",\"GOLD 1\",\"GOLD 2\",\"GOLD 3\",\"GOLD 4\",\"GOLD 5\",\"GREEN 1\",\"GREEN 3\",\"GREEN 4\",\"GREEN 5\",\"GREEN 6\",\"HBPC 1 HBPC\",\"HBPC 2 HBPC\",\"KENOSHA 1 WH CBOC\",\"KENOSHA 2 WH CBOC\",\"MC HENRY 1 WH CBOC\",\"MC HENRY 2 CBOC\",\"MC HENRY 4 WH CBOC\",\"MC HENRY 5 CBOC\",\"SPINAL CORD INJURY SCI\",\"WOMENS HEALTH 1 WH CLINIC\",\"WOMENS HEALTH 2 WH CLINIC\""]
["GREEN 1","BLUE 6","\"BLUE 6\"","\"BLUE 6\""]
["GOLD 3","EVANSTON 2 WH CBOC","\"EVANSTON 2 WH CBOC\"","\"EVANSTON 2 WH CBOC\""]
["EVANSTON 2 WH CBOC","GOLD 1","\"GOLD 1\"","\"GOLD 1\""]
["MC HENRY 5 CBOC","GOLD 2","\"GOLD 2\"","\"GOLD 2\""]
["GOLD 1","GOLD 3","\"GOLD 3\"","\"GOLD 3\""]
["GOLD 1","GOLD 4","\"GOLD 4\"","\"GOLD 4\""]
["BLUE 5","GOLD 5","\"GOLD 5\"","\"GOLD 5\""]
["BLUE 1","GREEN 1","\"GREEN 1\"","\"GREEN 1\""]
["MC HENRY 4 WH CBOC","GREEN 3","\"GREEN 3\"","\"GREEN 3\""]
["GREEN 1","GREEN 4","\"GREEN 4\"","\"GREEN 4\""]
["MC HENRY 2 CBOC","GREEN 5","\"GREEN 5\"","\"GREEN 5\""]
["GOLD 1","GREEN 6","\"GREEN 6\"","\"GREEN 6\""]
["BLUE 1","HBPC 1 HBPC","\"HBPC 1 HBPC\"","\"HBPC 1 HBPC\""]
["BLUE 5","HBPC 2 HBPC","\"HBPC 2 HBPC\"","\"HBPC 2 HBPC\""]
["GREEN 4","KENOSHA 1 WH CBOC","\"KENOSHA 1 WH CBOC\"","\"KENOSHA 1 WH CBOC\""]
["BLUE 1","KENOSHA 2 WH CBOC","\"KENOSHA 2 WH CBOC\"","\"KENOSHA 2 WH CBOC\""]
["GREEN 4","MC HENRY 1 WH CBOC","\"MC HENRY 1 WH CBOC\"","\"MC HENRY 1 WH CBOC\""]
["BLUE 5","MC HENRY 2 CBOC","\"MC HENRY 2 CBOC\"","\"MC HENRY 2 CBOC\""]
["GOLD 1","MC HENRY 4 WH CBOC","\"MC HENRY 4 WH CBOC\"","\"MC HENRY 4 WH CBOC\""]
["BLUE 1","MC HENRY 5 CBOC","\"MC HENRY 5 CBOC\"","\"MC HENRY 5 CBOC\""]
["GOLD 2","SPINAL CORD INJURY SCI","\"SPINAL CORD INJURY SCI\"","\"SPINAL CORD INJURY SCI\""]
["GREEN 4","WOMENS HEALTH 1 WH CLINIC","\"WOMENS HEALTH 1 WH CLINIC\"","\"WOMENS HEALTH 1 WH CLINIC\""]
["GREEN 4","WOMENS HEALTH 2 WH CLINIC","\"WOMENS HEALTH 2 WH CLINIC\"","\"WOMENS HEALTH 2 WH CLINIC\""]
["GOLD 2",null,"\"\""]
["GOLD 1",null,"\"\""]
["GOLD 1",null,"\"\""]
["BLUE 5",null,"\"\""]
["GOLD 2",null,"\"\""]
["GOLD 3",null,"\"\""]
["GREEN 3",null,"\"\""]
["WOMENS HEALTH 2 WH CLINIC",null,"\"\""]
["BLUE 5",null,"\"\""]
["BLUE 5",null,"\"\""]
["BLUE 1",null,"\"\""]
["GOLD 2",null,"\"\""]
["MC HENRY 5 CBOC",null,"\"\""]
["GOLD 1",null,"\"\""]
["BLUE 1",null,"\"\""]
["GREEN 3",null,"\"\""]
["MC HENRY 5 CBOC",null,"\"\""]
["MC HENRY 4 WH CBOC",null,"\"\""]
["GREEN 4",null,"\"\""]
["GREEN 4",null,"\"\""]
["GREEN 5",null,"\"\""]
["GOLD 2",null,"\"\""]
["BLUE 1",null,"\"\""]
["GOLD 4",null,"\"\""]
["GREEN 1",null,"\"\""]
["BLUE 5",null,"\"\""]
["GOLD 4",null,"\"\""]
["WOMENS HEALTH 1 WH CLINIC",null,"\"\""]
["GREEN 4",null,"\"\""]
["WOMENS HEALTH 1 WH CLINIC",null,"\"\""]
["WOMENS HEALTH 1 WH CLINIC",null,"\"\""]
["BLUE 2",null,"\"\""]
["GREEN 3",null,"\"\""]
["GOLD 3",null,"\"\""]
["GREEN 5",null,"\"\""]
["GREEN 6",null,"\"\""]
["KENOSHA 1 WH CBOC",null,"\"\""]
["BLUE 5",null,"\"\""]
["MC HENRY 2 CBOC",null,"\"\""]
["GREEN 4",null,{"$f":"CHAR(34)&B66&CHAR(34)","v":"\"\""}]
["MC HENRY 5 CBOC",null,"\"\""]
["GREEN 4",null,"\"\""]
["GOLD 5",null,"\"\""]
["GREEN 4",null,"\"\""]
["WOMENS HEALTH 1 WH CLINIC",null,"\"\""]
["GOLD 2",null,"\"\""]
["GOLD 3",null,"\"\""]
["GREEN 4",null,"\"\""]
["BLUE 5",null,"\"\""]
["GOLD 2",null,"\"\""]
["BLUE 1",null,"\"\""]
["WOMENS HEALTH 1 WH CLINIC",null,"\"\""]
["BLUE 5",null,"\"\""]
["GOLD 3",null,"\"\""]
["GOLD 1",null,"\"\""]
["WOMENS HEALTH 2 WH CLINIC",null,"\"\""]
["BLUE 1",null,"\"\""]
["GOLD 1",null,"\"\""]
["MC HENRY 5 CBOC",null,"\"\""]
["BLUE 5",null,"\"\""]
["MC HENRY 2 CBOC",null,"\"\""]
["EVANSTON 2 WH CBOC",null,"\"\""]
["GREEN 6",null,"\"\""]
["GOLD 1",null,"\"\""]
["GOLD 1",null,"\"\""]
["MC HENRY 1 WH CBOC",null,"\"\""]
["BLUE 1",null,"\"\""]
["BLUE 1",null,"\"\""]
["GREEN 5",null,"\"\""]
["GOLD 1",null,"\"\""]
["GREEN 4",null,"\"\""]
["BLUE 1",null,"\"\""]
["BLUE 1",null,"\"\""]
["GOLD 1",null,"\"\""]
["GOLD 2",null,"\"\""]
["GOLD 2",null,"\"\""]
["KENOSHA 1 WH CBOC",null,"\"\""]
["MC HENRY 2 CBOC",null,"\"\""]
["BLUE 1",null,"\"\""]
["GOLD 3",null,"\"\""]
["EVANSTON 2 WH CBOC",null,"\"\""]
["GREEN 5",null,"\"\""]
["GOLD 2",null,"\"\""]
["EVANSTON 2 WH CBOC",null,"\"\""]
["KENOSHA 2 WH CBOC",null,"\"\""]
["EVANSTON 2 WH CBOC",null,"\"\""]
["GOLD 2",null,"\"\""]
["BLUE 1",null,"\"\""]
["GREEN 4",null,"\"\""]
["GOLD 2",null,"\"\""]
["WOMENS HEALTH 2 WH CLINIC",null,"\"\""]
["GOLD 2",null,"\"\""]
["GREEN 4",null,"\"\""]
["GOLD 1",null,"\"\""]
["GOLD 3",null,"\"\""]
["GREEN 4",null,"\"\""]
["GOLD 3",null,"\"\""]
["GOLD 1",null,"\"\""]
["BLUE 5",null,"\"\""]
["GOLD 2",null,"\"\""]
["GOLD 1",null,"\"\""]
["GOLD 2",null,"\"\""]
["BLUE 1",null,"\"\""]
["MC HENRY 1 WH CBOC",null,{"$f":"CHAR(34)&B130&CHAR(34)","v":"\"\""}]
["GREEN 4",null,"\"\""]
["GOLD 1",null,"\"\""]
["MC HENRY 1 WH CBOC",null,"\"\""]
["MC HENRY 4 WH CBOC",null,"\"\""]
["GREEN 4",null,"\"\""]
["GOLD 1",null,"\"\""]
["GREEN 4",null,"\"\""]
["GREEN 4",null,"\"\""]
["GREEN 4",null,"\"\""]
["GOLD 2",null,"\"\""]
["GOLD 2",null,"\"\""]
["GOLD 2",null,"\"\""]
["GREEN 3",null,"\"\""]
["MC HENRY 5 CBOC",null,"\"\""]
["GOLD 2",null,"\"\""]
["MC HENRY 5 CBOC",null,"\"\""]
["MC HENRY 5 CBOC",null,"\"\""]
["BLUE 2",null,"\"\""]
["GOLD 3",null,"\"\""]
["GREEN 4",null,"\"\""]
["GREEN 4",null,"\"\""]
["GOLD 2",null,"\"\""]
["GOLD 2",null,"\"\""]
["BLUE 5",null,"\"\""]
["EVANSTON 2 WH CBOC",null,"\"\""]
["EVANSTON 2 WH CBOC",null,"\"\""]
["GREEN 3",null,"\"\""]
["WOMENS HEALTH 1 WH CLINIC",null,"\"\""]
["GREEN 4",null,"\"\""]
["BLUE 1",null,"\"\""]
["GOLD 2",null,"\"\""]
["GOLD 1",null,"\"\""]
["GREEN 4",null,"\"\""]
["GOLD 2",null,"\"\""]
["MC HENRY 2 CBOC",null,"\"\""]
["BLUE 1",null,"\"\""]
["GREEN 4",null,"\"\""]
["EVANSTON 2 WH CBOC",null,"\"\""]
["WOMENS HEALTH 2 WH CLINIC",null,"\"\""]
["GREEN 4",null,"\"\""]
["GOLD 2",null,"\"\""]
["GOLD 2",null,"\"\""]
["MC HENRY 2 CBOC",null,"\"\""]
["MC HENRY 1 WH CBOC",null,"\"\""]
["GOLD 2",null,"\"\""]
["GOLD 1",null,"\"\""]
["GOLD 2",null,"\"\""]
["GREEN 4",null,"\"\""]
["GOLD 2",null,"\"\""]
["MC HENRY 1 WH CBOC",null,"\"\""]
["EVANSTON 2 WH CBOC",null,"\"\""]
["MC HENRY 1 WH CBOC",null,"\"\""]
["BLUE 5",null,"\"\""]
["GOLD 1",null,"\"\""]
["MC HENRY 1 WH CBOC",null,"\"\""]
["GREEN 4",null,"\"\""]
["KENOSHA 2 WH CBOC",null,"\"\""]
["MC HENRY 1 WH CBOC",null,"\"\""]
["GREEN 6",null,"\"\""]
["EVANSTON 2 WH CBOC",null,"\"\""]
["MC HENRY 5 CBOC",null,"\"\""]
["KENOSHA 2 WH CBOC",null,"\"\""]
["GOLD 1",null,"\"\""]
["MC HENRY 1 WH CBOC",null,{"$f":"CHAR(34)&B194&CHAR(34)","v":"\"\""}]
["GREEN 4",null,"\"\""]
["KENOSHA 2 WH CBOC",null,"\"\""]
["GOLD 1",null,"\"\""]
["MC HENRY 5 CBOC",null,"\"\""]
["KENOSHA 2 WH CBOC",null,"\"\""]
["MC HENRY 1 WH CBOC",null,"\"\""]
["MC HENRY 1 WH CBOC",null,"\"\""]
["GOLD 1",null,"\"\""]
["MC HENRY 5 CBOC",null,"\"\""]
["GOLD 1",null,"\"\""]
["KENOSHA 2 WH CBOC",null,"\"\""]
["GOLD 3",null,"\"\""]
["MC HENRY 1 WH CBOC",null,"\"\""]
["GOLD 2",null,"\"\""]
["GREEN 5",null,"\"\""]
["GREEN 3",null,"\"\""]
["MC HENRY 5 CBOC",null,"\"\""]
["MC HENRY 4 WH CBOC",null,"\"\""]
["MC HENRY 5 CBOC",null,"\"\""]
["MC HENRY 1 WH CBOC",null,"\"\""]
["GOLD 3",null,"\"\""]
["MC HENRY 5 CBOC",null,"\"\""]
["MC HENRY 1 WH CBOC",null,"\"\""]
["MC HENRY 5 CBOC",null,"\"\""]
["MC HENRY 5 CBOC",null,"\"\""]
["BLUE 6",null,"\"\""]
["BLUE 1",null,"\"\""]
["GOLD 1",null,"\"\""]
["KENOSHA 2 WH CBOC",null,"\"\""]
["BLUE 6",null,"\"\""]
["GOLD 4",null,"\"\""]
["GREEN 4",null,"\"\""]
["BLUE 1",null,"\"\""]
["GOLD 1",null,"\"\""]
["MC HENRY 2 CBOC",null,"\"\""]
["MC HENRY 1 WH CBOC",null,"\"\""]
["MC HENRY 5 CBOC",null,"\"\""]
["WOMENS HEALTH 1 WH CLINIC",null,"\"\""]
["GOLD 1",null,"\"\""]
["GREEN 5",null,"\"\""]
["KENOSHA 2 WH CBOC",null,"\"\""]
["GREEN 4",null,"\"\""]
["BLUE 5",null,"\"\""]
["GOLD 3",null,"\"\""]
["GOLD 2",null,"\"\""]
["GOLD 2",null,"\"\""]
["GREEN 4",null,"\"\""]
["MC HENRY 1 WH CBOC",null,"\"\""]
["GOLD 1",null,"\"\""]
["GREEN 4",null,"\"\""]
["KENOSHA 2 WH CBOC",null,"\"\""]
["MC HENRY 1 WH CBOC",null,"\"\""]
["MC HENRY 1 WH CBOC",null,"\"\""]
["BLUE 5",null,"\"\""]
["MC HENRY 1 WH CBOC",null,"\"\""]
["GREEN 4",null,"\"\""]
["BLUE 1",null,"\"\""]
["MC HENRY 5 CBOC",null,"\"\""]
["BLUE 1",null,"\"\""]
["MC HENRY 1 WH CBOC",null,"\"\""]
["MC HENRY 1 WH CBOC",null,"\"\""]
["MC HENRY 1 WH CBOC",null,"\"\""]
["BLUE 1",null,"\"\""]
["MC HENRY 1 WH CBOC",null,{"$f":"CHAR(34)&B258&CHAR(34)","v":"\"\""}]
["MC HENRY 1 WH CBOC",null,"\"\""]
["MC HENRY 1 WH CBOC",null,"\"\""]
["GREEN 3",null,"\"\""]
["GOLD 2",null,"\"\""]
["GOLD 2",null,"\"\""]
["MC HENRY 1 WH CBOC",null,"\"\""]
["KENOSHA 2 WH CBOC",null,"\"\""]
["GREEN 5",null,"\"\""]
["GREEN 4",null,"\"\""]
["WOMENS HEALTH 1 WH CLINIC",null,"\"\""]
["BLUE 1",null,"\"\""]
["BLUE 2",null,"\"\""]
["BLUE 1",null,"\"\""]
["WOMENS HEALTH 1 WH CLINIC",null,"\"\""]
["GREEN 4",null,"\"\""]
["KENOSHA 2 WH CBOC",null,"\"\""]
["GREEN 5",null,"\"\""]
["GOLD 3",null,"\"\""]
["BLUE 1",null,"\"\""]
["GREEN 5",null,"\"\""]
["GOLD 1",null,"\"\""]
["WOMENS HEALTH 1 WH CLINIC",null,"\"\""]
["WOMENS HEALTH 1 WH CLINIC",null,"\"\""]
["GREEN 5",null,"\"\""]
["GREEN 4",null,"\"\""]
["MC HENRY 4 WH CBOC",null,"\"\""]
["MC HENRY 5 CBOC",null,"\"\""]
["MC HENRY 5 CBOC",null,"\"\""]
["GOLD 3",null,"\"\""]
["BLUE 5",null,"\"\""]
["BLUE 1",null,"\"\""]
["BLUE 1",null,"\"\""]
["BLUE 1",null,"\"\""]
["GREEN 4",null,"\"\""]
["GREEN 4",null,"\"\""]
["GOLD 2",null,"\"\""]
["GOLD 1",null,"\"\""]
["BLUE 1",null,"\"\""]
["GOLD 2",null,"\"\""]
["GREEN 4",null,"\"\""]
["GOLD 3",null,"\"\""]
["GOLD 2",null,"\"\""]
["MC HENRY 1 WH CBOC",null,"\"\""]
["BLUE 1",null,"\"\""]
["BLUE 2",null,"\"\""]
["WOMENS HEALTH 2 WH CLINIC",null,"\"\""]
["BLUE 1",null,"\"\""]
["GREEN 4",null,"\"\""]
["WOMENS HEALTH 1 WH CLINIC",null,"\"\""]
["MC HENRY 4 WH CBOC",null,"\"\""]
["MC HENRY 4 WH CBOC",null,"\"\""]
["BLUE 1",null,"\"\""]
["GOLD 3",null,"\"\""]
["BLUE 1",null,"\"\""]
["MC HENRY 5 CBOC",null,"\"\""]
["WOMENS HEALTH 2 WH CLINIC",null,"\"\""]
["KENOSHA 2 WH CBOC",null,"\"\""]
["KENOSHA 2 WH CBOC",null,"\"\""]
["GREEN 6",null,"\"\""]
["GOLD 3",null,"\"\""]
["GREEN 1",null,"\"\""]
["GREEN 3",null,"\"\""]
["GOLD 1",null,"\"\""]
["BLUE 1",null,{"$f":"CHAR(34)&B322&CHAR(34)","v":"\"\""}]
["GREEN 3",null,"\"\""]
["KENOSHA 2 WH CBOC",null,"\"\""]
["WOMENS HEALTH 2 WH CLINIC",null,"\"\""]
["BLUE 1",null,"\"\""]
["KENOSHA 2 WH CBOC",null,"\"\""]
["BLUE 1",null,"\"\""]
["MC HENRY 4 WH CBOC",null,"\"\""]
["GREEN 3",null,"\"\""]
["BLUE 1",null,"\"\""]
["WOMENS HEALTH 2 WH CLINIC",null,"\"\""]
["WOMENS HEALTH 2 WH CLINIC",null,"\"\""]
["WOMENS HEALTH 1 WH CLINIC",null,"\"\""]
["GREEN 5",null,"\"\""]
["GOLD 2",null,"\"\""]
["GREEN 1",null,"\"\""]
["GREEN 4",null,"\"\""]
["GREEN 1",null,"\"\""]
["GOLD 1",null,"\"\""]
["BLUE 1",null,"\"\""]
["BLUE 2",null,"\"\""]
["BLUE 5",null,"\"\""]
["KENOSHA 2 WH CBOC",null,"\"\""]
["EVANSTON 2 WH CBOC",null,"\"\""]
["HBPC 2 HBPC",null,"\"\""]
["GREEN 4",null,"\"\""]
["GREEN 5",null,"\"\""]
["GREEN 5",null,"\"\""]
["EVANSTON 2 WH CBOC",null,"\"\""]
["WOMENS HEALTH 2 WH CLINIC",null,"\"\""]
["EVANSTON 2 WH CBOC",null,"\"\""]
["BLUE 1",null,"\"\""]
["GOLD 3",null,"\"\""]
["MC HENRY 5 CBOC",null,"\"\""]
["GOLD 1",null,"\"\""]
["GREEN 1",null,"\"\""]
["MC HENRY 5 CBOC",null,"\"\""]
["WOMENS HEALTH 1 WH CLINIC",null,"\"\""]
["GREEN 5",null,"\"\""]
["GOLD 1",null,"\"\""]
["GREEN 6",null,"\"\""]
["GOLD 3",null,"\"\""]
["WOMENS HEALTH 2 WH CLINIC",null,"\"\""]
["MC HENRY 4 WH CBOC",null,"\"\""]
["GREEN 5",null,"\"\""]
["KENOSHA 2 WH CBOC",null,"\"\""]
["GREEN 4",null,"\"\""]
["BLUE 1",null,"\"\""]
["GOLD 2",null,"\"\""]
["GREEN 1",null,"\"\""]
["EVANSTON 2 WH CBOC",null,"\"\""]
["BLUE 5",null,"\"\""]
["GOLD 3",null,"\"\""]
["GOLD 1",null,"\"\""]
["GOLD 2",null,"\"\""]
["WOMENS HEALTH 1 WH CLINIC",null,"\"\""]
["GREEN 1",null,"\"\""]
["WOMENS HEALTH 2 WH CLINIC",null,"\"\""]
["KENOSHA 2 WH CBOC",null,"\"\""]
["BLUE 1",null,"\"\""]
["GREEN 5",null,"\"\""]
["GOLD 1",null,"\"\""]
["GREEN 3",null,"\"\""]
["GOLD 5",null,"\"\""]
["GREEN 4",null,{"$f":"CHAR(34)&B386&CHAR(34)","v":"\"\""}]
["GOLD 1",null,"\"\""]
["MC HENRY 4 WH CBOC",null,"\"\""]
["WOMENS HEALTH 1 WH CLINIC",null,"\"\""]
["GREEN 5",null,"\"\""]
["MC HENRY 1 WH CBOC",null,"\"\""]
["BLUE 1",null,"\"\""]
["GOLD 5",null,"\"\""]
["BLUE 1",null,"\"\""]
["MC HENRY 1 WH CBOC",null,"\"\""]
["KENOSHA 2 WH CBOC",null,"\"\""]
["KENOSHA 2 WH CBOC",null,"\"\""]
["GOLD 2",null,"\"\""]
["BLUE 1",null,"\"\""]
["MC HENRY 4 WH CBOC",null,"\"\""]
["GOLD 2",null,"\"\""]
["MC HENRY 2 CBOC",null,"\"\""]
["GREEN 4",null,"\"\""]
["BLUE 2",null,"\"\""]
["WOMENS HEALTH 1 WH CLINIC",null,"\"\""]
["GOLD 3",null,"\"\""]
["GREEN 5",null,"\"\""]
["GOLD 4",null,"\"\""]
["GREEN 3",null,"\"\""]
["MC HENRY 5 CBOC",null,"\"\""]
["WOMENS HEALTH 1 WH CLINIC",null,"\"\""]
["MC HENRY 5 CBOC",null,"\"\""]
["GREEN 3",null,"\"\""]
["MC HENRY 1 WH CBOC",null,"\"\""]
["GOLD 1",null,"\"\""]
["GOLD 1",null,"\"\""]
["KENOSHA 2 WH CBOC",null,"\"\""]
["MC HENRY 2 CBOC",null,"\"\""]
["MC HENRY 4 WH CBOC",null,"\"\""]
["MC HENRY 2 CBOC",null,"\"\""]
["WOMENS HEALTH 1 WH CLINIC",null,"\"\""]
["GOLD 2",null,"\"\""]
["BLUE 6",null,"\"\""]
["BLUE 1",null,"\"\""]
["BLUE 1",null,"\"\""]
["GOLD 5",null,"\"\""]
["GOLD 5",null,"\"\""]
["GREEN 5",null,"\"\""]
["GREEN 3",null,"\"\""]
["GREEN 6",null,"\"\""]
["GREEN 5",null,"\"\""]
["BLUE 1",null,"\"\""]
["WOMENS HEALTH 1 WH CLINIC",null,"\"\""]
["MC HENRY 5 CBOC",null,"\"\""]
["GREEN 4",null,"\"\""]
["GOLD 1",null,"\"\""]
["GOLD 3",null,"\"\""]
["BLUE 1",null,"\"\""]
["BLUE 1",null,"\"\""]
["MC HENRY 2 CBOC",null,"\"\""]
["MC HENRY 5 CBOC",null,"\"\""]
["WOMENS HEALTH 1 WH CLINIC",null,"\"\""]
["GOLD 2",null,"\"\""]
["MC HENRY 4 WH CBOC",null,"\"\""]
["WOMENS HEALTH 1 WH CLINIC",null,"\"\""]
["MC HENRY 5 CBOC",null,"\"\""]
["GOLD 2",null,"\"\""]
["BLUE 2",null,"\"\""]
["GOLD 2",null,"\"\""]
["WOMENS HEALTH 2 WH CLINIC",null,{"$f":"CHAR(34)&B450&CHAR(34)","v":"\"\""}]
["BLUE 5",null,"\"\""]
["GREEN 3",null,"\"\""]
["MC HENRY 5 CBOC",null,"\"\""]
["GOLD 2",null,"\"\""]
["GOLD 2",null,"\"\""]
["BLUE 1",null,"\"\""]
["GOLD 3",null,"\"\""]
["MC HENRY 1 WH CBOC",null,"\"\""]
["MC HENRY 1 WH CBOC",null,"\"\""]
["MC HENRY 1 WH CBOC",null,"\"\""]
["GOLD 3",null,"\"\""]
["BLUE 5",null,"\"\""]
["MC HENRY 2 CBOC",null,"\"\""]
["GREEN 5",null,"\"\""]
["GOLD 3",null,"\"\""]
["MC HENRY 1 WH CBOC",null,"\"\""]
["BLUE 1",null,"\"\""]
["WOMENS HEALTH 1 WH CLINIC",null,"\"\""]
["GREEN 4",null,"\"\""]
["GOLD 2",null,"\"\""]
["GOLD 5",null,"\"\""]
["MC HENRY 1 WH CBOC",null,"\"\""]
["BLUE 1",null,"\"\""]
["GOLD 2",null,"\"\""]
["GREEN 4",null,"\"\""]
["BLUE 5",null,"\"\""]
["BLUE 1",null,"\"\""]
["GOLD 1",null,"\"\""]
["GOLD 2",null,"\"\""]
["GREEN 1",null,"\"\""]
["GREEN 4",null,"\"\""]
["WOMENS HEALTH 2 WH CLINIC",null,"\"\""]
["GOLD 3",null,"\"\""]
["WOMENS HEALTH 1 WH CLINIC",null,"\"\""]
["GREEN 4",null,"\"\""]
["GREEN 5",null,"\"\""]
["GREEN 4",null,"\"\""]
["BLUE 1",null,"\"\""]
["MC HENRY 4 WH CBOC",null,"\"\""]
["WOMENS HEALTH 1 WH CLINIC",null,"\"\""]
["EVANSTON 2 WH CBOC",null,"\"\""]
["WOMENS HEALTH 1 WH CLINIC",null,"\"\""]
["BLUE 6",null,"\"\""]
["MC HENRY 2 CBOC",null,"\"\""]
["GOLD 2",null,"\"\""]
["GREEN 3",null,"\"\""]
["WOMENS HEALTH 2 WH CLINIC",null,"\"\""]
["GOLD 2",null,"\"\""]
["MC HENRY 5 CBOC",null,"\"\""]
["MC HENRY 1 WH CBOC",null,"\"\""]
["BLUE 6",null,"\"\""]
["GOLD 5",null,"\"\""]
["WOMENS HEALTH 1 WH CLINIC",null,"\"\""]
["WOMENS HEALTH 1 WH CLINIC",null,"\"\""]
["GOLD 3",null,"\"\""]
["MC HENRY 4 WH CBOC",null,"\"\""]
["MC HENRY 2 CBOC",null,"\"\""]
["MC HENRY 4 WH CBOC",null,"\"\""]
["EVANSTON 2 WH CBOC",null,"\"\""]
["BLUE 1",null,"\"\""]
["GOLD 2",null,"\"\""]
["WOMENS HEALTH 1 WH CLINIC",null,"\"\""]
["WOMENS HEALTH 1 WH CLINIC",null,"\"\""]
["GREEN 6",null,{"$f":"CHAR(34)&B514&CHAR(34)","v":"\"\""}]
["GREEN 4",null,"\"\""]
["SPINAL CORD INJURY SCI",null,"\"\""]
["MC HENRY 4 WH CBOC",null,"\"\""]
["MC HENRY 2 CBOC",null,"\"\""]
["GOLD 3",null,"\"\""]
["WOMENS HEALTH 2 WH CLINIC",null,"\"\""]
["MC HENRY 2 CBOC",null,"\"\""]
["MC HENRY 4 WH CBOC",null,"\"\""]
["GREEN 4",null,"\"\""]
["GOLD 5",null,"\"\""]
["GOLD 3",null,"\"\""]
["GREEN 3",null,"\"\""]
["GREEN 3",null,"\"\""]
["BLUE 2",null,"\"\""]
["WOMENS HEALTH 2 WH CLINIC",null,"\"\""]
["MC HENRY 1 WH CBOC",null,"\"\""]
["GOLD 3",null,"\"\""]
["GOLD 3",null,"\"\""]
["GREEN 4",null,"\"\""]
["WOMENS HEALTH 2 WH CLINIC",null,"\"\""]
["GREEN 4",null,"\"\""]
["MC HENRY 4 WH CBOC",null,"\"\""]
["GREEN 3",null,"\"\""]
["BLUE 6",null,"\"\""]
["GOLD 3",null,"\"\""]
["GREEN 4",null,"\"\""]
["GOLD 1",null,"\"\""]
["BLUE 1",null,"\"\""]
["BLUE 6",null,"\"\""]
["MC HENRY 1 WH CBOC",null,"\"\""]
["GOLD 5",null,"\"\""]
["BLUE 5",null,"\"\""]
["BLUE 2",null,"\"\""]
["MC HENRY 5 CBOC",null,"\"\""]
["BLUE 1",null,"\"\""]
["GREEN 1",null,"\"\""]
["GREEN 3",null,"\"\""]
["MC HENRY 1 WH CBOC",null,"\"\""]
["MC HENRY 1 WH CBOC",null,"\"\""]
["GOLD 1",null,"\"\""]
["GOLD 4",null,"\"\""]
["GOLD 3",null,"\"\""]
["GREEN 1",null,"\"\""]
["MC HENRY 1 WH CBOC",null,"\"\""]
["GREEN 4",null,"\"\""]
["GOLD 3",null,"\"\""]
["BLUE 1",null,"\"\""]
["GOLD 3",null,"\"\""]
["GREEN 1",null,"\"\""]
["WOMENS HEALTH 1 WH CLINIC",null,"\"\""]
["GOLD 1",null,"\"\""]
["MC HENRY 1 WH CBOC",null,"\"\""]
["MC HENRY 5 CBOC",null,"\"\""]
["MC HENRY 2 CBOC",null,"\"\""]
["GREEN 4",null,"\"\""]
["BLUE 2",null,"\"\""]
["GOLD 1",null,"\"\""]
["GREEN 3",null,"\"\""]
["GOLD 1",null,"\"\""]
["MC HENRY 1 WH CBOC",null,"\"\""]
["WOMENS HEALTH 1 WH CLINIC",null,"\"\""]
["GREEN 3",null,"\"\""]
["GOLD 2",null,"\"\""]
["MC HENRY 2 CBOC",null,{"$f":"CHAR(34)&B578&CHAR(34)","v":"\"\""}]
["MC HENRY 5 CBOC",null,"\"\""]
["GOLD 2",null,"\"\""]
["MC HENRY 1 WH CBOC",null,"\"\""]
["GOLD 3",null,"\"\""]
["GOLD 1",null,"\"\""]
["GOLD 2",null,"\"\""]
["BLUE 5",null,"\"\""]
["GOLD 1",null,"\"\""]
["MC HENRY 5 CBOC",null,"\"\""]
["GREEN 1",null,"\"\""]
["MC HENRY 1 WH CBOC",null,"\"\""]
["MC HENRY 4 WH CBOC",null,"\"\""]
["GOLD 3",null,"\"\""]
["MC HENRY 5 CBOC",null,"\"\""]
["GOLD 5",null,"\"\""]
["GOLD 2",null,"\"\""]
["BLUE 5",null,"\"\""]
["BLUE 5",null,"\"\""]
["GOLD 2",null,"\"\""]
["KENOSHA 1 WH CBOC",null,"\"\""]
["MC HENRY 4 WH CBOC",null,"\"\""]
["MC HENRY 5 CBOC",null,"\"\""]
["MC HENRY 1 WH CBOC",null,"\"\""]
["KENOSHA 2 WH CBOC",null,"\"\""]
["MC HENRY 1 WH CBOC",null,"\"\""]
["KENOSHA 1 WH CBOC",null,"\"\""]
["KENOSHA 1 WH CBOC",null,"\"\""]
["KENOSHA 1 WH CBOC",null,"\"\""]
["KENOSHA 2 WH CBOC",null,"\"\""]
["GOLD 5",null,"\"\""]
["GOLD 3",null,"\"\""]
["WOMENS HEALTH 1 WH CLINIC",null,"\"\""]
["BLUE 1",null,"\"\""]
["GREEN 1",null,"\"\""]
["HBPC 1 HBPC",null,"\"\""]
["MC HENRY 4 WH CBOC",null,"\"\""]
["BLUE 2",null,"\"\""]
["MC HENRY 2 CBOC",null,"\"\""]
["GREEN 1",null,"\"\""]
["GREEN 5",null,"\"\""]
["MC HENRY 5 CBOC",null,"\"\""]
["GREEN 1",null,"\"\""]
["GOLD 1",null,"\"\""]
["MC HENRY 1 WH CBOC",null,"\"\""]
["MC HENRY 5 CBOC",null,"\"\""]
["GREEN 4",null,"\"\""]
["GREEN 4",null,"\"\""]
["GOLD 3",null,"\"\""]
["BLUE 6",null,"\"\""]
["BLUE 6",null,"\"\""]
["BLUE 2",null,"\"\""]
["KENOSHA 1 WH CBOC",null,"\"\""]
["BLUE 5",null,"\"\""]
["WOMENS HEALTH 1 WH CLINIC",null,"\"\""]
["KENOSHA 1 WH CBOC",null,"\"\""]
["MC HENRY 1 WH CBOC",null,"\"\""]
["BLUE 2",null,"\"\""]
["MC HENRY 1 WH CBOC",null,"\"\""]
["MC HENRY 1 WH CBOC",null,"\"\""]
["MC HENRY 1 WH CBOC",null,"\"\""]
["MC HENRY 1 WH CBOC",null,"\"\""]
["MC HENRY 5 CBOC",null,"\"\""]

{"sheet":"uniques (2)","index":2,"n_rows":640,"n_cols":2,"rows_kept":640,"cut":false,"hidden":false,"merged":[]}
["GREEN 3","GREEN 3"]
["GOLD 3","GOLD 3"]
["GOLD 3","GREEN 1"]
["GREEN 1","EVANSTON 2 *WH* CBOC"]
["GOLD 3","MC HENRY 5 CBOC"]
["EVANSTON 2 *WH* CBOC","GOLD 1"]
["MC HENRY 5 CBOC","BLUE 5"]
["GOLD 1","BLUE 1"]
["GOLD 1","MC HENRY 4 *WH* CBOC"]
["BLUE 5","MC HENRY 2 CBOC"]
["BLUE 1","GREEN 4"]
["MC HENRY 4 *WH* CBOC","GOLD 2"]
["GREEN 1","GREEN 3"]
["MC HENRY 2 CBOC","WOMENS HEALTH 2 *WH* CLINIC"]
["GOLD 1","GREEN 5"]
["BLUE 1","GOLD 4"]
["BLUE 5","WOMENS HEALTH 1 *WH* CLINIC"]
["GREEN 4","BLUE 2"]
["BLUE 1","GREEN 6"]
["GREEN 4","KENOSHA 1 *WH* CBOC"]
["BLUE 5","GOLD 5"]
["GOLD 1","MC HENRY 1 *WH* CBOC"]
["BLUE 1","KENOSHA 2 *WH* CBOC"]
["GOLD 2","BLUE 6"]
["GREEN 4","HBPC 2 *HBPC*"]
["GREEN 4","SPINAL CORD INJURY *SCI*"]
["GOLD 2","HBPC 1 *HBPC*"]
["GOLD 1"]
["GOLD 1"]
["BLUE 5"]
["GOLD 2"]
["GOLD 3"]
["GREEN 3"]
["WOMENS HEALTH 2 *WH* CLINIC"]
["BLUE 5"]
["BLUE 5"]
["BLUE 1"]
["GOLD 2"]
["MC HENRY 5 CBOC"]
["GOLD 1"]
["BLUE 1"]
["GREEN 3"]
["MC HENRY 5 CBOC"]
["MC HENRY 4 *WH* CBOC"]
["GREEN 4"]
["GREEN 4"]
["GREEN 5"]
["GOLD 2"]
["BLUE 1"]
["GOLD 4"]
["GREEN 1"]
["BLUE 5"]
["GOLD 4"]
["WOMENS HEALTH 1 *WH* CLINIC"]
["GREEN 4"]
["WOMENS HEALTH 1 *WH* CLINIC"]
["WOMENS HEALTH 1 *WH* CLINIC"]
["BLUE 2"]
["GREEN 3"]
["GOLD 3"]
["GREEN 5"]
["GREEN 6"]
["KENOSHA 1 *WH* CBOC"]
["BLUE 5"]
["MC HENRY 2 CBOC"]
["GREEN 4"]
["MC HENRY 5 CBOC"]
["GREEN 4"]
["GOLD 5"]
["GREEN 4"]
["WOMENS HEALTH 1 *WH* CLINIC"]
["GOLD 2"]
["GOLD 3"]
["GREEN 4"]
["BLUE 5"]
["GOLD 2"]
["BLUE 1"]
["WOMENS HEALTH 1 *WH* CLINIC"]
["BLUE 5"]
["GOLD 3"]
["GOLD 1"]
["WOMENS HEALTH 2 *WH* CLINIC"]
["BLUE 1"]
["GOLD 1"]
["MC HENRY 5 CBOC"]
["BLUE 5"]
["MC HENRY 2 CBOC"]
["EVANSTON 2 *WH* CBOC"]
["GREEN 6"]
["GOLD 1"]
["GOLD 1"]
["MC HENRY 1 *WH* CBOC"]
["BLUE 1"]
["BLUE 1"]
["GREEN 5"]
["GOLD 1"]
["GREEN 4"]
["BLUE 1"]
["BLUE 1"]
["GOLD 1"]
["GOLD 2"]
["GOLD 2"]
["KENOSHA 1 *WH* CBOC"]
["MC HENRY 2 CBOC"]
["BLUE 1"]
["GOLD 3"]
["EVANSTON 2 *WH* CBOC"]
["GREEN 5"]
["GOLD 2"]
["EVANSTON 2 *WH* CBOC"]
["KENOSHA 2 *WH* CBOC"]
["EVANSTON 2 *WH* CBOC"]
["GOLD 2"]
["BLUE 1"]
["GREEN 4"]
["GOLD 2"]
["WOMENS HEALTH 2 *WH* CLINIC"]
["GOLD 2"]
["GREEN 4"]
["GOLD 1"]
["GOLD 3"]
["GREEN 4"]
["GOLD 3"]
["GOLD 1"]
["BLUE 5"]
["GOLD 2"]
["GOLD 1"]
["GOLD 2"]
["BLUE 1"]
["MC HENRY 1 *WH* CBOC"]
["GREEN 4"]
["GOLD 1"]
["MC HENRY 1 *WH* CBOC"]
["MC HENRY 4 *WH* CBOC"]
["GREEN 4"]
["GOLD 1"]
["GREEN 4"]
["GREEN 4"]
["GREEN 4"]
["GOLD 2"]
["GOLD 2"]
["GOLD 2"]
["GREEN 3"]
["MC HENRY 5 CBOC"]
["GOLD 2"]
["MC HENRY 5 CBOC"]
["MC HENRY 5 CBOC"]
["BLUE 2"]
["GOLD 3"]
["GREEN 4"]
["GREEN 4"]
["GOLD 2"]
["GOLD 2"]
["BLUE 5"]
["EVANSTON 2 *WH* CBOC"]
["EVANSTON 2 *WH* CBOC"]
["GREEN 3"]
["WOMENS HEALTH 1 *WH* CLINIC"]
["GREEN 4"]
["BLUE 1"]
["GOLD 2"]
["GOLD 1"]
["GREEN 4"]
["GOLD 2"]
["MC HENRY 2 CBOC"]
["BLUE 1"]
["GREEN 4"]
["EVANSTON 2 *WH* CBOC"]
["WOMENS HEALTH 2 *WH* CLINIC"]
["GREEN 4"]
["GOLD 2"]
["GOLD 2"]
["MC HENRY 2 CBOC"]
["MC HENRY 1 *WH* CBOC"]
["GOLD 2"]
["GOLD 1"]
["GOLD 2"]
["GREEN 4"]
["GOLD 2"]
["MC HENRY 1 *WH* CBOC"]
["EVANSTON 2 *WH* CBOC"]
["MC HENRY 1 *WH* CBOC"]
["BLUE 5"]
["GOLD 1"]
["MC HENRY 1 *WH* CBOC"]
["GREEN 4"]
["KENOSHA 2 *WH* CBOC"]
["MC HENRY 1 *WH* CBOC"]
["GREEN 6"]
["EVANSTON 2 *WH* CBOC"]
["MC HENRY 5 CBOC"]
["KENOSHA 2 *WH* CBOC"]
["GOLD 1"]
["MC HENRY 1 *WH* CBOC"]
["GREEN 4"]
["KENOSHA 2 *WH* CBOC"]
["GOLD 1"]
["MC HENRY 5 CBOC"]
["KENOSHA 2 *WH* CBOC"]
["MC HENRY 1 *WH* CBOC"]
["MC HENRY 1 *WH* CBOC"]
["GOLD 1"]
["MC HENRY 5 CBOC"]
["GOLD 1"]
["KENOSHA 2 *WH* CBOC"]
["GOLD 3"]
["MC HENRY 1 *WH* CBOC"]
["GOLD 2"]
["GREEN 5"]
["GREEN 3"]
["MC HENRY 5 CBOC"]
["MC HENRY 4 *WH* CBOC"]
["MC HENRY 5 CBOC"]
["MC HENRY 1 *WH* CBOC"]
["GOLD 3"]
["MC HENRY 5 CBOC"]
["MC HENRY 1 *WH* CBOC"]
["MC HENRY 5 CBOC"]
["MC HENRY 5 CBOC"]
["BLUE 6"]
["BLUE 1"]
["GOLD 1"]
["KENOSHA 2 *WH* CBOC"]
["BLUE 6"]
["GOLD 4"]
["GREEN 4"]
["BLUE 1"]
["GOLD 1"]
["MC HENRY 2 CBOC"]
["MC HENRY 1 *WH* CBOC"]
["MC HENRY 5 CBOC"]
["WOMENS HEALTH 1 *WH* CLINIC"]
["GOLD 1"]
["GREEN 5"]
["KENOSHA 2 *WH* CBOC"]
["GREEN 4"]
["BLUE 5"]
["GOLD 3"]
["GOLD 2"]
["GOLD 2"]
["GREEN 4"]
["MC HENRY 1 *WH* CBOC"]
["GOLD 1"]
["GREEN 4"]
["KENOSHA 2 *WH* CBOC"]
["MC HENRY 1 *WH* CBOC"]
["MC HENRY 1 *WH* CBOC"]
["BLUE 5"]
["MC HENRY 1 *WH* CBOC"]
["GREEN 4"]
["BLUE 1"]
["MC HENRY 5 CBOC"]
["BLUE 1"]
["MC HENRY 1 *WH* CBOC"]
["MC HENRY 1 *WH* CBOC"]
["MC HENRY 1 *WH* CBOC"]
["BLUE 1"]
["MC HENRY 1 *WH* CBOC"]
["MC HENRY 1 *WH* CBOC"]
["MC HENRY 1 *WH* CBOC"]
["GREEN 3"]
["GOLD 2"]
["GOLD 2"]
["MC HENRY 1 *WH* CBOC"]
["KENOSHA 2 *WH* CBOC"]
["GREEN 5"]
["GREEN 4"]
["WOMENS HEALTH 1 *WH* CLINIC"]
["BLUE 1"]
["BLUE 2"]
["BLUE 1"]
["WOMENS HEALTH 1 *WH* CLINIC"]
["GREEN 4"]
["KENOSHA 2 *WH* CBOC"]
["GREEN 5"]
["GOLD 3"]
["BLUE 1"]
["GREEN 5"]
["GOLD 1"]
["WOMENS HEALTH 1 *WH* CLINIC"]
["WOMENS HEALTH 1 *WH* CLINIC"]
["GREEN 5"]
["GREEN 4"]
["MC HENRY 4 *WH* CBOC"]
["MC HENRY 5 CBOC"]
["MC HENRY 5 CBOC"]
["GOLD 3"]
["BLUE 5"]
["BLUE 1"]
["BLUE 1"]
["BLUE 1"]
["GREEN 4"]
["GREEN 4"]
["GOLD 2"]
["GOLD 1"]
["BLUE 1"]
["GOLD 2"]
["GREEN 4"]
["GOLD 3"]
["GOLD 2"]
["MC HENRY 1 *WH* CBOC"]
["BLUE 1"]
["BLUE 2"]
["WOMENS HEALTH 2 *WH* CLINIC"]
["BLUE 1"]
["GREEN 4"]
["WOMENS HEALTH 1 *WH* CLINIC"]
["MC HENRY 4 *WH* CBOC"]
["MC HENRY 4 *WH* CBOC"]
["BLUE 1"]
["GOLD 3"]
["BLUE 1"]
["MC HENRY 5 CBOC"]
["WOMENS HEALTH 2 *WH* CLINIC"]
["KENOSHA 2 *WH* CBOC"]
["KENOSHA 2 *WH* CBOC"]
["GREEN 6"]
["GOLD 3"]
["GREEN 1"]
["GREEN 3"]
["GOLD 1"]
["BLUE 1"]
["GREEN 3"]
["KENOSHA 2 *WH* CBOC"]
["WOMENS HEALTH 2 *WH* CLINIC"]
["BLUE 1"]
["KENOSHA 2 *WH* CBOC"]
["BLUE 1"]
["MC HENRY 4 *WH* CBOC"]
["GREEN 3"]
["BLUE 1"]
["WOMENS HEALTH 2 *WH* CLINIC"]
["WOMENS HEALTH 2 *WH* CLINIC"]
["WOMENS HEALTH 1 *WH* CLINIC"]
["GREEN 5"]
["GOLD 2"]
["GREEN 1"]
["GREEN 4"]
["GREEN 1"]
["GOLD 1"]
["BLUE 1"]
["BLUE 2"]
["BLUE 5"]
["KENOSHA 2 *WH* CBOC"]
["EVANSTON 2 *WH* CBOC"]
["HBPC 2 *HBPC*"]
["GREEN 4"]
["GREEN 5"]
["GREEN 5"]
["EVANSTON 2 *WH* CBOC"]
["WOMENS HEALTH 2 *WH* CLINIC"]
["EVANSTON 2 *WH* CBOC"]
["BLUE 1"]
["GOLD 3"]
["MC HENRY 5 CBOC"]
["GOLD 1"]
["GREEN 1"]
["MC HENRY 5 CBOC"]
["WOMENS HEALTH 1 *WH* CLINIC"]
["GREEN 5"]
["GOLD 1"]
["GREEN 6"]
["GOLD 3"]
["WOMENS HEALTH 2 *WH* CLINIC"]
["MC HENRY 4 *WH* CBOC"]
["GREEN 5"]
["KENOSHA 2 *WH* CBOC"]
["GREEN 4"]
["BLUE 1"]
["GOLD 2"]
["GREEN 1"]
["EVANSTON 2 *WH* CBOC"]
["BLUE 5"]
["GOLD 3"]
["GOLD 1"]
["GOLD 2"]
["WOMENS HEALTH 1 *WH* CLINIC"]
["GREEN 1"]
["WOMENS HEALTH 2 *WH* CLINIC"]
["KENOSHA 2 *WH* CBOC"]
["BLUE 1"]
["GREEN 5"]
["GOLD 1"]
["GREEN 3"]
["GOLD 5"]
["GREEN 4"]
["GOLD 1"]
["MC HENRY 4 *WH* CBOC"]
["WOMENS HEALTH 1 *WH* CLINIC"]
["GREEN 5"]
["MC HENRY 1 *WH* CBOC"]
["BLUE 1"]
["GOLD 5"]
["BLUE 1"]
["MC HENRY 1 *WH* CBOC"]
["KENOSHA 2 *WH* CBOC"]
["KENOSHA 2 *WH* CBOC"]
["GOLD 2"]
["BLUE 1"]
["MC HENRY 4 *WH* CBOC"]
["GOLD 2"]
["MC HENRY 2 CBOC"]
["GREEN 4"]
["BLUE 2"]
["WOMENS HEALTH 1 *WH* CLINIC"]
["GOLD 3"]
["GREEN 5"]
["GOLD 4"]
["GREEN 3"]
["MC HENRY 5 CBOC"]
["WOMENS HEALTH 1 *WH* CLINIC"]
["MC HENRY 5 CBOC"]
["GREEN 3"]
["MC HENRY 1 *WH* CBOC"]
["GOLD 1"]
["GOLD 1"]
["KENOSHA 2 *WH* CBOC"]
["MC HENRY 2 CBOC"]
["MC HENRY 4 *WH* CBOC"]
["MC HENRY 2 CBOC"]
["WOMENS HEALTH 1 *WH* CLINIC"]
["GOLD 2"]
["BLUE 6"]
["BLUE 1"]
["BLUE 1"]
["GOLD 5"]
["GOLD 5"]
["GREEN 5"]
["GREEN 3"]
["GREEN 6"]
["GREEN 5"]
["BLUE 1"]
["WOMENS HEALTH 1 *WH* CLINIC"]
["MC HENRY 5 CBOC"]
["GREEN 4"]
["GOLD 1"]
["GOLD 3"]
["BLUE 1"]
["BLUE 1"]
["MC HENRY 2 CBOC"]
["MC HENRY 5 CBOC"]
["WOMENS HEALTH 1 *WH* CLINIC"]
["GOLD 2"]
["MC HENRY 4 *WH* CBOC"]
["WOMENS HEALTH 1 *WH* CLINIC"]
["MC HENRY 5 CBOC"]
["GOLD 2"]
["BLUE 2"]
["GOLD 2"]
["WOMENS HEALTH 2 *WH* CLINIC"]
["BLUE 5"]
["GREEN 3"]
["MC HENRY 5 CBOC"]
["GOLD 2"]
["GOLD 2"]
["BLUE 1"]
["GOLD 3"]
["MC HENRY 1 *WH* CBOC"]
["MC HENRY 1 *WH* CBOC"]
["MC HENRY 1 *WH* CBOC"]
["GOLD 3"]
["BLUE 5"]
["MC HENRY 2 CBOC"]
["GREEN 5"]
["GOLD 3"]
["MC HENRY 1 *WH* CBOC"]
["BLUE 1"]
["WOMENS HEALTH 1 *WH* CLINIC"]
["GREEN 4"]
["GOLD 2"]
["GOLD 5"]
["MC HENRY 1 *WH* CBOC"]
["BLUE 1"]
["GOLD 2"]
["GREEN 4"]
["BLUE 5"]
["BLUE 1"]
["GOLD 1"]
["GOLD 2"]
["GREEN 1"]
["GREEN 4"]
["WOMENS HEALTH 2 *WH* CLINIC"]
["GOLD 3"]
["WOMENS HEALTH 1 *WH* CLINIC"]
["GREEN 4"]
["GREEN 5"]
["GREEN 4"]
["BLUE 1"]
["MC HENRY 4 *WH* CBOC"]
["WOMENS HEALTH 1 *WH* CLINIC"]
["EVANSTON 2 *WH* CBOC"]
["WOMENS HEALTH 1 *WH* CLINIC"]
["BLUE 6"]
["MC HENRY 2 CBOC"]
["GOLD 2"]
["GREEN 3"]
["WOMENS HEALTH 2 *WH* CLINIC"]
["GOLD 2"]
["MC HENRY 5 CBOC"]
["MC HENRY 1 *WH* CBOC"]
["BLUE 6"]
["GOLD 5"]
["WOMENS HEALTH 1 *WH* CLINIC"]
["WOMENS HEALTH 1 *WH* CLINIC"]
["GOLD 3"]
["MC HENRY 4 *WH* CBOC"]
["MC HENRY 2 CBOC"]
["MC HENRY 4 *WH* CBOC"]
["EVANSTON 2 *WH* CBOC"]
["BLUE 1"]
["GOLD 2"]
["WOMENS HEALTH 1 *WH* CLINIC"]
["WOMENS HEALTH 1 *WH* CLINIC"]
["GREEN 6"]
["GREEN 4"]
["SPINAL CORD INJURY *SCI*"]
["MC HENRY 4 *WH* CBOC"]
["MC HENRY 2 CBOC"]
["GOLD 3"]
["WOMENS HEALTH 2 *WH* CLINIC"]
["MC HENRY 2 CBOC"]
["MC HENRY 4 *WH* CBOC"]
["GREEN 4"]
["GOLD 5"]
["GOLD 3"]
["GREEN 3"]
["GREEN 3"]
["BLUE 2"]
["WOMENS HEALTH 2 *WH* CLINIC"]
["MC HENRY 1 *WH* CBOC"]
["GOLD 3"]
["GOLD 3"]
["GREEN 4"]
["WOMENS HEALTH 2 *WH* CLINIC"]
["GREEN 4"]
["MC HENRY 4 *WH* CBOC"]
["GREEN 3"]
["BLUE 6"]
["GOLD 3"]
["GREEN 4"]
["GOLD 1"]
["BLUE 1"]
["BLUE 6"]
["MC HENRY 1 *WH* CBOC"]
["GOLD 5"]
["BLUE 5"]
["BLUE 2"]
["MC HENRY 5 CBOC"]
["BLUE 1"]
["GREEN 1"]
["GREEN 3"]
["MC HENRY 1 *WH* CBOC"]
["MC HENRY 1 *WH* CBOC"]
["GOLD 1"]
["GOLD 4"]
["GOLD 3"]
["GREEN 1"]
["MC HENRY 1 *WH* CBOC"]
["GREEN 4"]
["GOLD 3"]
["BLUE 1"]
["GOLD 3"]
["GREEN 1"]
["WOMENS HEALTH 1 *WH* CLINIC"]
["GOLD 1"]
["MC HENRY 1 *WH* CBOC"]
["MC HENRY 5 CBOC"]
["MC HENRY 2 CBOC"]
["GREEN 4"]
["BLUE 2"]
["GOLD 1"]
["GREEN 3"]
["GOLD 1"]
["MC HENRY 1 *WH* CBOC"]
["WOMENS HEALTH 1 *WH* CLINIC"]
["GREEN 3"]
["GOLD 2"]
["MC HENRY 2 CBOC"]
["MC HENRY 5 CBOC"]
["GOLD 2"]
["MC HENRY 1 *WH* CBOC"]
["GOLD 3"]
["GOLD 1"]
["GOLD 2"]
["BLUE 5"]
["GOLD 1"]
["MC HENRY 5 CBOC"]
["GREEN 1"]
["MC HENRY 1 *WH* CBOC"]
["MC HENRY 4 *WH* CBOC"]
["GOLD 3"]
["MC HENRY 5 CBOC"]
["GOLD 5"]
["GOLD 2"]
["BLUE 5"]
["BLUE 5"]
["GOLD 2"]
["KENOSHA 1 *WH* CBOC"]
["MC HENRY 4 *WH* CBOC"]
["MC HENRY 5 CBOC"]
["MC HENRY 1 *WH* CBOC"]
["KENOSHA 2 *WH* CBOC"]
["MC HENRY 1 *WH* CBOC"]
["KENOSHA 1 *WH* CBOC"]
["KENOSHA 1 *WH* CBOC"]
["KENOSHA 1 *WH* CBOC"]
["KENOSHA 2 *WH* CBOC"]
["GOLD 5"]
["GOLD 3"]
["WOMENS HEALTH 1 *WH* CLINIC"]
["BLUE 1"]
["GREEN 1"]
["HBPC 1 *HBPC*"]
["MC HENRY 4 *WH* CBOC"]
["BLUE 2"]
["MC HENRY 2 CBOC"]
["GREEN 1"]
["GREEN 5"]
["MC HENRY 5 CBOC"]
["GREEN 1"]
["GOLD 1"]
["MC HENRY 1 *WH* CBOC"]
["MC HENRY 5 CBOC"]
["GREEN 4"]
["GREEN 4"]
["GOLD 3"]
["BLUE 6"]
["BLUE 6"]
["BLUE 2"]
["KENOSHA 1 *WH* CBOC"]
["BLUE 5"]
["WOMENS HEALTH 1 *WH* CLINIC"]
["KENOSHA 1 *WH* CBOC"]
["MC HENRY 1 *WH* CBOC"]
["BLUE 2"]
["MC HENRY 1 *WH* CBOC"]
["MC HENRY 1 *WH* CBOC"]
["MC HENRY 1 *WH* CBOC"]
["MC HENRY 1 *WH* CBOC"]
["MC HENRY 5 CBOC"]

{"sheet":"Sheet1","index":3,"n_rows":5,"n_cols":2,"rows_kept":5,"cut":false,"hidden":false,"merged":[]}
[null,""]
[null,""]
[null,""]
[null,""]
[null,""]

{"sheet":"Master","index":4,"n_rows":645,"n_cols":12,"rows_kept":645,"cut":false,"hidden":false,"merged":[]}
["PtCount","AccessLevel",null,null,null,null,null,null,"Test"]
["Unique Patients in selected cohorts: 639","Your Level of Access:\r\nYou have Station level permission: 556",null,null,null,null,null,null,"Test",null,null,"Use this sheet with: https://youtu.be/MHYOIwauz04"]
[null,null,null,null,null,null,null,null,"Test"]
["PatientName2","PatientSSN2","PostStudyDate","LastLabChemCompleteDate2","LastColonoscopyDate2","DaysSinceColonoscopy2","LastVAorNonVA","PCPName5---------------------","Team2","NextPCAppointment","NextPCApptClinicName","DIVISION_FCDM-------------------------------------------------"]
["Jones,JANE1",111111111,null,"2021-04-22","2008-03-19",5064,"VAProcedure; JLV AdmParent: (V12) (556) North Chicago, IL HCS","KIZHNER,JULIA","GREEN 3","2022-03-08T11:00:00","(556) JAL PACT PC PA GREEN3","(V12) (556) North Chicago, IL (Captain James A. Lovell)"]
["Jones,JANE2",111111112,null,"2019-06-19","2013-07-31",3104,"VAProcedure; JLV AdmParent: (V12) (556) North Chicago, IL HCS","SYEDA,SARA J","GOLD 3",null,null,"(V12) (556) North Chicago, IL (Captain James A. Lovell)"]
["Jones,JANE3",111111113,null,"2020-05-26","2020-06-15",593,"VAProcedure; JLV AdmParent: (V12) (556) North Chicago, IL HCS","SYEDA,SARA J","GOLD 3",null,null,"(V12) (556) North Chicago, IL (Captain James A. Lovell)"]
["Jones,JANE4",111111114,null,null,null,null,"Gap Health Factor - Check Pt Details","FRANCISCO,RAMIL","GREEN 1","2022-02-18T08:00:00","(556) JAL PACT PC RD TELE","(V12) (556) North Chicago, IL (Captain James A. Lovell)"]
["Jones,JANE5",111111115,null,"2017-02-16","2011-03-17",3971,"VAProcedure; JLV AdmParent: (V12) (556) North Chicago, IL HCS","SYEDA,SARA J","GOLD 3",null,null,"(V12) (556) North Chicago, IL (Captain James A. Lovell)"]
["Jones,JANE6",111111116,null,"2017-06-07","2017-02-15",1809,"VAProcedure; JLV AdmParent: (V12) (556) North Chicago, IL HCS","IQBAL,FARZANA","EVANSTON 2 WH CBOC",null,null,"(V12) (556GA) Evanston, IL"]
["Jones,JANE7",111111117,null,"2017-06-12","2017-07-18",1656,"VAProcedure; JLV AdmParent: (V12) (578) Hines, IL HCS","SIAS,PATRICIA E","MC HENRY 5 CBOC",null,null,"(V12) (556GC) McHenry, IL"]
["Jones,JANE8",111111118,"2006-11-14",null,"2006-10-31",5569,"VAProcedure; JLV AdmParent: (V12) (556) North Chicago, IL HCS","SMIRNOV,MICHAEL","GOLD 1",null,null,"(V12) (556) North Chicago, IL (Captain James A. Lovell)"]
["Jones,JANE9",111111119,"2006-12-12",null,"2006-11-28",5541,"VAProcedure; JLV AdmParent: (V15) (657) St. Louis, MO HCS","SMIRNOV,MICHAEL","GOLD 1",null,null,"(V12) (556) North Chicago, IL (Captain James A. Lovell)"]
["Jones,JANE10",111111120,"2007-05-11",null,"2007-04-27",5391,"VAProcedure; JLV AdmParent: (V12) (556) North Chicago, IL HCS","CHAVEZ,LUIS A","BLUE 5","2022-04-04T13:00:00","(556) JAL PACT PC MD BLUE5","(V12) (556) North Chicago, IL (Captain James A. Lovell)"]
["Jones,JANE11",111111121,"2007-05-21",null,"2007-05-07",5381,"VAProcedure; JLV AdmParent: (V12) (556) North Chicago, IL HCS","OOMMEN,SAJI","BLUE 1",null,null,"(V12) (556) North Chicago, IL (Captain James A. Lovell)"]
["Jones,JANE12",111111122,"2007-09-03",null,"2007-08-20",5276,"VAProcedure; JLV AdmParent: (V12) (556) North Chicago, IL HCS","BANJO,ADEOLA","MC HENRY 4 WH CBOC",null,null,"(V12) (556GC) McHenry, IL"]
["Jones,JANE13",111111123,"2007-10-18",null,null,null,"Gap Health Factor - Check Pt Details","FRANCISCO,RAMIL","GREEN 1","2022-04-06T11:00:00","(556) JAL PACT PC LPN PROC","(V12) (556) North Chicago, IL (Captain James A. Lovell)"]
["Jones,JANE14",111111124,"2007-11-19",null,"2007-11-05",5199,"VAProcedure; JLV AdmParent: (V12) (556) North Chicago, IL HCS","MOHAMMED,BAKHTIAR A","MC HENRY 2 CBOC",null,null,"(V12) (556GC) McHenry, IL"]
["Jones,JANE15",111111125,"2008-01-14",null,"2007-12-31",5143,"VAProcedure; JLV AdmParent: (V12) (556) North Chicago, IL HCS","SMIRNOV,MICHAEL","GOLD 1",null,null,"(V12) (556) North Chicago, IL (Captain James A. Lovell)"]
["Jones,JANE16",111111126,"2008-05-09",null,"2008-04-25",5027,"VAProcedure; JLV AdmParent: (V12) (556) North Chicago, IL HCS","OOMMEN,SAJI","BLUE 1",null,null,"(V12) (556) North Chicago, IL (Captain James A. Lovell)"]
["Jones,JANE17",111111127,"2008-06-27",null,null,null,"Gap Health Factor - Check Pt Details","CHAVEZ,LUIS A","BLUE 5","2022-06-27T08:30:00","(556) JAL PACT PC MD BLUE5","(V12) (556) North Chicago, IL (Captain James A. Lovell)"]
["Jones,JANE18",111111128,"2008-08-13",null,"2008-07-30",4931,"VAProcedure; JLV AdmParent: (V12) (556) North Chicago, IL HCS","ROY,DEBJANI MD","GREEN 4","2022-07-19T11:00:00","(556) JAL PACT PC MD GREEN4","(V12) (556) North Chicago, IL (Captain James A. Lovell)"]
["Jones,JANE19",111111129,"2008-12-08",null,"2008-11-24",4814,"VAProcedure; JLV AdmParent: (V12) (556) North Chicago, IL HCS","OOMMEN,SAJI","BLUE 1","2022-02-07T11:00:00","(556) JAL PACT PC MHI PSY, IND","(V12) (556) North Chicago, IL (Captain James A. Lovell)"]
["Jones,JANE20",111111130,"2009-07-24",null,"2009-07-10",4586,"NonVAProcedure; JLV AdmParent: (V06) (558) Durham, NC HCS","ROY,DEBJANI MD","GREEN 4","2022-03-15T10:00:00","(556) JAL PACT PC MD GREEN4","(V12) (556) North Chicago, IL (Captain James A. Lovell)"]
["Jones,JANE21",111111131,"2009-08-31",null,"2009-08-17",4548,"VAProcedure; JLV AdmParent: (V12) (556) North Chicago, IL HCS","CHAVEZ,LUIS A","BLUE 5","2022-07-18T13:00:00","(556) JAL PACT PC MD BLUE5","(V12) (556) North Chicago, IL (Captain James A. Lovell)"]
["Jones,JANE22",111111132,"2010-01-18",null,"2010-01-04",4408,"VAProcedure; JLV AdmParent: (V12) (537) Chicago, IL HCS","SMIRNOV,MICHAEL","GOLD 1",null,null,"(V12) (556) North Chicago, IL (Captain James A. Lovell)"]
["Jones,JANE23",111111133,"2010-03-26",null,"2010-03-12",4341,"VAProcedure; JLV AdmParent: (V12) (556) North Chicago, IL HCS","OOMMEN,SAJI","BLUE 1",null,null,"(V12) (556) North Chicago, IL (Captain James A. Lovell)"]
["Jones,JANE24",111111134,"2010-04-20",null,"2010-04-06",4316,"VAProcedure; JLV AdmParent: (V12) (556) North Chicago, IL HCS","ETINGEN,MARGARITA","GOLD 2",null,null,"(V12) (556) North Chicago, IL (Captain James A. Lovell)"]
["Jones,JANE25",111111135,"2010-10-18",null,"2010-10-04",4135,"VAProcedure; JLV AdmParent: (V12) (556) North Chicago, IL HCS","ROY,DEBJANI MD","GREEN 4",null,null,"(V12) (556) North Chicago, IL (Captain James A. Lovell)"]
["Jones,JANE26",111111136,"2010-10-29",null,"2010-10-15",4124,"VAProcedure; JLV AdmParent: (V22) (501) New Mexico HCS","ROY,DEBJANI MD","GREEN 4",null,null,"(V12) (556) North Chicago, IL (Captain James A. Lovell)"]
["Jones,JANE27",111111137,"2011-02-07",null,"2011-01-24",4023,"VAProcedure; JLV AdmParent: (V12) (556) North Chicago, IL HCS","ETINGEN,MARGARITA","GOLD 2","2022-02-22T11:00:00","(556) JAL PACT PC MD GOLD2","(V12) (556) North Chicago, IL (Captain James A. Lovell)"]
["Jones,JANE28",111111138,"2011-03-01",null,null,null,"Gap Health Factor - Check Pt Details","SMIRNOV,MICHAEL","GOLD 1","2022-09-01T11:00:00","(556) JAL PACT PC MD GOLD1","(V12) (556) North Chicago, IL (Captain James A. Lovell)"]
["Jones,JANE29",111111139,"2011-03-04",null,"2011-02-18",3998,"VAProcedure; JLV AdmParent: (V12) (556) North Chicago, IL HCS","SMIRNOV,MICHAEL","GOLD 1","2022-05-05T15:00:00","(556) JAL PACT PC MD GOLD1","(V12) (556) North Chicago, IL (Captain James A. Lovell)"]
["Jones,JANE30",111111140,"2011-05-25",null,"2011-05-11",3916,"VAProcedure; JLV AdmParent: (V12) (695) Milwaukee, WI HCS","CHAVEZ,LUIS A","BLUE 5",null,null,"(V12) (556) North Chicago, IL (Captain James A. Lovell)"]
["Jones,JANE31",111111141,"2011-05-31",null,null,null,"Gap Health Factor - Check Pt Details","ETINGEN,MARGARITA","GOLD 2",null,null,"(V12) (556) North Chicago, IL (Captain James A. Lovell)"]
["Jones,JANE32",111111142,"2011-07-19",null,"2011-07-05",3861,"VAProcedure; JLV AdmParent: (V12) (556) North Chicago, IL HCS","SYEDA,SARA J","GOLD 3",null,null,"(V12) (556) North Chicago, IL (Captain James A. Lovell)"]
["Jones,JANE33",111111143,"2011-08-15",null,"2011-08-01",3834,"VAProcedure; JLV AdmParent: (V12) (556) North Chicago, IL HCS","KIZHNER,JULIA","GREEN 3","2022-02-22T09:30:00","(556) JAL PACT PC PA GREEN3","(V12) (556) North Chicago, IL (Captain James A. Lovell)"]
["Jones,JANE34",111111144,"2012-01-04",null,"2011-12-21",3692,"VAProcedure; JLV AdmParent: (V12) (556) North Chicago, IL HCS","JUIRIS,TAHIRA","WOMENS HEALTH 2 WH CLINIC",null,null,"(V12) (556) North Chicago, IL (Captain James A. Lovell)"]
["Jones,JANE35",111111145,"2012-02-10",null,"2012-01-27",3655,"VAProcedure; JLV AdmParent: (V12) (578) Hines, IL HCS","CHAVEZ,LUIS A","BLUE 5",null,null,"(V12) (556) North Chicago, IL (Captain James A. Lovell)"]
["Jones,JANE36",111111146,"2012-03-02",null,"2012-02-17",3634,"VAProcedure; JLV AdmParent: (V12) (556) North Chicago, IL HCS","CHAVEZ,LUIS A","BLUE 5","2022-04-08T08:30:00","(556) JAL PACT PC MD BLUE5","(V12) (556) North Chicago, IL (Captain James A. Lovell)"]
["Jones,JANE37",111111147,"2012-03-30",null,"2012-03-16",3606,"VAProcedure; JLV AdmParent: (V12) (695) Milwaukee, WI HCS","OOMMEN,SAJI","BLUE 1",null,null,"(V12) (556) North Chicago, IL (Captain James A. Lovell)"]
["Jones,JANE38",111111148,"2012-03-30",null,"2012-03-16",3606,"VAProcedure; JLV AdmParent: (V12) (556) North Chicago, IL HCS","ETINGEN,MARGARITA","GOLD 2","2022-11-28T08:00:00","(556) JAL PACT PC MD GOLD2","(V12) (556) North Chicago, IL (Captain James A. Lovell)"]
["Jones,JANE39",111111149,"2012-04-10",null,"2012-03-27",3595,"VAProcedure; JLV AdmParent: (V12) (556) North Chicago, IL HCS","SIAS,PATRICIA E","MC HENRY 5 CBOC",null,null,"(V12) (556GC) McHenry, IL"]
["Jones,JANE40",111111150,"2012-05-08",null,"2012-04-24",3567,"VAProcedure; JLV AdmParent: (V12) (556) North Chicago, IL HCS","SMIRNOV,MICHAEL","GOLD 1",null,null,"(V12) (556) North Chicago, IL (Captain James A. Lovell)"]
["Jones,JANE41",111111151,"2012-06-15",null,"2012-06-01",3529,"VAProcedure; JLV AdmParent: (V12) (556) North Chicago, IL HCS","OOMMEN,SAJI","BLUE 1",null,null,"(V12) (556) North Chicago, IL (Captain James A. Lovell)"]
["Jones,JANE42",111111152,"2012-09-14",null,"2012-08-31",3438,"VAProcedure; JLV AdmParent: (V12) (556) North Chicago, IL HCS","KIZHNER,JULIA","GREEN 3","2022-08-25T09:00:00","(556) JAL PACT PC PA GREEN3","(V12) (556) North Chicago, IL (Captain James A. Lovell)"]
["Jones,JANE43",111111153,"2012-11-23",null,"2012-11-09",3368,"VAProcedure; JLV AdmParent: (V12) (556) North Chicago, IL HCS","SIAS,PATRICIA E","MC HENRY 5 CBOC",null,null,"(V12) (556GC) McHenry, IL"]
["Jones,JANE44",111111154,"2012-11-27",null,"2012-11-13",3364,"VAProcedure; JLV AdmParent: (V12) (607) Madison, WI HCS","BANJO,ADEOLA","MC HENRY 4 WH CBOC",null,null,"(V12) (556GC) McHenry, IL"]
["Jones,JANE45",111111155,"2012-12-04",null,"2012-11-20",3357,"VAProcedure; JLV AdmParent: (V12) (556) North Chicago, IL HCS","ROY,DEBJANI MD","GREEN 4","2022-02-01T10:00:00","(556) JAL PACT PC MD GREEN4","(V12) (556) North Chicago, IL (Captain James A. Lovell)"]
["Jones,JANE46",111111156,"2013-01-24",null,"2013-01-10",3306,"VAProcedure; JLV AdmParent: (V12) (556) North Chicago, IL HCS","ROY,DEBJANI MD","GREEN 4",null,null,"(V12) (556) North Chicago, IL (Captain James A. Lovell)"]
["Jones,JANE47",111111157,"2013-02-28",null,"2013-02-14",3271,"VAProcedure; JLV AdmParent: (V12) (556) North Chicago, IL HCS","IFTIKHAR,SYEDA A MD","GREEN 5",null,null,"(V12) (556) North Chicago, IL (Captain James A. Lovell)"]
["Jones,JANE48",111111158,"2013-04-24",null,"2013-04-10",3216,"VAProcedure; JLV AdmParent: (V12) (556) North Chicago, IL HCS","ETINGEN,MARGARITA","GOLD 2","2022-01-31T08:30:00","(556) JAL PACT PHARM GOLD TELE2 ","(V12) (556) North Chicago, IL (Captain James A. Lovell)"]
["Jones,JANE49",111111159,"2013-08-05",null,"2013-07-22",3113,"NonVAProcedure; JLV AdmParent: (V12) (556) North Chicago, IL HCS","OOMMEN,SAJI","BLUE 1",null,null,"(V12) (556) North Chicago, IL (Captain James A. Lovell)"]
["Jones,JANE50",111111160,"2013-08-15",null,"2013-08-01",3103,"VAProcedure; JLV AdmParent: (V12) (556) North Chicago, IL HCS","RAVIPATI,MAMATA MD","GOLD 4",null,null,"(V12) (556) North Chicago, IL (Captain James A. Lovell)"]
["Jones,JANE51",111111161,"2013-11-01",null,"2013-10-18",3025,"NonVAProcedure; JLV AdmParent: (V12) (556) North Chicago, IL HCS","FRANCISCO,RAMIL","GREEN 1",null,null,"(V12) (556) North Chicago, IL (Captain James A. Lovell)"]
["Jones,JANE52",111111162,"2013-11-04",null,"2013-10-21",3022,"VAProcedure; JLV AdmParent: (V12) (556) North Chicago, IL HCS","CHAVEZ,LUIS A","BLUE 5","2022-04-05T10:00:00","(556) JAL PACT PC MD BLUE5","(V12) (556) North Chicago, IL (Captain James A. Lovell)"]
["Jones,JANE53",111111163,"2013-11-04",null,"2013-10-21",3022,"VAProcedure; JLV AdmParent: (V12) (556) North Chicago, IL HCS","RAVIPATI,MAMATA MD","GOLD 4","2022-02-04T10:30:00","(556) JAL PACT PHARM GOLD TELE2 ","(V12) (556) North Chicago, IL (Captain James A. Lovell)"]
["Jones,JANE54",111111164,"2013-11-05",null,"2013-10-22",3021,"VAProcedure; JLV AdmParent: (V10) (610) Northern Indiana HCS","HOLLOWAY,ALISON R MD","WOMENS HEALTH 1 WH CLINIC",null,null,"(V12) (556) North Chicago, IL (Captain James A. Lovell)"]
["Jones,JANE55",111111165,"2014-01-30",null,"2014-01-16",2935,"VAProcedure; JLV AdmParent: (V12) (556) North Chicago, IL HCS","ROY,DEBJANI MD","GREEN 4",null,null,"(V12) (556) North Chicago, IL (Captain James A. Lovell)"]
["Jones,JANE56",111111166,"2014-03-12",null,"2014-02-26",2894,"VAProcedure; JLV AdmParent: (V22) (644) Phoenix, AZ HCS","HOLLOWAY,ALISON R MD","WOMENS HEALTH 1 WH CLINIC",null,null,"(V12) (556) North Chicago, IL (Captain James A. Lovell)"]
["Jones,JANE57",111111167,"2014-04-16",null,"2014-04-02",2859,"VAProcedure; JLV AdmParent: (V12) (556) North Chicago, IL HCS","HOLLOWAY,ALISON R MD","WOMENS HEALTH 1 WH CLINIC",null,null,"(V12) (556) North Chicago, IL (Captain James A. Lovell)"]
["Jones,JANE58",111111168,"2014-06-04",null,"2014-05-21",2810,"NonVAProcedure; JLV AdmParent: (V12) (556) North Chicago, IL HCS","ZAKARIYA,HOSAM Y","BLUE 2",null,null,"(V12) (556) North Chicago, IL (Captain James A. Lovell)"]
["Jones,JANE59",111111169,"2014-07-04",null,"2014-06-20",2780,"NonVAProcedure; JLV AdmParent: (V12) (556) North Chicago, IL HCS","KIZHNER,JULIA","GREEN 3","2022-04-08T10:00:00","(556) JAL PACT PC PA GREEN3","(V12) (556) North Chicago, IL (Captain James A. Lovell)"]
["Jones,JANE60",111111170,"2014-08-13",null,"2014-07-30",2740,"NonVAProcedure; JLV AdmParent: (V12) (556) North Chicago, IL HCS","SYEDA,SARA J","GOLD 3",null,null,"(V12) (556) North Chicago, IL (Captain James A. Lovell)"]
["Jones,JANE61",111111171,"2014-08-30",null,"2014-08-16",2723,"NonVAProcedure; JLV AdmParent: (V12) (556) North Chicago, IL HCS","IFTIKHAR,SYEDA A MD","GREEN 5",null,null,"(V12) (556) North Chicago, IL (Captain James A. Lovell)"]
["Jones,JANE62",111111172,"2014-10-20",null,"2014-10-06",2672,"VAProcedure; JLV AdmParent: (V12) (556) North Chicago, IL HCS","LAYUG,ANNA","GREEN 6",null,null,"(V12) (556) North Chicago, IL (Captain James A. Lovell)"]
["Jones,JANE63",111111173,"2014-11-12",null,"2014-10-29",2649,"VAProcedure; JLV AdmParent: (V12) (556) North Chicago, IL HCS","MIRZA,SHAZIA","KENOSHA 1 WH CBOC","2022-01-31T09:45:00","(556GD) KENOSHA - PACT PC 1 R2","(V12) (556GD) Kenosha, WI"]
["Jones,JANE64",111111174,"2014-11-24",null,"2014-11-10",2637,"VAProcedure; JLV AdmParent: (V12) (556) North Chicago, IL HCS","CHAVEZ,LUIS A","BLUE 5","2022-04-25T14:30:00","(556) JAL PACT PC MD BLUE5 TELE","(V12) (556) North Chicago, IL (Captain James A. Lovell)"]
["Jones,JANE65",111111175,"2014-12-03",null,"2014-11-19",2628,"VAProcedure; JLV AdmParent: (V12) (556) North Chicago, IL HCS","MOHAMMED,BAKHTIAR A","MC HENRY 2 CBOC",null,null,"(V12) (556GC) McHenry, IL"]
["Jones,JANE66",111111176,"2014-12-30",null,"2014-12-16",2601,"VAProcedure; JLV AdmParent: (V12) (556) North Chicago, IL HCS","ROY,DEBJANI MD","GREEN 4",null,null,"(V12) (556) North Chicago, IL (Captain James A. Lovell)"]
["Jones,JANE67",111111177,"2015-01-30",null,"2015-01-16",2570,"VAProcedure; JLV AdmParent: (V12) (556) North Chicago, IL HCS","SIAS,PATRICIA E","MC HENRY 5 CBOC",null,null,"(V12) (556GC) McHenry, IL"]
["Jones,JANE68",111111178,"2015-03-06",null,"2015-02-20",2535,"VAProcedure; JLV AdmParent: (V12) (556) North Chicago, IL HCS","ROY,DEBJANI MD","GREEN 4","2022-03-31T09:30:00","(556) JAL PACT PC MD GREEN4","(V12) (556) North Chicago, IL (Captain James A. Lovell)"]
["Jones,JANE69",111111179,"2015-03-25",null,"2015-03-11",2516,"VAProcedure; JLV AdmParent: (V12) (556) North Chicago, IL HCS","COTTER,WILLIAM MD","GOLD 5","2022-05-16T10:00:00","(556) JAL PACT PC MD GOLD5","(V12) (556) North Chicago, IL (Captain James A. Lovell)"]
["Jones,JANE70",111111180,"2015-04-03",null,"2015-03-20",2507,"VAProcedure; JLV AdmParent: (V12) (556) North Chicago, IL HCS","ROY,DEBJANI MD","GREEN 4",null,null,"(V12) (556) North Chicago, IL (Captain James A. Lovell)"]
["Jones,JANE71",111111181,"2015-04-06",null,"2015-03-23",2504,"VAProcedure; JLV AdmParent: (V12) (556) North Chicago, IL HCS","HOLLOWAY,ALISON R MD","WOMENS HEALTH 1 WH CLINIC","2022-04-21T08:00:00","(556) JAL PACT WH PC 1 MD","(V12) (556) North Chicago, IL (Captain James A. Lovell)"]
["Jones,JANE72",111111182,"2015-06-24",null,"2015-06-10",2425,"VAProcedure; JLV AdmParent: (V12) (556) North Chicago, IL HCS","ETINGEN,MARGARITA","GOLD 2","2022-10-07T11:00:00","(556) JAL PACT PC MD GOLD2","(V12) (556) North Chicago, IL (Captain James A. Lovell)"]
["Jones,JANE73",111111183,"2015-08-14",null,"2015-07-31",2374,"VAProcedure; JLV AdmParent: (V12) (556) North Chicago, IL HCS","SYEDA,SARA J","GOLD 3",null,null,"(V12) (556) North Chicago, IL (Captain James A. Lovell)"]
["Jones,JANE74",111111184,"2015-08-26",null,"2015-08-12",2362,"VAProcedure; JLV AdmParent: (V12) (556) North Chicago, IL HCS","ROY,DEBJANI MD","GREEN 4","2022-01-28T10:00:00","(556) JAL PACT PC MD GREEN4","(V12) (556) North Chicago, IL (Captain James A. Lovell)"]
["Jones,JANE75",111111185,"2015-08-27",null,"2015-08-13",2361,"VAProcedure; JLV AdmParent: (V12) (556) North Chicago, IL HCS","CHAVEZ,LUIS A","BLUE 5",null,null,"(V12) (556) North Chicago, IL (Captain James A. Lovell)"]
["Jones,JANE76",111111186,"2015-10-09",null,"2015-09-25",2318,"VAProcedure; JLV AdmParent: (V12) (556) North Chicago, IL HCS","ETINGEN,MARGARITA","GOLD 2",null,null,"(V12) (556) North Chicago, IL (Captain James A. Lovell)"]
["Jones,JANE77",111111187,"2015-10-28",null,"2015-10-14",2299,"VAProcedure; JLV AdmParent: (V12) (556) North Chicago, IL HCS","OOMMEN,SAJI","BLUE 1",null,null,"(V12) (556) North Chicago, IL (Captain James A. Lovell)"]
["Jones,JANE78",111111188,"2015-11-02",null,"2015-10-19",2294,"VAProcedure; JLV AdmParent: (V22) (600) Long Beach, CA HCS","HOLLOWAY,ALISON R MD","WOMENS HEALTH 1 WH CLINIC",null,null,"(V12) (556) North Chicago, IL (Captain James A. Lovell)"]
["Jones,JANE79",111111189,"2015-11-23","2018-06-25","2015-11-09",2273,"VAProcedure; JLV AdmParent: (V12) (556) North Chicago, IL HCS","CHAVEZ,LUIS A","BLUE 5","2022-02-23T10:00:00","(556) JAL PACT PC RD TELE","(V12) (556) North Chicago, IL (Captain James A. Lovell)"]
["Jones,JANE80",111111190,"2015-12-09",null,"2015-11-25",2257,"VAProcedure; JLV AdmParent: (V12) (556) North Chicago, IL HCS","SYEDA,SARA J","GOLD 3",null,null,"(V12) (556) North Chicago, IL (Captain James A. Lovell)"]
["Jones,JANE81",111111191,"2015-12-24",null,"2015-12-10",2242,"VAProcedure; JLV AdmParent: (V12) (556) North Chicago, IL HCS","SMIRNOV,MICHAEL","GOLD 1",null,null,"(V12) (556) North Chicago, IL (Captain James A. Lovell)"]
["Jones,JANE82",111111192,"2016-03-16",null,"2016-03-02",2159,"VAProcedure; JLV AdmParent: (V22) (664) San Diego, CA HCS","JUIRIS,TAHIRA","WOMENS HEALTH 2 WH CLINIC",null,null,"(V12) (556) North Chicago, IL (Captain James A. Lovell)"]
["Jones,JANE83",111111193,"2016-04-01",null,"2016-03-18",2143,"VAProcedure; JLV AdmParent: (V12) (556) North Chicago, IL HCS","OOMMEN,SAJI","BLUE 1",null,null,"(V12) (556) North Chicago, IL (Captain James A. Lovell)"]
["Jones,JANE84",111111194,"2016-04-05",null,"2016-03-22",2139,"VAProcedure; JLV AdmParent: (V12) (556) North Chicago, IL HCS","SMIRNOV,MICHAEL","GOLD 1",null,null,"(V12) (556) North Chicago, IL (Captain James A. Lovell)"]
["Jones,JANE85",111111195,"2016-05-04",null,"2016-04-20",2110,"VAProcedure; JLV AdmParent: (V12) (556) North Chicago, IL HCS","SIAS,PATRICIA E","MC HENRY 5 CBOC",null,null,"(V12) (556GC) McHenry, IL"]
["Jones,JANE86",111111196,"2016-05-17",null,"2016-05-03",2097,"VAProcedure; JLV AdmParent: (V12) (556) North Chicago, IL HCS","CHAVEZ,LUIS A","BLUE 5","2022-03-31T14:00:00","(556) JAL PACT PC MD BLUE5","(V12) (556) North Chicago, IL (Captain James A. Lovell)"]
["Jones,JANE87",111111197,"2016-05-19",null,"2016-05-05",2095,"VAProcedure; JLV AdmParent: (V12) (556) North Chicago, IL HCS","MOHAMMED,BAKHTIAR A","MC HENRY 2 CBOC",null,null,"(V12) (556GC) McHenry, IL"]
["Jones,JANE88",111111198,"2016-07-01",null,"2016-06-17",2052,"VAProcedure; JLV AdmParent: (V12) (556) North Chicago, IL HCS","IQBAL,FARZANA","EVANSTON 2 WH CBOC",null,null,"(V12) (556GA) Evanston, IL"]
["Jones,JANE89",111111199,"2016-08-10",null,"2016-07-27",2012,"VAProcedure; JLV AdmParent: (V12) (556) North Chicago, IL HCS","LAYUG,ANNA","GREEN 6",null,null,"(V12) (556) North Chicago, IL (Captain James A. Lovell)"]
["Jones,JANE90",111111200,"2016-10-06",null,"2016-09-22",1955,"VAProcedure; JLV AdmParent: (V12) (556) North Chicago, IL HCS","SMIRNOV,MICHAEL","GOLD 1",null,null,"(V12) (556) North Chicago, IL (Captain James A. Lovell)"]
["Jones,JANE91",111111201,"2016-11-22",null,"2016-11-08",1908,"VAProcedure; JLV AdmParent: (V12) (578) Hines, IL HCS","SMIRNOV,MICHAEL","GOLD 1","2022-03-10T08:30:00","(556) JAL PACT PC MD GOLD1","(V12) (556) North Chicago, IL (Captain James A. Lovell)"]
["Jones,JANE92",111111202,"2016-11-22",null,"2016-11-08",1908,"VAProcedure; JLV AdmParent: (V12) (578) Hines, IL HCS","NANO,JOSEPH","MC HENRY 1 WH CBOC",null,null,"(V12) (556GC) McHenry, IL"]
["Jones,JANE93",111111203,"2017-02-02",null,"2017-01-19",1836,"VAProcedure; JLV AdmParent: (V12) (556) North Chicago, IL HCS","OOMMEN,SAJI","BLUE 1",null,null,"(V12) (556) North Chicago, IL (Captain James A. Lovell)"]
["Jones,JANE94",111111204,"2017-02-13",null,"2017-01-30",1825,"VAProcedure; JLV AdmParent: (V12) (556) North Chicago, IL HCS","OOMMEN,SAJI","BLUE 1",null,null,"(V12) (556) North Chicago, IL (Captain James A. Lovell)"]
["Jones,JANE95",111111205,"2017-02-24",null,"2017-02-10",1814,"VAProcedure; JLV AdmParent: (V12) (556) North Chicago, IL HCS","IFTIKHAR,SYEDA A MD","GREEN 5",null,null,"(V12) (556) North Chicago, IL (Captain James A. Lovell)"]
["Jones,JANE96",111111206,"2017-02-24",null,"2017-02-10",1814,"VAProcedure; JLV AdmParent: (V12) (556) North Chicago, IL HCS","SMIRNOV,MICHAEL","GOLD 1",null,null,"(V12) (556) North Chicago, IL (Captain James A. Lovell)"]
["Jones,JANE97",111111207,"2017-02-24",null,"2017-02-10",1814,"VAProcedure; JLV AdmParent: (V12) (556) North Chicago, IL HCS","ROY,DEBJANI MD","GREEN 4",null,null,"(V12) (556) North Chicago, IL (Captain James A. Lovell)"]
["Jones,JANE98",111111208,"2017-03-01",null,"2017-02-15",1809,"VAProcedure; JLV AdmParent: (V12) (556) North Chicago, IL HCS","OOMMEN,SAJI","BLUE 1",null,null,"(V12) (556) North Chicago, IL (Captain James A. Lovell)"]
["Jones,JANE99",111111209,"2017-03-07",null,"2017-02-21",1803,"VAProcedure; JLV AdmParent: (V12) (556) North Chicago, IL HCS","OOMMEN,SAJI","BLUE 1",null,null,"(V12) (556) North Chicago, IL (Captain James A. Lovell)"]
["Jones,JANE100",111111210,"2017-03-07",null,"2017-02-21",1803,"VAProcedure; JLV AdmParent: (V12) (556) North Chicago, IL HCS","SMIRNOV,MICHAEL","GOLD 1","2022-02-07T11:00:00","(556) JAL PACT PC MD GOLD1","(V12) (556) North Chicago, IL (Captain James A. Lovell)"]
["Jones,JANE101",111111211,"2017-03-08",null,"2017-02-22",1802,"VAProcedure; JLV AdmParent: (V12) (556) North Chicago, IL HCS","ETINGEN,MARGARITA","GOLD 2","2022-03-16T09:00:00","(556) JAL PACT PC LPN PROC","(V12) (556) North Chicago, IL (Captain James A. Lovell)"]
["Jones,JANE102",111111212,"2017-03-15",null,"2017-03-01",1795,"VAProcedure; JLV AdmParent: (V07) (544) Columbia, SC HCS","ETINGEN,MARGARITA","GOLD 2",null,null,"(V12) (556) North Chicago, IL (Captain James A. Lovell)"]
["Jones,JANE103",111111213,"2017-04-04",null,"2017-03-21",1775,"VAProcedure; JLV AdmParent: (V12) (556) North Chicago, IL HCS","MIRZA,SHAZIA","KENOSHA 1 WH CBOC","2022-12-01T08:00:00","(556GD) KENOSHA - PACT PC 1 R1","(V12) (556GD) Kenosha, WI"]
["Jones,JANE104",111111214,"2017-04-12",null,"2017-03-29",1767,"VAProcedure; JLV AdmParent: (V12) (556) North Chicago, IL HCS","MOHAMMED,BAKHTIAR A","MC HENRY 2 CBOC",null,null,"(V12) (556GC) McHenry, IL"]
["Jones,JANE105",111111215,"2017-04-25",null,"2017-04-11",1754,"VAProcedure; JLV AdmParent: (V12) (556) North Chicago, IL HCS","OOMMEN,SAJI","BLUE 1",null,null,"(V12) (556) North Chicago, IL (Captain James A. Lovell)"]
["Jones,JANE106",111111216,"2017-05-10",null,"2017-04-26",1739,"VAProcedure; JLV AdmParent: (V08) (673) Tampa, FL HCS","SYEDA,SARA J","GOLD 3",null,null,"(V12) (556) North Chicago, IL (Captain James A. Lovell)"]
["Jones,JANE107",111111217,"2017-07-12",null,"2017-06-28",1676,"VAProcedure; JLV AdmParent: (V12) (556) North Chicago, IL HCS","IQBAL,FARZANA","EVANSTON 2 WH CBOC",null,null,"(V12) (556GA) Evanston, IL"]
["Jones,JANE108",111111218,"2017-07-14",null,"2017-06-30",1674,"VAProcedure; JLV AdmParent: (V12) (556) North Chicago, IL HCS","IFTIKHAR,SYEDA A MD","GREEN 5",null,null,"(V12) (556) North Chicago, IL (Captain James A. Lovell)"]
["Jones,JANE109",111111219,"2017-08-02",null,"2017-07-19",1655,"VAProcedure; JLV AdmParent: (V12) (556) North Chicago, IL HCS","ETINGEN,MARGARITA","GOLD 2","2022-02-02T13:00:00","(556) JAL PACT PC LPN PROC","(V12) (556) North Chicago, IL (Captain James A. Lovell)"]
["Jones,JANE110",111111220,"2017-10-19",null,"2017-10-05",1577,"VAProcedure; JLV AdmParent: (V12) (556) North Chicago, IL HCS","IQBAL,FARZANA","EVANSTON 2 WH CBOC",null,null,"(V12) (556GA) Evanston, IL"]
["Jones,JANE111",111111221,"2017-10-25",null,"2017-10-11",1571,"VAProcedure; JLV AdmParent: (V12) (556) North Chicago, IL HCS","HOLLANT,GLADYS","KENOSHA 2 WH CBOC","2022-03-18T13:00:00","(556GD) KENOSHA - PACT PC LPN","(V12) (556GD) Kenosha, WI"]
["Jones,JANE112",111111222,"2017-10-30",null,"2017-10-16",1566,"VAProcedure; JLV AdmParent: (V12) (556) North Chicago, IL HCS","IQBAL,FARZANA","EVANSTON 2 WH CBOC",null,null,"(V12) (556GA) Evanston, IL"]
["Jones,JANE113",111111223,"2017-10-31",null,"2017-10-17",1565,"VAProcedure; JLV AdmParent: (V12) (556) North Chicago, IL HCS","ETINGEN,MARGARITA","GOLD 2","2022-01-31T09:00:00","(556) JAL PACT PHARM GOLD TELE2 ","(V12) (556) North Chicago, IL (Captain James A. Lovell)"]
["Jones,JANE114",111111224,"2017-10-31",null,"2017-10-17",1565,"VAProcedure; JLV AdmParent: (V12) (556) North Chicago, IL HCS","OOMMEN,SAJI","BLUE 1",null,null,"(V12) (556) North Chicago, IL (Captain James A. Lovell)"]
["Jones,JANE115",111111225,"2017-11-10",null,"2017-10-27",1555,"VAProcedure; JLV AdmParent: (V12) (556) North Chicago, IL HCS","ROY,DEBJANI MD","GREEN 4",null,null,"(V12) (556) North Chicago, IL (Captain James A. Lovell)"]
["Jones,JANE116",111111226,"2017-11-14",null,"2017-10-31",1551,"NonVAProcedure; JLV AdmParent: (V12) (556) North Chicago, IL HCS","ETINGEN,MARGARITA","GOLD 2","2022-02-07T09:30:00","(556) JAL PACT PC MHI SW","(V12) (556) North Chicago, IL (Captain James A. Lovell)"]
["Jones,JANE117",111111227,"2017-11-23","2017-08-03","2017-11-09",1542,"VAProcedure; JLV AdmParent: (V12) (556) North Chicago, IL HCS","JUIRIS,TAHIRA","WOMENS HEALTH 2 WH CLINIC",null,null,"(V12) (556) North Chicago, IL (Captain James A. Lovell)"]
["Jones,JANE118",111111228,"2017-11-30",null,"2017-11-16",1535,"VAProcedure; JLV AdmParent: (V12) (556) North Chicago, IL HCS","ETINGEN,MARGARITA","GOLD 2",null,null,"(V12) (556) North Chicago, IL (Captain James A. Lovell)"]
["Jones,JANE119",111111229,"2017-12-06",null,"2017-11-22",1529,"VAProcedure; JLV AdmParent: (V12) (556) North Chicago, IL HCS","ROY,DEBJANI MD","GREEN 4","2022-07-26T11:00:00","(556) JAL PACT PC MD GREEN4","(V12) (556) North Chicago, IL (Captain James A. Lovell)"]
["Jones,JANE120",111111230,"2017-12-11",null,"2017-11-27",1524,"VAProcedure; JLV AdmParent: (V12) (556) North Chicago, IL HCS","SMIRNOV,MICHAEL","GOLD 1","2022-07-07T08:30:00","(556) JAL PACT PC MD GOLD1 TELE","(V12) (556) North Chicago, IL (Captain James A. Lovell)"]
["Jones,JANE121",111111231,"2017-12-14",null,"2017-11-30",1521,"VAProcedure; JLV AdmParent: (V12) (556) North Chicago, IL HCS","SYEDA,SARA J","GOLD 3",null,null,"(V12) (556) North Chicago, IL (Captain James A. Lovell)"]
["Jones,JANE122",111111232,"2017-12-14","2017-10-04","2017-11-30",1521,"VAProcedure; JLV AdmParent: (V12) (556) North Chicago, IL HCS","ROY,DEBJANI MD","GREEN 4",null,null,"(V12) (556) North Chicago, IL (Captain James A. Lovell)"]
["Jones,JANE123",111111233,"2017-12-18",null,"2017-12-04",1517,"VAProcedure; JLV AdmParent: (V12) (556) North Chicago, IL HCS","SYEDA,SARA J","GOLD 3",null,null,"(V12) (556) North Chicago, IL (Captain James A. Lovell)"]
["Jones,JANE124",111111234,"2017-12-22",null,"2017-12-08",1513,"VAProcedure; JLV AdmParent: (V12) (556) North Chicago, IL HCS","SMIRNOV,MICHAEL","GOLD 1",null,null,"(V12) (556) North Chicago, IL (Captain James A. Lovell)"]
["Jones,JANE125",111111235,"2018-01-01",null,"2017-12-18",1503,"VAProcedure; JLV AdmParent: (V12) (556) North Chicago, IL HCS","CHAVEZ,LUIS A","BLUE 5",null,null,"(V12) (556) North Chicago, IL (Captain James A. Lovell)"]
["Jones,JANE126",111111236,"2018-01-05",null,"2017-12-22",1499,"VAProcedure; JLV AdmParent: (V12) (556) North Chicago, IL HCS","ETINGEN,MARGARITA","GOLD 2","2022-02-07T08:30:00","(556) JAL PACT PC RD TELE","(V12) (556) North Chicago, IL (Captain James A. Lovell)"]
["Jones,JANE127",111111237,"2018-01-05",null,"2017-12-22",1499,"VAProcedure; JLV AdmParent: (V12) (556) North Chicago, IL HCS","SMIRNOV,MICHAEL","GOLD 1",null,null,"(V12) (556) North Chicago, IL (Captain James A. Lovell)"]
["Jones,JANE128",111111238,"2018-01-05",null,"2017-12-22",1499,"VAProcedure; JLV AdmParent: (V12) (556) North Chicago, IL HCS","ETINGEN,MARGARITA","GOLD 2",null,null,"(V12) (556) North Chicago, IL (Captain James A. Lovell)"]
["Jones,JANE129",111111239,"2018-01-12",null,"2017-12-29",1492,"VAProcedure; JLV AdmParent: (V12) (556) North Chicago, IL HCS","OOMMEN,SAJI","BLUE 1",null,null,"(V12) (556) North Chicago, IL (Captain James A. Lovell)"]
["Jones,JANE130",111111240,"2018-01-12",null,"2017-12-29",1492,"VAProcedure; JLV AdmParent: (V12) (556) North Chicago, IL HCS","NANO,JOSEPH","MC HENRY 1 WH CBOC",null,null,"(V12) (556GC) McHenry, IL"]
["Jones,JANE131",111111241,"2018-01-19",null,"2018-01-05",1485,"VAProcedure; JLV AdmParent: (V12) (556) North Chicago, IL HCS","ROY,DEBJANI MD","GREEN 4","2022-04-07T08:30:00","(556) JAL PACT PC MD GREEN4","(V12) (556) North Chicago, IL (Captain James A. Lovell)"]
["Jones,JANE132",111111242,"2018-01-19",null,"2018-01-05",1485,"VAProcedure; JLV AdmParent: (V12) (556) North Chicago, IL HCS","SMIRNOV,MICHAEL","GOLD 1","2022-01-28T11:00:00","(556) JAL PACT PC MD GOLD1","(V12) (556) North Chicago, IL (Captain James A. Lovell)"]
["Jones,JANE133",111111243,"2018-01-19",null,"2018-01-05",1485,"NonVAProcedure; JLV AdmParent: (V12) (556) North Chicago, IL HCS","NANO,JOSEPH","MC HENRY 1 WH CBOC",null,null,"(V12) (556GC) McHenry, IL"]
["Jones,JANE134",111111244,"2018-01-19",null,"2018-01-05",1485,"VAProcedure; JLV AdmParent: (V12) (556) North Chicago, IL HCS","BANJO,ADEOLA","MC HENRY 4 WH CBOC",null,null,"(V12) (556GC) McHenry, IL"]
["Jones,JANE135",111111245,"2018-01-23",null,"2018-01-09",1481,"VAProcedure; JLV AdmParent: (V12) (556) North Chicago, IL HCS","ROY,DEBJANI MD","GREEN 4",null,null,"(V12) (556) North Chicago, IL (Captain James A. Lovell)"]
["Jones,JANE136",111111246,"2018-01-24",null,"2018-01-10",1480,"VAProcedure; JLV AdmParent: (V12) (556) North Chicago, IL HCS","SMIRNOV,MICHAEL","GOLD 1","2022-06-03T08:00:00","(556) JAL PACT PC MD GOLD1","(V12) (556) North Chicago, IL (Captain James A. Lovell)"]
["Jones,JANE137",111111247,"2018-01-25",null,"2018-01-11",1479,"VAProcedure; JLV AdmParent: (V12) (556) North Chicago, IL HCS","ROY,DEBJANI MD","GREEN 4",null,null,"(V12) (556) North Chicago, IL (Captain James A. Lovell)"]
["Jones,JANE138",111111248,"2018-01-26",null,"2018-01-12",1478,"VAProcedure; JLV AdmParent: (V12) (556) North Chicago, IL HCS","ROY,DEBJANI MD","GREEN 4",null,null,"(V12) (556) North Chicago, IL (Captain James A. Lovell)"]
["Jones,JANE139",111111249,"2018-01-31",null,"2018-01-17",1473,"VAProcedure; JLV AdmParent: (V12) (556) North Chicago, IL HCS","ROY,DEBJANI MD","GREEN 4",null,null,"(V12) (556) North Chicago, IL (Captain James A. Lovell)"]
["Jones,JANE140",111111250,"2018-02-02",null,"2018-01-19",1471,"VAProcedure; JLV AdmParent: (V12) (556) North Chicago, IL HCS","ETINGEN,MARGARITA","GOLD 2",null,null,"(V12) (556) North Chicago, IL (Captain James A. Lovell)"]
["Jones,JANE141",111111251,"2018-02-02",null,"2018-01-19",1471,"VAProcedure; JLV AdmParent: (V12) (556) North Chicago, IL HCS","ETINGEN,MARGARITA","GOLD 2",null,null,"(V12) (556) North Chicago, IL (Captain James A. Lovell)"]
["Jones,JANE142",111111252,"2018-02-15",null,"2018-02-01",1458,"VAProcedure; JLV AdmParent: (V12) (556) North Chicago, IL HCS","ETINGEN,MARGARITA","GOLD 2",null,null,"(V12) (556) North Chicago, IL (Captain James A. Lovell)"]
["Jones,JANE143",111111253,"2018-02-19",null,"2018-02-05",1454,"VAProcedure; JLV AdmParent: (V12) (556) North Chicago, IL HCS","KIZHNER,JULIA","GREEN 3","2023-01-03T08:00:00","(556) JAL PACT PC PA GREEN3","(V12) (556) North Chicago, IL (Captain James A. Lovell)"]
["Jones,JANE144",111111254,"2018-02-20",null,"2018-02-06",1453,"VAProcedure; JLV AdmParent: (V12) (556) North Chicago, IL HCS","SIAS,PATRICIA E","MC HENRY 5 CBOC",null,null,"(V12) (556GC) McHenry, IL"]
["Jones,JANE145",111111255,"2018-02-22",null,"2018-02-08",1451,"VAProcedure; JLV AdmParent: (V12) (556) North Chicago, IL HCS","ETINGEN,MARGARITA","GOLD 2",null,null,"(V12) (556) North Chicago, IL (Captain James A. Lovell)"]
["Jones,JANE146",111111256,"2018-02-22",null,"2018-02-08",1451,"VAProcedure; JLV AdmParent: (V12) (556) North Chicago, IL HCS","SIAS,PATRICIA E","MC HENRY 5 CBOC","2022-04-29T11:00:00","(556GC) MCHENRY - PACT PHARM TELE2","(V12) (556GC) McHenry, IL"]
["Jones,JANE147",111111257,"2018-02-22",null,"2018-02-08",1451,"VAProcedure; JLV AdmParent: (V12) (556) North Chicago, IL HCS","SIAS,PATRICIA E","MC HENRY 5 CBOC",null,null,"(V12) (556GC) McHenry, IL"]
["Jones,JANE148",111111258,"2018-02-26","2017-12-13","2018-02-12",1447,"VAProcedure; JLV AdmParent: (V12) (556) North Chicago, IL HCS","ZAKARIYA,HOSAM Y","BLUE 2",null,null,"(V12) (556) North Chicago, IL (Captain James A. Lovell)"]
["Jones,JANE149",111111259,"2018-02-27",null,"2018-02-13",1446,"VAProcedure; JLV AdmParent: (V12) (556) North Chicago, IL HCS","SYEDA,SARA J","GOLD 3",null,null,"(V12) (556) North Chicago, IL (Captain James A. Lovell)"]
["Jones,JANE150",111111260,"2018-02-28",null,"2018-02-14",1445,"VAProcedure; JLV AdmParent: (V12) (556) North Chicago, IL HCS","ROY,DEBJANI MD","GREEN 4","2022-06-02T08:00:00","(556) JAL PACT PC MD GREEN4","(V12) (556) North Chicago, IL (Captain James A. Lovell)"]
["Jones,JANE151",111111261,"2018-03-08",null,"2018-02-22",1437,"VAProcedure; JLV AdmParent: (V12) (556) North Chicago, IL HCS","ROY,DEBJANI MD","GREEN 4",null,null,"(V12) (556) North Chicago, IL (Captain James A. Lovell)"]
["Jones,JANE152",111111262,"2018-03-09",null,"2018-02-23",1436,"VAProcedure; JLV AdmParent: (V12) (556) North Chicago, IL HCS","ETINGEN,MARGARITA","GOLD 2",null,null,"(V12) (556) North Chicago, IL (Captain James A. Lovell)"]
["Jones,JANE153",111111263,"2018-03-13",null,"2018-02-27",1432,"VAProcedure; JLV AdmParent: (V12) (556) North Chicago, IL HCS","ETINGEN,MARGARITA","GOLD 2","2022-04-07T09:00:00","(556) JAL PACT PC LPN PROC","(V12) (556) North Chicago, IL (Captain James A. Lovell)"]
["Jones,JANE154",111111264,"2018-03-13",null,"2018-02-27",1432,"VAProcedure; JLV AdmParent: (V12) (556) North Chicago, IL HCS","CHAVEZ,LUIS A","BLUE 5",null,null,"(V12) (556) North Chicago, IL (Captain James A. Lovell)"]
["Jones,JANE155",111111265,"2018-03-28",null,"2018-03-14",1417,"VAProcedure; JLV AdmParent: (V12) (556) North Chicago, IL HCS","IQBAL,FARZANA","EVANSTON 2 WH CBOC",null,null,"(V12) (556GA) Evanston, IL"]
["Jones,JANE156",111111266,"2018-03-28","2017-05-05","2018-03-14",1417,"VAProcedure; JLV AdmParent: (V12) (556) North Chicago, IL HCS","IQBAL,FARZANA","EVANSTON 2 WH CBOC",null,null,"(V12) (556GA) Evanston, IL"]
["Jones,JANE157",111111267,"2018-04-07","2018-02-01","2018-03-24",1407,"NonVAProcedure; JLV AdmParent: (V12) (556) North Chicago, IL HCS","KIZHNER,JULIA","GREEN 3","2022-02-15T10:30:00","(556) JAL PACT PC PA GREEN3","(V12) (556) North Chicago, IL (Captain James A. Lovell)"]
["Jones,JANE158",111111268,"2018-04-17",null,"2018-04-03",1397,"VAProcedure; JLV AdmParent: (V12) (556) North Chicago, IL HCS","HOLLOWAY,ALISON R MD","WOMENS HEALTH 1 WH CLINIC","2022-05-09T11:00:00","(556) JAL PACT WH PC 1 MD","(V12) (556) North Chicago, IL (Captain James A. Lovell)"]
["Jones,JANE159",111111269,"2018-04-17",null,"2018-04-03",1397,"VAProcedure; JLV AdmParent: (V12) (556) North Chicago, IL HCS","ROY,DEBJANI MD","GREEN 4",null,null,"(V12) (556) North Chicago, IL (Captain James A. Lovell)"]
["Jones,JANE160",111111270,"2018-04-20",null,"2018-04-06",1394,"VAProcedure; JLV AdmParent: (V12) (556) North Chicago, IL HCS","OOMMEN,SAJI","BLUE 1",null,null,"(V12) (556) North Chicago, IL (Captain James A. Lovell)"]
["Jones,JANE161",111111271,"2018-04-24",null,"2018-04-10",1390,"VAProcedure; JLV AdmParent: (V12) (556) North Chicago, IL HCS","ETINGEN,MARGARITA","GOLD 2",null,null,"(V12) (556) North Chicago, IL (Captain James A. Lovell)"]
["Jones,JANE162",111111272,"2018-04-27","2021-12-20","2018-04-13",1387,"VAProcedure; JLV AdmParent: (V12) (695) Milwaukee, WI HCS","SMIRNOV,MICHAEL","GOLD 1","2022-02-16T14:30:00","(556) JAL PACT PHARM GOLD TELE2 ","(V12) (556) North Chicago, IL (Captain James A. Lovell)"]
["Jones,JANE163",111111273,"2018-04-30",null,"2018-04-16",1384,"VAProcedure; JLV AdmParent: (V12) (556) North Chicago, IL HCS","ROY,DEBJANI MD","GREEN 4","2022-05-09T11:00:00","(556) JAL PACT PC MD GREEN4","(V12) (556) North Chicago, IL (Captain James A. Lovell)"]
["Jones,JANE164",111111274,"2018-05-04",null,"2018-04-20",1380,"VAProcedure; JLV AdmParent: (V12) (556) North Chicago, IL HCS","ETINGEN,MARGARITA","GOLD 2","2022-02-22T08:30:00","(556) JAL PACT PC RN","(V12) (556) North Chicago, IL (Captain James A. Lovell)"]
["Jones,JANE165",111111275,"2018-05-09",null,"2018-04-25",1375,"VAProcedure; JLV AdmParent: (V12) (556) North Chicago, IL HCS","MOHAMMED,BAKHTIAR A","MC HENRY 2 CBOC",null,null,"(V12) (556GC) McHenry, IL"]
["Jones,JANE166",111111276,"2018-05-14",null,"2018-04-30",1370,"VAProcedure; JLV AdmParent: (V12) (695) Milwaukee, WI HCS","OOMMEN,SAJI","BLUE 1",null,null,"(V12) (556) North Chicago, IL (Captain James A. Lovell)"]
["Jones,JANE167",111111277,"2018-05-15","2018-04-29","2018-05-01",1369,"VAProcedure; JLV AdmParent: (V12) (556) North Chicago, IL HCS","ROY,DEBJANI MD","GREEN 4","2022-02-02T14:30:00","(556) JAL PACT PHARM GREEN TELE2","(V12) (556) North Chicago, IL (Captain James A. Lovell)"]
["Jones,JANE168",111111278,"2018-05-16",null,"2018-05-02",1368,"VAProcedure; JLV AdmParent: (V12) (556) North Chicago, IL HCS","IQBAL,FARZANA","EVANSTON 2 WH CBOC",null,null,"(V12) (556GA) Evanston, IL"]
["Jones,JANE169",111111279,"2018-05-18",null,"2018-05-04",1366,"VAProcedure; JLV AdmParent: (V12) (556) North Chicago, IL HCS","JUIRIS,TAHIRA","WOMENS HEALTH 2 WH CLINIC",null,null,"(V12) (556) North Chicago, IL (Captain James A. Lovell)"]
["Jones,JANE170",111111280,"2018-05-18",null,"2018-02-02",1457,"VAProcedure; JLV AdmParent: (V12) (556) North Chicago, IL HCS","ROY,DEBJANI MD","GREEN 4","2022-04-05T10:30:00","(556) JAL PACT PC MD GREEN4","(V12) (556) North Chicago, IL (Captain James A. Lovell)"]
["Jones,JANE171",111111281,"2018-05-18",null,"2018-05-04",1366,"VAProcedure; JLV AdmParent: (V12) (556) North Chicago, IL HCS","ETINGEN,MARGARITA","GOLD 2",null,null,"(V12) (556) North Chicago, IL (Captain James A. Lovell)"]
["Jones,JANE172",111111282,"2018-05-18",null,"2018-05-04",1366,"VAProcedure; JLV AdmParent: (V12) (556) North Chicago, IL HCS","ETINGEN,MARGARITA","GOLD 2","2022-07-28T11:00:00","(556) JAL PACT PC MD GOLD2","(V12) (556) North Chicago, IL (Captain James A. Lovell)"]
["Jones,JANE173",111111283,"2018-05-18","2021-08-11","2018-05-04",1366,"NonVAProcedure; JLV AdmParent: (V12) (556) North Chicago, IL HCS","MOHAMMED,BAKHTIAR A","MC HENRY 2 CBOC",null,null,"(V12) (556GC) McHenry, IL"]
["Jones,JANE174",111111284,"2018-05-24",null,null,null,"Gap Health Factor - Check Pt Details","NANO,JOSEPH","MC HENRY 1 WH CBOC",null,null,"(V12) (556GC) McHenry, IL"]
["Jones,JANE175",111111285,"2018-05-25",null,"2018-05-11",1359,"VAProcedure; JLV AdmParent: (V12) (556) North Chicago, IL HCS","ETINGEN,MARGARITA","GOLD 2",null,null,"(V12) (556) North Chicago, IL (Captain James A. Lovell)"]
["Jones,JANE176",111111286,"2018-05-28",null,"2018-05-14",1356,"VAProcedure; JLV AdmParent: (V12) (556) North Chicago, IL HCS","SMIRNOV,MICHAEL","GOLD 1",null,null,"(V12) (556) North Chicago, IL (Captain James A. Lovell)"]
["Jones,JANE177",111111287,"2018-05-28",null,"2018-05-14",1356,"VAProcedure; JLV AdmParent: (V12) (556) North Chicago, IL HCS","ETINGEN,MARGARITA","GOLD 2",null,null,"(V12) (556) North Chicago, IL (Captain James A. Lovell)"]
["Jones,JANE178",111111288,"2018-05-28",null,"2018-05-14",1356,"VAProcedure; JLV AdmParent: (V12) (556) North Chicago, IL HCS","ROY,DEBJANI MD","GREEN 4",null,null,"(V12) (556) North Chicago, IL (Captain James A. Lovell)"]
["Jones,JANE179",111111289,"2018-05-28",null,"2018-05-14",1356,"VAProcedure; JLV AdmParent: (V12) (556) North Chicago, IL HCS","ETINGEN,MARGARITA","GOLD 2",null,null,"(V12) (556) North Chicago, IL (Captain James A. Lovell)"]
["Jones,JANE180",111111290,"2018-05-29",null,null,null,"Gap Health Factor - Check Pt Details","NANO,JOSEPH","MC HENRY 1 WH CBOC",null,null,"(V12) (556GC) McHenry, IL"]
["Jones,JANE181",111111291,"2018-05-30",null,"2018-05-30",1340,"VAProcedure; JLV AdmParent: (V12) (556) North Chicago, IL HCS","IQBAL,FARZANA","EVANSTON 2 WH CBOC",null,null,"(V12) (556GA) Evanston, IL"]
["Jones,JANE182",111111292,"2018-05-30",null,null,null,"Gap Health Factor - Check Pt Details","NANO,JOSEPH","MC HENRY 1 WH CBOC",null,null,"(V12) (556GC) McHenry, IL"]
["Jones,JANE183",111111293,"2018-05-31",null,"2018-05-17",1353,"VAProcedure; JLV AdmParent: (V12) (556) North Chicago, IL HCS","CHAVEZ,LUIS A","BLUE 5",null,null,"(V12) (556) North Chicago, IL (Captain James A. Lovell)"]
["Jones,JANE184",111111294,"2018-06-04",null,"2018-05-21",1349,"VAProcedure; JLV AdmParent: (V12) (556) North Chicago, IL HCS","SMIRNOV,MICHAEL","GOLD 1",null,null,"(V12) (556) North Chicago, IL (Captain James A. Lovell)"]
["Jones,JANE185",111111295,"2018-06-06",null,null,null,"Gap Health Factor - Check Pt Details","NANO,JOSEPH","MC HENRY 1 WH CBOC",null,null,"(V12) (556GC) McHenry, IL"]
["Jones,JANE186",111111296,"2018-06-07",null,"2018-05-24",1346,"VAProcedure; JLV AdmParent: (V12) (556) North Chicago, IL HCS","ROY,DEBJANI MD","GREEN 4",null,null,"(V12) (556) North Chicago, IL (Captain James A. Lovell)"]
["Jones,JANE187",111111297,"2018-06-11",null,null,null,"Gap Health Factor - Check Pt Details","HOLLANT,GLADYS","KENOSHA 2 WH CBOC","2022-06-13T11:00:00","(556GD) KENOSHA - PACT PC 2 R1","(V12) (556GD) Kenosha, WI"]
["Jones,JANE188",111111298,"2018-06-13",null,null,null,"Gap Health Factor - Check Pt Details","NANO,JOSEPH","MC HENRY 1 WH CBOC",null,null,"(V12) (556GC) McHenry, IL"]
["Jones,JANE189",111111299,"2018-06-14",null,null,null,"Gap Health Factor - Check Pt Details","LAYUG,ANNA","GREEN 6",null,null,"(V12) (556) North Chicago, IL (Captain James A. Lovell)"]
["Jones,JANE190",111111300,"2018-06-14",null,"2018-05-31",1339,"VAProcedure; JLV AdmParent: (V12) (556) North Chicago, IL HCS","IQBAL,FARZANA","EVANSTON 2 WH CBOC",null,null,"(V12) (556GA) Evanston, IL"]
["Jones,JANE191",111111301,"2018-06-14",null,null,null,"Gap Health Factor - Check Pt Details","SIAS,PATRICIA E","MC HENRY 5 CBOC",null,null,"(V12) (556GC) McHenry, IL"]
["Jones,JANE192",111111302,"2018-06-14",null,"2018-05-31",1339,"VAProcedure; JLV AdmParent: (V12) (556) North Chicago, IL HCS","HOLLANT,GLADYS","KENOSHA 2 WH CBOC","2022-02-15T14:00:00","(556GD) KENOSHA - MH SW FAFFORD IND","(V12) (556GD) Kenosha, WI"]
["Jones,JANE193",111111303,"2018-06-15",null,"2018-06-01",1338,"NonVAProcedure; JLV AdmParent: (V12) (556) North Chicago, IL HCS","SMIRNOV,MICHAEL","GOLD 1","2022-02-22T09:00:00","(556) JAL PACT PC MD GOLD1","(V12) (556) North Chicago, IL (Captain James A. Lovell)"]
["Jones,JANE194",111111304,"2018-06-18",null,null,null,"Gap Health Factor - Check Pt Details","NANO,JOSEPH","MC HENRY 1 WH CBOC",null,null,"(V12) (556GC) McHenry, IL"]
["Jones,JANE195",111111305,"2018-06-19",null,"2018-06-05",1334,"VAProcedure; JLV AdmParent: (V12) (556) North Chicago, IL HCS","ROY,DEBJANI MD","GREEN 4",null,null,"(V12) (556) North Chicago, IL (Captain James A. Lovell)"]
["Jones,JANE196",111111306,"2018-06-24",null,null,null,"Gap Health Factor - Check Pt Details","HOLLANT,GLADYS","KENOSHA 2 WH CBOC","2022-06-13T10:00:00","(556GD) KENOSHA - PACT PC 2 R1","(V12) (556GD) Kenosha, WI"]
["Jones,JANE197",111111307,"2018-07-06",null,"2018-06-22",1317,"VAProcedure; JLV AdmParent: (V12) (556) North Chicago, IL HCS","SMIRNOV,MICHAEL","GOLD 1",null,null,"(V12) (556) North Chicago, IL (Captain James A. Lovell)"]
["Jones,JANE198",111111308,"2018-07-10",null,null,null,"Gap Health Factor - Check Pt Details","SIAS,PATRICIA E","MC HENRY 5 CBOC",null,null,"(V12) (556GC) McHenry, IL"]
["Jones,JANE199",111111309,"2018-07-12",null,"2018-06-28",1311,"VAProcedure; JLV AdmParent: (V12) (556) North Chicago, IL HCS","HOLLANT,GLADYS","KENOSHA 2 WH CBOC",null,null,"(V12) (556GD) Kenosha, WI"]
["Jones,JANE200",111111310,"2018-07-19",null,null,null,"Gap Health Factor - Check Pt Details","NANO,JOSEPH","MC HENRY 1 WH CBOC","2022-02-23T11:30:00","(556GC) MCHENRY - PACT PC 1 RN","(V12) (556GC) McHenry, IL"]
["Jones,JANE201",111111311,"2018-07-19",null,null,null,"Gap Health Factor - Check Pt Details","NANO,JOSEPH","MC HENRY 1 WH CBOC","2022-02-01T07:30:00","(556GC) MCHENRY - PACT PC 1 MD","(V12) (556GC) McHenry, IL"]
["Jones,JANE202",111111312,"2018-07-27",null,"2018-07-13",1296,"VAProcedure; JLV AdmParent: (V12) (556) North Chicago, IL HCS","SMIRNOV,MICHAEL","GOLD 1",null,null,"(V12) (556) North Chicago, IL (Captain James A. Lovell)"]
["Jones,JANE203",111111313,"2018-08-02",null,null,null,"Gap Health Factor - Check Pt Details","SIAS,PATRICIA E","MC HENRY 5 CBOC",null,null,"(V12) (556GC) McHenry, IL"]
["Jones,JANE204",111111314,"2018-08-09",null,"2018-07-26",1283,"VAProcedure; JLV AdmParent: (V12) (556) North Chicago, IL HCS","SMIRNOV,MICHAEL","GOLD 1",null,null,"(V12) (556) North Chicago, IL (Captain James A. Lovell)"]
["Jones,JANE205",111111315,"2018-08-13",null,null,null,"Gap Health Factor - Check Pt Details","HOLLANT,GLADYS","KENOSHA 2 WH CBOC",null,null,"(V12) (556GD) Kenosha, WI"]
["Jones,JANE206",111111316,"2018-08-15",null,"2018-08-01",1277,"NonVAProcedure; JLV AdmParent: (V12) (556) North Chicago, IL HCS","SYEDA,SARA J","GOLD 3",null,null,"(V12) (556) North Chicago, IL (Captain James A. Lovell)"]
["Jones,JANE207",111111317,"2018-08-17",null,null,null,"Gap Health Factor - Check Pt Details","NANO,JOSEPH","MC HENRY 1 WH CBOC",null,null,"(V12) (556GC) McHenry, IL"]
["Jones,JANE208",111111318,"2018-08-19",null,"2018-08-05",1273,"NonVAProcedure; JLV AdmParent: (V12) (556) North Chicago, IL HCS","ETINGEN,MARGARITA","GOLD 2",null,null,"(V12) (556) North Chicago, IL (Captain James A. Lovell)"]
["Jones,JANE209",111111319,"2018-08-22",null,"2018-08-08",1270,"VAProcedure; JLV AdmParent: (V12) (556) North Chicago, IL HCS","IFTIKHAR,SYEDA A MD","GREEN 5",null,null,"(V12) (556) North Chicago, IL (Captain James A. Lovell)"]
["Jones,JANE210",111111320,"2018-08-23",null,"2018-08-09",1269,"NonVAProcedure; JLV AdmParent: (V12) (556) North Chicago, IL HCS","KIZHNER,JULIA","GREEN 3","2022-09-26T07:30:00","(556) JAL PACT PC PA GREEN3","(V12) (556) North Chicago, IL (Captain James A. Lovell)"]
["Jones,JANE211",111111321,"2018-08-23",null,null,null,"Gap Health Factor - Check Pt Details","SIAS,PATRICIA E","MC HENRY 5 CBOC",null,null,"(V12) (556GC) McHenry, IL"]
["Jones,JANE212",111111322,"2018-08-27",null,null,null,"Gap Health Factor - Check Pt Details","BANJO,ADEOLA","MC HENRY 4 WH CBOC",null,null,"(V12) (556GC) McHenry, IL"]
["Jones,JANE213",111111323,"2018-08-27",null,null,null,"Gap Health Factor - Check Pt Details","SIAS,PATRICIA E","MC HENRY 5 CBOC",null,null,"(V12) (556GC) McHenry, IL"]
["Jones,JANE214",111111324,"2018-08-28",null,null,null,"Gap Health Factor - Check Pt Details","NANO,JOSEPH","MC HENRY 1 WH CBOC",null,null,"(V12) (556GC) McHenry, IL"]
["Jones,JANE215",111111325,"2018-08-30",null,"2018-08-16",1262,"VAProcedure; JLV AdmParent: (V12) (556) North Chicago, IL HCS","SYEDA,SARA J","GOLD 3",null,null,"(V12) (556) North Chicago, IL (Captain James A. Lovell)"]
["Jones,JANE216",111111326,"2018-09-03",null,"2018-08-20",1258,"VAProcedure; JLV AdmParent: (V12) (556) North Chicago, IL HCS","SIAS,PATRICIA E","MC HENRY 5 CBOC",null,null,"(V12) (556GC) McHenry, IL"]
["Jones,JANE217",111111327,"2018-09-03",null,null,null,"Gap Health Factor - Check Pt Details","NANO,JOSEPH","MC HENRY 1 WH CBOC","2022-04-20T11:30:00","(556GC) MCHENRY - PACT PC 1 RN","(V12) (556GC) McHenry, IL"]
["Jones,JANE218",111111328,"2018-09-06",null,null,null,"Gap Health Factor - Check Pt Details","SIAS,PATRICIA E","MC HENRY 5 CBOC","2022-02-04T10:30:00","(556GC) MCHENRY - PACT PHARM TELE2","(V12) (556GC) McHenry, IL"]
["Jones,JANE219",111111329,"2018-09-06",null,null,null,"Gap Health Factor - Check Pt Details","SIAS,PATRICIA E","MC HENRY 5 CBOC",null,null,"(V12) (556GC) McHenry, IL"]
["Jones,JANE220",111111330,"2018-09-07",null,"2018-08-24",1254,"VAProcedure; JLV AdmParent: (V12) (556) North Chicago, IL HCS","GANNU,RAJYALAKSHMI M","BLUE 6",null,null,"(V12) (556) North Chicago, IL (Captain James A. Lovell)"]
["Jones,JANE221",111111331,"2018-09-21",null,"2018-09-07",1240,"VAProcedure; JLV AdmParent: (V12) (556) North Chicago, IL HCS","OOMMEN,SAJI","BLUE 1","2022-01-28T10:00:00","(556) JAL PACT PC MD BLUE1 VVC","(V12) (556) North Chicago, IL (Captain James A. Lovell)"]
["Jones,JANE222",111111332,"2018-09-28",null,"2018-09-14",1233,"VAProcedure; JLV AdmParent: (V12) (556) North Chicago, IL HCS","SMIRNOV,MICHAEL","GOLD 1",null,null,"(V12) (556) North Chicago, IL (Captain James A. Lovell)"]
["Jones,JANE223",111111333,"2018-09-30",null,null,null,"Gap Health Factor - Check Pt Details","HOLLANT,GLADYS","KENOSHA 2 WH CBOC","2022-09-26T08:15:00","(556GD) KENOSHA - PACT PC 2 R2","(V12) (556GD) Kenosha, WI"]
["Jones,JANE224",111111334,"2018-10-01",null,"2018-09-17",1230,"VAProcedure; JLV AdmParent: (V12) (556) North Chicago, IL HCS","GANNU,RAJYALAKSHMI M","BLUE 6","2022-02-10T07:00:00","(556) JAL PACT PC MD GREEN5","(V12) (556) North Chicago, IL (Captain James A. Lovell)"]
["Jones,JANE225",111111335,"2018-10-02","2017-05-08","2018-09-18",1229,"VAProcedure; JLV AdmParent: (V12) (556) North Chicago, IL HCS","RAVIPATI,MAMATA MD","GOLD 4","2022-06-03T08:00:00","(556) JAL PACT PC MD GOLD4","(V12) (556) North Chicago, IL (Captain James A. Lovell)"]
["Jones,JANE226",111111336,"2018-10-04",null,"2018-09-20",1227,"NonVAProcedure; JLV AdmParent: (V12) (556) North Chicago, IL HCS","ROY,DEBJANI MD","GREEN 4",null,null,"(V12) (556) North Chicago, IL (Captain James A. Lovell)"]
["Jones,JANE227",111111337,"2018-10-05",null,"2018-09-21",1226,"VAProcedure; JLV AdmParent: (V12) (556) North Chicago, IL HCS","OOMMEN,SAJI","BLUE 1",null,null,"(V12) (556) North Chicago, IL (Captain James A. Lovell)"]
["Jones,JANE228",111111338,"2018-10-10",null,"2018-09-26",1221,"VAProcedure; JLV AdmParent: (V12) (556) North Chicago, IL HCS","SMIRNOV,MICHAEL","GOLD 1","2022-05-02T14:30:00","(556) JAL PACT PC MD GOLD1","(V12) (556) North Chicago, IL (Captain James A. Lovell)"]
["Jones,JANE229",111111339,"2018-10-11",null,"2018-09-27",1220,"VAProcedure; JLV AdmParent: (V12) (695) Milwaukee, WI HCS","MOHAMMED,BAKHTIAR A","MC HENRY 2 CBOC",null,null,"(V12) (556GC) McHenry, IL"]
["Jones,JANE230",111111340,"2018-10-11",null,null,null,"Gap Health Factor - Check Pt Details","NANO,JOSEPH","MC HENRY 1 WH CBOC",null,null,"(V12) (556GC) McHenry, IL"]
["Jones,JANE231",111111341,"2018-10-15",null,null,null,"Gap Health Factor - Check Pt Details","SIAS,PATRICIA E","MC HENRY 5 CBOC",null,null,"(V12) (556GC) McHenry, IL"]
["Jones,JANE232",111111342,"2018-10-17","2018-06-21","2018-10-03",1214,"VAProcedure; JLV AdmParent: (V12) (556) North Chicago, IL HCS","HOLLOWAY,ALISON R MD","WOMENS HEALTH 1 WH CLINIC",null,null,"(V12) (556) North Chicago, IL (Captain James A. Lovell)"]
["Jones,JANE233",111111343,"2018-10-18",null,"2018-10-04",1213,"VAProcedure; JLV AdmParent: (V12) (556) North Chicago, IL HCS","SMIRNOV,MICHAEL","GOLD 1","2022-06-14T10:00:00","(556) JAL PACT PC MD GOLD1","(V12) (556) North Chicago, IL (Captain James A. Lovell)"]
["Jones,JANE234",111111344,"2018-10-23",null,null,null,"Gap Health Factor - Check Pt Details","IFTIKHAR,SYEDA A MD","GREEN 5",null,null,"(V12) (556) North Chicago, IL (Captain James A. Lovell)"]
["Jones,JANE235",111111345,"2018-10-28",null,null,null,"Gap Health Factor - Check Pt Details","HOLLANT,GLADYS","KENOSHA 2 WH CBOC",null,null,"(V12) (556GD) Kenosha, WI"]
["Jones,JANE236",111111346,"2018-10-29",null,null,null,"Gap Health Factor - Check Pt Details","ROY,DEBJANI MD","GREEN 4",null,null,"(V12) (556) North Chicago, IL (Captain James A. Lovell)"]
["Jones,JANE237",111111347,"2018-10-29",null,"2018-10-15",1202,"VAProcedure; JLV AdmParent: (V12) (556) North Chicago, IL HCS","CHAVEZ,LUIS A","BLUE 5",null,null,"(V12) (556) North Chicago, IL (Captain James A. Lovell)"]
["Jones,JANE238",111111348,"2018-10-30",null,"2018-10-16",1201,"NonVAProcedure; JLV AdmParent: (V12) (556) North Chicago, IL HCS","SYEDA,SARA J","GOLD 3",null,null,"(V12) (556) North Chicago, IL (Captain James A. Lovell)"]
["Jones,JANE239",111111349,"2018-10-30",null,"2018-10-16",1201,"VAProcedure; JLV AdmParent: (V12) (556) North Chicago, IL HCS","ETINGEN,MARGARITA","GOLD 2",null,null,"(V12) (556) North Chicago, IL (Captain James A. Lovell)"]
["Jones,JANE240",111111350,"2018-11-01",null,"2018-10-18",1199,"NonVAProcedure; JLV AdmParent: (V12) (556) North Chicago, IL HCS","ETINGEN,MARGARITA","GOLD 2","2022-02-15T13:00:00","(556) JAL PACT PC MD GOLD2","(V12) (556) North Chicago, IL (Captain James A. Lovell)"]
["Jones,JANE241",111111351,"2018-11-01",null,"2018-10-18",1199,"VAProcedure; JLV AdmParent: (V12) (556) North Chicago, IL HCS","ROY,DEBJANI MD","GREEN 4",null,null,"(V12) (556) North Chicago, IL (Captain James A. Lovell)"]
["Jones,JANE242",111111352,"2018-11-01",null,null,null,"Gap Health Factor - Check Pt Details","NANO,JOSEPH","MC HENRY 1 WH CBOC",null,null,"(V12) (556GC) McHenry, IL"]
["Jones,JANE243",111111353,"2018-11-02","2018-05-24","2018-10-19",1198,"NonVAProcedure; JLV AdmParent: (V12) (556) North Chicago, IL HCS","SMIRNOV,MICHAEL","GOLD 1","2022-02-04T09:30:00","(556) JAL PACT PHARM GOLD TELE2 ","(V12) (556) North Chicago, IL (Captain James A. Lovell)"]
["Jones,JANE244",111111354,"2018-11-06",null,"2018-10-23",1194,"VAProcedure; JLV AdmParent: (V12) (556) North Chicago, IL HCS","ROY,DEBJANI MD","GREEN 4",null,null,"(V12) (556) North Chicago, IL (Captain James A. Lovell)"]
["Jones,JANE245",111111355,"2018-12-25",null,null,null,"Gap Health Factor - Check Pt Details","HOLLANT,GLADYS","KENOSHA 2 WH CBOC",null,null,"(V12) (556GD) Kenosha, WI"]
["Jones,JANE246",111111356,"2019-01-18",null,"2019-01-04",1121,"VAProcedure; JLV AdmParent: (V12) (556) North Chicago, IL HCS","NANO,JOSEPH","MC HENRY 1 WH CBOC",null,null,"(V12) (556GC) McHenry, IL"]
["Jones,JANE247",111111357,"2019-02-08",null,null,null,"Gap Health Factor - Check Pt Details","NANO,JOSEPH","MC HENRY 1 WH CBOC",null,null,"(V12) (556GC) McHenry, IL"]
["Jones,JANE248",111111358,"2019-02-18",null,"2019-02-04",1090,"VAProcedure; JLV AdmParent: (V12) (556) North Chicago, IL HCS","CHAVEZ,LUIS A","BLUE 5","2022-02-03T10:30:00","(556) JAL PACT PC MD BLUE5","(V12) (556) North Chicago, IL (Captain James A. Lovell)"]
["Jones,JANE249",111111359,"2019-02-19",null,null,null,"Gap Health Factor - Check Pt Details","NANO,JOSEPH","MC HENRY 1 WH CBOC",null,null,"(V12) (556GC) McHenry, IL"]
["Jones,JANE250",111111360,"2019-02-21","2019-02-06","2019-02-07",1087,"VAProcedure; JLV AdmParent: (V12) (556) North Chicago, IL HCS","ROY,DEBJANI MD","GREEN 4",null,null,"(V12) (556) North Chicago, IL (Captain James A. Lovell)"]
["Jones,JANE251",111111361,"2019-02-21",null,"2019-02-07",1087,"VAProcedure; JLV AdmParent: (V12) (556) North Chicago, IL HCS","OOMMEN,SAJI","BLUE 1",null,null,"(V12) (556) North Chicago, IL (Captain James A. Lovell)"]
["Jones,JANE252",111111362,"2019-02-27",null,null,null,"Gap Health Factor - Check Pt Details","SIAS,PATRICIA E","MC HENRY 5 CBOC",null,null,"(V12) (556GC) McHenry, IL"]
["Jones,JANE253",111111363,"2019-03-06","2018-09-04","2019-02-20",1074,"NonVAProcedure; JLV AdmParent: (V12) (556) North Chicago, IL HCS","OOMMEN,SAJI","BLUE 1",null,null,"(V12) (556) North Chicago, IL (Captain James A. Lovell)"]
["Jones,JANE254",111111364,"2019-03-11",null,null,null,"Gap Health Factor - Check Pt Details","NANO,JOSEPH","MC HENRY 1 WH CBOC",null,null,"(V12) (556GC) McHenry, IL"]
["Jones,JANE255",111111365,"2019-03-12",null,null,null,"Gap Health Factor - Check Pt Details","NANO,JOSEPH","MC HENRY 1 WH CBOC","2022-02-01T10:00:00","(556GC) MCHENRY - PACT PC 1 MD","(V12) (556GC) McHenry, IL"]
["Jones,JANE256",111111366,"2019-03-13",null,null,null,"Gap Health Factor - Check Pt Details","NANO,JOSEPH","MC HENRY 1 WH CBOC",null,null,"(V12) (556GC) McHenry, IL"]
["Jones,JANE257",111111367,"2019-03-15","2018-10-03","2019-03-01",1065,"VAProcedure; JLV AdmParent: (V12) (556) North Chicago, IL HCS","OOMMEN,SAJI","BLUE 1",null,null,"(V12) (556) North Chicago, IL (Captain James A. Lovell)"]
["Jones,JANE258",111111368,"2019-03-19",null,null,null,"Gap Health Factor - Check Pt Details","NANO,JOSEPH","MC HENRY 1 WH CBOC",null,null,"(V12) (556GC) McHenry, IL"]
["Jones,JANE259",111111369,"2019-03-21",null,null,null,"Gap Health Factor - Check Pt Details","NANO,JOSEPH","MC HENRY 1 WH CBOC",null,null,"(V12) (556GC) McHenry, IL"]
["Jones,JANE260",111111370,"2019-03-21",null,null,null,"Gap Health Factor - Check Pt Details","NANO,JOSEPH","MC HENRY 1 WH CBOC",null,null,"(V12) (556GC) McHenry, IL"]
["Jones,JANE261",111111371,"2019-03-26",null,null,null,"Gap Health Factor - Check Pt Details","KIZHNER,JULIA","GREEN 3",null,null,"(V12) (556) North Chicago, IL (Captain James A. Lovell)"]
["Jones,JANE262",111111372,"2019-03-26",null,"2015-07-16",2389,"VAProcedure; JLV AdmParent: (V12) (537) Chicago, IL HCS","ETINGEN,MARGARITA","GOLD 2",null,null,"(V12) (556) North Chicago, IL (Captain James A. Lovell)"]
["Jones,JANE263",111111373,"2019-03-27",null,"2019-03-13",1053,"VAProcedure; JLV AdmParent: (V12) (556) North Chicago, IL HCS","ETINGEN,MARGARITA","GOLD 2",null,null,"(V12) (556) North Chicago, IL (Captain James A. Lovell)"]
["Jones,JANE264",111111374,"2019-03-27",null,null,null,"Gap Health Factor - Check Pt Details","NANO,JOSEPH","MC HENRY 1 WH CBOC",null,null,"(V12) (556GC) McHenry, IL"]
["Jones,JANE265",111111375,"2019-03-28",null,"2019-03-14",1052,"VAProcedure; JLV AdmParent: (V12) (556) North Chicago, IL HCS","HOLLANT,GLADYS","KENOSHA 2 WH CBOC","2022-03-14T09:15:00","(556GD) KENOSHA - PACT PC 2 R2","(V12) (556GD) Kenosha, WI"]
["Jones,JANE266",111111376,"2019-04-02",null,"2019-03-19",1047,"VAProcedure; JLV AdmParent: (V12) (556) North Chicago, IL HCS","IFTIKHAR,SYEDA A MD","GREEN 5",null,null,"(V12) (556) North Chicago, IL (Captain James A. Lovell)"]
["Jones,JANE267",111111377,"2019-04-03",null,"2019-03-20",1046,"VAProcedure; JLV AdmParent: (V12) (556) North Chicago, IL HCS","ROY,DEBJANI MD","GREEN 4","2022-02-22T13:00:00","(556) JAL PACT PHARM GREEN","(V12) (556) North Chicago, IL (Captain James A. Lovell)"]
["Jones,JANE268",111111378,"2019-04-12",null,"2019-03-29",1037,"VAProcedure; JLV AdmParent: (V12) (556) North Chicago, IL HCS","HOLLOWAY,ALISON R MD","WOMENS HEALTH 1 WH CLINIC",null,null,"(V12) (556) North Chicago, IL (Captain James A. Lovell)"]
["Jones,JANE269",111111379,"2019-04-19",null,"2019-04-05",1030,"VAProcedure; JLV AdmParent: (V12) (556) North Chicago, IL HCS","OOMMEN,SAJI","BLUE 1","2022-03-01T08:00:00","(556) JAL PACT PC MD BLUE1","(V12) (556) North Chicago, IL (Captain James A. Lovell)"]
["Jones,JANE270",111111380,"2019-05-06",null,"2010-02-23",4358,"VAProcedure; JLV AdmParent: (V12) (556) North Chicago, IL HCS","ZAKARIYA,HOSAM Y","BLUE 2",null,null,"(V12) (556) North Chicago, IL (Captain James A. Lovell)"]
["Jones,JANE271",111111381,"2019-05-07",null,"2019-04-23",1012,"NonVAProcedure; JLV AdmParent: (V12) (556) North Chicago, IL HCS","OOMMEN,SAJI","BLUE 1",null,null,"(V12) (556) North Chicago, IL (Captain James A. Lovell)"]
["Jones,JANE272",111111382,"2019-05-15",null,"2019-05-01",1004,"VAProcedure; JLV AdmParent: (V12) (695) Milwaukee, WI HCS","HOLLOWAY,ALISON R MD","WOMENS HEALTH 1 WH CLINIC",null,null,"(V12) (556) North Chicago, IL (Captain James A. Lovell)"]
["Jones,JANE273",111111383,"2019-05-15",null,"2019-05-01",1004,"VAProcedure; JLV AdmParent: (V12) (556) North Chicago, IL HCS","ROY,DEBJANI MD","GREEN 4","2022-03-28T10:00:00","(556) JAL PACT PC MD GREEN4","(V12) (556) North Chicago, IL (Captain James A. Lovell)"]
["Jones,JANE274",111111384,"2019-05-15",null,"2019-05-01",1004,"VAProcedure; JLV AdmParent: (V12) (556) North Chicago, IL HCS","HOLLANT,GLADYS","KENOSHA 2 WH CBOC","2022-03-03T08:00:00","(556GD) KENOSHA - PACT PC 2 R1","(V12) (556GD) Kenosha, WI"]
["Jones,JANE275",111111385,"2019-05-16",null,null,null,"Gap Health Factor - Check Pt Details","IFTIKHAR,SYEDA A MD","GREEN 5",null,null,"(V12) (556) North Chicago, IL (Captain James A. Lovell)"]
["Jones,JANE276",111111386,"2019-06-07",null,"2019-05-24",981,"VAProcedure; JLV AdmParent: (V12) (556) North Chicago, IL HCS","SYEDA,SARA J","GOLD 3",null,null,"(V12) (556) North Chicago, IL (Captain James A. Lovell)"]
["Jones,JANE277",111111387,"2019-06-12",null,"2019-05-29",976,"NonVAProcedure; JLV AdmParent: (V12) (556) North Chicago, IL HCS","OOMMEN,SAJI","BLUE 1",null,null,"(V12) (556) North Chicago, IL (Captain James A. Lovell)"]
["Jones,JANE278",111111388,"2019-06-20",null,"2019-06-20",954,"VAProcedure; JLV AdmParent: (V12) (537) Chicago, IL HCS","IFTIKHAR,SYEDA A MD","GREEN 5","2022-02-15T09:30:00","(556) JAL PACT PHARM GREEN","(V12) (556) North Chicago, IL (Captain James A. Lovell)"]
["Jones,JANE279",111111389,"2019-06-20",null,"2019-06-06",968,"VAProcedure; JLV AdmParent: (V12) (556) North Chicago, IL HCS","SMIRNOV,MICHAEL","GOLD 1",null,null,"(V12) (556) North Chicago, IL (Captain James A. Lovell)"]
["Jones,JANE280",111111390,"2019-08-02",null,"2019-07-19",925,"VAProcedure; JLV AdmParent: (V12) (556) North Chicago, IL HCS","HOLLOWAY,ALISON R MD","WOMENS HEALTH 1 WH CLINIC",null,null,"(V12) (556) North Chicago, IL (Captain James A. Lovell)"]
["Jones,JANE281",111111391,"2019-08-05","2018-06-18","2019-07-22",922,"VAProcedure; JLV AdmParent: (V12) (556) North Chicago, IL HCS","HOLLOWAY,ALISON R MD","WOMENS HEALTH 1 WH CLINIC",null,null,"(V12) (556) North Chicago, IL (Captain James A. Lovell)"]
["Jones,JANE282",111111392,"2019-08-05",null,"2019-07-22",922,"VAProcedure; JLV AdmParent: (V12) (556) North Chicago, IL HCS","IFTIKHAR,SYEDA A MD","GREEN 5",null,null,"(V12) (556) North Chicago, IL (Captain James A. Lovell)"]
["Jones,JANE283",111111393,"2019-08-19",null,"2019-08-05",908,"VAProcedure; JLV AdmParent: (V12) (556) North Chicago, IL HCS","ROY,DEBJANI MD","GREEN 4",null,null,"(V12) (556) North Chicago, IL (Captain James A. Lovell)"]
["Jones,JANE284",111111394,"2019-08-19",null,"2019-08-05",908,"NonVAProcedure; JLV AdmParent: (V12) (556) North Chicago, IL HCS","BANJO,ADEOLA","MC HENRY 4 WH CBOC",null,null,"(V12) (556GC) McHenry, IL"]
["Jones,JANE285",111111395,"2019-08-24",null,"2019-08-10",903,"NonVAProcedure; JLV AdmParent: (V12) (578) Hines, IL HCS","SIAS,PATRICIA E","MC HENRY 5 CBOC",null,null,"(V12) (556GC) McHenry, IL"]
["Jones,JANE286",111111396,"2019-09-03",null,"2013-03-27",3230,"VAProcedure; JLV AdmParent: (V12) (537) Chicago, IL HCS","SIAS,PATRICIA E","MC HENRY 5 CBOC",null,null,"(V12) (556GC) McHenry, IL"]
["Jones,JANE287",111111397,"2019-09-04","2019-08-17","2019-08-21",892,"VAProcedure; JLV AdmParent: (V12) (556) North Chicago, IL HCS","SYEDA,SARA J","GOLD 3",null,null,"(V12) (556) North Chicago, IL (Captain James A. Lovell)"]
["Jones,JANE288",111111398,"2019-09-04",null,"2019-08-21",892,"VAProcedure; JLV AdmParent: (V12) (556) North Chicago, IL HCS","CHAVEZ,LUIS A","BLUE 5","2022-12-01T10:00:00","(556) JAL PACT PC MD BLUE5","(V12) (556) North Chicago, IL (Captain James A. Lovell)"]
["Jones,JANE289",111111399,"2019-09-05",null,"2019-08-22",891,"VAProcedure; JLV AdmParent: (V12) (556) North Chicago, IL HCS","OOMMEN,SAJI","BLUE 1",null,null,"(V12) (556) North Chicago, IL (Captain James A. Lovell)"]
["Jones,JANE290",111111400,"2019-09-09",null,"2019-08-26",887,"VAProcedure; JLV AdmParent: (V12) (556) North Chicago, IL HCS","OOMMEN,SAJI","BLUE 1","2022-03-29T09:00:00","(556) JAL PACT PC MD BLUE1","(V12) (556) North Chicago, IL (Captain James A. Lovell)"]
["Jones,JANE291",111111401,"2019-09-09",null,"2019-08-26",887,"VAProcedure; JLV AdmParent: (V12) (556) North Chicago, IL HCS","OOMMEN,SAJI","BLUE 1",null,null,"(V12) (556) North Chicago, IL (Captain James A. Lovell)"]
["Jones,JANE292",111111402,"2019-09-09",null,"2019-08-26",887,"VAProcedure; JLV AdmParent: (V12) (556) North Chicago, IL HCS","ROY,DEBJANI MD","GREEN 4",null,null,"(V12) (556) North Chicago, IL (Captain James A. Lovell)"]
["Jones,JANE293",111111403,"2019-09-11","2019-08-13","2019-08-28",885,"VAProcedure; JLV AdmParent: (V12) (556) North Chicago, IL HCS","ROY,DEBJANI MD","GREEN 4",null,null,"(V12) (556) North Chicago, IL (Captain James A. Lovell)"]
["Jones,JANE294",111111404,"2019-09-17",null,"2019-09-03",879,"VAProcedure; JLV AdmParent: (V12) (556) North Chicago, IL HCS","ETINGEN,MARGARITA","GOLD 2",null,null,"(V12) (556) North Chicago, IL (Captain James A. Lovell)"]
["Jones,JANE295",111111405,"2019-09-17",null,"2019-09-03",879,"VAProcedure; JLV AdmParent: (V12) (556) North Chicago, IL HCS","SMIRNOV,MICHAEL","GOLD 1",null,null,"(V12) (556) North Chicago, IL (Captain James A. Lovell)"]
["Jones,JANE296",111111406,"2019-09-19",null,"2019-09-05",877,"VAProcedure; JLV AdmParent: (V12) (556) North Chicago, IL HCS","OOMMEN,SAJI","BLUE 1",null,null,"(V12) (556) North Chicago, IL (Captain James A. Lovell)"]
["Jones,JANE297",111111407,"2019-09-23",null,"2019-09-09",873,"VAProcedure; JLV AdmParent: (V12) (556) North Chicago, IL HCS","ETINGEN,MARGARITA","GOLD 2","2022-05-17T10:00:00","(556) JAL PACT PC MD GOLD2","(V12) (556) North Chicago, IL (Captain James A. Lovell)"]
["Jones,JANE298",111111408,"2019-09-24",null,"2019-09-10",872,"VAProcedure; JLV AdmParent: (V12) (556) North Chicago, IL HCS","ROY,DEBJANI MD","GREEN 4",null,null,"(V12) (556) North Chicago, IL (Captain James A. Lovell)"]
["Jones,JANE299",111111409,"2019-10-11",null,"2019-09-27",855,"VAProcedure; JLV AdmParent: (V12) (556) North Chicago, IL HCS","SYEDA,SARA J","GOLD 3",null,null,"(V12) (556) North Chicago, IL (Captain James A. Lovell)"]
["Jones,JANE300",111111410,"2019-11-01","2019-09-08","2019-10-18",834,"VAProcedure; JLV AdmParent: (V12) (556) North Chicago, IL HCS","ETINGEN,MARGARITA","GOLD 2",null,null,"(V12) (556) North Chicago, IL (Captain James A. Lovell)"]
["Jones,JANE301",111111411,"2019-11-27",null,"2019-11-13",808,"VAProcedure; JLV AdmParent: (V12) (556) North Chicago, IL HCS","NANO,JOSEPH","MC HENRY 1 WH CBOC",null,null,"(V12) (556GC) McHenry, IL"]
["Jones,JANE302",111111412,"2019-12-17",null,"2019-12-03",788,"VAProcedure; JLV AdmParent: (V12) (556) North Chicago, IL HCS","OOMMEN,SAJI","BLUE 1","2022-02-22T08:00:00","(556) JAL PACT PC MD BLUE1","(V12) (556) North Chicago, IL (Captain James A. Lovell)"]
["Jones,JANE303",111111413,"2020-02-06",null,"2018-02-13",1446,"VAProcedure; JLV AdmParent: (V12) (556) North Chicago, IL HCS","ZAKARIYA,HOSAM Y","BLUE 2","2022-02-10T08:00:00","(556) JAL PACT PC MD BLUE2","(V12) (556) North Chicago, IL (Captain James A. Lovell)"]
["Jones,JANE304",111111414,"2020-02-11",null,"2013-06-25",3140,"VAProcedure; JLV AdmParent: (V12) (556) North Chicago, IL HCS","JUIRIS,TAHIRA","WOMENS HEALTH 2 WH CLINIC",null,null,"(V12) (556) North Chicago, IL (Captain James A. Lovell)"]
["Jones,JANE305",111111415,"2020-03-06",null,"2020-02-21",708,"VAProcedure; JLV AdmParent: (V12) (556) North Chicago, IL HCS","OOMMEN,SAJI","BLUE 1","2022-02-07T10:00:00","(556) JAL PACT PC MD BLUE1","(V12) (556) North Chicago, IL (Captain James A. Lovell)"]
["Jones,JANE306",111111416,"2020-03-13",null,"2020-02-28",701,"VAProcedure; JLV AdmParent: (V12) (695) Milwaukee, WI HCS","ROY,DEBJANI MD","GREEN 4",null,null,"(V12) (556) North Chicago, IL (Captain James A. Lovell)"]
["Jones,JANE307",111111417,"2020-03-20",null,"2020-03-06",694,"VAProcedure; JLV AdmParent: (V12) (556) North Chicago, IL HCS","HOLLOWAY,ALISON R MD","WOMENS HEALTH 1 WH CLINIC",null,null,"(V12) (556) North Chicago, IL (Captain James A. Lovell)"]
["Jones,JANE308",111111418,"2020-03-23",null,"2008-01-24",5119,"VAProcedure; JLV AdmParent: (V12) (556) North Chicago, IL HCS","BANJO,ADEOLA","MC HENRY 4 WH CBOC",null,null,"(V12) (556GC) McHenry, IL"]
["Jones,JANE309",111111419,"2020-03-23",null,null,null,"Gap Health Factor - Check Pt Details","BANJO,ADEOLA","MC HENRY 4 WH CBOC",null,null,"(V12) (556GC) McHenry, IL"]
["Jones,JANE310",111111420,"2020-03-31",null,"2020-03-17",683,"VAProcedure; JLV AdmParent: (V12) (578) Hines, IL HCS","OOMMEN,SAJI","BLUE 1",null,null,"(V12) (556) North Chicago, IL (Captain James A. Lovell)"]
["Jones,JANE311",111111421,"2020-04-13",null,"2020-03-30",670,"VAProcedure; JLV AdmParent: (V12) (556) North Chicago, IL HCS","SYEDA,SARA J","GOLD 3",null,null,"(V12) (556) North Chicago, IL (Captain James A. Lovell)"]
["Jones,JANE312",111111422,"2020-05-11",null,"2008-11-19",4819,"VAProcedure; JLV AdmParent: (V12) (556) North Chicago, IL HCS","OOMMEN,SAJI","BLUE 1",null,null,"(V12) (556) North Chicago, IL (Captain James A. Lovell)"]
["Jones,JANE313",111111423,"2020-05-22",null,"2020-05-08",631,"VAProcedure; JLV AdmParent: (V12) (556) North Chicago, IL HCS","SIAS,PATRICIA E","MC HENRY 5 CBOC",null,null,"(V12) (556GC) McHenry, IL"]
["Jones,JANE314",111111424,"2020-06-01",null,"2020-05-18",621,"VAProcedure; JLV AdmParent: (V12) (556) North Chicago, IL HCS","JUIRIS,TAHIRA","WOMENS HEALTH 2 WH CLINIC",null,null,"(V12) (556) North Chicago, IL (Captain James A. Lovell)"]
["Jones,JANE315",111111425,"2020-06-18",null,"2020-06-04",604,"VAProcedure; JLV AdmParent: (V12) (556) North Chicago, IL HCS","HOLLANT,GLADYS","KENOSHA 2 WH CBOC",null,null,"(V12) (556GD) Kenosha, WI"]
["Jones,JANE316",111111426,"2020-06-30",null,"2020-06-16",592,"VAProcedure; JLV AdmParent: (V12) (556) North Chicago, IL HCS","HOLLANT,GLADYS","KENOSHA 2 WH CBOC",null,null,"(V12) (556GD) Kenosha, WI"]
["Jones,JANE317",111111427,"2020-07-16",null,"2020-07-02",576,"VAProcedure; JLV AdmParent: (V12) (556) North Chicago, IL HCS","LAYUG,ANNA","GREEN 6",null,null,"(V12) (556) North Chicago, IL (Captain James A. Lovell)"]
["Jones,JANE318",111111428,"2020-07-16",null,"2020-07-02",576,"VAProcedure; JLV AdmParent: (V12) (556) North Chicago, IL HCS","SYEDA,SARA J","GOLD 3",null,null,"(V12) (556) North Chicago, IL (Captain James A. Lovell)"]
["Jones,JANE319",111111429,"2020-08-05",null,"2020-07-22",556,"VAProcedure; JLV AdmParent: (V12) (556) North Chicago, IL HCS","FRANCISCO,RAMIL","GREEN 1",null,null,"(V12) (556) North Chicago, IL (Captain James A. Lovell)"]
["Jones,JANE320",111111430,"2020-08-05",null,"2020-07-22",556,"VAProcedure; JLV AdmParent: (V12) (556) North Chicago, IL HCS","KIZHNER,JULIA","GREEN 3",null,null,"(V12) (556) North Chicago, IL (Captain James A. Lovell)"]
["Jones,JANE321",111111431,"2020-08-13",null,"2020-07-30",548,"VAProcedure; JLV AdmParent: (V12) (556) North Chicago, IL HCS","SMIRNOV,MICHAEL","GOLD 1",null,null,"(V12) (556) North Chicago, IL (Captain James A. Lovell)"]
["Jones,JANE322",111111432,"2020-08-27",null,"2020-08-13",534,"VAProcedure; JLV AdmParent: (V12) (556) North Chicago, IL HCS","OOMMEN,SAJI","BLUE 1",null,null,"(V12) (556) North Chicago, IL (Captain James A. Lovell)"]
["Jones,JANE323",111111433,"2020-09-03",null,"2020-08-20",527,"VAProcedure; JLV AdmParent: (V12) (556) North Chicago, IL HCS","KIZHNER,JULIA","GREEN 3",null,null,"(V12) (556) North Chicago, IL (Captain James A. Lovell)"]
["Jones,JANE324",111111434,"2020-09-03",null,"2020-08-20",527,"VAProcedure; JLV AdmParent: (V12) (556) North Chicago, IL HCS","HOLLANT,GLADYS","KENOSHA 2 WH CBOC",null,null,"(V12) (556GD) Kenosha, WI"]
["Jones,JANE325",111111435,"2020-09-08",null,"2020-08-25",522,"VAProcedure; JLV AdmParent: (V12) (556) North Chicago, IL HCS","JUIRIS,TAHIRA","WOMENS HEALTH 2 WH CLINIC",null,null,"(V12) (556) North Chicago, IL (Captain James A. Lovell)"]
["Jones,JANE326",111111436,"2020-09-09",null,"2020-08-26",521,"VAProcedure; JLV AdmParent: (V12) (556) North Chicago, IL HCS","OOMMEN,SAJI","BLUE 1",null,null,"(V12) (556) North Chicago, IL (Captain James A. Lovell)"]
["Jones,JANE327",111111437,"2020-09-11",null,"2020-08-28",519,"VAProcedure; JLV AdmParent: (V12) (556) North Chicago, IL HCS","HOLLANT,GLADYS","KENOSHA 2 WH CBOC","2022-08-23T13:00:00","(556GD) KENOSHA - PACT PC 2 R1","(V12) (556GD) Kenosha, WI"]
["Jones,JANE328",111111438,"2020-09-14",null,"2020-02-12",717,"VAProcedure; JLV AdmParent: (V12) (556) North Chicago, IL HCS","OOMMEN,SAJI","BLUE 1",null,null,"(V12) (556) North Chicago, IL (Captain James A. Lovell)"]
["Jones,JANE329",111111439,"2020-09-14",null,"2020-08-31",516,"VAProcedure; JLV AdmParent: (V12) (556) North Chicago, IL HCS","BANJO,ADEOLA","MC HENRY 4 WH CBOC",null,null,"(V12) (556GC) McHenry, IL"]
["Jones,JANE330",111111440,"2020-09-18","2019-08-08","2020-09-18",498,"VAProcedure; JLV AdmParent: (V12) (556) North Chicago, IL HCS","KIZHNER,JULIA","GREEN 3","2022-06-27T08:30:00","(556) JAL PACT PC PA GREEN3","(V12) (556) North Chicago, IL (Captain James A. Lovell)"]
["Jones,JANE331",111111441,"2020-10-01","2019-04-11","2020-09-17",499,"VAProcedure; JLV AdmParent: (V12) (556) North Chicago, IL HCS","OOMMEN,SAJI","BLUE 1",null,null,"(V12) (556) North Chicago, IL (Captain James A. Lovell)"]
["Jones,JANE332",111111442,"2020-10-05",null,"2020-09-21",495,"VAProcedure; JLV AdmParent: (V12) (556) North Chicago, IL HCS","JUIRIS,TAHIRA","WOMENS HEALTH 2 WH CLINIC",null,null,"(V12) (556) North Chicago, IL (Captain James A. Lovell)"]
["Jones,JANE333",111111443,"2020-10-06",null,"2020-09-22",494,"VAProcedure; JLV AdmParent: (V12) (556) North Chicago, IL HCS","JUIRIS,TAHIRA","WOMENS HEALTH 2 WH CLINIC",null,null,"(V12) (556) North Chicago, IL (Captain James A. Lovell)"]
["Jones,JANE334",111111444,"2020-10-07","2020-03-06","2020-09-23",493,"VAProcedure; JLV AdmParent: (V12) (556) North Chicago, IL HCS","HOLLOWAY,ALISON R MD","WOMENS HEALTH 1 WH CLINIC",null,null,"(V12) (556) North Chicago, IL (Captain James A. Lovell)"]
["Jones,JANE335",111111445,"2020-10-22",null,"2020-10-08",478,"VAProcedure; JLV AdmParent: (V12) (556) North Chicago, IL HCS","IFTIKHAR,SYEDA A MD","GREEN 5",null,null,"(V12) (556) North Chicago, IL (Captain James A. Lovell)"]
["Jones,JANE336",111111446,"2020-10-23",null,"2015-02-12",2543,"VAProcedure; JLV AdmParent: (V12) (578) Hines, IL HCS","ETINGEN,MARGARITA","GOLD 2",null,null,"(V12) (556) North Chicago, IL (Captain James A. Lovell)"]
["Jones,JANE337",111111447,"2020-11-05",null,"2013-10-23",3020,"VAProcedure; JLV AdmParent: (V12) (556) North Chicago, IL HCS","FRANCISCO,RAMIL","GREEN 1",null,null,"(V12) (556) North Chicago, IL (Captain James A. Lovell)"]
["Jones,JANE338",111111448,"2020-11-10",null,"2020-10-27",459,"VAProcedure; JLV AdmParent: (V12) (556) North Chicago, IL HCS","ROY,DEBJANI MD","GREEN 4","2022-05-20T09:30:00","(556) JAL PACT PC MD GREEN4","(V12) (556) North Chicago, IL (Captain James A. Lovell)"]
["Jones,JANE339",111111449,"2020-11-13",null,"2020-10-30",456,"VAProcedure; JLV AdmParent: (V12) (556) North Chicago, IL HCS","FRANCISCO,RAMIL","GREEN 1",null,null,"(V12) (556) North Chicago, IL (Captain James A. Lovell)"]
["Jones,JANE340",111111450,"2020-11-18",null,"2020-11-04",451,"VAProcedure; JLV AdmParent: (V12) (556) North Chicago, IL HCS","SMIRNOV,MICHAEL","GOLD 1",null,null,"(V12) (556) North Chicago, IL (Captain James A. Lovell)"]
["Jones,JANE341",111111451,"2020-11-19",null,"2020-11-05",450,"VAProcedure; JLV AdmParent: (V12) (556) North Chicago, IL HCS","OOMMEN,SAJI","BLUE 1",null,null,"(V12) (556) North Chicago, IL (Captain James A. Lovell)"]
["Jones,JANE342",111111452,"2020-11-27",null,null,null,"Gap Health Factor - Check Pt Details","ZAKARIYA,HOSAM Y","BLUE 2",null,null,"(V12) (556) North Chicago, IL (Captain James A. Lovell)"]
["Jones,JANE343",111111453,"2020-12-15",null,"2012-10-18",3390,"VAProcedure; JLV AdmParent: (V12) (556) North Chicago, IL HCS","CHAVEZ,LUIS A","BLUE 5","2022-06-27T08:00:00","(556) JAL PACT PC MD BLUE5","(V12) (556) North Chicago, IL (Captain James A. Lovell)"]
["Jones,JANE344",111111454,"2020-12-15",null,"2020-12-01",424,"VAProcedure; JLV AdmParent: (V12) (556) North Chicago, IL HCS","HOLLANT,GLADYS","KENOSHA 2 WH CBOC","2022-02-28T08:15:00","(556GD) KENOSHA - PACT PC 2 R2","(V12) (556GD) Kenosha, WI"]
["Jones,JANE345",111111455,"2020-12-21",null,null,null,"Gap Health Factor - Check Pt Details","IQBAL,FARZANA","EVANSTON 2 WH CBOC",null,null,"(V12) (556GA) Evanston, IL"]
["Jones,JANE346",111111456,"2020-12-25",null,"2020-12-11",414,"VAProcedure; JLV AdmParent: (V12) (556) North Chicago, IL HCS","TROTTA,ROSEMARY","HBPC 2 HBPC",null,null,"(V12) (556) North Chicago, IL (Captain James A. Lovell)"]
["Jones,JANE347",111111457,"2021-01-04","2020-01-24","2020-12-21",404,"VAProcedure; JLV AdmParent: (V12) (556) North Chicago, IL HCS","ROY,DEBJANI MD","GREEN 4",null,null,"(V12) (556) North Chicago, IL (Captain James A. Lovell)"]
["Jones,JANE348",111111458,"2021-01-06",null,"2020-12-23",402,"VAProcedure; JLV AdmParent: (V12) (556) North Chicago, IL HCS","IFTIKHAR,SYEDA A MD","GREEN 5",null,null,"(V12) (556) North Chicago, IL (Captain James A. Lovell)"]
["Jones,JANE349",111111459,"2021-01-06",null,null,null,"Gap Health Factor - Check Pt Details","IFTIKHAR,SYEDA A MD","GREEN 5",null,null,"(V12) (556) North Chicago, IL (Captain James A. Lovell)"]
["Jones,JANE350",111111460,"2021-01-11","2019-12-18","2020-12-28",397,"VAProcedure; JLV AdmParent: (V12) (556) North Chicago, IL HCS","IQBAL,FARZANA","EVANSTON 2 WH CBOC",null,null,"(V12) (556GA) Evanston, IL"]
["Jones,JANE351",111111461,"2021-01-19",null,"2021-01-05",389,"VAProcedure; JLV AdmParent: (V12) (556) North Chicago, IL HCS","JUIRIS,TAHIRA","WOMENS HEALTH 2 WH CLINIC",null,null,"(V12) (556) North Chicago, IL (Captain James A. Lovell)"]
["Jones,JANE352",111111462,"2021-01-19","2020-07-27","2021-01-05",389,"VAProcedure; JLV AdmParent: (V12) (556) North Chicago, IL HCS","IQBAL,FARZANA","EVANSTON 2 WH CBOC",null,null,"(V12) (556GA) Evanston, IL"]
["Jones,JANE353",111111463,"2021-01-22",null,"2021-01-08",386,"VAProcedure; JLV AdmParent: (V12) (556) North Chicago, IL HCS","OOMMEN,SAJI","BLUE 1",null,null,"(V12) (556) North Chicago, IL (Captain James A. Lovell)"]
["Jones,JANE354",111111464,"2021-01-25",null,"2021-01-11",383,"VAProcedure; JLV AdmParent: (V12) (556) North Chicago, IL HCS","SYEDA,SARA J","GOLD 3",null,null,"(V12) (556) North Chicago, IL (Captain James A. Lovell)"]
["Jones,JANE355",111111465,"2021-01-28",null,"2021-01-14",380,"VAProcedure; JLV AdmParent: (V12) (556) North Chicago, IL HCS","SIAS,PATRICIA E","MC HENRY 5 CBOC",null,null,"(V12) (556GC) McHenry, IL"]
["Jones,JANE356",111111466,"2021-01-29",null,"2021-01-15",379,"VAProcedure; JLV AdmParent: (V12) (556) North Chicago, IL HCS","SMIRNOV,MICHAEL","GOLD 1",null,null,"(V12) (556) North Chicago, IL (Captain James A. Lovell)"]
["Jones,JANE357",111111467,"2021-01-29",null,"2021-01-15",379,"VAProcedure; JLV AdmParent: (V12) (695) Milwaukee, WI HCS","FRANCISCO,RAMIL","GREEN 1","2022-04-19T11:00:00","(556) JAL PACT PC MD GREEN1","(V12) (556) North Chicago, IL (Captain James A. Lovell)"]
["Jones,JANE358",111111468,"2021-02-05",null,"2021-01-22",372,"VAProcedure; JLV AdmParent: (V12) (556) North Chicago, IL HCS","SIAS,PATRICIA E","MC HENRY 5 CBOC","2022-02-18T08:30:00","(556GC) MCHENRY - PACT PC 5 MD PHONE","(V12) (556GC) McHenry, IL"]
["Jones,JANE359",111111469,"2021-02-08",null,"2021-01-25",369,"VAProcedure; JLV AdmParent: (V12) (556) North Chicago, IL HCS","HOLLOWAY,ALISON R MD","WOMENS HEALTH 1 WH CLINIC",null,null,"(V12) (556) North Chicago, IL (Captain James A. Lovell)"]
["Jones,JANE360",111111470,"2021-02-08","2020-10-13","2021-01-25",369,"VAProcedure; JLV AdmParent: (V12) (556) North Chicago, IL HCS","IFTIKHAR,SYEDA A MD","GREEN 5",null,null,"(V12) (556) North Chicago, IL (Captain James A. Lovell)"]
["Jones,JANE361",111111471,"2021-02-08",null,"2021-01-25",369,"VAProcedure; JLV AdmParent: (V12) (556) North Chicago, IL HCS","SMIRNOV,MICHAEL","GOLD 1","2022-06-16T10:30:00","(556) JAL PACT PC MD GOLD1","(V12) (556) North Chicago, IL (Captain James A. Lovell)"]
["Jones,JANE362",111111472,"2021-02-08",null,"2021-01-25",369,"VAProcedure; JLV AdmParent: (V12) (556) North Chicago, IL HCS","LAYUG,ANNA","GREEN 6","2022-03-03T09:30:00","(556) JAL PACT PC MD GREEN6","(V12) (556) North Chicago, IL (Captain James A. Lovell)"]
["Jones,JANE363",111111473,"2021-02-11",null,"2021-01-28",366,"VAProcedure; JLV AdmParent: (V12) (556) North Chicago, IL HCS","SYEDA,SARA J","GOLD 3","2022-04-26T08:00:00","(556) JAL PACT PHARM GOLD TELE2 ","(V12) (556) North Chicago, IL (Captain James A. Lovell)"]
["Jones,JANE364",111111474,"2021-02-11",null,"2021-01-28",366,"VAProcedure; JLV AdmParent: (V12) (556) North Chicago, IL HCS","JUIRIS,TAHIRA","WOMENS HEALTH 2 WH CLINIC",null,null,"(V12) (556) North Chicago, IL (Captain James A. Lovell)"]
["Jones,JANE365",111111475,"2021-02-15",null,"2021-02-01",362,"VAProcedure; JLV AdmParent: (V12) (556) North Chicago, IL HCS","BANJO,ADEOLA","MC HENRY 4 WH CBOC",null,null,"(V12) (556GC) McHenry, IL"]
["Jones,JANE366",111111476,"2021-02-16",null,"2021-02-16",347,"VAProcedure; JLV AdmParent: (V12) (607) Madison, WI HCS","IFTIKHAR,SYEDA A MD","GREEN 5","2022-03-03T10:00:00","(556) IMMUNIZATION 133EF VET","(V12) (556) North Chicago, IL (Captain James A. Lovell)"]
["Jones,JANE367",111111477,"2021-02-17","2021-01-26","2021-02-03",360,"VAProcedure; JLV AdmParent: (V12) (556) North Chicago, IL HCS","HOLLANT,GLADYS","KENOSHA 2 WH CBOC",null,null,"(V12) (556GD) Kenosha, WI"]
["Jones,JANE368",111111478,"2021-02-19",null,"2021-02-05",358,"VAProcedure; JLV AdmParent: (V12) (556) North Chicago, IL HCS","ROY,DEBJANI MD","GREEN 4",null,null,"(V12) (556) North Chicago, IL (Captain James A. Lovell)"]
["Jones,JANE369",111111479,"2021-02-22",null,"2021-02-08",355,"VAProcedure; JLV AdmParent: (V12) (556) North Chicago, IL HCS","OOMMEN,SAJI","BLUE 1",null,null,"(V12) (556) North Chicago, IL (Captain James A. Lovell)"]
["Jones,JANE370",111111480,"2021-02-23",null,"2021-02-09",354,"VAProcedure; JLV AdmParent: (V12) (556) North Chicago, IL HCS","ETINGEN,MARGARITA","GOLD 2",null,null,"(V12) (556) North Chicago, IL (Captain James A. Lovell)"]
["Jones,JANE371",111111481,"2021-02-25",null,"2021-02-11",352,"VAProcedure; JLV AdmParent: (V12) (556) North Chicago, IL HCS","FRANCISCO,RAMIL","GREEN 1",null,null,"(V12) (556) North Chicago, IL (Captain James A. Lovell)"]
["Jones,JANE372",111111482,"2021-02-25","2020-06-05","2021-02-11",352,"VAProcedure; JLV AdmParent: (V12) (556) North Chicago, IL HCS","IQBAL,FARZANA","EVANSTON 2 WH CBOC",null,null,"(V12) (556GA) Evanston, IL"]
["Jones,JANE373",111111483,"2021-02-26",null,null,null,"Gap Health Factor - Check Pt Details","CHAVEZ,LUIS A","BLUE 5",null,null,"(V12) (556) North Chicago, IL (Captain James A. Lovell)"]
["Jones,JANE374",111111484,"2021-02-26",null,"2021-02-12",351,"VAProcedure; JLV AdmParent: (V12) (556) North Chicago, IL HCS","SYEDA,SARA J","GOLD 3","2022-02-08T08:00:00","(556) JAL PACT PHARM GOLD TELE2 ","(V12) (556) North Chicago, IL (Captain James A. Lovell)"]
["Jones,JANE375",111111485,"2021-03-02",null,"2021-02-16",347,"VAProcedure; JLV AdmParent: (V12) (556) North Chicago, IL HCS","SMIRNOV,MICHAEL","GOLD 1",null,null,"(V12) (556) North Chicago, IL (Captain James A. Lovell)"]
["Jones,JANE376",111111486,"2021-03-03",null,"2021-02-17",346,"VAProcedure; JLV AdmParent: (V12) (556) North Chicago, IL HCS","ETINGEN,MARGARITA","GOLD 2",null,null,"(V12) (556) North Chicago, IL (Captain James A. Lovell)"]
["Jones,JANE377",111111487,"2021-03-09",null,"2021-02-23",340,"VAProcedure; JLV AdmParent: (V12) (556) North Chicago, IL HCS","HOLLOWAY,ALISON R MD","WOMENS HEALTH 1 WH CLINIC","2022-07-07T10:00:00","(556) JAL PACT WH PC 1 MD","(V12) (556) North Chicago, IL (Captain James A. Lovell)"]
["Jones,JANE378",111111488,"2021-03-11",null,"2015-07-07",2398,"VAProcedure; JLV AdmParent: (V12) (556) North Chicago, IL HCS","FRANCISCO,RAMIL","GREEN 1","2022-02-25T10:00:00","(556) JAL PACT PC MD GREEN1","(V12) (556) North Chicago, IL (Captain James A. Lovell)"]
["Jones,JANE379",111111489,"2021-03-12",null,"2021-02-26",337,"VAProcedure; JLV AdmParent: (V12) (556) North Chicago, IL HCS","JUIRIS,TAHIRA","WOMENS HEALTH 2 WH CLINIC",null,null,"(V12) (556) North Chicago, IL (Captain James A. Lovell)"]
["Jones,JANE380",111111490,"2021-03-12",null,"2021-02-26",337,"VAProcedure; JLV AdmParent: (V12) (556) North Chicago, IL HCS","HOLLANT,GLADYS","KENOSHA 2 WH CBOC",null,null,"(V12) (556GD) Kenosha, WI"]
["Jones,JANE381",111111491,"2021-03-15",null,"2021-03-01",334,"VAProcedure; JLV AdmParent: (V12) (556) North Chicago, IL HCS","OOMMEN,SAJI","BLUE 1",null,null,"(V12) (556) North Chicago, IL (Captain James A. Lovell)"]
["Jones,JANE382",111111492,"2021-03-15","2017-08-09","2021-03-01",334,"VAProcedure; JLV AdmParent: (V12) (556) North Chicago, IL HCS","IFTIKHAR,SYEDA A MD","GREEN 5",null,null,"(V12) (556) North Chicago, IL (Captain James A. Lovell)"]
["Jones,JANE383",111111493,"2021-03-15",null,"2021-03-01",334,"VAProcedure; JLV AdmParent: (V12) (556) North Chicago, IL HCS","SMIRNOV,MICHAEL","GOLD 1","2022-05-10T09:00:00","(556) JAL PACT PC MD GOLD1","(V12) (556) North Chicago, IL (Captain James A. Lovell)"]
["Jones,JANE384",111111494,"2021-03-17",null,null,null,"Gap Health Factor - Check Pt Details","KIZHNER,JULIA","GREEN 3","2022-09-02T09:30:00","(556) JAL PACT PC PA GREEN3","(V12) (556) North Chicago, IL (Captain James A. Lovell)"]
["Jones,JANE385",111111495,"2021-03-22",null,"2021-03-22",313,"VAProcedure; JLV AdmParent: (V12) (556) North Chicago, IL HCS","COTTER,WILLIAM MD","GOLD 5",null,null,"(V12) (556) North Chicago, IL (Captain James A. Lovell)"]
["Jones,JANE386",111111496,"2021-03-23",null,"2021-03-09",326,"VAProcedure; JLV AdmParent: (V12) (556) North Chicago, IL HCS","ROY,DEBJANI MD","GREEN 4","2022-03-08T11:00:00","(556) JAL PACT PC MD GREEN4","(V12) (556) North Chicago, IL (Captain James A. Lovell)"]
["Jones,JANE387",111111497,"2021-03-23",null,"2021-03-09",326,"VAProcedure; JLV AdmParent: (V12) (556) North Chicago, IL HCS","SMIRNOV,MICHAEL","GOLD 1",null,null,"(V12) (556) North Chicago, IL (Captain James A. Lovell)"]
["Jones,JANE388",111111498,"2021-03-23",null,"2021-03-09",326,"VAProcedure; JLV AdmParent: (V12) (556) North Chicago, IL HCS","BANJO,ADEOLA","MC HENRY 4 WH CBOC",null,null,"(V12) (556GC) McHenry, IL"]
["Jones,JANE389",111111499,"2021-03-25",null,"2021-03-11",324,"VAProcedure; JLV AdmParent: (V12) (556) North Chicago, IL HCS","HOLLOWAY,ALISON R MD","WOMENS HEALTH 1 WH CLINIC","2022-02-07T09:30:00","(556) JAL PACT PC RD TELE","(V12) (556) North Chicago, IL (Captain James A. Lovell)"]
["Jones,JANE390",111111500,"2021-03-26",null,"2021-03-12",323,"VAProcedure; JLV AdmParent: (V12) (556) North Chicago, IL HCS","IFTIKHAR,SYEDA A MD","GREEN 5","2022-10-24T14:00:00","(556) JAL PACT PHARM GREEN TELE2","(V12) (556) North Chicago, IL (Captain James A. Lovell)"]
["Jones,JANE391",111111501,"2021-03-26",null,"2021-03-12",323,"VAProcedure; JLV AdmParent: (V12) (556) North Chicago, IL HCS","NANO,JOSEPH","MC HENRY 1 WH CBOC",null,null,"(V12) (556GC) McHenry, IL"]
["Jones,JANE392",111111502,"2021-03-29",null,"2021-03-15",320,"VAProcedure; JLV AdmParent: (V12) (556) North Chicago, IL HCS","OOMMEN,SAJI","BLUE 1",null,null,"(V12) (556) North Chicago, IL (Captain James A. Lovell)"]
["Jones,JANE393",111111503,"2021-03-29",null,"2021-03-15",320,"VAProcedure; JLV AdmParent: (V12) (556) North Chicago, IL HCS","COTTER,WILLIAM MD","GOLD 5",null,null,"(V12) (556) North Chicago, IL (Captain James A. Lovell)"]
["Jones,JANE394",111111504,"2021-03-29",null,"2021-03-15",320,"VAProcedure; JLV AdmParent: (V12) (556) North Chicago, IL HCS","OOMMEN,SAJI","BLUE 1",null,null,"(V12) (556) North Chicago, IL (Captain James A. Lovell)"]
["Jones,JANE395",111111505,"2021-03-30",null,"2021-03-16",319,"VAProcedure; JLV AdmParent: (V12) (556) North Chicago, IL HCS","NANO,JOSEPH","MC HENRY 1 WH CBOC",null,null,"(V12) (556GC) McHenry, IL"]
["Jones,JANE396",111111506,"2021-04-01",null,"2021-03-18",317,"VAProcedure; JLV AdmParent: (V12) (556) North Chicago, IL HCS","HOLLANT,GLADYS","KENOSHA 2 WH CBOC","2022-02-14T09:00:00","(556GD) KENOSHA - MH SW FAFFORD IND","(V12) (556GD) Kenosha, WI"]
["Jones,JANE397",111111507,"2021-04-02",null,"2021-03-19",316,"VAProcedure; JLV AdmParent: (V12) (556) North Chicago, IL HCS","HOLLANT,GLADYS","KENOSHA 2 WH CBOC",null,null,"(V12) (556GD) Kenosha, WI"]
["Jones,JANE398",111111508,"2021-04-05",null,"2021-03-22",313,"VAProcedure; JLV AdmParent: (V12) (556) North Chicago, IL HCS","ETINGEN,MARGARITA","GOLD 2",null,null,"(V12) (556) North Chicago, IL (Captain James A. Lovell)"]
["Jones,JANE399",111111509,"2021-04-05",null,"2021-03-22",313,"VAProcedure; JLV AdmParent: (V12) (556) North Chicago, IL HCS","OOMMEN,SAJI","BLUE 1",null,null,"(V12) (556) North Chicago, IL (Captain James A. Lovell)"]
["Jones,JANE400",111111510,"2021-04-05",null,"2021-03-22",313,"VAProcedure; JLV AdmParent: (V12) (556) North Chicago, IL HCS","BANJO,ADEOLA","MC HENRY 4 WH CBOC",null,null,"(V12) (556GC) McHenry, IL"]
["Jones,JANE401",111111511,"2021-04-06",null,"2021-03-23",312,"VAProcedure; JLV AdmParent: (V12) (556) North Chicago, IL HCS","ETINGEN,MARGARITA","GOLD 2",null,null,"(V12) (556) North Chicago, IL (Captain James A. Lovell)"]
["Jones,JANE402",111111512,"2021-04-06",null,"2021-03-23",312,"VAProcedure; JLV AdmParent: (V12) (556) North Chicago, IL HCS","MOHAMMED,BAKHTIAR A","MC HENRY 2 CBOC",null,null,"(V12) (556GC) McHenry, IL"]
["Jones,JANE403",111111513,"2021-04-07",null,"2021-03-24",311,"VAProcedure; JLV AdmParent: (V12) (556) North Chicago, IL HCS","ROY,DEBJANI MD","GREEN 4",null,null,"(V12) (556) North Chicago, IL (Captain James A. Lovell)"]
["Jones,JANE404",111111514,"2021-04-09",null,"2021-04-09",295,"VAProcedure; JLV AdmParent: (V12) (556) North Chicago, IL HCS","ZAKARIYA,HOSAM Y","BLUE 2","2022-01-31T10:00:00","(556) JAL PACT PC MHI PHD INDV","(V12) (556) North Chicago, IL (Captain James A. Lovell)"]
["Jones,JANE405",111111515,"2021-04-09",null,"2021-03-26",309,"VAProcedure; JLV AdmParent: (V12) (556) North Chicago, IL HCS","HOLLOWAY,ALISON R MD","WOMENS HEALTH 1 WH CLINIC",null,null,"(V12) (556) North Chicago, IL (Captain James A. Lovell)"]
["Jones,JANE406",111111516,"2021-04-14",null,"2021-03-31",304,"VAProcedure; JLV AdmParent: (V12) (556) North Chicago, IL HCS","SYEDA,SARA J","GOLD 3",null,null,"(V12) (556) North Chicago, IL (Captain James A. Lovell)"]
["Jones,JANE407",111111517,"2021-04-15","2021-04-12","2021-04-15",289,"VAProcedure; JLV AdmParent: (V12) (556) North Chicago, IL HCS","IFTIKHAR,SYEDA A MD","GREEN 5",null,null,"(V12) (556) North Chicago, IL (Captain James A. Lovell)"]
["Jones,JANE408",111111518,"2021-04-23","2021-04-06","2021-04-09",295,"VAProcedure; JLV AdmParent: (V12) (556) North Chicago, IL HCS","RAVIPATI,MAMATA MD","GOLD 4","2022-04-29T09:00:00","(556) JAL PACT PC MD GOLD4","(V12) (556) North Chicago, IL (Captain James A. Lovell)"]
["Jones,JANE409",111111519,"2021-04-23",null,"2021-04-09",295,"VAProcedure; JLV AdmParent: (V12) (556) North Chicago, IL HCS","KIZHNER,JULIA","GREEN 3","2022-03-11T13:00:00","(556) JAL PACT PC PA GREEN3","(V12) (556) North Chicago, IL (Captain James A. Lovell)"]
["Jones,JANE410",111111520,"2021-04-23",null,"2021-04-09",295,"VAProcedure; JLV AdmParent: (V12) (556) North Chicago, IL HCS","SIAS,PATRICIA E","MC HENRY 5 CBOC",null,null,"(V12) (556GC) McHenry, IL"]
["Jones,JANE411",111111521,"2021-04-26",null,"2021-04-12",292,"VAProcedure; JLV AdmParent: (V12) (556) North Chicago, IL HCS","HOLLOWAY,ALISON R MD","WOMENS HEALTH 1 WH CLINIC",null,null,"(V12) (556) North Chicago, IL (Captain James A. Lovell)"]
["Jones,JANE412",111111522,"2021-04-26",null,null,null,"Gap Health Factor - Check Pt Details","SIAS,PATRICIA E","MC HENRY 5 CBOC",null,null,"(V12) (556GC) McHenry, IL"]
["Jones,JANE413",111111523,"2021-04-27","2018-05-06","2021-04-13",291,"VAProcedure; JLV AdmParent: (V12) (556) North Chicago, IL HCS","KIZHNER,JULIA","GREEN 3",null,null,"(V12) (556) North Chicago, IL (Captain James A. Lovell)"]
["Jones,JANE414",111111524,"2021-04-29",null,"2021-04-15",289,"VAProcedure; JLV AdmParent: (V12) (556) North Chicago, IL HCS","NANO,JOSEPH","MC HENRY 1 WH CBOC","2022-01-31T08:30:00","(556GC) MCHENRY - PACT PC 1 MD","(V12) (556GC) McHenry, IL"]
["Jones,JANE415",111111525,"2021-05-03",null,"2021-04-19",285,"VAProcedure; JLV AdmParent: (V12) (556) North Chicago, IL HCS","SMIRNOV,MICHAEL","GOLD 1",null,null,"(V12) (556) North Chicago, IL (Captain James A. Lovell)"]
["Jones,JANE416",111111526,"2021-05-04",null,"2021-04-20",284,"VAProcedure; JLV AdmParent: (V12) (556) North Chicago, IL HCS","SMIRNOV,MICHAEL","GOLD 1",null,null,"(V12) (556) North Chicago, IL (Captain James A. Lovell)"]
["Jones,JANE417",111111527,"2021-05-05",null,"2021-04-21",283,"VAProcedure; JLV AdmParent: (V12) (556) North Chicago, IL HCS","HOLLANT,GLADYS","KENOSHA 2 WH CBOC","2022-04-07T10:15:00","(556GD) KENOSHA - PACT PC 2 R2","(V12) (556GD) Kenosha, WI"]
["Jones,JANE418",111111528,"2021-05-06",null,"2021-04-22",282,"VAProcedure; JLV AdmParent: (V12) (556) North Chicago, IL HCS","MOHAMMED,BAKHTIAR A","MC HENRY 2 CBOC","2022-02-25T09:30:00","(556GC) MCHENRY - PACT PC 2 R1","(V12) (556GC) McHenry, IL"]
["Jones,JANE419",111111529,"2021-05-07",null,null,null,"Gap Health Factor - Check Pt Details","BANJO,ADEOLA","MC HENRY 4 WH CBOC",null,null,"(V12) (556GC) McHenry, IL"]
["Jones,JANE420",111111530,"2021-05-07",null,"2021-04-23",281,"VAProcedure; JLV AdmParent: (V12) (556) North Chicago, IL HCS","MOHAMMED,BAKHTIAR A","MC HENRY 2 CBOC",null,null,"(V12) (556GC) McHenry, IL"]
["Jones,JANE421",111111531,"2021-05-11",null,"2021-04-27",277,"VAProcedure; JLV AdmParent: (V12) (556) North Chicago, IL HCS","HOLLOWAY,ALISON R MD","WOMENS HEALTH 1 WH CLINIC",null,null,"(V12) (556) North Chicago, IL (Captain James A. Lovell)"]
["Jones,JANE422",111111532,"2021-05-11",null,"2021-04-27",277,"VAProcedure; JLV AdmParent: (V12) (556) North Chicago, IL HCS","ETINGEN,MARGARITA","GOLD 2","2022-08-17T13:00:00","(556) JAL PACT PC MD GOLD2","(V12) (556) North Chicago, IL (Captain James A. Lovell)"]
["Jones,JANE423",111111533,"2021-05-13",null,"2021-04-29",275,"VAProcedure; JLV AdmParent: (V12) (556) North Chicago, IL HCS","GANNU,RAJYALAKSHMI M","BLUE 6","2022-02-15T08:30:00","(556) JAL PACT PHARM BLUE","(V12) (556) North Chicago, IL (Captain James A. Lovell)"]
["Jones,JANE424",111111534,"2021-05-17",null,"2021-05-03",271,"VAProcedure; JLV AdmParent: (V12) (556) North Chicago, IL HCS","OOMMEN,SAJI","BLUE 1",null,null,"(V12) (556) North Chicago, IL (Captain James A. Lovell)"]
["Jones,JANE425",111111535,"2021-05-18",null,"2021-05-04",270,"VAProcedure; JLV AdmParent: (V12) (556) North Chicago, IL HCS","OOMMEN,SAJI","BLUE 1","2022-03-25T08:00:00","(556) JAL PACT PC MD BLUE1","(V12) (556) North Chicago, IL (Captain James A. Lovell)"]
["Jones,JANE426",111111536,"2021-05-18",null,null,null,"Gap Health Factor - Check Pt Details","COTTER,WILLIAM MD","GOLD 5",null,null,"(V12) (556) North Chicago, IL (Captain James A. Lovell)"]
["Jones,JANE427",111111537,"2021-05-18",null,"2008-12-09",4799,"VAProcedure; JLV AdmParent: (V12) (556) North Chicago, IL HCS","COTTER,WILLIAM MD","GOLD 5",null,null,"(V12) (556) North Chicago, IL (Captain James A. Lovell)"]
["Jones,JANE428",111111538,"2021-05-20",null,"2021-05-06",268,"VAProcedure; JLV AdmParent: (V12) (556) North Chicago, IL HCS","IFTIKHAR,SYEDA A MD","GREEN 5",null,null,"(V12) (556) North Chicago, IL (Captain James A. Lovell)"]
["Jones,JANE429",111111539,"2021-05-23",null,null,null,"Gap Health Factor - Check Pt Details","KIZHNER,JULIA","GREEN 3","2022-02-18T11:00:00","(556) JAL PACT PC PA GREEN3","(V12) (556) North Chicago, IL (Captain James A. Lovell)"]
["Jones,JANE430",111111540,"2021-05-24",null,"2021-05-10",264,"VAProcedure; JLV AdmParent: (V12) (556) North Chicago, IL HCS","LAYUG,ANNA","GREEN 6",null,null,"(V12) (556) North Chicago, IL (Captain James A. Lovell)"]
["Jones,JANE431",111111541,"2021-05-24",null,"2021-05-24",250,"VAProcedure; JLV AdmParent: (V12) (556) North Chicago, IL HCS","IFTIKHAR,SYEDA A MD","GREEN 5","2022-04-05T08:00:00","(556) JAL PACT PC MD GREEN5","(V12) (556) North Chicago, IL (Captain James A. Lovell)"]
["Jones,JANE432",111111542,"2021-05-24",null,"2021-05-10",264,"VAProcedure; JLV AdmParent: (V12) (556) North Chicago, IL HCS","OOMMEN,SAJI","BLUE 1",null,null,"(V12) (556) North Chicago, IL (Captain James A. Lovell)"]
["Jones,JANE433",111111543,"2021-05-25",null,"2021-05-11",263,"VAProcedure; JLV AdmParent: (V12) (556) North Chicago, IL HCS","HOLLOWAY,ALISON R MD","WOMENS HEALTH 1 WH CLINIC",null,null,"(V12) (556) North Chicago, IL (Captain James A. Lovell)"]
["Jones,JANE434",111111544,"2021-05-25",null,null,null,"Gap Health Factor - Check Pt Details","SIAS,PATRICIA E","MC HENRY 5 CBOC",null,null,"(V12) (556GC) McHenry, IL"]
["Jones,JANE435",111111545,"2021-05-26",null,"2021-05-12",262,"VAProcedure; JLV AdmParent: (V12) (556) North Chicago, IL HCS","ROY,DEBJANI MD","GREEN 4",null,null,"(V12) (556) North Chicago, IL (Captain James A. Lovell)"]
["Jones,JANE436",111111546,"2021-05-27",null,"2021-05-13",261,"VAProcedure; JLV AdmParent: (V12) (556) North Chicago, IL HCS","SMIRNOV,MICHAEL","GOLD 1",null,null,"(V12) (556) North Chicago, IL (Captain James A. Lovell)"]
["Jones,JANE437",111111547,"2021-05-31","2021-09-10","2021-05-17",257,"VAProcedure; JLV AdmParent: (V12) (556) North Chicago, IL HCS","SYEDA,SARA J","GOLD 3",null,null,"(V12) (556) North Chicago, IL (Captain James A. Lovell)"]
["Jones,JANE438",111111548,"2021-05-31",null,"2021-05-17",257,"VAProcedure; JLV AdmParent: (V12) (556) North Chicago, IL HCS","OOMMEN,SAJI","BLUE 1",null,null,"(V12) (556) North Chicago, IL (Captain James A. Lovell)"]
["Jones,JANE439",111111549,"2021-06-01",null,"2021-05-18",256,"VAProcedure; JLV AdmParent: (V12) (556) North Chicago, IL HCS","OOMMEN,SAJI","BLUE 1",null,null,"(V12) (556) North Chicago, IL (Captain James A. Lovell)"]
["Jones,JANE440",111111550,"2021-06-03","2017-11-17","2021-05-20",254,"VAProcedure; JLV AdmParent: (V12) (556) North Chicago, IL HCS","MOHAMMED,BAKHTIAR A","MC HENRY 2 CBOC",null,null,"(V12) (556GC) McHenry, IL"]
["Jones,JANE441",111111551,"2021-06-04",null,"2021-05-21",253,"VAProcedure; JLV AdmParent: (V12) (556) North Chicago, IL HCS","SIAS,PATRICIA E","MC HENRY 5 CBOC",null,null,"(V12) (556GC) McHenry, IL"]
["Jones,JANE442",111111552,"2021-06-07",null,"2021-05-24",250,"VAProcedure; JLV AdmParent: (V12) (556) North Chicago, IL HCS","HOLLOWAY,ALISON R MD","WOMENS HEALTH 1 WH CLINIC",null,null,"(V12) (556) North Chicago, IL (Captain James A. Lovell)"]
["Jones,JANE443",111111553,"2021-06-10","2020-10-13","2021-05-27",247,"VAProcedure; JLV AdmParent: (V12) (556) North Chicago, IL HCS","ETINGEN,MARGARITA","GOLD 2","2022-11-08T09:30:00","(556) JAL PACT PC MD GOLD2","(V12) (556) North Chicago, IL (Captain James A. Lovell)"]
["Jones,JANE444",111111554,"2021-06-10",null,"2021-05-27",247,"VAProcedure; JLV AdmParent: (V12) (556) North Chicago, IL HCS","BANJO,ADEOLA","MC HENRY 4 WH CBOC","2022-05-12T13:00:00","(556GC) MCHENRY - PACT PC 4 MD","(V12) (556GC) McHenry, IL"]
["Jones,JANE445",111111555,"2021-06-11","2020-01-30","2021-05-28",246,"VAProcedure; JLV AdmParent: (V12) (556) North Chicago, IL HCS","HOLLOWAY,ALISON R MD","WOMENS HEALTH 1 WH CLINIC",null,null,"(V12) (556) North Chicago, IL (Captain James A. Lovell)"]
["Jones,JANE446",111111556,"2021-06-12",null,null,null,"Gap Health Factor - Check Pt Details","SIAS,PATRICIA E","MC HENRY 5 CBOC",null,null,"(V12) (556GC) McHenry, IL"]
["Jones,JANE447",111111557,"2021-06-16",null,"2021-06-02",241,"VAProcedure; JLV AdmParent: (V12) (556) North Chicago, IL HCS","ETINGEN,MARGARITA","GOLD 2","2022-11-08T10:00:00","(556) JAL PACT PC MD GOLD2","(V12) (556) North Chicago, IL (Captain James A. Lovell)"]
["Jones,JANE448",111111558,"2021-06-17",null,null,null,"Gap Health Factor - Check Pt Details","ZAKARIYA,HOSAM Y","BLUE 2","2022-04-28T08:00:00","(556) JAL PACT PC MD BLUE2","(V12) (556) North Chicago, IL (Captain James A. Lovell)"]
["Jones,JANE449",111111559,"2021-06-17",null,"2021-06-03",240,"VAProcedure; JLV AdmParent: (V12) (556) North Chicago, IL HCS","ETINGEN,MARGARITA","GOLD 2",null,null,"(V12) (556) North Chicago, IL (Captain James A. Lovell)"]
["Jones,JANE450",111111560,"2021-06-17",null,"2021-06-03",240,"VAProcedure; JLV AdmParent: (V12) (556) North Chicago, IL HCS","JUIRIS,TAHIRA","WOMENS HEALTH 2 WH CLINIC",null,null,"(V12) (556) North Chicago, IL (Captain James A. Lovell)"]
["Jones,JANE451",111111561,"2021-06-22",null,null,null,"Gap Health Factor - Check Pt Details","CHAVEZ,LUIS A","BLUE 5","2022-01-31T11:00:00","(556) JAL PACT PC MD BLUE5","(V12) (556) North Chicago, IL (Captain James A. Lovell)"]
["Jones,JANE452",111111562,"2021-06-22",null,"2021-06-08",235,"VAProcedure; JLV AdmParent: (V12) (556) North Chicago, IL HCS","KIZHNER,JULIA","GREEN 3","2022-12-20T07:30:00","(556) JAL PACT PC PA GREEN3","(V12) (556) North Chicago, IL (Captain James A. Lovell)"]
["Jones,JANE453",111111563,"2021-06-23",null,"2021-06-09",234,"VAProcedure; JLV AdmParent: (V12) (556) North Chicago, IL HCS","SIAS,PATRICIA E","MC HENRY 5 CBOC","2022-02-17T10:00:00","(556GC) MCHENRY - PACT PC 5 MD","(V12) (556GC) McHenry, IL"]
["Jones,JANE454",111111564,"2021-06-24",null,"2021-06-10",233,"VAProcedure; JLV AdmParent: (V12) (556) North Chicago, IL HCS","ETINGEN,MARGARITA","GOLD 2","2022-08-25T09:00:00","(556) JAL PACT PC MD GOLD2","(V12) (556) North Chicago, IL (Captain James A. Lovell)"]
["Jones,JANE455",111111565,"2021-06-25","2021-02-24","2021-06-11",232,"VAProcedure; JLV AdmParent: (V12) (556) North Chicago, IL HCS","ETINGEN,MARGARITA","GOLD 2",null,null,"(V12) (556) North Chicago, IL (Captain James A. Lovell)"]
["Jones,JANE456",111111566,"2021-06-28",null,"2021-06-14",229,"VAProcedure; JLV AdmParent: (V12) (556) North Chicago, IL HCS","OOMMEN,SAJI","BLUE 1","2022-02-28T11:00:00","(556) JAL PACT PC MD BLUE1","(V12) (556) North Chicago, IL (Captain James A. Lovell)"]
["Jones,JANE457",111111567,"2021-06-28",null,"2021-06-14",229,"VAProcedure; JLV AdmParent: (V12) (556) North Chicago, IL HCS","SYEDA,SARA J","GOLD 3",null,null,"(V12) (556) North Chicago, IL (Captain James A. Lovell)"]
["Jones,JANE458",111111568,"2021-06-30",null,null,null,"Gap Health Factor - Check Pt Details","NANO,JOSEPH","MC HENRY 1 WH CBOC",null,null,"(V12) (556GC) McHenry, IL"]
["Jones,JANE459",111111569,"2021-06-30",null,null,null,"Gap Health Factor - Check Pt Details","NANO,JOSEPH","MC HENRY 1 WH CBOC",null,null,"(V12) (556GC) McHenry, IL"]
["Jones,JANE460",111111570,"2021-06-30",null,null,null,"Gap Health Factor - Check Pt Details","NANO,JOSEPH","MC HENRY 1 WH CBOC",null,null,"(V12) (556GC) McHenry, IL"]
["Jones,JANE461",111111571,"2021-07-01",null,"2021-06-17",226,"VAProcedure; JLV AdmParent: (V12) (556) North Chicago, IL HCS","SYEDA,SARA J","GOLD 3",null,null,"(V12) (556) North Chicago, IL (Captain James A. Lovell)"]
["Jones,JANE462",111111572,"2021-07-01",null,"2015-01-20",2566,"VAProcedure; JLV AdmParent: (V12) (556) North Chicago, IL HCS","CHAVEZ,LUIS A","BLUE 5","2022-06-14T10:30:00","(556) JAL PACT PC MD BLUE5","(V12) (556) North Chicago, IL (Captain James A. Lovell)"]
["Jones,JANE463",111111573,"2021-07-05",null,"2021-06-21",222,"VAProcedure; JLV AdmParent: (V12) (556) North Chicago, IL HCS","MOHAMMED,BAKHTIAR A","MC HENRY 2 CBOC",null,null,"(V12) (556GC) McHenry, IL"]
["Jones,JANE464",111111574,"2021-07-08",null,"2021-06-24",219,"VAProcedure; JLV AdmParent: (V12) (556) North Chicago, IL HCS","IFTIKHAR,SYEDA A MD","GREEN 5",null,null,"(V12) (556) North Chicago, IL (Captain James A. Lovell)"]
["Jones,JANE465",111111575,"2021-07-13",null,"2021-06-29",214,"VAProcedure; JLV AdmParent: (V12) (556) North Chicago, IL HCS","SYEDA,SARA J","GOLD 3","2022-01-31T08:00:00","(556) JAL PACT PC MD GOLD3 TELE","(V12) (556) North Chicago, IL (Captain James A. Lovell)"]
["Jones,JANE466",111111576,"2021-07-13",null,null,null,"Gap Health Factor - Check Pt Details","NANO,JOSEPH","MC HENRY 1 WH CBOC",null,null,"(V12) (556GC) McHenry, IL"]
["Jones,JANE467",111111577,"2021-07-14","2018-12-27","2021-06-30",213,"VAProcedure; JLV AdmParent: (V12) (556) North Chicago, IL HCS","OOMMEN,SAJI","BLUE 1",null,null,"(V12) (556) North Chicago, IL (Captain James A. Lovell)"]
["Jones,JANE468",111111578,"2021-07-14",null,"2021-06-30",213,"VAProcedure; JLV AdmParent: (V12) (556) North Chicago, IL HCS","HOLLOWAY,ALISON R MD","WOMENS HEALTH 1 WH CLINIC",null,null,"(V12) (556) North Chicago, IL (Captain James A. Lovell)"]
["Jones,JANE469",111111579,"2021-07-15",null,"2021-07-01",212,"VAProcedure; JLV AdmParent: (V12) (556) North Chicago, IL HCS","ROY,DEBJANI MD","GREEN 4",null,null,"(V12) (556) North Chicago, IL (Captain James A. Lovell)"]
["Jones,JANE470",111111580,"2021-07-16","2021-06-29","2021-07-02",211,"VAProcedure; JLV AdmParent: (V12) (556) North Chicago, IL HCS","ETINGEN,MARGARITA","GOLD 2",null,null,"(V12) (556) North Chicago, IL (Captain James A. Lovell)"]
["Jones,JANE471",111111581,"2021-07-20",null,"2021-07-06",207,"VAProcedure; JLV AdmParent: (V12) (556) North Chicago, IL HCS","COTTER,WILLIAM MD","GOLD 5",null,null,"(V12) (556) North Chicago, IL (Captain James A. Lovell)"]
["Jones,JANE472",111111582,"2021-07-20",null,null,null,"Gap Health Factor - Check Pt Details","NANO,JOSEPH","MC HENRY 1 WH CBOC",null,null,"(V12) (556GC) McHenry, IL"]
["Jones,JANE473",111111583,"2021-07-22",null,"2021-07-08",205,"VAProcedure; JLV AdmParent: (V12) (556) North Chicago, IL HCS","OOMMEN,SAJI","BLUE 1",null,null,"(V12) (556) North Chicago, IL (Captain James A. Lovell)"]
["Jones,JANE474",111111584,"2021-07-23",null,"2021-07-09",204,"VAProcedure; JLV AdmParent: (V12) (556) North Chicago, IL HCS","ETINGEN,MARGARITA","GOLD 2",null,null,"(V12) (556) North Chicago, IL (Captain James A. Lovell)"]
["Jones,JANE475",111111585,"2021-07-23",null,"2021-07-09",204,"VAProcedure; JLV AdmParent: (V12) (556) North Chicago, IL HCS","ROY,DEBJANI MD","GREEN 4",null,null,"(V12) (556) North Chicago, IL (Captain James A. Lovell)"]
["Jones,JANE476",111111586,"2021-07-27",null,"2020-09-30",486,"VAProcedure; JLV AdmParent: (V12) (578) Hines, IL HCS","CHAVEZ,LUIS A","BLUE 5","2022-06-23T08:30:00","(556) JAL PACT PC MD BLUE5","(V12) (556) North Chicago, IL (Captain James A. Lovell)"]
["Jones,JANE477",111111587,"2021-07-28",null,"2021-07-14",199,"VAProcedure; JLV AdmParent: (V12) (556) North Chicago, IL HCS","OOMMEN,SAJI","BLUE 1",null,null,"(V12) (556) North Chicago, IL (Captain James A. Lovell)"]
["Jones,JANE478",111111588,"2021-07-29",null,"2021-07-15",198,"VAProcedure; JLV AdmParent: (V12) (556) North Chicago, IL HCS","SMIRNOV,MICHAEL","GOLD 1",null,null,"(V12) (556) North Chicago, IL (Captain James A. Lovell)"]
["Jones,JANE479",111111589,"2021-08-03",null,null,null,"Gap Health Factor - Check Pt Details","ETINGEN,MARGARITA","GOLD 2","2022-02-09T13:30:00","(556) JAL PACT PHARM GOLD TELE2 ","(V12) (556) North Chicago, IL (Captain James A. Lovell)"]
["Jones,JANE480",111111590,"2021-08-04",null,null,null,"Gap Health Factor - Check Pt Details","FRANCISCO,RAMIL","GREEN 1",null,null,"(V12) (556) North Chicago, IL (Captain James A. Lovell)"]
["Jones,JANE481",111111591,"2021-08-05",null,"2021-07-22",191,"VAProcedure; JLV AdmParent: (V12) (556) North Chicago, IL HCS","ROY,DEBJANI MD","GREEN 4","2022-04-06T13:00:00","(556) JAL PACT PC MD GREEN4","(V12) (556) North Chicago, IL (Captain James A. Lovell)"]
["Jones,JANE482",111111592,"2021-08-05",null,null,null,"Gap Health Factor - Check Pt Details","JUIRIS,TAHIRA","WOMENS HEALTH 2 WH CLINIC","2022-04-08T11:00:00","(556) JAL PACT WH PC 2 MD","(V12) (556) North Chicago, IL (Captain James A. Lovell)"]
["Jones,JANE483",111111593,"2021-08-09",null,"2021-07-26",187,"VAProcedure; JLV AdmParent: (V12) (556) North Chicago, IL HCS","SYEDA,SARA J","GOLD 3",null,null,"(V12) (556) North Chicago, IL (Captain James A. Lovell)"]
["Jones,JANE484",111111594,"2021-08-10",null,"2021-07-27",186,"VAProcedure; JLV AdmParent: (V12) (556) North Chicago, IL HCS","HOLLOWAY,ALISON R MD","WOMENS HEALTH 1 WH CLINIC",null,null,"(V12) (556) North Chicago, IL (Captain James A. Lovell)"]
["Jones,JANE485",111111595,"2021-08-11","2021-08-10","2021-08-11",171,"VAProcedure; JLV AdmParent: (V12) (556) North Chicago, IL HCS","ROY,DEBJANI MD","GREEN 4",null,null,"(V12) (556) North Chicago, IL (Captain James A. Lovell)"]
["Jones,JANE486",111111596,"2021-08-12",null,"2021-07-29",184,"VAProcedure; JLV AdmParent: (V12) (556) North Chicago, IL HCS","IFTIKHAR,SYEDA A MD","GREEN 5","2022-05-27T07:30:00","(556) JAL PACT PC MD GREEN5","(V12) (556) North Chicago, IL (Captain James A. Lovell)"]
["Jones,JANE487",111111597,"2021-08-12",null,"2021-07-29",184,"VAProcedure; JLV AdmParent: (V12) (556) North Chicago, IL HCS","ROY,DEBJANI MD","GREEN 4",null,null,"(V12) (556) North Chicago, IL (Captain James A. Lovell)"]
["Jones,JANE488",111111598,"2021-08-13",null,"2021-07-30",183,"VAProcedure; JLV AdmParent: (V12) (556) North Chicago, IL HCS","OOMMEN,SAJI","BLUE 1",null,null,"(V12) (556) North Chicago, IL (Captain James A. Lovell)"]
["Jones,JANE489",111111599,"2021-08-14",null,null,null,"Gap Health Factor - Check Pt Details","BANJO,ADEOLA","MC HENRY 4 WH CBOC",null,null,"(V12) (556GC) McHenry, IL"]
["Jones,JANE490",111111600,"2021-08-16",null,"2021-08-02",180,"VAProcedure; JLV AdmParent: (V12) (556) North Chicago, IL HCS","HOLLOWAY,ALISON R MD","WOMENS HEALTH 1 WH CLINIC","2022-07-06T15:00:00","(556) JAL PACT WH PC 1 MD","(V12) (556) North Chicago, IL (Captain James A. Lovell)"]
["Jones,JANE491",111111601,"2021-08-16",null,"2021-08-02",180,"VAProcedure; JLV AdmParent: (V12) (556) North Chicago, IL HCS","IQBAL,FARZANA","EVANSTON 2 WH CBOC",null,null,"(V12) (556GA) Evanston, IL"]
["Jones,JANE492",111111602,"2021-08-17",null,"2021-08-03",179,"VAProcedure; JLV AdmParent: (V12) (556) North Chicago, IL HCS","HOLLOWAY,ALISON R MD","WOMENS HEALTH 1 WH CLINIC",null,null,"(V12) (556) North Chicago, IL (Captain James A. Lovell)"]
["Jones,JANE493",111111603,"2021-08-17",null,"2021-08-03",179,"VAProcedure; JLV AdmParent: (V12) (556) North Chicago, IL HCS","GANNU,RAJYALAKSHMI M","BLUE 6",null,null,"(V12) (556) North Chicago, IL (Captain James A. Lovell)"]
["Jones,JANE494",111111604,"2021-08-17",null,"2021-08-03",179,"VAProcedure; JLV AdmParent: (V12) (556) North Chicago, IL HCS","MOHAMMED,BAKHTIAR A","MC HENRY 2 CBOC",null,null,"(V12) (556GC) McHenry, IL"]
["Jones,JANE495",111111605,"2021-08-19",null,"2021-08-05",177,"VAProcedure; JLV AdmParent: (V12) (556) North Chicago, IL HCS","ETINGEN,MARGARITA","GOLD 2",null,null,"(V12) (556) North Chicago, IL (Captain James A. Lovell)"]
["Jones,JANE496",111111606,"2021-08-20",null,"2021-08-06",176,"VAProcedure; JLV AdmParent: (V12) (556) North Chicago, IL HCS","KIZHNER,JULIA","GREEN 3",null,null,"(V12) (556) North Chicago, IL (Captain James A. Lovell)"]
["Jones,JANE497",111111607,"2021-08-23",null,"2021-08-09",173,"VAProcedure; JLV AdmParent: (V12) (556) North Chicago, IL HCS","JUIRIS,TAHIRA","WOMENS HEALTH 2 WH CLINIC",null,null,"(V12) (556) North Chicago, IL (Captain James A. Lovell)"]
["Jones,JANE498",111111608,"2021-08-25",null,"2021-08-11",171,"VAProcedure; JLV AdmParent: (V12) (556) North Chicago, IL HCS","ETINGEN,MARGARITA","GOLD 2",null,null,"(V12) (556) North Chicago, IL (Captain James A. Lovell)"]
["Jones,JANE499",111111609,"2021-08-26",null,"2021-08-12",170,"VAProcedure; JLV AdmParent: (V12) (556) North Chicago, IL HCS","SIAS,PATRICIA E","MC HENRY 5 CBOC",null,null,"(V12) (556GC) McHenry, IL"]
["Jones,JANE500",111111610,"2021-08-26",null,null,null,"Gap Health Factor - Check Pt Details","NANO,JOSEPH","MC HENRY 1 WH CBOC",null,null,"(V12) (556GC) McHenry, IL"]
["Jones,JANE501",111111611,"2021-08-30","2021-02-03","2021-08-16",166,"VAProcedure; JLV AdmParent: (V12) (556) North Chicago, IL HCS","GANNU,RAJYALAKSHMI M","BLUE 6","2022-02-10T10:30:00","(556) JAL PACT PHARM GOLD TELE2 ","(V12) (556) North Chicago, IL (Captain James A. Lovell)"]
["Jones,JANE502",111111612,"2021-08-31","2021-07-30","2021-08-17",165,"VAProcedure; JLV AdmParent: (V12) (695) Milwaukee, WI HCS","COTTER,WILLIAM MD","GOLD 5",null,null,"(V12) (556) North Chicago, IL (Captain James A. Lovell)"]
["Jones,JANE503",111111613,"2021-09-03",null,"2021-08-20",162,"VAProcedure; JLV AdmParent: (V12) (556) North Chicago, IL HCS","HOLLOWAY,ALISON R MD","WOMENS HEALTH 1 WH CLINIC",null,null,"(V12) (556) North Chicago, IL (Captain James A. Lovell)"]
["Jones,JANE504",111111614,"2021-09-03",null,"2021-08-20",162,"VAProcedure; JLV AdmParent: (V12) (556) North Chicago, IL HCS","HOLLOWAY,ALISON R MD","WOMENS HEALTH 1 WH CLINIC",null,null,"(V12) (556) North Chicago, IL (Captain James A. Lovell)"]
["Jones,JANE505",111111615,"2021-09-03",null,"2021-08-20",162,"VAProcedure; JLV AdmParent: (V12) (556) North Chicago, IL HCS","SYEDA,SARA J","GOLD 3",null,null,"(V12) (556) North Chicago, IL (Captain James A. Lovell)"]
["Jones,JANE506",111111616,"2021-09-08",null,"2021-08-25",157,"VAProcedure; JLV AdmParent: (V12) (556) North Chicago, IL HCS","BANJO,ADEOLA","MC HENRY 4 WH CBOC",null,null,"(V12) (556GC) McHenry, IL"]
["Jones,JANE507",111111617,"2021-09-09",null,"2021-08-26",156,"VAProcedure; JLV AdmParent: (V12) (556) North Chicago, IL HCS","MOHAMMED,BAKHTIAR A","MC HENRY 2 CBOC",null,null,"(V12) (556GC) McHenry, IL"]
["Jones,JANE508",111111618,"2021-09-10",null,null,null,"Gap Health Factor - Check Pt Details","BANJO,ADEOLA","MC HENRY 4 WH CBOC","2022-02-02T14:30:00","(534GB) MYB PACT 05 MD","(V12) (556GC) McHenry, IL"]
["Jones,JANE509",111111619,"2021-09-13",null,"2021-08-30",152,"VAProcedure; JLV AdmParent: (V12) (556) North Chicago, IL HCS","IQBAL,FARZANA","EVANSTON 2 WH CBOC",null,null,"(V12) (556GA) Evanston, IL"]
["Jones,JANE510",111111620,"2021-09-16",null,"2021-09-02",149,"VAProcedure; JLV AdmParent: (V12) (556) North Chicago, IL HCS","OOMMEN,SAJI","BLUE 1","2022-02-28T14:00:00","(556) JAL PACT PC MD BLUE1","(V12) (556) North Chicago, IL (Captain James A. Lovell)"]
["Jones,JANE511",111111621,"2021-09-16",null,"2021-09-02",149,"VAProcedure; JLV AdmParent: (V12) (556) North Chicago, IL HCS","ETINGEN,MARGARITA","GOLD 2","2022-06-30T08:00:00","(556) JAL PACT PC MD GOLD2","(V12) (556) North Chicago, IL (Captain James A. Lovell)"]
["Jones,JANE512",111111622,"2021-09-22",null,"2021-09-08",143,"VAProcedure; JLV AdmParent: (V12) (556) North Chicago, IL HCS","HOLLOWAY,ALISON R MD","WOMENS HEALTH 1 WH CLINIC",null,null,"(V12) (556) North Chicago, IL (Captain James A. Lovell)"]
["Jones,JANE513",111111623,"2021-09-24",null,"2021-09-10",141,"VAProcedure; JLV AdmParent: (V12) (556) North Chicago, IL HCS","HOLLOWAY,ALISON R MD","WOMENS HEALTH 1 WH CLINIC",null,null,"(V12) (556) North Chicago, IL (Captain James A. Lovell)"]
["Jones,JANE514",111111624,"2021-09-27","2021-09-10","2021-09-13",138,"VAProcedure; JLV AdmParent: (V12) (556) North Chicago, IL HCS","LAYUG,ANNA","GREEN 6","2022-03-03T10:00:00","(556) JAL PACT PHARM GREEN","(V12) (556) North Chicago, IL (Captain James A. Lovell)"]
["Jones,JANE515",111111625,"2021-09-27",null,"2021-09-13",138,"VAProcedure; JLV AdmParent: (V12) (556) North Chicago, IL HCS","ROY,DEBJANI MD","GREEN 4",null,null,"(V12) (556) North Chicago, IL (Captain James A. Lovell)"]
["Jones,JANE516",111111626,"2021-09-29",null,"2008-06-09",4982,"VAProcedure; JLV AdmParent: (V12) (556) North Chicago, IL HCS","LAYUG,ANNA","SPINAL CORD INJURY SCI","2022-02-18T14:45:00","(556) JAL PACT PC RD TELE","(V12) (556) North Chicago, IL (Captain James A. Lovell)"]
["Jones,JANE517",111111627,"2021-10-01",null,null,null,"Gap Health Factor - Check Pt Details","BANJO,ADEOLA","MC HENRY 4 WH CBOC","2022-03-24T13:00:00","(556GC) MCHENRY - PACT PC 4 MD","(V12) (556GC) McHenry, IL"]
["Jones,JANE518",111111628,"2021-10-05",null,"2021-09-21",130,"VAProcedure; JLV AdmParent: (V12) (556) North Chicago, IL HCS","MOHAMMED,BAKHTIAR A","MC HENRY 2 CBOC",null,null,"(V12) (556GC) McHenry, IL"]
["Jones,JANE519",111111629,"2021-10-06",null,"2021-09-22",129,"VAProcedure; JLV AdmParent: (V12) (556) North Chicago, IL HCS","SYEDA,SARA J","GOLD 3","2022-03-21T15:00:00","(590) HAM PACT TEAM06","(V12) (556) North Chicago, IL (Captain James A. Lovell)"]
["Jones,JANE520",111111630,"2021-10-07",null,"2021-09-23",128,"VAProcedure; JLV AdmParent: (V12) (556) North Chicago, IL HCS","JUIRIS,TAHIRA","WOMENS HEALTH 2 WH CLINIC",null,null,"(V12) (556) North Chicago, IL (Captain James A. Lovell)"]
["Jones,JANE521",111111631,"2021-10-11",null,"2021-09-27",124,"VAProcedure; JLV AdmParent: (V12) (556) North Chicago, IL HCS","MOHAMMED,BAKHTIAR A","MC HENRY 2 CBOC","2022-02-02T10:00:00","(556) IMMUNIZATION 133EF VET","(V12) (556GC) McHenry, IL"]
["Jones,JANE522",111111632,"2021-10-11",null,null,null,"Gap Health Factor - Check Pt Details","BANJO,ADEOLA","MC HENRY 4 WH CBOC",null,null,"(V12) (556GC) McHenry, IL"]
["Jones,JANE523",111111633,"2021-10-13","2021-07-02","2021-09-29",122,"VAProcedure; JLV AdmParent: (V12) (556) North Chicago, IL HCS","ROY,DEBJANI MD","GREEN 4",null,null,"(V12) (556) North Chicago, IL (Captain James A. Lovell)"]
["Jones,JANE524",111111634,"2021-10-14",null,"2021-09-30",121,"VAProcedure; JLV AdmParent: (V12) (556) North Chicago, IL HCS","COTTER,WILLIAM MD","GOLD 5","2022-07-28T10:00:00","(578) HIN SCI ANNUAL EVALUATION 2","(V12) (556) North Chicago, IL (Captain James A. Lovell)"]
["Jones,JANE525",111111635,"2021-10-14","2021-07-04","2021-09-30",121,"VAProcedure; JLV AdmParent: (V12) (556) North Chicago, IL HCS","SYEDA,SARA J","GOLD 3",null,null,"(V12) (556) North Chicago, IL (Captain James A. Lovell)"]
["Jones,JANE526",111111636,"2021-10-14",null,"2021-09-30",121,"VAProcedure; JLV AdmParent: (V12) (556) North Chicago, IL HCS","KIZHNER,JULIA","GREEN 3",null,null,"(V12) (556) North Chicago, IL (Captain James A. Lovell)"]
["Jones,JANE527",111111637,"2021-10-15",null,"2021-10-01",120,"VAProcedure; JLV AdmParent: (V12) (556) North Chicago, IL HCS","KIZHNER,JULIA","GREEN 3","2022-03-29T09:00:00","(556) JAL PACT PC MD BLUE6","(V12) (556) North Chicago, IL (Captain James A. Lovell)"]
["Jones,JANE528",111111638,"2021-10-15",null,null,null,"Gap Health Factor - Check Pt Details","ZAKARIYA,HOSAM Y","BLUE 2",null,null,"(V12) (556) North Chicago, IL (Captain James A. Lovell)"]
["Jones,JANE529",111111639,"2021-10-15",null,"2021-10-01",120,"VAProcedure; JLV AdmParent: (V12) (556) North Chicago, IL HCS","JUIRIS,TAHIRA","WOMENS HEALTH 2 WH CLINIC",null,null,"(V12) (556) North Chicago, IL (Captain James A. Lovell)"]
["Jones,JANE530",111111640,"2021-10-18",null,null,null,"Gap Health Factor - Check Pt Details","NANO,JOSEPH","MC HENRY 1 WH CBOC",null,null,"(V12) (556GC) McHenry, IL"]
["Jones,JANE531",111111641,"2021-10-19","2020-09-10","2021-10-05",116,"VAProcedure; JLV AdmParent: (V12) (556) North Chicago, IL HCS","SYEDA,SARA J","GOLD 3",null,null,"(V12) (556) North Chicago, IL (Captain James A. Lovell)"]
["Jones,JANE532",111111642,"2021-10-19",null,"2021-10-05",116,"VAProcedure; JLV AdmParent: (V12) (556) North Chicago, IL HCS","SYEDA,SARA J","GOLD 3",null,null,"(V12) (556) North Chicago, IL (Captain James A. Lovell)"]
["Jones,JANE533",111111643,"2021-10-19",null,"2021-04-15",289,"VAProcedure; JLV AdmParent: (V12) (556) North Chicago, IL HCS","ROY,DEBJANI MD","GREEN 4",null,null,"(V12) (556) North Chicago, IL (Captain James A. Lovell)"]
["Jones,JANE534",111111644,"2021-10-20",null,"2021-10-06",115,"VAProcedure; JLV AdmParent: (V12) (556) North Chicago, IL HCS","JUIRIS,TAHIRA","WOMENS HEALTH 2 WH CLINIC",null,null,"(V12) (556) North Chicago, IL (Captain James A. Lovell)"]
["Jones,JANE535",111111645,"2021-10-20",null,"2021-10-06",115,"VAProcedure; JLV AdmParent: (V12) (556) North Chicago, IL HCS","ROY,DEBJANI MD","GREEN 4","2022-05-02T08:00:00","(556) JAL PACT PC MD GREEN4","(V12) (556) North Chicago, IL (Captain James A. Lovell)"]
["Jones,JANE536",111111646,"2021-10-20",null,null,null,"Gap Health Factor - Check Pt Details","BANJO,ADEOLA","MC HENRY 4 WH CBOC",null,null,"(V12) (556GC) McHenry, IL"]
["Jones,JANE537",111111647,"2021-10-21",null,"2021-10-07",114,"VAProcedure; JLV AdmParent: (V12) (556) North Chicago, IL HCS","KIZHNER,JULIA","GREEN 3","2022-07-12T09:00:00","(556) JAL PACT PC PA GREEN3","(V12) (556) North Chicago, IL (Captain James A. Lovell)"]
["Jones,JANE538",111111648,"2021-10-21",null,"2021-10-07",114,"VAProcedure; JLV AdmParent: (V12) (556) North Chicago, IL HCS","GANNU,RAJYALAKSHMI M","BLUE 6","2022-05-18T13:00:00","(556) JAL PACT PC MD GOLD2","(V12) (556) North Chicago, IL (Captain James A. Lovell)"]
["Jones,JANE539",111111649,"2021-10-26",null,"2021-10-12",109,"VAProcedure; JLV AdmParent: (V12) (556) North Chicago, IL HCS","SYEDA,SARA J","GOLD 3",null,null,"(V12) (556) North Chicago, IL (Captain James A. Lovell)"]
["Jones,JANE540",111111650,"2021-10-28",null,"2021-10-14",107,"VAProcedure; JLV AdmParent: (V12) (556) North Chicago, IL HCS","ROY,DEBJANI MD","GREEN 4",null,null,"(V12) (556) North Chicago, IL (Captain James A. Lovell)"]
["Jones,JANE541",111111651,"2021-10-28",null,"2021-10-14",107,"VAProcedure; JLV AdmParent: (V12) (556) North Chicago, IL HCS","SMIRNOV,MICHAEL","GOLD 1",null,null,"(V12) (556) North Chicago, IL (Captain James A. Lovell)"]
["Jones,JANE542",111111652,"2021-11-01",null,"2021-10-18",103,"VAProcedure; JLV AdmParent: (V12) (556) North Chicago, IL HCS","OOMMEN,SAJI","BLUE 1","2022-07-11T11:00:00","(556) JAL PACT PC MD BLUE1","(V12) (556) North Chicago, IL (Captain James A. Lovell)"]
["Jones,JANE543",111111653,"2021-11-01",null,"2021-10-18",103,"VAProcedure; JLV AdmParent: (V12) (556) North Chicago, IL HCS","GANNU,RAJYALAKSHMI M","BLUE 6",null,null,"(V12) (556) North Chicago, IL (Captain James A. Lovell)"]
["Jones,JANE544",111111654,"2021-11-01",null,null,null,"Gap Health Factor - Check Pt Details","NANO,JOSEPH","MC HENRY 1 WH CBOC",null,null,"(V12) (556GC) McHenry, IL"]
["Jones,JANE545",111111655,"2021-11-02","2021-10-14","2021-10-19",102,"VAProcedure; JLV AdmParent: (V12) (556) North Chicago, IL HCS","COTTER,WILLIAM MD","GOLD 5",null,null,"(V12) (556) North Chicago, IL (Captain James A. Lovell)"]
["Jones,JANE546",111111656,"2021-11-02",null,null,null,"Gap Health Factor - Check Pt Details","CHAVEZ,LUIS A","BLUE 5","2022-02-01T08:00:00","(556) JAL PACT PC MD BLUE5","(V12) (556) North Chicago, IL (Captain James A. Lovell)"]
["Jones,JANE547",111111657,"2021-11-04",null,"2021-10-21",100,"VAProcedure; JLV AdmParent: (V12) (556) North Chicago, IL HCS","ZAKARIYA,HOSAM Y","BLUE 2",null,null,"(V12) (556) North Chicago, IL (Captain James A. Lovell)"]
["Jones,JANE548",111111658,"2021-11-04",null,"2021-10-21",100,"VAProcedure; JLV AdmParent: (V12) (556) North Chicago, IL HCS","SIAS,PATRICIA E","MC HENRY 5 CBOC",null,null,"(V12) (556GC) McHenry, IL"]
["Jones,JANE549",111111659,"2021-11-10",null,"2021-10-27",94,"VAProcedure; JLV AdmParent: (V12) (556) North Chicago, IL HCS","OOMMEN,SAJI","BLUE 1",null,null,"(V12) (556) North Chicago, IL (Captain James A. Lovell)"]
["Jones,JANE550",111111660,"2021-11-10",null,null,null,"Gap Health Factor - Check Pt Details","FRANCISCO,RAMIL","GREEN 1",null,null,"(V12) (556) North Chicago, IL (Captain James A. Lovell)"]
["Jones,JANE551",111111661,"2021-11-10","2021-10-26","2021-10-27",94,"VAProcedure; JLV AdmParent: (V12) (556) North Chicago, IL HCS","KIZHNER,JULIA","GREEN 3","2022-04-22T10:00:00","(556) JAL PACT PC PA GREEN3","(V12) (556) North Chicago, IL (Captain James A. Lovell)"]
["Jones,JANE552",111111662,"2021-11-10",null,null,null,"Gap Health Factor - Check Pt Details","NANO,JOSEPH","MC HENRY 1 WH CBOC",null,null,"(V12) (556GC) McHenry, IL"]
["Jones,JANE553",111111663,"2021-11-10",null,"2018-07-09",1300,"VAProcedure; JLV AdmParent: (V12) (556) North Chicago, IL HCS","NANO,JOSEPH","MC HENRY 1 WH CBOC",null,null,"(V12) (556GC) McHenry, IL"]
["Jones,JANE554",111111664,"2021-11-11",null,"2021-10-28",93,"VAProcedure; JLV AdmParent: (V12) (556) North Chicago, IL HCS","SMIRNOV,MICHAEL","GOLD 1","2022-07-11T08:00:00","(556) JAL PACT PC MD GOLD1","(V12) (556) North Chicago, IL (Captain James A. Lovell)"]
["Jones,JANE555",111111665,"2021-11-12",null,"2014-02-06",2914,"VAProcedure; JLV AdmParent: (V12) (556) North Chicago, IL HCS","RAVIPATI,MAMATA MD","GOLD 4","2022-03-29T10:00:00","(556) JAL PACT PC MD GOLD4","(V12) (556) North Chicago, IL (Captain James A. Lovell)"]
["Jones,JANE556",111111666,"2021-11-15",null,"2021-11-01",89,"VAProcedure; JLV AdmParent: (V12) (556) North Chicago, IL HCS","SYEDA,SARA J","GOLD 3",null,null,"(V12) (556) North Chicago, IL (Captain James A. Lovell)"]
["Jones,JANE557",111111667,"2021-11-15",null,"2021-11-01",89,"VAProcedure; JLV AdmParent: (V12) (556) North Chicago, IL HCS","FRANCISCO,RAMIL","GREEN 1","2022-01-28T09:00:00","(556) JAL PACT PC MD GREEN1","(V12) (556) North Chicago, IL (Captain James A. Lovell)"]
["Jones,JANE558",111111668,"2021-11-17",null,null,null,"Gap Health Factor - Check Pt Details","NANO,JOSEPH","MC HENRY 1 WH CBOC",null,null,"(V12) (556GC) McHenry, IL"]
["Jones,JANE559",111111669,"2021-11-18",null,"2021-11-04",86,"VAProcedure; JLV AdmParent: (V12) (556) North Chicago, IL HCS","ROY,DEBJANI MD","GREEN 4",null,null,"(V12) (556) North Chicago, IL (Captain James A. Lovell)"]
["Jones,JANE560",111111670,"2021-11-18",null,"2021-11-04",86,"VAProcedure; JLV AdmParent: (V12) (556) North Chicago, IL HCS","SYEDA,SARA J","GOLD 3",null,null,"(V12) (556) North Chicago, IL (Captain James A. Lovell)"]
["Jones,JANE561",111111671,"2021-11-18",null,"2021-11-04",86,"VAProcedure; JLV AdmParent: (V12) (556) North Chicago, IL HCS","OOMMEN,SAJI","BLUE 1","2022-02-14T10:00:00","(556) JAL PACT PC MD BLUE1","(V12) (556) North Chicago, IL (Captain James A. Lovell)"]
["Jones,JANE562",111111672,"2021-11-19","2021-11-02","2021-11-05",85,"VAProcedure; JLV AdmParent: (V12) (556) North Chicago, IL HCS","SYEDA,SARA J","GOLD 3",null,null,"(V12) (556) North Chicago, IL (Captain James A. Lovell)"]
["Jones,JANE563",111111673,"2021-11-19",null,null,null,"Gap Health Factor - Check Pt Details","FRANCISCO,RAMIL","GREEN 1","2022-03-07T14:00:00","(556) JAL PACT PHARM GREEN TELE2","(V12) (556) North Chicago, IL (Captain James A. Lovell)"]
["Jones,JANE564",111111674,"2021-11-22",null,"2021-11-08",82,"VAProcedure; JLV AdmParent: (V12) (556) North Chicago, IL HCS","HOLLOWAY,ALISON R MD","WOMENS HEALTH 1 WH CLINIC",null,null,"(V12) (556) North Chicago, IL (Captain James A. Lovell)"]
["Jones,JANE565",111111675,"2021-11-22","2021-11-07","2021-11-08",82,"VAProcedure; JLV AdmParent: (V12) (556) North Chicago, IL HCS","SMIRNOV,MICHAEL","GOLD 1",null,null,"(V12) (556) North Chicago, IL (Captain James A. Lovell)"]
["Jones,JANE566",111111676,"2021-11-22",null,"2021-11-08",82,"VAProcedure; JLV AdmParent: (V12) (556) North Chicago, IL HCS","NANO,JOSEPH","MC HENRY 1 WH CBOC",null,null,"(V12) (556GC) McHenry, IL"]
["Jones,JANE567",111111677,"2021-11-23",null,null,null,"Gap Health Factor - Check Pt Details","SIAS,PATRICIA E","MC HENRY 5 CBOC",null,null,"(V12) (556GC) McHenry, IL"]
["Jones,JANE568",111111678,"2021-11-24",null,"2021-11-10",80,"VAProcedure; JLV AdmParent: (V12) (556) North Chicago, IL HCS","MOHAMMED,BAKHTIAR A","MC HENRY 2 CBOC","2022-02-01T13:15:00","(556GC) MCHENRY - PACT PC 2 MD PHONE","(V12) (556GC) McHenry, IL"]
["Jones,JANE569",111111679,"2021-11-29","2021-07-02","2021-11-15",75,"VAProcedure; JLV AdmParent: (V12) (556) North Chicago, IL HCS","ROY,DEBJANI MD","GREEN 4",null,null,"(V12) (556) North Chicago, IL (Captain James A. Lovell)"]
["Jones,JANE570",111111680,"2021-12-01",null,"2016-09-15",1962,"VAProcedure; JLV AdmParent: (V12) (556) North Chicago, IL HCS","ZAKARIYA,HOSAM Y","BLUE 2",null,null,"(V12) (556) North Chicago, IL (Captain James A. Lovell)"]
["Jones,JANE571",111111681,"2021-12-01",null,"2021-11-17",73,"VAProcedure; JLV AdmParent: (V12) (556) North Chicago, IL HCS","SMIRNOV,MICHAEL","GOLD 1","2022-05-09T08:00:00","(556) JAL PACT PC MD GOLD1","(V12) (556) North Chicago, IL (Captain James A. Lovell)"]
["Jones,JANE572",111111682,"2021-12-01",null,"2021-11-17",73,"VAProcedure; JLV AdmParent: (V12) (556) North Chicago, IL HCS","KIZHNER,JULIA","GREEN 3",null,null,"(V12) (556) North Chicago, IL (Captain James A. Lovell)"]
["Jones,JANE573",111111683,"2021-12-01","2021-10-04","2021-11-17",73,"VAProcedure; JLV AdmParent: (V12) (556) North Chicago, IL HCS","SMIRNOV,MICHAEL","GOLD 1",null,null,"(V12) (556) North Chicago, IL (Captain James A. Lovell)"]
["Jones,JANE574",111111684,"2021-12-01",null,null,null,"Gap Health Factor - Check Pt Details","NANO,JOSEPH","MC HENRY 1 WH CBOC",null,null,"(V12) (556GC) McHenry, IL"]
["Jones,JANE575",111111685,"2021-12-02",null,"2021-11-18",72,"VAProcedure; JLV AdmParent: (V12) (556) North Chicago, IL HCS","HOLLOWAY,ALISON R MD","WOMENS HEALTH 1 WH CLINIC",null,null,"(V12) (556) North Chicago, IL (Captain James A. Lovell)"]
["Jones,JANE576",111111686,"2021-12-02",null,"2021-11-18",72,"VAProcedure; JLV AdmParent: (V12) (556) North Chicago, IL HCS","KIZHNER,JULIA","GREEN 3","2022-05-19T09:00:00","(556) JAL PACT PC PA GREEN3","(V12) (556) North Chicago, IL (Captain James A. Lovell)"]
["Jones,JANE577",111111687,"2021-12-02",null,"2021-11-18",72,"VAProcedure; JLV AdmParent: (V12) (556) North Chicago, IL HCS","ETINGEN,MARGARITA","GOLD 2","2022-05-31T10:00:00","(556) JAL PACT PC MD GOLD2","(V12) (556) North Chicago, IL (Captain James A. Lovell)"]
["Jones,JANE578",111111688,"2021-12-02",null,"2021-11-18",72,"VAProcedure; JLV AdmParent: (V12) (556) North Chicago, IL HCS","MOHAMMED,BAKHTIAR A","MC HENRY 2 CBOC",null,null,"(V12) (556GC) McHenry, IL"]
["Jones,JANE579",111111689,"2021-12-03",null,"2021-11-19",71,"VAProcedure; JLV AdmParent: (V12) (556) North Chicago, IL HCS","SIAS,PATRICIA E","MC HENRY 5 CBOC",null,null,"(V12) (556GC) McHenry, IL"]
["Jones,JANE580",111111690,"2021-12-06",null,"2021-11-22",68,"VAProcedure; JLV AdmParent: (V12) (556) North Chicago, IL HCS","ETINGEN,MARGARITA","GOLD 2",null,null,"(V12) (556) North Chicago, IL (Captain James A. Lovell)"]
["Jones,JANE581",111111691,"2021-12-06","2021-06-09","2021-11-22",68,"VAProcedure; JLV AdmParent: (V12) (556) North Chicago, IL HCS","NANO,JOSEPH","MC HENRY 1 WH CBOC",null,null,"(V12) (556GC) McHenry, IL"]
["Jones,JANE582",111111692,"2021-12-07",null,"2021-11-23",67,"VAProcedure; JLV AdmParent: (V12) (556) North Chicago, IL HCS","SYEDA,SARA J","GOLD 3",null,null,"(V12) (556) North Chicago, IL (Captain James A. Lovell)"]
["Jones,JANE583",111111693,"2021-12-07",null,"2021-11-23",67,"VAProcedure; JLV AdmParent: (V12) (556) North Chicago, IL HCS","SMIRNOV,MICHAEL","GOLD 1",null,null,"(V12) (556) North Chicago, IL (Captain James A. Lovell)"]
["Jones,JANE584",111111694,"2021-12-07",null,null,null,"Gap Health Factor - Check Pt Details","ETINGEN,MARGARITA","GOLD 2","2022-03-07T09:00:00","(556) JAL PACT PC MD GOLD5","(V12) (556) North Chicago, IL (Captain James A. Lovell)"]
["Jones,JANE585",111111695,"2021-12-08",null,"2021-11-24",66,"VAProcedure; JLV AdmParent: (V12) (556) North Chicago, IL HCS","CHAVEZ,LUIS A","BLUE 5",null,null,"(V12) (556) North Chicago, IL (Captain James A. Lovell)"]
["Jones,JANE586",111111696,"2021-12-08",null,"2021-11-24",66,"VAProcedure; JLV AdmParent: (V12) (556) North Chicago, IL HCS","SMIRNOV,MICHAEL","GOLD 1",null,null,"(V12) (556) North Chicago, IL (Captain James A. Lovell)"]
["Jones,JANE587",111111697,"2021-12-08",null,"2021-11-24",66,"VAProcedure; JLV AdmParent: (V12) (556) North Chicago, IL HCS","SIAS,PATRICIA E","MC HENRY 5 CBOC",null,null,"(V12) (556GC) McHenry, IL"]
["Jones,JANE588",111111698,"2021-12-13",null,null,null,"Gap Health Factor - Check Pt Details","FRANCISCO,RAMIL","GREEN 1","2022-03-01T09:30:00","(556) JAL PACT PC MD GREEN1","(V12) (556) North Chicago, IL (Captain James A. Lovell)"]
["Jones,JANE589",111111699,"2021-12-13",null,"2021-11-29",61,"VAProcedure; JLV AdmParent: (V12) (556) North Chicago, IL HCS","NANO,JOSEPH","MC HENRY 1 WH CBOC",null,null,"(V12) (556GC) McHenry, IL"]
["Jones,JANE590",111111700,"2021-12-13","2020-05-06","2021-11-29",61,"VAProcedure; JLV AdmParent: (V12) (556) North Chicago, IL HCS","BANJO,ADEOLA","MC HENRY 4 WH CBOC",null,null,"(V12) (556GC) McHenry, IL"]
["Jones,JANE591",111111701,"2021-12-14",null,"2021-11-30",60,"VAProcedure; JLV AdmParent: (V12) (556) North Chicago, IL HCS","SYEDA,SARA J","GOLD 3",null,null,"(V12) (556) North Chicago, IL (Captain James A. Lovell)"]
["Jones,JANE592",111111702,"2021-12-14","2021-08-26","2021-11-30",60,"VAProcedure; JLV AdmParent: (V12) (556) North Chicago, IL HCS","SIAS,PATRICIA E","MC HENRY 5 CBOC",null,null,"(V12) (556GC) McHenry, IL"]
["Jones,JANE593",111111703,"2021-12-20",null,"2011-11-10",3733,"VAProcedure; JLV AdmParent: (V12) (556) North Chicago, IL HCS","COTTER,WILLIAM MD","GOLD 5","2022-02-02T10:00:00","(556) JAL PACT PC MHI SW","(V12) (556) North Chicago, IL (Captain James A. Lovell)"]
["Jones,JANE594",111111704,"2021-12-20","2021-10-01","2021-12-06",54,"VAProcedure; JLV AdmParent: (V12) (556) North Chicago, IL HCS","ETINGEN,MARGARITA","GOLD 2",null,null,"(V12) (556) North Chicago, IL (Captain James A. Lovell)"]
["Jones,JANE595",111111705,"2021-12-21",null,"2021-12-07",53,"VAProcedure; JLV AdmParent: (V12) (556) North Chicago, IL HCS","CHAVEZ,LUIS A","BLUE 5","2022-04-15T08:00:00","(556) JAL PACT PC MD BLUE5","(V12) (556) North Chicago, IL (Captain James A. Lovell)"]
["Jones,JANE596",111111706,"2021-12-21",null,"2021-12-07",53,"VAProcedure; JLV AdmParent: (V12) (556) North Chicago, IL HCS","CHAVEZ,LUIS A","BLUE 5","2022-02-01T08:30:00","(556) JAL PACT PC MD BLUE5","(V12) (556) North Chicago, IL (Captain James A. Lovell)"]
["Jones,JANE597",111111707,"2021-12-23",null,"2021-12-09",51,"VAProcedure; JLV AdmParent: (V12) (556) North Chicago, IL HCS","ETINGEN,MARGARITA","GOLD 2",null,null,"(V12) (556) North Chicago, IL (Captain James A. Lovell)"]
["Jones,JANE598",111111708,"2021-12-23",null,"2021-12-09",51,"VAProcedure; JLV AdmParent: (V12) (556) North Chicago, IL HCS","MIRZA,SHAZIA","KENOSHA 1 WH CBOC",null,null,"(V12) (556GD) Kenosha, WI"]
["Jones,JANE599",111111709,"2021-12-24",null,"2021-12-10",50,"VAProcedure; JLV AdmParent: (V12) (556) North Chicago, IL HCS","BANJO,ADEOLA","MC HENRY 4 WH CBOC",null,null,"(V12) (556GC) McHenry, IL"]
["Jones,JANE600",111111710,"2021-12-28",null,null,null,"Gap Health Factor - Check Pt Details","SIAS,PATRICIA E","MC HENRY 5 CBOC",null,null,"(V12) (556GC) McHenry, IL"]
["Jones,JANE601",111111711,"2021-12-28",null,"2021-12-14",46,"VAProcedure; JLV AdmParent: (V12) (556) North Chicago, IL HCS","NANO,JOSEPH","MC HENRY 1 WH CBOC",null,null,"(V12) (556GC) McHenry, IL"]
["Jones,JANE602",111111712,"2021-12-30",null,"2021-12-16",44,"VAProcedure; JLV AdmParent: (V12) (556) North Chicago, IL HCS","HOLLANT,GLADYS","KENOSHA 2 WH CBOC","2022-05-09T14:15:00","(556GD) KENOSHA - PACT PC 2 R2","(V12) (556GD) Kenosha, WI"]
["Jones,JANE603",111111713,"2022-01-01",null,null,null,"Gap Health Factor - Check Pt Details","NANO,JOSEPH","MC HENRY 1 WH CBOC",null,null,"(V12) (556GC) McHenry, IL"]
["Jones,JANE604",111111714,"2022-01-03",null,null,null,"Gap Health Factor - Check Pt Details","MIRZA,SHAZIA","KENOSHA 1 WH CBOC","2022-09-20T13:00:00","(556GD) KENOSHA - PACT PC 1 R1","(V12) (556GD) Kenosha, WI"]
["Jones,JANE605",111111715,"2022-01-03",null,"2015-10-21",2292,"VAProcedure; JLV AdmParent: (V12) (556) North Chicago, IL HCS","MIRZA,SHAZIA","KENOSHA 1 WH CBOC","2022-06-02T10:15:00","(556GD) KENOSHA - PACT PC 1 R2","(V12) (556GD) Kenosha, WI"]
["Jones,JANE606",111111716,"2022-01-03",null,"2019-04-23",1012,"VAProcedure; JLV AdmParent: (V12) (556) North Chicago, IL HCS","MIRZA,SHAZIA","KENOSHA 1 WH CBOC","2022-03-08T08:00:00","(556GD) KENOSHA - PACT PC 1 R1","(V12) (556GD) Kenosha, WI"]
["Jones,JANE607",111111717,"2022-01-03","2017-11-04","2016-06-16",2053,"VAProcedure; JLV AdmParent: (V12) (556) North Chicago, IL HCS","HOLLANT,GLADYS","KENOSHA 2 WH CBOC","2022-02-09T09:15:00","(556GD) KENOSHA - PACT PC 2 R2","(V12) (556GD) Kenosha, WI"]
["Jones,JANE608",111111718,"2022-01-04",null,"2021-12-21",39,"VAProcedure; JLV AdmParent: (V12) (556) North Chicago, IL HCS","COTTER,WILLIAM MD","GOLD 5","2022-05-09T11:30:00","(556) JAL PACT PC MD GOLD5","(V12) (556) North Chicago, IL (Captain James A. Lovell)"]
["Jones,JANE609",111111719,"2022-01-04",null,"2021-12-21",39,"VAProcedure; JLV AdmParent: (V12) (556) North Chicago, IL HCS","SYEDA,SARA J","GOLD 3","2022-04-20T13:00:00","(556) JAL PACT PC MD GOLD3","(V12) (556) North Chicago, IL (Captain James A. Lovell)"]
["Jones,JANE610",111111720,"2022-01-05",null,null,null,"Gap Health Factor - Check Pt Details","HOLLOWAY,ALISON R MD","WOMENS HEALTH 1 WH CLINIC","2022-02-08T10:30:00","(556) JAL PACT PC RD TELE","(V12) (556) North Chicago, IL (Captain James A. Lovell)"]
["Jones,JANE611",111111721,"2022-01-10",null,"2021-12-27",33,"VAProcedure; JLV AdmParent: (V12) (556) North Chicago, IL HCS","OOMMEN,SAJI","BLUE 1","2022-02-23T11:00:00","(556) JAL PACT PHARM BLUE TELE2","(V12) (556) North Chicago, IL (Captain James A. Lovell)"]
["Jones,JANE612",111111722,"2022-01-11",null,"2021-12-28",32,"VAProcedure; JLV AdmParent: (V12) (556) North Chicago, IL HCS","FRANCISCO,RAMIL","GREEN 1",null,null,"(V12) (556) North Chicago, IL (Captain James A. Lovell)"]
["Jones,JANE613",111111723,"2022-01-13","2021-12-29","2021-12-30",30,"VAProcedure; JLV AdmParent: (V12) (556) North Chicago, IL HCS","BEERMANN,MARTIN","HBPC 1 HBPC",null,null,"(V12) (556) North Chicago, IL (Captain James A. Lovell)"]
["Jones,JANE614",111111724,"2022-01-19",null,null,null,"Gap Health Factor - Check Pt Details","BANJO,ADEOLA","MC HENRY 4 WH CBOC",null,null,"(V12) (556GC) McHenry, IL"]
["Jones,JANE615",111111725,"2022-01-20","2021-05-18","2022-01-06",23,"VAProcedure; JLV AdmParent: (V12) (556) North Chicago, IL HCS","ZAKARIYA,HOSAM Y","BLUE 2",null,null,"(V12) (556) North Chicago, IL (Captain James A. Lovell)"]
["Jones,JANE616",111111726,"2022-01-21",null,"2022-01-07",22,"VAProcedure; JLV AdmParent: (V12) (556) North Chicago, IL HCS","MOHAMMED,BAKHTIAR A","MC HENRY 2 CBOC",null,null,"(V12) (556GC) McHenry, IL"]
["Jones,JANE617",111111727,"2022-01-24",null,null,null,"Gap Health Factor - Check Pt Details","FRANCISCO,RAMIL","GREEN 1",null,null,"(V12) (556) North Chicago, IL (Captain James A. Lovell)"]
["Jones,JANE618",111111728,"2022-01-25","2021-07-26","2022-01-11",18,"VAProcedure; JLV AdmParent: (V12) (556) North Chicago, IL HCS","IFTIKHAR,SYEDA A MD","GREEN 5","2022-07-18T10:00:00","(556) JAL PACT PC MD GREEN5","(V12) (556) North Chicago, IL (Captain James A. Lovell)"]
["Jones,JANE619",111111729,"2022-01-27",null,null,null,"Gap Health Factor - Check Pt Details","SIAS,PATRICIA E","MC HENRY 5 CBOC",null,null,"(V12) (556GC) McHenry, IL"]
["Jones,JANE620",111111730,"2022-01-28",null,"2022-01-14",15,"VAProcedure; JLV AdmParent: (V12) (556) North Chicago, IL HCS","FRANCISCO,RAMIL","GREEN 1","2022-07-15T10:00:00","(556) JAL PACT PC MD GREEN1","(V12) (556) North Chicago, IL (Captain James A. Lovell)"]
["Jones,JANE621",111111731,"2022-02-01","2021-09-17","2022-01-18",11,"VAProcedure; JLV AdmParent: (V12) (556) North Chicago, IL HCS","SMIRNOV,MICHAEL","GOLD 1","2022-02-22T08:00:00","(556) JAL PACT PC MD GOLD1","(V12) (556) North Chicago, IL (Captain James A. Lovell)"]
["Jones,JANE622",111111732,"2022-02-01",null,null,null,"Gap Health Factor - Check Pt Details","NANO,JOSEPH","MC HENRY 1 WH CBOC","2022-02-07T10:00:00","(556GC) MCHENRY - PACT PC 1 MD","(V12) (556GC) McHenry, IL"]
["Jones,JANE623",111111733,"2022-02-02",null,null,null,"Gap Health Factor - Check Pt Details","SIAS,PATRICIA E","MC HENRY 5 CBOC",null,null,"(V12) (556GC) McHenry, IL"]
["Jones,JANE624",111111734,"2022-02-03",null,"2022-01-20",9,"VAProcedure; JLV AdmParent: (V12) (556) North Chicago, IL HCS","ROY,DEBJANI MD","GREEN 4",null,null,"(V12) (556) North Chicago, IL (Captain James A. Lovell)"]
["Jones,JANE625",111111735,"2022-02-03","2020-01-31","2022-01-20",9,"VAProcedure; JLV AdmParent: (V12) (556) North Chicago, IL HCS","ROY,DEBJANI MD","GREEN 4",null,null,"(V12) (556) North Chicago, IL (Captain James A. Lovell)"]
["Jones,JANE626",111111736,"2022-02-04",null,"2022-01-21",8,"VAProcedure; JLV AdmParent: (V12) (556) North Chicago, IL HCS","SYEDA,SARA J","GOLD 3",null,null,"(V12) (556) North Chicago, IL (Captain James A. Lovell)"]
["Jones,JANE627",111111737,"2022-02-07",null,"2022-01-24",5,"VAProcedure; JLV AdmParent: (V12) (556) North Chicago, IL HCS","GANNU,RAJYALAKSHMI M","BLUE 6",null,null,"(V12) (556) North Chicago, IL (Captain James A. Lovell)"]
["Jones,JANE628",111111738,"2022-02-07","2021-12-31","2022-01-24",5,"VAProcedure; JLV AdmParent: (V12) (556) North Chicago, IL HCS","GANNU,RAJYALAKSHMI M","BLUE 6",null,null,"(V12) (556) North Chicago, IL (Captain James A. Lovell)"]
["Jones,JANE629",111111739,"2022-02-09",null,"2022-01-26",3,"VAProcedure; JLV AdmParent: (V12) (556) North Chicago, IL HCS","ZAKARIYA,HOSAM Y","BLUE 2","2022-02-17T09:00:00","(556) JAL PACT PC MD BLUE2","(V12) (556) North Chicago, IL (Captain James A. Lovell)"]
["Jones,JANE630",111111740,"2022-02-09",null,"2022-01-26",3,"VAProcedure; JLV AdmParent: (V12) (556) North Chicago, IL HCS","MIRZA,SHAZIA","KENOSHA 1 WH CBOC",null,null,"(V12) (556GD) Kenosha, WI"]
["Jones,JANE631",111111741,"2022-02-10",null,"2022-01-27",2,"VAProcedure; JLV AdmParent: (V12) (556) North Chicago, IL HCS","CHAVEZ,LUIS A","BLUE 5","2022-04-14T08:00:00","(556) JAL PACT PC MD BLUE5","(V12) (556) North Chicago, IL (Captain James A. Lovell)"]
["Jones,JANE632",111111742,"2022-02-11",null,"2022-01-28",1,"VAProcedure; JLV AdmParent: (V12) (556) North Chicago, IL HCS","HOLLOWAY,ALISON R MD","WOMENS HEALTH 1 WH CLINIC",null,null,"(V12) (556) North Chicago, IL (Captain James A. Lovell)"]
["Jones,JANE633",111111743,"2022-02-11",null,"2022-01-28",1,"VAProcedure; JLV AdmParent: (V12) (556) North Chicago, IL HCS","MIRZA,SHAZIA","KENOSHA 1 WH CBOC","2022-02-28T09:00:00","(556GD) KENOSHA - MH SW FAFFORD IND","(V12) (556GD) Kenosha, WI"]
["Jones,JANE634",111111744,"2022-02-16",null,null,null,"Gap Health Factor - Check Pt Details","NANO,JOSEPH","MC HENRY 1 WH CBOC",null,null,"(V12) (556GC) McHenry, IL"]
["Jones,JANE635",111111745,"2022-02-23",null,null,null,"Gap Health Factor - Check Pt Details","ZAKARIYA,HOSAM Y","BLUE 2","2022-05-23T09:00:00","(556) JAL PACT PC MD BLUE2","(V12) (556) North Chicago, IL (Captain James A. Lovell)"]
["Jones,JANE636",111111746,"2022-03-22",null,null,null,"Gap Health Factor - Check Pt Details","NANO,JOSEPH","MC HENRY 1 WH CBOC",null,null,"(V12) (556GC) McHenry, IL"]
["Jones,JANE637",111111747,"2022-04-07",null,null,null,"Gap Health Factor - Check Pt Details","NANO,JOSEPH","MC HENRY 1 WH CBOC",null,null,"(V12) (556GC) McHenry, IL"]
["Jones,JANE638",111111748,"2022-04-08","2018-06-27","2013-04-23",3203,"VAProcedure; JLV AdmParent: (V12) (556) North Chicago, IL HCS","NANO,JOSEPH","MC HENRY 1 WH CBOC",null,null,"(V12) (556GC) McHenry, IL"]
["Jones,JANE639",111111749,"2022-04-11",null,null,null,"Gap Health Factor - Check Pt Details","NANO,JOSEPH","MC HENRY 1 WH CBOC",null,null,"(V12) (556GC) McHenry, IL"]
["Jones,JANE640",111111750,"2022-06-06","2020-07-24","2021-02-04",359,"VAProcedure; JLV AdmParent: (V12) (556) North Chicago, IL HCS","SIAS,PATRICIA E","MC HENRY 5 CBOC","2022-01-28T07:30:00","(556GC) MCHENRY - PACT PC 5 MD","(V12) (556GC) McHenry, IL"]
["SMITH,MAY",11111111751,"2022-05-02",null,null,360,"Gap Health Factor - Check Pt Details","JONES,JON","Norm New","2022-01-29T07:30:00",null,"(V12) (556GC) McHenry, IL"]

{"sheet":"uniques","index":5,"n_rows":641,"n_cols":7,"rows_kept":641,"cut":false,"hidden":false,"merged":[]}
["GREEN 3",{"$f":"_xlfn.UNIQUE(_xlfn._xlws.SORT(A1:A641))","v":"BLUE 1"},{"$f":"CHAR(34)&B1&CHAR(34)","v":"\"BLUE 1\""},"\"BLUE 1\"",null,null,{"$f":"CONCATENATE(\"\"\"BLUE 1\"\",\",\"\"\"BLUE 2\"\",\",\"\"\"BLUE 5\"\",\",\"\"\"BLUE 6\"\",\",\"\"\"EVANSTON 2 WH CBOC\"\",\",\"\"\"GOLD 1\"\",\",\"\"\"GOLD 2\"\",\",\"\"\"GOLD 3\"\",\",\"\"\"GOLD 4\"\",\",\"\"\"GOLD 5\"\",\",\"\"\"GREEN 1\"\",\",\"\"\"GREEN 3\"\",\",\"\"\"GREEN 4\"\",\",\"\"\"GREEN 5\"\",\",\"\"\"GREEN 6\"\",\",\"\"\"HBPC 1 HBPC\"\",\",\"\"\"HBPC 2 HBPC\"\",\",\"\"\"KENOSHA 1 WH CBOC\"\",\",\"\"\"KENOSHA 2 WH CBOC\"\",\",\"\"\"MC HENRY 1 WH CBOC\"\",\",\"\"\"MC HENRY 2 CBOC\"\",\",\"\"\"MC HENRY 4 WH CBOC\"\",\",\"\"\"MC HENRY 5 CBOC\"\",\",\"\"\"Norm New\"\",\",\"\"\"SPINAL CORD INJURY SCI\"\",\",\"\"\"WOMENS HEALTH 1 WH CLINIC\"\",\",\"\"\"WOMENS HEALTH 2 WH CLINIC\"\",\")","v":"\"BLUE 1\",\"BLUE 2\",\"BLUE 5\",\"BLUE 6\",\"EVANSTON 2 WH CBOC\",\"GOLD 1\",\"GOLD 2\",\"GOLD 3\",\"GOLD 4\",\"GOLD 5\",\"GREEN 1\",\"GREEN 3\",\"GREEN 4\",\"GREEN 5\",\"GREEN 6\",\"HBPC 1 HBPC\",\"HBPC 2 HBPC\",\"KENOSHA 1 WH CBOC\",\"KENOSHA 2 WH CBOC\",\"MC HENRY 1 WH CBOC\",\"MC HENRY 2 CBOC\",\"MC HENRY 4 WH CBOC\",\"MC HENRY 5 CBOC\",\"Norm New\",\"SPINAL CORD INJURY SCI\",\"WOMENS HEALTH 1 WH CLINIC\",\"WOMENS HEALTH 2 WH CLINIC\","}]
["GOLD 3","BLUE 2",{"$f":"CHAR(34)&B2&CHAR(34)","v":"\"BLUE 2\""},"\"BLUE 2\""]
["GOLD 3","BLUE 5","\"BLUE 5\"","\"BLUE 5\"",null,null,"\"BLUE 1\",\"BLUE 2\",\"BLUE 5\",\"BLUE 6\",\"EVANSTON 2 WH CBOC\",\"GOLD 1\",\"GOLD 2\",\"GOLD 3\",\"GOLD 4\",\"GOLD 5\",\"GREEN 1\",\"GREEN 3\",\"GREEN 4\",\"GREEN 5\",\"GREEN 6\",\"HBPC 1 HBPC\",\"HBPC 2 HBPC\",\"KENOSHA 1 WH CBOC\",\"KENOSHA 2 WH CBOC\",\"MC HENRY 1 WH CBOC\",\"MC HENRY 2 CBOC\",\"MC HENRY 4 WH CBOC\",\"MC HENRY 5 CBOC\",\"Norm New\",\"SPINAL CORD INJURY SCI\",\"WOMENS HEALTH 1 WH CLINIC\",\"WOMENS HEALTH 2 WH CLINIC\""]
["GREEN 1","BLUE 6","\"BLUE 6\"","\"BLUE 6\""]
["GOLD 3","EVANSTON 2 WH CBOC","\"EVANSTON 2 WH CBOC\"","\"EVANSTON 2 WH CBOC\""]
["EVANSTON 2 WH CBOC","GOLD 1","\"GOLD 1\"","\"GOLD 1\""]
["MC HENRY 5 CBOC","GOLD 2","\"GOLD 2\"","\"GOLD 2\""]
["GOLD 1","GOLD 3","\"GOLD 3\"","\"GOLD 3\""]
["GOLD 1","GOLD 4","\"GOLD 4\"","\"GOLD 4\""]
["BLUE 5","GOLD 5","\"GOLD 5\"","\"GOLD 5\""]
["BLUE 1","GREEN 1","\"GREEN 1\"","\"GREEN 1\""]
["MC HENRY 4 WH CBOC","GREEN 3","\"GREEN 3\"","\"GREEN 3\""]
["GREEN 1","GREEN 4","\"GREEN 4\"","\"GREEN 4\""]
["MC HENRY 2 CBOC","GREEN 5","\"GREEN 5\"","\"GREEN 5\""]
["GOLD 1","GREEN 6","\"GREEN 6\"","\"GREEN 6\""]
["BLUE 1","HBPC 1 HBPC","\"HBPC 1 HBPC\"","\"HBPC 1 HBPC\""]
["BLUE 5","HBPC 2 HBPC","\"HBPC 2 HBPC\"","\"HBPC 2 HBPC\""]
["GREEN 4","KENOSHA 1 WH CBOC","\"KENOSHA 1 WH CBOC\"","\"KENOSHA 1 WH CBOC\""]
["BLUE 1","KENOSHA 2 WH CBOC","\"KENOSHA 2 WH CBOC\"","\"KENOSHA 2 WH CBOC\""]
["GREEN 4","MC HENRY 1 WH CBOC","\"MC HENRY 1 WH CBOC\"","\"MC HENRY 1 WH CBOC\""]
["BLUE 5","MC HENRY 2 CBOC","\"MC HENRY 2 CBOC\"","\"MC HENRY 2 CBOC\""]
["GOLD 1","MC HENRY 4 WH CBOC","\"MC HENRY 4 WH CBOC\"","\"MC HENRY 4 WH CBOC\""]
["BLUE 1","MC HENRY 5 CBOC","\"MC HENRY 5 CBOC\"","\"MC HENRY 5 CBOC\""]
["GOLD 2","Norm New","\"Norm New\"","\"Norm New\""]
["GREEN 4","SPINAL CORD INJURY SCI","\"SPINAL CORD INJURY SCI\"","\"SPINAL CORD INJURY SCI\""]
["GREEN 4","WOMENS HEALTH 1 WH CLINIC","\"WOMENS HEALTH 1 WH CLINIC\"","\"WOMENS HEALTH 1 WH CLINIC\""]
["GOLD 2","WOMENS HEALTH 2 WH CLINIC","\"WOMENS HEALTH 2 WH CLINIC\"","\"WOMENS HEALTH 2 WH CLINIC\""]
["GOLD 1"]
["GOLD 1"]
["BLUE 5"]
["GOLD 2"]
["GOLD 3"]
["GREEN 3"]
["WOMENS HEALTH 2 WH CLINIC"]
["BLUE 5"]
["BLUE 5"]
["BLUE 1"]
["GOLD 2"]
["MC HENRY 5 CBOC"]
["GOLD 1"]
["BLUE 1"]
["GREEN 3"]
["MC HENRY 5 CBOC"]
["MC HENRY 4 WH CBOC"]
["GREEN 4"]
["GREEN 4"]
["GREEN 5"]
["GOLD 2"]
["BLUE 1"]
["GOLD 4"]
["GREEN 1"]
["BLUE 5"]
["GOLD 4"]
["WOMENS HEALTH 1 WH CLINIC"]
["GREEN 4"]
["WOMENS HEALTH 1 WH CLINIC"]
["WOMENS HEALTH 1 WH CLINIC"]
["BLUE 2"]
["GREEN 3"]
["GOLD 3"]
["GREEN 5"]
["GREEN 6"]
["KENOSHA 1 WH CBOC"]
["BLUE 5"]
["MC HENRY 2 CBOC"]
["GREEN 4"]
["MC HENRY 5 CBOC"]
["GREEN 4"]
["GOLD 5"]
["GREEN 4"]
["WOMENS HEALTH 1 WH CLINIC"]
["GOLD 2"]
["GOLD 3"]
["GREEN 4"]
["BLUE 5"]
["GOLD 2"]
["BLUE 1"]
["WOMENS HEALTH 1 WH CLINIC"]
["BLUE 5"]
["GOLD 3"]
["GOLD 1"]
["WOMENS HEALTH 2 WH CLINIC"]
["BLUE 1"]
["GOLD 1"]
["MC HENRY 5 CBOC"]
["BLUE 5"]
["MC HENRY 2 CBOC"]
["EVANSTON 2 WH CBOC"]
["GREEN 6"]
["GOLD 1"]
["GOLD 1"]
["MC HENRY 1 WH CBOC"]
["BLUE 1"]
["BLUE 1"]
["GREEN 5"]
["GOLD 1"]
["GREEN 4"]
["BLUE 1"]
["BLUE 1"]
["GOLD 1"]
["GOLD 2"]
["GOLD 2"]
["KENOSHA 1 WH CBOC"]
["MC HENRY 2 CBOC"]
["BLUE 1"]
["GOLD 3"]
["EVANSTON 2 WH CBOC"]
["GREEN 5"]
["GOLD 2"]
["EVANSTON 2 WH CBOC"]
["KENOSHA 2 WH CBOC"]
["EVANSTON 2 WH CBOC"]
["GOLD 2"]
["BLUE 1"]
["GREEN 4"]
["GOLD 2"]
["WOMENS HEALTH 2 WH CLINIC"]
["GOLD 2"]
["GREEN 4"]
["GOLD 1"]
["GOLD 3"]
["GREEN 4"]
["GOLD 3"]
["GOLD 1"]
["BLUE 5"]
["GOLD 2"]
["GOLD 1"]
["GOLD 2"]
["BLUE 1"]
["MC HENRY 1 WH CBOC"]
["GREEN 4"]
["GOLD 1"]
["MC HENRY 1 WH CBOC"]
["MC HENRY 4 WH CBOC"]
["GREEN 4"]
["GOLD 1"]
["GREEN 4"]
["GREEN 4"]
["GREEN 4"]
["GOLD 2"]
["GOLD 2"]
["GOLD 2"]
["GREEN 3"]
["MC HENRY 5 CBOC"]
["GOLD 2"]
["MC HENRY 5 CBOC"]
["MC HENRY 5 CBOC"]
["BLUE 2"]
["GOLD 3"]
["GREEN 4"]
["GREEN 4"]
["GOLD 2"]
["GOLD 2"]
["BLUE 5"]
["EVANSTON 2 WH CBOC"]
["EVANSTON 2 WH CBOC"]
["GREEN 3"]
["WOMENS HEALTH 1 WH CLINIC"]
["GREEN 4"]
["BLUE 1"]
["GOLD 2"]
["GOLD 1"]
["GREEN 4"]
["GOLD 2"]
["MC HENRY 2 CBOC"]
["BLUE 1"]
["GREEN 4"]
["EVANSTON 2 WH CBOC"]
["WOMENS HEALTH 2 WH CLINIC"]
["GREEN 4"]
["GOLD 2"]
["GOLD 2"]
["MC HENRY 2 CBOC"]
["MC HENRY 1 WH CBOC"]
["GOLD 2"]
["GOLD 1"]
["GOLD 2"]
["GREEN 4"]
["GOLD 2"]
["MC HENRY 1 WH CBOC"]
["EVANSTON 2 WH CBOC"]
["MC HENRY 1 WH CBOC"]
["BLUE 5"]
["GOLD 1"]
["MC HENRY 1 WH CBOC"]
["GREEN 4"]
["KENOSHA 2 WH CBOC"]
["MC HENRY 1 WH CBOC"]
["GREEN 6"]
["EVANSTON 2 WH CBOC"]
["MC HENRY 5 CBOC"]
["KENOSHA 2 WH CBOC"]
["GOLD 1"]
["MC HENRY 1 WH CBOC"]
["GREEN 4"]
["KENOSHA 2 WH CBOC"]
["GOLD 1"]
["MC HENRY 5 CBOC"]
["KENOSHA 2 WH CBOC"]
["MC HENRY 1 WH CBOC"]
["MC HENRY 1 WH CBOC"]
["GOLD 1"]
["MC HENRY 5 CBOC"]
["GOLD 1"]
["KENOSHA 2 WH CBOC"]
["GOLD 3"]
["MC HENRY 1 WH CBOC"]
["GOLD 2"]
["GREEN 5"]
["GREEN 3"]
["MC HENRY 5 CBOC"]
["MC HENRY 4 WH CBOC"]
["MC HENRY 5 CBOC"]
["MC HENRY 1 WH CBOC"]
["GOLD 3"]
["MC HENRY 5 CBOC"]
["MC HENRY 1 WH CBOC"]
["MC HENRY 5 CBOC"]
["MC HENRY 5 CBOC"]
["BLUE 6"]
["BLUE 1"]
["GOLD 1"]
["KENOSHA 2 WH CBOC"]
["BLUE 6"]
["GOLD 4"]
["GREEN 4"]
["BLUE 1"]
["GOLD 1"]
["MC HENRY 2 CBOC"]
["MC HENRY 1 WH CBOC"]
["MC HENRY 5 CBOC"]
["WOMENS HEALTH 1 WH CLINIC"]
["GOLD 1"]
["GREEN 5"]
["KENOSHA 2 WH CBOC"]
["GREEN 4"]
["BLUE 5"]
["GOLD 3"]
["GOLD 2"]
["GOLD 2"]
["GREEN 4"]
["MC HENRY 1 WH CBOC"]
["GOLD 1"]
["GREEN 4"]
["KENOSHA 2 WH CBOC"]
["MC HENRY 1 WH CBOC"]
["MC HENRY 1 WH CBOC"]
["BLUE 5"]
["MC HENRY 1 WH CBOC"]
["GREEN 4"]
["BLUE 1"]
["MC HENRY 5 CBOC"]
["BLUE 1"]
["MC HENRY 1 WH CBOC"]
["MC HENRY 1 WH CBOC"]
["MC HENRY 1 WH CBOC"]
["BLUE 1"]
["MC HENRY 1 WH CBOC"]
["MC HENRY 1 WH CBOC"]
["MC HENRY 1 WH CBOC"]
["GREEN 3"]
["GOLD 2"]
["GOLD 2"]
["MC HENRY 1 WH CBOC"]
["KENOSHA 2 WH CBOC"]
["GREEN 5"]
["GREEN 4"]
["WOMENS HEALTH 1 WH CLINIC"]
["BLUE 1"]
["BLUE 2"]
["BLUE 1"]
["WOMENS HEALTH 1 WH CLINIC"]
["GREEN 4"]
["KENOSHA 2 WH CBOC"]
["GREEN 5"]
["GOLD 3"]
["BLUE 1"]
["GREEN 5"]
["GOLD 1"]
["WOMENS HEALTH 1 WH CLINIC"]
["WOMENS HEALTH 1 WH CLINIC"]
["GREEN 5"]
["GREEN 4"]
["MC HENRY 4 WH CBOC"]
["MC HENRY 5 CBOC"]
["MC HENRY 5 CBOC"]
["GOLD 3"]
["BLUE 5"]
["BLUE 1"]
["BLUE 1"]
["BLUE 1"]
["GREEN 4"]
["GREEN 4"]
["GOLD 2"]
["GOLD 1"]
["BLUE 1"]
["GOLD 2"]
["GREEN 4"]
["GOLD 3"]
["GOLD 2"]
["MC HENRY 1 WH CBOC"]
["BLUE 1"]
["BLUE 2"]
["WOMENS HEALTH 2 WH CLINIC"]
["BLUE 1"]
["GREEN 4"]
["WOMENS HEALTH 1 WH CLINIC"]
["MC HENRY 4 WH CBOC"]
["MC HENRY 4 WH CBOC"]
["BLUE 1"]
["GOLD 3"]
["BLUE 1"]
["MC HENRY 5 CBOC"]
["WOMENS HEALTH 2 WH CLINIC"]
["KENOSHA 2 WH CBOC"]
["KENOSHA 2 WH CBOC"]
["GREEN 6"]
["GOLD 3"]
["GREEN 1"]
["GREEN 3"]
["GOLD 1"]
["BLUE 1"]
["GREEN 3"]
["KENOSHA 2 WH CBOC"]
["WOMENS HEALTH 2 WH CLINIC"]
["BLUE 1"]
["KENOSHA 2 WH CBOC"]
["BLUE 1"]
["MC HENRY 4 WH CBOC"]
["GREEN 3"]
["BLUE 1"]
["WOMENS HEALTH 2 WH CLINIC"]
["WOMENS HEALTH 2 WH CLINIC"]
["WOMENS HEALTH 1 WH CLINIC"]
["GREEN 5"]
["GOLD 2"]
["GREEN 1"]
["GREEN 4"]
["GREEN 1"]
["GOLD 1"]
["BLUE 1"]
["BLUE 2"]
["BLUE 5"]
["KENOSHA 2 WH CBOC"]
["EVANSTON 2 WH CBOC"]
["HBPC 2 HBPC"]
["GREEN 4"]
["GREEN 5"]
["GREEN 5"]
["EVANSTON 2 WH CBOC"]
["WOMENS HEALTH 2 WH CLINIC"]
["EVANSTON 2 WH CBOC"]
["BLUE 1"]
["GOLD 3"]
["MC HENRY 5 CBOC"]
["GOLD 1"]
["GREEN 1"]
["MC HENRY 5 CBOC"]
["WOMENS HEALTH 1 WH CLINIC"]
["GREEN 5"]
["GOLD 1"]
["GREEN 6"]
["GOLD 3"]
["WOMENS HEALTH 2 WH CLINIC"]
["MC HENRY 4 WH CBOC"]
["GREEN 5"]
["KENOSHA 2 WH CBOC"]
["GREEN 4"]
["BLUE 1"]
["GOLD 2"]
["GREEN 1"]
["EVANSTON 2 WH CBOC"]
["BLUE 5"]
["GOLD 3"]
["GOLD 1"]
["GOLD 2"]
["WOMENS HEALTH 1 WH CLINIC"]
["GREEN 1"]
["WOMENS HEALTH 2 WH CLINIC"]
["KENOSHA 2 WH CBOC"]
["BLUE 1"]
["GREEN 5"]
["GOLD 1"]
["GREEN 3"]
["GOLD 5"]
["GREEN 4"]
["GOLD 1"]
["MC HENRY 4 WH CBOC"]
["WOMENS HEALTH 1 WH CLINIC"]
["GREEN 5"]
["MC HENRY 1 WH CBOC"]
["BLUE 1"]
["GOLD 5"]
["BLUE 1"]
["MC HENRY 1 WH CBOC"]
["KENOSHA 2 WH CBOC"]
["KENOSHA 2 WH CBOC"]
["GOLD 2"]
["BLUE 1"]
["MC HENRY 4 WH CBOC"]
["GOLD 2"]
["MC HENRY 2 CBOC"]
["GREEN 4"]
["BLUE 2"]
["WOMENS HEALTH 1 WH CLINIC"]
["GOLD 3"]
["GREEN 5"]
["GOLD 4"]
["GREEN 3"]
["MC HENRY 5 CBOC"]
["WOMENS HEALTH 1 WH CLINIC"]
["MC HENRY 5 CBOC"]
["GREEN 3"]
["MC HENRY 1 WH CBOC"]
["GOLD 1"]
["GOLD 1"]
["KENOSHA 2 WH CBOC"]
["MC HENRY 2 CBOC"]
["MC HENRY 4 WH CBOC"]
["MC HENRY 2 CBOC"]
["WOMENS HEALTH 1 WH CLINIC"]
["GOLD 2"]
["BLUE 6"]
["BLUE 1"]
["BLUE 1"]
["GOLD 5"]
["GOLD 5"]
["GREEN 5"]
["GREEN 3"]
["GREEN 6"]
["GREEN 5"]
["BLUE 1"]
["WOMENS HEALTH 1 WH CLINIC"]
["MC HENRY 5 CBOC"]
["GREEN 4"]
["GOLD 1"]
["GOLD 3"]
["BLUE 1"]
["BLUE 1"]
["MC HENRY 2 CBOC"]
["MC HENRY 5 CBOC"]
["WOMENS HEALTH 1 WH CLINIC"]
["GOLD 2"]
["MC HENRY 4 WH CBOC"]
["WOMENS HEALTH 1 WH CLINIC"]
["MC HENRY 5 CBOC"]
["GOLD 2"]
["BLUE 2"]
["GOLD 2"]
["WOMENS HEALTH 2 WH CLINIC"]
["BLUE 5"]
["GREEN 3"]
["MC HENRY 5 CBOC"]
["GOLD 2"]
["GOLD 2"]
["BLUE 1"]
["GOLD 3"]
["MC HENRY 1 WH CBOC"]
["MC HENRY 1 WH CBOC"]
["MC HENRY 1 WH CBOC"]
["GOLD 3"]
["BLUE 5"]
["MC HENRY 2 CBOC"]
["GREEN 5"]
["GOLD 3"]
["MC HENRY 1 WH CBOC"]
["BLUE 1"]
["WOMENS HEALTH 1 WH CLINIC"]
["GREEN 4"]
["GOLD 2"]
["GOLD 5"]
["MC HENRY 1 WH CBOC"]
["BLUE 1"]
["GOLD 2"]
["GREEN 4"]
["BLUE 5"]
["BLUE 1"]
["GOLD 1"]
["GOLD 2"]
["GREEN 1"]
["GREEN 4"]
["WOMENS HEALTH 2 WH CLINIC"]
["GOLD 3"]
["WOMENS HEALTH 1 WH CLINIC"]
["GREEN 4"]
["GREEN 5"]
["GREEN 4"]
["BLUE 1"]
["MC HENRY 4 WH CBOC"]
["WOMENS HEALTH 1 WH CLINIC"]
["EVANSTON 2 WH CBOC"]
["WOMENS HEALTH 1 WH CLINIC"]
["BLUE 6"]
["MC HENRY 2 CBOC"]
["GOLD 2"]
["GREEN 3"]
["WOMENS HEALTH 2 WH CLINIC"]
["GOLD 2"]
["MC HENRY 5 CBOC"]
["MC HENRY 1 WH CBOC"]
["BLUE 6"]
["GOLD 5"]
["WOMENS HEALTH 1 WH CLINIC"]
["WOMENS HEALTH 1 WH CLINIC"]
["GOLD 3"]
["MC HENRY 4 WH CBOC"]
["MC HENRY 2 CBOC"]
["MC HENRY 4 WH CBOC"]
["EVANSTON 2 WH CBOC"]
["BLUE 1"]
["GOLD 2"]
["WOMENS HEALTH 1 WH CLINIC"]
["WOMENS HEALTH 1 WH CLINIC"]
["GREEN 6"]
["GREEN 4"]
["SPINAL CORD INJURY SCI"]
["MC HENRY 4 WH CBOC"]
["MC HENRY 2 CBOC"]
["GOLD 3"]
["WOMENS HEALTH 2 WH CLINIC"]
["MC HENRY 2 CBOC"]
["MC HENRY 4 WH CBOC"]
["GREEN 4"]
["GOLD 5"]
["GOLD 3"]
["GREEN 3"]
["GREEN 3"]
["BLUE 2"]
["WOMENS HEALTH 2 WH CLINIC"]
["MC HENRY 1 WH CBOC"]
["GOLD 3"]
["GOLD 3"]
["GREEN 4"]
["WOMENS HEALTH 2 WH CLINIC"]
["GREEN 4"]
["MC HENRY 4 WH CBOC"]
["GREEN 3"]
["BLUE 6"]
["GOLD 3"]
["GREEN 4"]
["GOLD 1"]
["BLUE 1"]
["BLUE 6"]
["MC HENRY 1 WH CBOC"]
["GOLD 5"]
["BLUE 5"]
["BLUE 2"]
["MC HENRY 5 CBOC"]
["BLUE 1"]
["GREEN 1"]
["GREEN 3"]
["MC HENRY 1 WH CBOC"]
["MC HENRY 1 WH CBOC"]
["GOLD 1"]
["GOLD 4"]
["GOLD 3"]
["GREEN 1"]
["MC HENRY 1 WH CBOC"]
["GREEN 4"]
["GOLD 3"]
["BLUE 1"]
["GOLD 3"]
["GREEN 1"]
["WOMENS HEALTH 1 WH CLINIC"]
["GOLD 1"]
["MC HENRY 1 WH CBOC"]
["MC HENRY 5 CBOC"]
["MC HENRY 2 CBOC"]
["GREEN 4"]
["BLUE 2"]
["GOLD 1"]
["GREEN 3"]
["GOLD 1"]
["MC HENRY 1 WH CBOC"]
["WOMENS HEALTH 1 WH CLINIC"]
["GREEN 3"]
["GOLD 2"]
["MC HENRY 2 CBOC"]
["MC HENRY 5 CBOC"]
["GOLD 2"]
["MC HENRY 1 WH CBOC"]
["GOLD 3"]
["GOLD 1"]
["GOLD 2"]
["BLUE 5"]
["GOLD 1"]
["MC HENRY 5 CBOC"]
["GREEN 1"]
["MC HENRY 1 WH CBOC"]
["MC HENRY 4 WH CBOC"]
["GOLD 3"]
["MC HENRY 5 CBOC"]
["GOLD 5"]
["GOLD 2"]
["BLUE 5"]
["BLUE 5"]
["GOLD 2"]
["KENOSHA 1 WH CBOC"]
["MC HENRY 4 WH CBOC"]
["MC HENRY 5 CBOC"]
["MC HENRY 1 WH CBOC"]
["KENOSHA 2 WH CBOC"]
["MC HENRY 1 WH CBOC"]
["KENOSHA 1 WH CBOC"]
["KENOSHA 1 WH CBOC"]
["KENOSHA 1 WH CBOC"]
["KENOSHA 2 WH CBOC"]
["GOLD 5"]
["GOLD 3"]
["WOMENS HEALTH 1 WH CLINIC"]
["BLUE 1"]
["GREEN 1"]
["HBPC 1 HBPC"]
["MC HENRY 4 WH CBOC"]
["BLUE 2"]
["MC HENRY 2 CBOC"]
["GREEN 1"]
["GREEN 5"]
["MC HENRY 5 CBOC"]
["GREEN 1"]
["GOLD 1"]
["MC HENRY 1 WH CBOC"]
["MC HENRY 5 CBOC"]
["GREEN 4"]
["GREEN 4"]
["GOLD 3"]
["BLUE 6"]
["BLUE 6"]
["BLUE 2"]
["KENOSHA 1 WH CBOC"]
["BLUE 5"]
["WOMENS HEALTH 1 WH CLINIC"]
["KENOSHA 1 WH CBOC"]
["MC HENRY 1 WH CBOC"]
["BLUE 2"]
["MC HENRY 1 WH CBOC"]
["MC HENRY 1 WH CBOC"]
["MC HENRY 1 WH CBOC"]
["MC HENRY 1 WH CBOC"]
["MC HENRY 5 CBOC"]
["Norm New"]

{"sheet":"concat","index":6,"n_rows":27,"n_cols":3,"rows_kept":27,"cut":false,"hidden":false,"merged":[]}
["blu1",null,{"$f":"CONCATENATE(\"blu1,\",\"blu2,\",\"blu3,\",\"blu4,\",\"blu5,\",\"blu6,\",\"blu7,\",\"blu8,\",\"blu9,\",\"blu10,\",\"blu11,\",\"blu12,\",\"blu13,\",\"blu14,\",\"blu15,\",\"blu16,\",\"blu17,\",\"blu18,\",\"blu19,\",\"blu20,\",\"blu21,\",\"blu22,\",\"blu23,\",\"blu24,\",\"blu25,\",\"blu26,\",\"blu27,\")","v":"blu1,blu2,blu3,blu4,blu5,blu6,blu7,blu8,blu9,blu10,blu11,blu12,blu13,blu14,blu15,blu16,blu17,blu18,blu19,blu20,blu21,blu22,blu23,blu24,blu25,blu26,blu27,"}]
["blu2"]
["blu3",null,"blu1,blu2,blu3,blu4,blu5,blu6,blu7,blu8,blu9,blu10,blu11,blu12,blu13,blu14,blu15,blu16,blu17,blu18,blu19,blu20,blu21,blu22,blu23,blu24,blu25,blu26,blu27"]
["blu4"]
["blu5"]
["blu6"]
["blu7"]
["blu8"]
["blu9"]
["blu10"]
["blu11"]
["blu12"]
["blu13"]
["blu14"]
["blu15"]
["blu16"]
["blu17"]
["blu18"]
["blu19"]
["blu20"]
["blu21"]
["blu22"]
["blu23"]
["blu24"]
["blu25"]
["blu26"]
["blu27"]